Workbook

Sheet Notes
A1: SimplifyIt.xlsm
A2: Coded beginning 2015-Nov-02 by Ronald McAllister (rpmac_xltt@sprynet.com)
A4: This Workbook demonstrates an EXCEL version of the ideas presented
A5: by James E. Rich with John B. Rich in an article titled "Simplify It"
A6: which appears in the January 2016 issue of
A7: "Technical Analysis of Stocks and Commodities" magazine.
A9: CalculationsAndCharts construction Notes:
B11: Functionality Note: To keep the index bars in sync with the stock price bars, I took the simple route of refreshing the index history
B12: every time one asks for a stock price history retrieval.
B14: Trend determination for the Index uses a very simple process.
B15: Take a bar by bar delta of the Index SMA. If the delta is positive assign a 1, if negative assign a -1.
B16: Take a small bar count SMA of these assignments. If the result is positive assign TRUE (Up), if negative assign FALSE (Down).
B17: In the rare possibility of a zero SMA of the assignments, propagate the TRUE or FALSE trend value from the previous bar.
B18: There are better trend determiners out there but this was quick and generally agreed with Eyeball Mark I.
B20: To approximate figure 1 from the article: use data for Symbol HUM, plot dates 9/16/2014 to 4/20/2015.
B21: To approximate figure 2 from the article: use data for Symbol NOV, plot dates 8/27/2014 to 3/31/2015.
B23: Changing the Trade Setup Entry Allowed screening controls will dramatically change which potential transactions make the cut.
B24: As will, to a lesser degree, the various SMA and Index Trend controls.
A26: Note re: Transaction Simulation
B27: Signals are generated in this workbook by the closing price of a bar.
C28: Logically, one cannot trade on that Closed bar so this simulation uses the OPEN price of the Next bar when initiating or exiting a position.
C29: The Long and Short shading seen on the Price chart reflect this one bar delay after signals.
B31: The Transaction Summary tab lists the Long and Short trades displayed on the CalculationsAndCharts tab.
C32: The one exception happens when an active position appears at the left edge of the chart where the position was initiated on a bar
C33: that occurred before the left edge of the chart. This logically incomplete position will be reflected in the listing on the
C34: Transaction Summary tab but will not be included in the totals.
B36: Currently, I do not have a good way to capture earnings dates from the web. So this simulation can not exit a transaction before an earnings release as described by the authors.
A38: Development Notes:
C39: This workbook contains and uses VBA macros and VBA Class structures.
C40: Input Data
C41: The data in this workbook is sorted date descending (most recent date at the top). All formulas and
C42: VBA routines are built accordingly.
A44: Calculation and Chart Worksheet Usage Comments:
C45: In General, Items in Bolded BLUE are items you may freely change to play what-if games.
C46: Be sure to have a backup copy of the spreadsheet before you alter anything else.
A48: Features carried forward from the October 2015 TradersTips Template
B49: Improved automation: changes to any of the following will automatically initiate calculations appropriate to reflect a change.
C50: Changing either of cells A11 (pan) or A12 (zoom) will automatically initiate the same chart sizing macros that the manual
C51: "Set Chart" button uses.
B52: Added fail-over capability to attempt to retrieve company name and basic last trade info via screen scraper logic
C53: using the Yahoo stock Summary page. Until now, the way I have been doing this reports that ^DJI is Not Found!
C54: when there is history available. Will still report correctly for a truly Not Found Symbol
C55: Minor drawbacks to the screen scrape of the stock summary page include:
C56: Only date on the page is the date we request the page. I will use this date for now as the last trade date…
C57: but the user should be aware that this is not necessarily the correct date if you are making the inquiry on
C58: a weekend or market holiday.
C59: This is not a big issue as the last real trade will already be accounted for in the history download by about 6 pm on the real date of the trade.
C60: Note: Failover is only used if what I have been doing all along reports a "not found".

Sheet InputPriceData
A1: Humana Inc. Common Stock (HUM) -NYQ (Daily)
A2: Last Trade: | B2: 2015-11-06 | C2: 176.02 | D2: 177.81 | E2: 174.62 | F2: 176.74 | G2: 268101 | H2: 11:02am | I2: -2.31 | J2: =IFERROR(OFFSET(J2,0,-1,1,1)/(OFFSET(J2,0,-4,1,1)-OFFSET(J2,0,-1,1,1)),"") -> -0.01290142418 | L2: Notes: | M2: Online Yahoo Finance Query Interfaces used in the VBA code to obtain this data: | IJ2: 241.79
A3: Request Online Yahoo History for: | M3: A.) Price History Only: "http://ichart.finance.yahoo.com/table.csv"
A4: Symbol | B4: HUM | D4: Valid | I4: =OFFSET(I4,-2,0,1,1) -> -2.31 | M4: B.) Price History w/ imbedded divs n splits: "http://ichart.finance.yahoo.com/x"
A5: From | B5: 1977-01-07 | D5: Data | AF5: Trailing 12 Div return (Cur Close)
A6: To | B6: =TODAY() -> 2015-11-06 | D6: Types | E6: =VLOOKUP(B7,D7:E10,2,FALSE) -> d | M6: C.) Fundamentals (in this case name and exchange):
A7: Data Type | B7: Daily | D7: Daily | E7: d | M7: "http://download.finance.yahoo.com/d/quotes.csv?"
D8: Weekly | E8: w | M8: For some how-to doc regarding this particular interface, including a list of the
A9: Available Data | D9: Monthly | E9: m | M9: specific fields you can include in a request to this interface see:
A10: Bar Count: | B10: =COUNTA(B15:B61303)-1 -> 508 | M10: http://www.gummy-stuff.org/Yahoo-data.htm | AF10: =OFFSET(AC15,1,0,1,1)/OFFSET(N15,1,0,1,1) -> 0.006450152767
A11: From: | B11: =IF(B10<=0,"",OFFSET(B15,B10,IF(HistReqDataType="v",1,0),1,1)) -> 2013-11-01 | M11: This web site includes a downloadable working EXCEL/VBA example | W11: Trailing 12 Month Dividend Returns
A12: To: | B12: =IF(B10<=0,"",IF(HistReqDataType="v",OFFSET(B15,2,1,1,1),OFFSET(B15,1,0,1,1))) -> 2015-11-06 | M12: of the capabilities of this interface. | W12: Raw Close price on Dividend date | X12: Div Year and Month | Y12: Looking for year ago Div Year and Month | Z12: Year ago Div Date we found | AA12: row offset to year ago div Date | AB12: Same month flag | AC12: Trailing 12 Div Total | AD12: Trailing 12 Div return
Q13: Split History | S13: =COUNT(Q16:Q11303) -> 4 | T13: Running | U13: Dividend History
B14: Raw Data Values | H14: Adjusted | I14: Price Adjust | J14: Vol Adjust | K14: Adjusted Values | P14: Last | Q14: Effective | R14: Shares | T14: Vol Adjust | V14: =COUNT(U16:U11303) -> 63
A15: RelRow | B15: Date | C15: Open | D15: High | E15: Low | F15: Close | G15: Volume | H15: Close | I15: Factor | J15: Factor | K15: Open | L15: High | M15: Low | N15: Close | O15: Volume | P15: Trade | Q15: 42315 | R15: New | S15: Old | T15: 1 | U15: Date | V15: $ / Share
A16: 1 | B16: 2015-11-06 | C16: 176.02 | D16: 177.81 | E16: 174.62 | F16: 176.74 | G16: 268101 | H16: 176.74 | I16: =H16/F16 -> 1 | J16: =INDEX(OFFSET($T$15,0,0,$S$13+1,1),MATCH(B16,OFFSET($Q$15,0,0,$S$13+1,1),-1)) -> 1 | K16: =ROUND($I16*C16,2) -> 176.02 | L16: =ROUND($I16*D16,2) -> 177.81 | M16: =ROUND($I16*E16,2) -> 174.62 | N16: =ROUND($I16*F16,2) -> 176.74 | O16: =G16*J16 -> 268101 | P16: 11:02am | Q16: 1991-08-01 | R16: 3 | S16: 2 | T16: 1.5 | U16: 2015-09-28 | V16: 0.29 | W16: =(INDEX(OFFSET($F$15,1,0,$B$10,1),MATCH(U16,OFFSET($B$15,1,0,$B$10,1),-1))) -> 174.160004 | X16: =YEAR(U16)&RIGHT("0"&MONTH(U16),2) -> 201509 | Y16: =YEAR(U16)-1&RIGHT("0"&MONTH(U16),2) -> 201409 | Z16: =OFFSET(U15,AA16,0,1,1) -> 2014-09-26 | AA16: =MATCH(Y16,OFFSET($X$15,A16,0,$V$14+1-A16,1),-1) -> 5 | AB16: =IF(OR(AND(YEAR(U16)=YEAR(Z16),MONTH(U16)=MONTH(Z16)),MONTH(U16)=MONTH(Z16)),1,0) -> 1 | AC16: =(V16+IF(AA16-AB16=0,0,IFERROR(SUM(OFFSET(V16,1,0,AA16-AB16-1,1)),0))) -> 1.14 | AD16: =AC16/(INDEX(OFFSET($F$15,1,0,$B$10,1),MATCH(U16,OFFSET($B$15,1,0,$B$10,1),-1))) -> 0.006545704948
A17: 2 | B17: 2015-11-05 | C17: 177 | D17: 179.979996 | E17: 176.320007 | F17: 179.050003 | G17: 810900 | H17: 179.050003 | I17: =H17/F17 -> 1 | J17: =INDEX(OFFSET($T$15,0,0,$S$13+1,1),MATCH(B17,OFFSET($Q$15,0,0,$S$13+1,1),-1)) -> 1 | K17: 177 | L17: 179.98 | M17: 176.32 | N17: 179.05 | O17: =G17*J17 -> 810900 | Q17: 1984-02-01 | R17: 6 | S17: 5 | T17: 1.8 | U17: 2015-06-26 | V17: 0.29 | W17: =(INDEX(OFFSET($F$15,1,0,$B$10,1),MATCH(U17,OFFSET($B$15,1,0,$B$10,1),-1))) -> 195.5 | X17: =YEAR(U17)&RIGHT("0"&MONTH(U17),2) -> 201506 | Y17: =YEAR(U17)-1&RIGHT("0"&MONTH(U17),2) -> 201406 | Z17: =OFFSET(U16,AA17,0,1,1) -> 2014-06-26 | AA17: =MATCH(Y17,OFFSET($X$15,A17,0,$V$14+1-A17,1),-1) -> 5 | AB17: =IF(OR(AND(YEAR(U17)=YEAR(Z17),MONTH(U17)=MONTH(Z17)),MONTH(U17)=MONTH(Z17)),1,0) -> 1 | AC17: =(V17+IF(AA17-AB17=0,0,IFERROR(SUM(OFFSET(V17,1,0,AA17-AB17-1,1)),0))) -> 1.13 | AD17: =AC17/(INDEX(OFFSET($F$15,1,0,$B$10,1),MATCH(U17,OFFSET($B$15,1,0,$B$10,1),-1))) -> 0.005780051151
A18: 3 | B18: 2015-11-04 | C18: 178.669998 | D18: 179.009995 | E18: 176.009995 | F18: 176.880005 | G18: 737900 | H18: 176.880005 | I18: =H18/F18 -> 1 | J18: =INDEX(OFFSET($T$15,0,0,$S$13+1,1),MATCH(B18,OFFSET($Q$15,0,0,$S$13+1,1),-1)) -> 1 | K18: 178.67 | L18: 179.01 | M18: 176.01 | N18: 176.88 | O18: =G18*J18 -> 737900 | Q18: 1983-02-01 | R18: 4 | S18: 3 | T18: 2.4 | U18: 2015-03-27 | V18: 0.28 | W18: 177.520004 | X18: 201503 | Y18: 201403 | Z18: 2014-03-27 | AA18: 5 | AB18: 1 | AC18: 1.12 | AD18: 0.006309148123
A19: 4 | B19: 2015-11-03 | C19: 179.979996 | D19: 181.5 | E19: 177.009995 | F19: 178.529999 | G19: 621900 | H19: 178.529999 | I19: 1 | J19: 1 | K19: 179.98 | L19: 181.5 | M19: 177.01 | N19: 178.53 | O19: 621900 | Q19: 1982-02-01 | R19: 3 | S19: 2 | T19: 3.6 | U19: 2014-12-29 | V19: 0.28 | W19: 144.479996 | X19: 201412 | Y19: 201312 | Z19: 2013-12-27 | AA19: 5 | AB19: 1 | AC19: 1.11 | AD19: 0.007682724465
A20: 5 | B20: 2015-11-02 | C20: 179.949997 | D20: 181.869995 | E20: 178.210007 | F20: 180.639999 | G20: 739000 | H20: 180.639999 | I20: 1 | J20: 1 | K20: 179.95 | L20: 181.87 | M20: 178.21 | N20: 180.64 | O20: 739000 | U20: 2014-09-26 | V20: 0.28 | W20: 131.729996 | X20: 201409 | Y20: 201309 | Z20: 2013-09-26 | AA20: 5 | AB20: 1 | AC20: 1.1 | AD20: 0.008350413979
A21: 6 | B21: 2015-10-30 | C21: 180.809998 | D21: 182.119995 | E21: 178.559998 | F21: 178.630005 | G21: 950200 | H21: 178.630005 | I21: 1 | J21: 1 | K21: 180.81 | L21: 182.12 | M21: 178.56 | N21: 178.63 | O21: 950200 | U21: 2014-06-26 | V21: 0.28 | W21: 127.800003 | X21: 201406 | Y21: 201306 | Z21: 2013-06-26 | AA21: 5 | AB21: 1 | AC21: 1.09 | AD21: 0.008528951286
A22: 7 | B22: 2015-10-29 | C22: 178 | D22: 183.300003 | E22: 175.410004 | F22: 180.570007 | G22: 1431700 | H22: 180.570007 | I22: 1 | J22: 1 | K22: 178 | L22: 183.3 | M22: 175.41 | N22: 180.57 | O22: 1431700 | U22: 2014-03-27 | V22: 0.27 | W22: 112.059998 | X22: 201403 | Y22: 201303 | Z22: 2013-03-26 | AA22: 5 | AB22: 1 | AC22: 1.08 | AD22: 0.009637694264
A23: 8 | B23: 2015-10-28 | C23: 174.910004 | D23: 178.199997 | E23: 171.309998 | F23: 178 | G23: 1021700 | H23: 178 | I23: 1 | J23: 1 | K23: 174.91 | L23: 178.2 | M23: 171.31 | N23: 178 | O23: 1021700 | U23: 2013-12-27 | V23: 0.27 | W23: 103.050003 | X23: 201312 | Y23: 201212 | Z23: 2012-12-27 | AA23: 5 | AB23: 1 | AC23: 1.07 | AD23: 0.01038330877
A24: 9 | B24: 2015-10-27 | C24: 170.240005 | D24: 177.029999 | E24: 169.509995 | F24: 175.160004 | G24: 1478100 | H24: 175.160004 | I24: 1 | J24: 1 | K24: 170.24 | L24: 177.03 | M24: 169.51 | N24: 175.16 | O24: 1478100 | U24: 2013-09-26 | V24: 0.27 | W24: 93.010002 | X24: 201309 | Y24: 201209 | Z24: 2012-09-26 | AA24: 5 | AB24: 1 | AC24: 1.06 | AD24: 0.01139662377
A25: 10 | B25: 2015-10-26 | C25: 168.410004 | D25: 170.919998 | E25: 167.550003 | F25: 170.240005 | G25: 1672100 | H25: 170.240005 | I25: 1 | J25: 1 | K25: 168.41 | L25: 170.92 | M25: 167.55 | N25: 170.24 | O25: 1672100 | U25: 2013-06-26 | V25: 0.27 | W25: 93.010002 | X25: 201306 | Y25: 201206 | Z25: 2012-06-27 | AA25: 5 | AB25: 1 | AC25: 1.05 | AD25: 0.01128910846
A26: 11 | B26: 2015-10-23 | C26: 165.029999 | D26: 169.789993 | E26: 165.029999 | F26: 168.199997 | G26: 2746600 | H26: 168.199997 | I26: 1 | J26: 1 | K26: 165.03 | L26: 169.79 | M26: 165.03 | N26: 168.2 | O26: 2746600 | U26: 2013-03-26 | V26: 0.26 | W26: 93.010002 | X26: 201303 | Y26: 201203 | Z26: 2012-03-28 | AA26: 5 | AB26: 1 | AC26: 1.04 | AD26: 0.01118159314
A27: 12 | B27: 2015-10-22 | C27: 176.860001 | D27: 178.190002 | E27: 162.210007 | F27: 165.110001 | G27: 3516200 | H27: 165.110001 | I27: 1 | J27: 1 | K27: 176.86 | L27: 178.19 | M27: 162.21 | N27: 165.11 | O27: 3516200 | U27: 2012-12-27 | V27: 0.26 | W27: 93.010002 | X27: 201212 | Y27: 201112 | Z27: 2011-12-28 | AA27: 5 | AB27: 1 | AC27: 1.03 | AD27: 0.01107407782
A28: 13 | B28: 2015-10-21 | C28: 186.580002 | D28: 186.850006 | E28: 170.75 | F28: 177.149994 | G28: 2951700 | H28: 177.149994 | I28: 1 | J28: 1 | K28: 186.58 | L28: 186.85 | M28: 170.75 | N28: 177.15 | O28: 2951700 | U28: 2012-09-26 | V28: 0.26 | W28: 93.010002 | X28: 201209 | Y28: 201109 | Z28: 2011-09-28 | AA28: 5 | AB28: 1 | AC28: 1.02 | AD28: 0.0109665625
A29: 14 | B29: 2015-10-20 | C29: 186.820007 | D29: 187.449997 | E29: 184.979996 | F29: 185.919998 | G29: 845100 | H29: 185.919998 | I29: 1 | J29: 1 | K29: 186.82 | L29: 187.45 | M29: 184.98 | N29: 185.92 | O29: 845100 | U29: 2012-06-27 | V29: 0.26 | W29: 93.010002 | X29: 201206 | Y29: 201106 | Z29: 2011-06-28 | AA29: 5 | AB29: 1 | AC29: 1.01 | AD29: 0.01085904718
A30: 15 | B30: 2015-10-19 | C30: 183.899994 | D30: 186.800003 | E30: 183.899994 | F30: 186.669998 | G30: 1054000 | H30: 186.669998 | I30: 1 | J30: 1 | K30: 183.9 | L30: 186.8 | M30: 183.9 | N30: 186.67 | O30: 1054000 | U30: 2012-03-28 | V30: 0.25 | W30: 93.010002 | X30: 201203 | Y30: 201103 | Z30: 2011-06-28 | AA30: 4 | AB30: 0 | AC30: 1 | AD30: 0.01075153186
A31: 16 | B31: 2015-10-16 | C31: 184 | D31: 185.080002 | E31: 182.830002 | F31: 184.199997 | G31: 1104200 | H31: 184.199997 | I31: 1 | J31: 1 | K31: 184 | L31: 185.08 | M31: 182.83 | N31: 184.2 | O31: 1104200 | U31: 2011-12-28 | V31: 0.25 | W31: 93.010002 | X31: 201112 | Y31: 201012 | Z31: 2011-06-28 | AA31: 3 | AB31: 0 | AC31: 0.75 | AD31: 0.008063648897
A32: 17 | B32: 2015-10-15 | C32: 181.130005 | D32: 183.369995 | E32: 180.199997 | F32: 183.25 | G32: 1081800 | H32: 183.25 | I32: 1 | J32: 1 | K32: 181.13 | L32: 183.37 | M32: 180.2 | N32: 183.25 | O32: 1081800 | U32: 2011-09-28 | V32: 0.25 | W32: 93.010002 | X32: 201109 | Y32: 201009 | Z32: 2011-06-28 | AA32: 2 | AB32: 0 | AC32: 0.5 | AD32: 0.005375765931
A33: 18 | B33: 2015-10-14 | C33: 184.600006 | D33: 185.690002 | E33: 181.300003 | F33: 182.520004 | G33: 716300 | H33: 182.520004 | I33: 1 | J33: 1 | K33: 184.6 | L33: 185.69 | M33: 181.3 | N33: 182.52 | O33: 716300 | U33: 2011-06-28 | V33: 0.25 | W33: 93.010002 | X33: 201106 | Y33: 201006 | Z33: 2011-06-28 | AA33: 1 | AB33: 1 | AC33: 0.25 | AD33: 0.002687882966
A34: 19 | B34: 2015-10-13 | C34: 180.529999 | D34: 185.990005 | E34: 180.529999 | F34: 184.449997 | G34: 1243300 | H34: 184.449997 | I34: 1 | J34: 1 | K34: 180.53 | L34: 185.99 | M34: 180.53 | N34: 184.45 | O34: 1243300 | U34: 1993-03-08 | V34: 13.875 | W34: 93.010002 | X34: 199303 | Y34: 199203 | Z34: 1992-03-26 | AA34: 5 | AB34: 1 | AC34: 14.55 | AD34: 0.1564347886
A35: 20 | B35: 2015-10-12 | C35: 180.940002 | D35: 181.910004 | E35: 180.130005 | F35: 181.509995 | G35: 479700 | H35: 181.509995 | I35: 1 | J35: 1 | K35: 180.94 | L35: 181.91 | M35: 180.13 | N35: 181.51 | O35: 479700 | U35: 1992-12-28 | V35: 0.225 | W35: 93.010002 | X35: 199212 | Y35: 199112 | Z35: 1991-12-26 | AA35: 5 | AB35: 1 | AC35: 0.9 | AD35: 0.009676378676
A36: 21 | B36: 2015-10-09 | C36: 179.559998 | D36: 182.419998 | E36: 179.559998 | F36: 181.039993 | G36: 502000 | H36: 181.039993 | I36: 1 | J36: 1 | K36: 179.56 | L36: 182.42 | M36: 179.56 | N36: 181.04 | O36: 502000 | U36: 1992-09-25 | V36: 0.225 | W36: 93.010002 | X36: 199209 | Y36: 199109 | Z36: 1991-09-25 | AA36: 5 | AB36: 1 | AC36: 0.9 | AD36: 0.009676378676
A37: 22 | B37: 2015-10-08 | C37: 180.550003 | D37: 181.220001 | E37: 178.979996 | F37: 180.300003 | G37: 1096200 | H37: 180.300003 | I37: 1 | J37: 1 | K37: 180.55 | L37: 181.22 | M37: 178.98 | N37: 180.3 | O37: 1096200 | U37: 1992-06-25 | V37: 0.225 | W37: 93.010002 | X37: 199206 | Y37: 199106 | Z37: 1991-06-25 | AA37: 5 | AB37: 1 | AC37: 0.9 | AD37: 0.009676378676
A38: 23 | B38: 2015-10-07 | C38: 179.460007 | D38: 181.050003 | E38: 178.279999 | F38: 180.919998 | G38: 851700 | H38: 180.919998 | I38: 1 | J38: 1 | K38: 179.46 | L38: 181.05 | M38: 178.28 | N38: 180.92 | O38: 851700 | U38: 1992-03-26 | V38: 0.225 | W38: 93.010002 | X38: 199203 | Y38: 199103 | Z38: 1991-03-25 | AA38: 5 | AB38: 1 | AC38: 0.89967 | AD38: 0.00967283067
A39: 24 | B39: 2015-10-06 | C39: 183.539993 | D39: 183.860001 | E39: 178.610001 | F39: 178.899994 | G39: 1332100 | H39: 178.899994 | I39: 1 | J39: 1 | K39: 183.54 | L39: 183.86 | M39: 178.61 | N39: 178.9 | O39: 1332100 | U39: 1991-12-26 | V39: 0.225 | W39: 93.010002 | X39: 199112 | Y39: 199012 | Z39: 1990-12-26 | AA39: 5 | AB39: 1 | AC39: 0.87467 | AD39: 0.009404042374
A40: 25 | B40: 2015-10-05 | C40: 184.619995 | D40: 185.25 | E40: 181.649994 | F40: 183.360001 | G40: 877800 | H40: 183.360001 | I40: 1 | J40: 1 | K40: 184.62 | L40: 185.25 | M40: 181.65 | N40: 183.36 | O40: 877800 | U40: 1991-09-25 | V40: 0.225 | W40: 93.010002 | X40: 199109 | Y40: 199009 | Z40: 1990-09-25 | AA40: 5 | AB40: 1 | AC40: 0.84967 | AD40: 0.009135254077
A41: 26 | B41: 2015-10-02 | C41: 178.429993 | D41: 183.580002 | E41: 176.5 | F41: 183.509995 | G41: 604000 | H41: 183.509995 | I41: 1 | J41: 1 | K41: 178.43 | L41: 183.58 | M41: 176.5 | N41: 183.51 | O41: 604000 | U41: 1991-06-25 | V41: 0.22467 | W41: 93.010002 | X41: 199106 | Y41: 199006 | Z41: 1990-06-26 | AA41: 5 | AB41: 1 | AC41: 0.82467 | AD41: 0.008866465781
A42: 27 | B42: 2015-10-01 | C42: 178.770004 | D42: 180.550003 | E42: 175.970001 | F42: 180.070007 | G42: 1131800 | H42: 180.070007 | I42: 1 | J42: 1 | K42: 178.77 | L42: 180.55 | M42: 175.97 | N42: 180.07 | O42: 1131800 | U42: 1991-03-25 | V42: 0.2 | W42: 93.010002 | X42: 199103 | Y42: 199003 | Z42: 1990-03-27 | AA42: 5 | AB42: 1 | AC42: 0.8 | AD42: 0.00860122549
A43: 28 | B43: 2015-09-30 | C43: 177.089996 | D43: 179.449997 | E43: 175.720001 | F43: 179 | G43: 1853100 | H43: 179 | I43: 1 | J43: 1 | K43: 177.09 | L43: 179.45 | M43: 175.72 | N43: 179 | O43: 1853100 | U43: 1990-12-26 | V43: 0.2 | W43: 93.010002 | X43: 199012 | Y43: 198912 | Z43: 1989-12-26 | AA43: 5 | AB43: 1 | AC43: 0.77333 | AD43: 0.008314482135
A44: 29 | B44: 2015-09-29 | C44: 174.350006 | D44: 177.300003 | E44: 173.289993 | F44: 175.759995 | G44: 1305600 | H44: 175.759995 | I44: 1 | J44: 1 | K44: 174.35 | L44: 177.3 | M44: 173.29 | N44: 175.76 | O44: 1305600 | U44: 1990-09-25 | V44: 0.2 | W44: 93.010002 | X44: 199009 | Y44: 198909 | Z44: 1989-09-27 | AA44: 5 | AB44: 1 | AC44: 0.74666 | AD44: 0.00802773878
A45: 30 | B45: 2015-09-28 | C45: 180.289993 | D45: 180.929993 | E45: 172.710007 | F45: 174.160004 | G45: 1755800 | H45: 174.160004 | I45: 1 | J45: 1 | K45: 180.29 | L45: 180.93 | M45: 172.71 | N45: 174.16 | O45: 1755800 | U45: 1990-06-26 | V45: 0.2 | W45: 93.010002 | X45: 199006 | Y45: 198906 | Z45: 1989-06-27 | AA45: 5 | AB45: 1 | AC45: 0.71999 | AD45: 0.007740995425
A46: 31 | B46: 2015-09-25 | C46: 186.889999 | D46: 187.580002 | E46: 180.679993 | F46: 181.149994 | G46: 1305000 | H46: 180.859998 | I46: 0.9983991388 | J46: 1 | K46: 186.59 | L46: 187.28 | M46: 180.39 | N46: 180.86 | O46: 1305000 | U46: 1990-03-27 | V46: 0.17333 | W46: 93.010002 | X46: 199003 | Y46: 198903 | Z46: 1989-03-28 | AA46: 5 | AB46: 1 | AC46: 0.69332 | AD46: 0.007454252071
A47: 32 | B47: 2015-09-24 | C47: 187.619995 | D47: 188.330002 | E47: 184.649994 | F47: 185.970001 | G47: 607800 | H47: 185.672289 | I47: 0.9983991397 | J47: 1 | K47: 187.32 | L47: 188.03 | M47: 184.35 | N47: 185.67 | O47: 607800 | U47: 1989-12-26 | V47: 0.17333 | W47: 93.010002 | X47: 198912 | Y47: 198812 | Z47: 1988-12-23 | AA47: 5 | AB47: 1 | AC47: 0.67332 | AD47: 0.007239221433
A48: 33 | B48: 2015-09-23 | C48: 188.470001 | D48: 189.600006 | E48: 187.110001 | F48: 188.679993 | G48: 569100 | H48: 188.377942 | I48: 0.998399136 | J48: 1 | K48: 188.17 | L48: 189.3 | M48: 186.81 | N48: 188.38 | O48: 569100 | U48: 1989-09-27 | V48: 0.17333 | W48: 93.010002 | X48: 198909 | Y48: 198809 | Z48: 1988-09-27 | AA48: 5 | AB48: 1 | AC48: 0.65332 | AD48: 0.007024190796
A49: 34 | B49: 2015-09-22 | C49: 187.669998 | D49: 189.190002 | E49: 185.139999 | F49: 188.649994 | G49: 478600 | H49: 188.347991 | I49: 0.9983991359 | J49: 1 | K49: 187.37 | L49: 188.89 | M49: 184.84 | N49: 188.35 | O49: 478600 | U49: 1989-06-27 | V49: 0.17333 | W49: 93.010002 | X49: 198906 | Y49: 198806 | Z49: 1988-06-27 | AA49: 5 | AB49: 1 | AC49: 0.63332 | AD49: 0.006809160159
A50: 35 | B50: 2015-09-21 | C50: 188.619995 | D50: 190.199997 | E50: 186.889999 | F50: 188.839996 | G50: 546200 | H50: 188.53769 | I50: 0.9983991421 | J50: 1 | K50: 188.32 | L50: 189.9 | M50: 186.59 | N50: 188.54 | O50: 546200 | U50: 1989-03-28 | V50: 0.15333 | W50: 93.010002 | X50: 198903 | Y50: 198803 | Z50: 1988-03-25 | AA50: 5 | AB50: 1 | AC50: 0.61332 | AD50: 0.006594129522
A51: 36 | B51: 2015-09-18 | C51: 187.710007 | D51: 188.690002 | E51: 187.199997 | F51: 187.889999 | G51: 1042300 | H51: 187.589214 | I51: 0.9983991431 | J51: 1 | K51: 187.41 | L51: 188.39 | M51: 186.9 | N51: 187.59 | O51: 1042300 | U51: 1988-12-23 | V51: 0.15333 | W51: 93.010002 | X51: 198812 | Y51: 198712 | Z51: 1987-12-28 | AA51: 5 | AB51: 1 | AC51: 0.59332 | AD51: 0.006379098884
A52: 37 | B52: 2015-09-17 | C52: 188.100006 | D52: 190.100006 | E52: 187.25 | F52: 188.589996 | G52: 906700 | H52: 188.28809 | I52: 0.998399141 | J52: 1 | K52: 187.8 | L52: 189.8 | M52: 186.95 | N52: 188.29 | O52: 906700 | U52: 1988-09-27 | V52: 0.15333 | W52: 93.010002 | X52: 198809 | Y52: 198709 | Z52: 1987-09-28 | AA52: 5 | AB52: 1 | AC52: 0.57332 | AD52: 0.006164068247
A53: 38 | B53: 2015-09-16 | C53: 188.149994 | D53: 188.360001 | E53: 187.070007 | F53: 187.619995 | G53: 631900 | H53: 187.319641 | I53: 0.9983991365 | J53: 1 | K53: 187.85 | L53: 188.06 | M53: 186.77 | N53: 187.32 | O53: 631900 | U53: 1988-06-27 | V53: 0.15333 | W53: 93.010002 | X53: 198806 | Y53: 198706 | Z53: 1987-06-25 | AA53: 5 | AB53: 1 | AC53: 0.55332 | AD53: 0.00594903761
A54: 39 | B54: 2015-09-15 | C54: 187.199997 | D54: 189.119995 | E54: 186.300003 | F54: 187.690002 | G54: 590600 | H54: 187.389537 | I54: 0.9983991422 | J54: 1 | K54: 186.9 | L54: 188.82 | M54: 186 | N54: 187.39 | O54: 590600 | U54: 1988-03-25 | V54: 0.13333 | W54: 93.010002 | X54: 198803 | Y54: 198703 | Z54: 1987-03-27 | AA54: 5 | AB54: 1 | AC54: 0.53332 | AD54: 0.005734006973
A55: 40 | B55: 2015-09-14 | C55: 186.5 | D55: 187.429993 | E55: 185.669998 | F55: 187 | G55: 423800 | H55: 186.700639 | I55: 0.998399139 | J55: 1 | K55: 186.2 | L55: 187.13 | M55: 185.37 | N55: 186.7 | O55: 423800 | U55: 1987-12-28 | V55: 0.13333 | W55: 93.010002 | X55: 198712 | Y55: 198612 | Z55: 1986-12-26 | AA55: 5 | AB55: 1 | AC55: 0.52666 | AD55: 0.005662401771
A56: 41 | B56: 2015-09-11 | C56: 184.630005 | D56: 187.380005 | E56: 184.279999 | F56: 187.320007 | G56: 574600 | H56: 187.020134 | I56: 0.9983991406 | J56: 1 | K56: 184.33 | L56: 187.08 | M56: 183.98 | N56: 187.02 | O56: 574600 | U56: 1987-09-28 | V56: 0.13333 | W56: 93.010002 | X56: 198709 | Y56: 198609 | Z56: 1986-09-29 | AA56: 5 | AB56: 1 | AC56: 0.52 | AD56: 0.005590796568
A57: 42 | B57: 2015-09-10 | C57: 185.389999 | D57: 185.960007 | E57: 184.25 | F57: 185.210007 | G57: 853600 | H57: 184.913511 | I57: 0.9983991362 | J57: 1 | K57: 185.09 | L57: 185.66 | M57: 183.96 | N57: 184.91 | O57: 853600 | U57: 1987-06-25 | V57: 0.13333 | W57: 93.010002 | X57: 198706 | Y57: 198606 | Z57: 1986-06-27 | AA57: 5 | AB57: 1 | AC57: 0.51334 | AD57: 0.005519191366
A58: 43 | B58: 2015-09-09 | C58: 185.919998 | D58: 188.240005 | E58: 184.839996 | F58: 185.149994 | G58: 817100 | H58: 184.853594 | I58: 0.9983991358 | J58: 1 | K58: 185.62 | L58: 187.94 | M58: 184.54 | N58: 184.85 | O58: 817100 | U58: 1987-03-27 | V58: 0.12667 | W58: 93.010002 | X58: 198703 | Y58: 198603 | Z58: 1986-03-26 | AA58: 5 | AB58: 1 | AC58: 0.50668 | AD58: 0.005447586164
A59: 44 | B59: 2015-09-08 | C59: 183.979996 | D59: 185.25 | E59: 183.240005 | F59: 184.979996 | G59: 600600 | H59: 184.683868 | I59: 0.998399135 | J59: 1 | K59: 183.69 | L59: 184.95 | M59: 182.95 | N59: 184.68 | O59: 600600 | U59: 1986-12-26 | V59: 0.12667 | W59: 93.010002 | X59: 198612 | Y59: 198512 | Z59: 1985-12-27 | AA59: 5 | AB59: 1 | AC59: 0.50668 | AD59: 0.005447586164
A60: 45 | B60: 2015-09-04 | C60: 180.300003 | D60: 182.949997 | E60: 179.5 | F60: 181.520004 | G60: 650000 | H60: 181.229416 | I60: 0.9983991406 | J60: 1 | K60: 180.01 | L60: 182.66 | M60: 179.21 | N60: 181.23 | O60: 650000 | U60: 1986-09-29 | V60: 0.12667 | W60: 93.010002 | X60: 198609 | Y60: 198509 | Z60: 1985-09-30 | AA60: 5 | AB60: 1 | AC60: 0.50668 | AD60: 0.005447586164
A61: 46 | B61: 2015-09-03 | C61: 182.350006 | D61: 184.429993 | E61: 181.039993 | F61: 182.160004 | G61: 743200 | H61: 181.868391 | I61: 0.9983991382 | J61: 1 | K61: 182.06 | L61: 184.13 | M61: 180.75 | N61: 181.87 | O61: 743200 | U61: 1986-06-27 | V61: 0.12667 | W61: 93.010002 | X61: 198606 | Y61: 198506 | Z61: 1985-06-27 | AA61: 5 | AB61: 1 | AC61: 0.49334 | AD61: 0.005304160729
A62: 47 | B62: 2015-09-02 | C62: 181.100006 | D62: 181.699997 | E62: 178.830002 | F62: 181.699997 | G62: 1074900 | H62: 181.40912 | I62: 0.9983991359 | J62: 1 | K62: 180.81 | L62: 181.41 | M62: 178.54 | N62: 181.41 | O62: 1074900 | U62: 1986-03-26 | V62: 0.12667 | W62: 93.010002 | X62: 198603 | Y62: 198503 | Z62: 1985-03-27 | AA62: 5 | AB62: 1 | AC62: 0.48 | AD62: 0.005160735294
A63: 48 | B63: 2015-09-01 | C63: 179.880005 | D63: 181.679993 | E63: 178.470001 | F63: 179.25 | G63: 1026800 | H63: 178.963046 | I63: 0.9983991409 | J63: 1 | K63: 179.59 | L63: 181.39 | M63: 178.18 | N63: 178.96 | O63: 1026800 | U63: 1985-12-27 | V63: 0.12667 | W63: 93.010002 | X63: 198512 | Y63: 198412 | Z63: 1984-12-28 | AA63: 5 | AB63: 1 | AC63: 0.46666 | AD63: 0.005017309859
A64: 49 | B64: 2015-08-31 | C64: 184.100006 | D64: 186.179993 | E64: 182.720001 | F64: 182.789993 | G64: 921100 | H64: 182.497372 | I64: 0.998399141 | J64: 1 | K64: 183.81 | L64: 185.88 | M64: 182.43 | N64: 182.5 | O64: 921100 | U64: 1985-09-30 | V64: 0.11333 | W64: 93.010002 | X64: 198509 | Y64: 198409 | Z64: 1984-09-27 | AA64: 5 | AB64: 1 | AC64: 0.45332 | AD64: 0.004873884424
A65: 50 | B65: 2015-08-28 | C65: 184.070007 | D65: 185.059998 | E65: 183.089996 | F65: 184.009995 | G65: 506400 | H65: 183.71542 | I65: 0.9983991359 | J65: 1 | K65: 183.78 | L65: 184.76 | M65: 182.8 | N65: 183.72 | O65: 506400 | U65: 1985-06-27 | V65: 0.11333 | W65: 93.010002 | X65: 198506 | Y65: 198406 | Z65: 1984-06-27 | AA65: 5 | AB65: 1 | AC65: 0.43999 | AD65: 0.004730566504
A66: 51 | B66: 2015-08-27 | C66: 181.039993 | D66: 184.899994 | E66: 180.800003 | F66: 184.809998 | G66: 1030600 | H66: 184.514142 | I66: 0.9983991342 | J66: 1 | K66: 180.75 | L66: 184.6 | M66: 180.51 | N66: 184.51 | O66: 1030600 | U66: 1985-03-27 | V66: 0.11333 | W66: 93.010002 | X66: 198503 | Y66: 198403 | Z66: 1984-03-27 | AA66: 5 | AB66: 1 | AC66: 0.42666 | AD66: 0.004587248584
A67: 52 | B67: 2015-08-26 | C67: 178.929993 | D67: 181.089996 | E67: 176.169998 | F67: 180.729996 | G67: 1383600 | H67: 180.440672 | I67: 0.9983991368 | J67: 1 | K67: 178.64 | L67: 180.8 | M67: 175.89 | N67: 180.44 | O67: 1383600 | U67: 1984-12-28 | V67: 0.11333 | W67: 93.010002 | X67: 198412 | Y67: 198312 | Z67: 1983-12-28 | AA67: 5 | AB67: 1 | AC67: 0.41333 | AD67: 0.004443930665
A68: 53 | B68: 2015-08-25 | C68: 177.690002 | D68: 181.630005 | E68: 175.449997 | F68: 175.460007 | G68: 1161800 | H68: 175.17912 | I68: 0.9983991395 | J68: 1 | K68: 177.41 | L68: 181.34 | M68: 175.17 | N68: 175.18 | O68: 1161800 | U68: 1984-09-27 | V68: 0.1 | W68: 93.010002 | X68: 198409 | Y68: 198309 | Z68: 1983-09-27 | AA68: 5 | AB68: 1 | AC68: 0.4 | AD68: 0.004300612745
A69: 54 | B69: 2015-08-24 | C69: 170.759995 | D69: 180.360001 | E69: 169.399994 | F69: 175.179993 | G69: 1895400 | H69: 174.899554 | I69: 0.998399138 | J69: 1 | K69: 170.49 | L69: 180.07 | M69: 169.13 | N69: 174.9 | O69: 1895400 | U69: 1984-06-27 | V69: 0.1 | W69: 93.010002 | X69: 198406 | Y69: 198306 | Z69: 1983-06-29 | AA69: 5 | AB69: 1 | AC69: 0.38333 | AD69: 0.004121384709
A70: 55 | B70: 2015-08-21 | C70: 184.929993 | D70: 185.970001 | E70: 181.729996 | F70: 181.729996 | G70: 1270800 | H70: 181.439071 | I70: 0.998399136 | J70: 1 | K70: 184.63 | L70: 185.67 | M70: 181.44 | N70: 181.44 | O70: 1270800 | U70: 1984-03-27 | V70: 0.1 | W70: 93.010002 | X70: 198403 | Y70: 198303 | Z70: 1983-03-28 | AA70: 5 | AB70: 1 | AC70: 0.36666 | AD70: 0.003942156673
A71: 56 | B71: 2015-08-20 | C71: 188.089996 | D71: 189.580002 | E71: 185.449997 | F71: 186.089996 | G71: 1223600 | H71: 185.792092 | I71: 0.9983991402 | J71: 1 | K71: 187.79 | L71: 189.28 | M71: 185.15 | N71: 185.79 | O71: 1223600 | U71: 1983-12-28 | V71: 0.1 | W71: 93.010002 | X71: 198312 | Y71: 198212 | Z71: 1982-12-29 | AA71: 5 | AB71: 1 | AC71: 0.34999 | AD71: 0.003762928636
A72: 57 | B72: 2015-08-19 | C72: 189.570007 | D72: 190.600006 | E72: 188.600006 | F72: 189.399994 | G72: 623700 | H72: 189.096791 | I72: 0.9983991393 | J72: 1 | K72: 189.27 | L72: 190.29 | M72: 188.3 | N72: 189.1 | O72: 623700 | U72: 1983-09-27 | V72: 0.08333 | W72: 93.010002 | X72: 198309 | Y72: 198209 | Z72: 1982-09-28 | AA72: 5 | AB72: 1 | AC72: 0.33332 | AD72: 0.0035837006
A73: 58 | B73: 2015-08-18 | C73: 188.990005 | D73: 192.490005 | E73: 188.259995 | F73: 190.529999 | G73: 915400 | H73: 190.224987 | I73: 0.9983991392 | J73: 1 | K73: 188.69 | L73: 192.18 | M73: 187.96 | N73: 190.22 | O73: 915400 | U73: 1983-06-29 | V73: 0.08333 | W73: 93.010002 | X73: 198306 | Y73: 198206 | Z73: 1982-06-29 | AA73: 5 | AB73: 1 | AC73: 0.31249 | AD73: 0.003359746192
A74: 59 | B74: 2015-08-17 | C74: 185.470001 | D74: 190.330002 | E74: 185.100006 | F74: 189.75 | G74: 1168400 | H74: 189.446237 | I74: 0.998399141 | J74: 1 | K74: 185.17 | L74: 190.03 | M74: 184.8 | N74: 189.45 | O74: 1168400 | U74: 1983-03-28 | V74: 0.08333 | W74: 93.010002 | X74: 198303 | Y74: 198203 | Z74: 1982-03-29 | AA74: 5 | AB74: 1 | AC74: 0.29166 | AD74: 0.003135791783
A75: 60 | B75: 2015-08-14 | C75: 185.529999 | D75: 188.149994 | E75: 185.059998 | F75: 186.509995 | G75: 1122200 | H75: 186.211418 | I75: 0.9983991367 | J75: 1 | K75: 185.23 | L75: 187.85 | M75: 184.76 | N75: 186.21 | O75: 1122200 | U75: 1982-12-29 | V75: 0.08333 | W75: 93.010002 | X75: 198212 | Y75: 198112 | Z75: 1982-03-29 | AA75: 4 | AB75: 0 | AC75: 0.27083 | AD75: 0.002911837374
A76: 61 | B76: 2015-08-13 | C76: 186 | D76: 187.309998 | E76: 185.25 | F76: 186.059998 | G76: 564800 | H76: 185.762141 | I76: 0.9983991347 | J76: 1 | K76: 185.7 | L76: 187.01 | M76: 184.95 | N76: 185.76 | O76: 564800 | U76: 1982-09-28 | V76: 0.0625 | W76: 93.010002 | X76: 198209 | Y76: 198109 | Z76: 1982-03-29 | AA76: 3 | AB76: 0 | AC76: 0.1875 | AD76: 0.002015912224
A77: 62 | B77: 2015-08-12 | C77: 185.309998 | D77: 186.179993 | E77: 182.679993 | F77: 186.089996 | G77: 1088100 | H77: 185.792092 | I77: 0.9983991402 | J77: 1 | K77: 185.01 | L77: 185.88 | M77: 182.39 | N77: 185.79 | O77: 1088100 | U77: 1982-06-29 | V77: 0.0625 | W77: 93.010002 | X77: 198206 | Y77: 198106 | Z77: 1982-03-29 | AA77: 2 | AB77: 0 | AC77: 0.125 | AD77: 0.001343941483
A78: 63 | B78: 2015-08-11 | C78: 185.210007 | D78: 186.600006 | E78: 184.529999 | F78: 185.820007 | G78: 1085800 | H78: 185.522535 | I78: 0.998399139 | J78: 1 | K78: 184.91 | L78: 186.3 | M78: 184.23 | N78: 185.52 | O78: 1085800 | U78: 1982-03-29 | V78: 0.0625 | W78: 93.010002 | X78: 198203 | Y78: 198103 | Z78: 1982-03-29 | AA78: 1 | AB78: 1 | AC78: 0.0625 | AD78: 0.0006719707414
A79: 64 | B79: 2015-08-10 | C79: 184.539993 | D79: 186.550003 | E79: 183.970001 | F79: 186.259995 | G79: 719800 | H79: 185.961818 | I79: 0.9983991356 | J79: 1 | K79: 184.24 | L79: 186.25 | M79: 183.68 | N79: 185.96 | O79: 719800
A80: 65 | B80: 2015-08-07 | C80: 184.779999 | D80: 184.779999 | E80: 182.559998 | F80: 184.059998 | G80: 718200 | H80: 183.765343 | I80: 0.9983991361 | J80: 1 | K80: =ROUND($I80*C80,2) -> 184.48 | L80: =ROUND($I80*D80,2) -> 184.48 | M80: =ROUND($I80*E80,2) -> 182.27 | N80: =ROUND($I80*F80,2) -> 183.77 | O80: 718200
A81: 66 | B81: 2015-08-06 | C81: 185.759995 | D81: 186.990005 | E81: 184.389999 | F81: 184.520004 | G81: 1114000 | H81: 184.224613 | I81: 0.9983991383 | J81: 1 | K81: 185.46 | L81: 186.69 | M81: 184.09 | N81: 184.22 | O81: 1114000
A82: 67 | B82: 2015-08-05 | C82: 183.289993 | D82: 186.089996 | E82: 182.940002 | F82: 185.539993 | G82: 1314900 | H82: 185.242969 | I82: =H82/F82 -> 0.9983991376 | J82: =INDEX(OFFSET($T$15,0,0,$S$13+1,1),MATCH(B82,OFFSET($Q$15,0,0,$S$13+1,1),-1)) -> 1 | K82: 183 | L82: 185.79 | M82: 182.65 | N82: 185.24 | O82: =G82*J82 -> 1314900
A83: 68 | B83: 2015-08-04 | C83: 182.929993 | D83: 184.380005 | E83: 181.410004 | F83: 182.330002 | G83: 1117800 | H83: 182.038117 | I83: 0.9983991389 | J83: 1 | K83: 182.64 | L83: 184.08 | M83: 181.12 | N83: 182.04 | O83: 1117800
A84: 69 | B84: 2015-08-03 | C84: 182.5 | D84: 184.210007 | E84: 181.330002 | F84: 182.399994 | G84: 1012300 | H84: 182.107997 | I84: 0.9983991392 | J84: 1 | K84: 182.21 | L84: 183.92 | M84: 181.04 | N84: 182.11 | O84: 1012300
A85: 70 | B85: 2015-07-31 | C85: 184.149994 | D85: 184.919998 | E85: 181.279999 | F85: 182.089996 | G85: 1357700 | H85: 181.798495 | I85: 0.9983991378 | J85: 1 | K85: 183.86 | L85: 184.62 | M85: 180.99 | N85: 181.8 | O85: 1357700
A86: 71 | B86: 2015-07-30 | C86: 184.960007 | D86: 186 | E86: 183.199997 | F86: 183.699997 | G86: 740500 | H86: 183.405919 | I86: 0.9983991399 | J86: 1 | K86: 184.66 | L86: 185.7 | M86: 182.91 | N86: 183.41 | O86: 740500
A87: 72 | B87: 2015-07-29 | C87: 183.839996 | D87: 184.889999 | E87: 182.289993 | F87: 184.410004 | G87: 1077200 | H87: 184.114789 | I87: 0.9983991378 | J87: 1 | K87: 183.55 | L87: 184.59 | M87: 182 | N87: 184.11 | O87: 1077200
A88: 73 | B88: 2015-07-28 | C88: 184.160004 | D88: 184.860001 | E88: 181.860001 | F88: 184.520004 | G88: 1214600 | H88: 184.224613 | I88: 0.9983991383 | J88: 1 | K88: 183.87 | L88: 184.56 | M88: 181.57 | N88: 184.22 | O88: 1214600
A89: 74 | B89: 2015-07-27 | C89: 181.009995 | D89: 184.229996 | E89: 180.289993 | F89: 183.910004 | G89: 1184400 | H89: 183.615589 | I89: 0.9983991355 | J89: 1 | K89: 180.72 | L89: 183.94 | M89: 180 | N89: 183.62 | O89: 1184400
A90: 75 | B90: 2015-07-24 | C90: 184.009995 | D90: 184.089996 | E90: 181.020004 | F90: 181.759995 | G90: 1506300 | H90: 181.469022 | I90: 0.9983991362 | J90: 1 | K90: 183.72 | L90: 183.8 | M90: 180.73 | N90: 181.47 | O90: 1506300
A91: 76 | B91: 2015-07-23 | C91: 186.210007 | D91: 186.479996 | E91: 184.210007 | F91: 184.729996 | G91: 1506700 | H91: 184.434269 | I91: 0.9983991392 | J91: 1 | K91: 185.91 | L91: 186.18 | M91: 183.92 | N91: 184.43 | O91: 1506700
A92: 77 | B92: 2015-07-22 | C92: 185.850006 | D92: 186.880005 | E92: 184.910004 | F92: 186.100006 | G92: 1803800 | H92: 185.802086 | I92: 0.9983991403 | J92: 1 | K92: 185.55 | L92: 186.58 | M92: 184.61 | N92: 185.8 | O92: 1803800
A93: 78 | B93: 2015-07-21 | C93: 186.259995 | D93: 187.220001 | E93: 184.529999 | F93: 185.850006 | G93: 1234200 | H93: 185.552486 | I93: 0.9983991391 | J93: 1 | K93: 185.96 | L93: 186.92 | M93: 184.23 | N93: 185.55 | O93: 1234200
A94: 79 | B94: 2015-07-20 | C94: 188.070007 | D94: 188.240005 | E94: 185.759995 | F94: 186.160004 | G94: 1285300 | H94: 185.861987 | I94: 0.9983991352 | J94: 1 | K94: 187.77 | L94: 187.94 | M94: 185.46 | N94: 185.86 | O94: 1285300
A95: 80 | B95: 2015-07-17 | C95: 186.380005 | D95: 187.770004 | E95: 185.990005 | F95: 187.440002 | G95: 1545300 | H95: 187.139937 | I95: 0.9983991411 | J95: 1 | K95: 186.08 | L95: 187.47 | M95: 185.69 | N95: 187.14 | O95: 1545300
A96: 81 | B96: 2015-07-16 | C96: 187.899994 | D96: 187.979996 | E96: 185.720001 | F96: 186.419998 | G96: 1806800 | H96: 186.121566 | I96: 0.9983991417 | J96: 1 | K96: 187.6 | L96: 187.68 | M96: 185.42 | N96: 186.12 | O96: 1806800
A97: 82 | B97: 2015-07-15 | C97: 186.029999 | D97: 187.990005 | E97: 185.399994 | F97: 187.479996 | G97: 1635200 | H97: 187.179866 | I97: 0.9983991359 | J97: 1 | K97: 185.73 | L97: 187.69 | M97: 185.1 | N97: 187.18 | O97: 1635200
A98: 83 | B98: 2015-07-14 | C98: 186.169998 | D98: 186.979996 | E98: 185.050003 | F98: 186.139999 | G98: 1506200 | H98: 185.842015 | I98: 0.9983991404 | J98: 1 | K98: 185.87 | L98: 186.68 | M98: 184.75 | N98: 185.84 | O98: 1506200
A99: 84 | B99: 2015-07-13 | C99: 188.25 | D99: 188.25 | E99: 183.679993 | F99: 185.100006 | G99: 2691100 | H99: 184.803687 | I99: 0.9983991411 | J99: 1 | K99: 187.95 | L99: 187.95 | M99: 183.39 | N99: 184.8 | O99: 2691100
A100: 85 | B100: 2015-07-10 | C100: 188 | D100: 188.149994 | E100: 186.020004 | F100: 187.25 | G100: 2234900 | H100: 186.950239 | I100: 0.9983991402 | J100: 1 | K100: 187.7 | L100: 187.85 | M100: 185.72 | N100: 186.95 | O100: 2234900
A101: 86 | B101: 2015-07-09 | C101: 187.259995 | D101: 188.139999 | E101: 186.160004 | F101: 186.160004 | G101: 3591300 | H101: 185.861987 | I101: 0.9983991352 | J101: 1 | K101: 186.96 | L101: 187.84 | M101: 185.86 | N101: 185.86 | O101: 3591300
A102: 87 | B102: 2015-07-08 | C102: 186.009995 | D102: 187.740005 | E102: 185.460007 | F102: 185.860001 | G102: 3527800 | H102: 185.562464 | I102: 0.9983991338 | J102: 1 | K102: 185.71 | L102: 187.44 | M102: 185.16 | N102: 185.56 | O102: 3527800
A103: 88 | B103: 2015-07-07 | C103: 188.399994 | D103: 189.399994 | E103: 181.820007 | F103: 187.100006 | G103: 6097700 | H103: 186.800485 | I103: 0.9983991395 | J103: 1 | K103: 188.1 | L103: 189.1 | M103: 181.53 | N103: 186.8 | O103: 6097700
A104: 89 | B104: 2015-07-06 | C104: 190 | D104: 195 | E104: 187.619995 | F104: 188.960007 | G104: 13944900 | H104: 188.657508 | I104: 0.9983991374 | J104: 1 | K104: 189.7 | L104: 194.69 | M104: 187.32 | N104: 188.66 | O104: 13944900
A105: 90 | B105: 2015-07-02 | C105: 192.020004 | D105: 192.929993 | E105: 185.009995 | F105: 187.5 | G105: 3720400 | H105: 187.199838 | I105: 0.998399136 | J105: 1 | K105: 191.71 | L105: 192.62 | M105: 184.71 | N105: 187.2 | O105: 3720400
A106: 91 | B106: 2015-07-01 | C106: 191.869995 | D106: 194.110001 | E106: 189.779999 | F106: 193.139999 | G106: 1884200 | H106: 192.830809 | I106: 0.9983991405 | J106: 1 | K106: 191.56 | L106: 193.8 | M106: 189.48 | N106: 192.83 | O106: 1884200
A107: 92 | B107: 2015-06-30 | C107: 193.869995 | D107: 196.300003 | E107: 191.039993 | F107: 191.279999 | G107: 3055100 | H107: 190.973786 | I107: 0.9983991374 | J107: 1 | K107: 193.56 | L107: 195.99 | M107: 190.73 | N107: 190.97 | O107: 3055100
A108: 93 | B108: 2015-06-29 | C108: 193 | D108: 194.399994 | E108: 189.259995 | F108: 192.899994 | G108: 3176800 | H108: 192.591188 | I108: 0.9983991394 | J108: 1 | K108: 192.69 | L108: 194.09 | M108: 188.96 | N108: 192.59 | O108: 3176800
A109: 94 | B109: 2015-06-26 | C109: 199.009995 | D109: 200 | E109: 194.149994 | F109: 195.5 | G109: 8626300 | H109: 195.187032 | I109: 0.9983991407 | J109: 1 | K109: 198.69 | L109: 199.68 | M109: 193.84 | N109: 195.19 | O109: 8626300
A110: 95 | B110: 2015-06-25 | C110: 184.830002 | D110: 199.990005 | E110: 184.380005 | F110: 197.369995 | G110: 8331700 | H110: 196.764493 | I110: 0.9969321477 | J110: 1 | K110: 184.26 | L110: 199.38 | M110: 183.81 | N110: 196.76 | O110: 8331700
A111: 96 | B111: 2015-06-24 | C111: 188.990005 | D111: 189.839996 | E111: 184.229996 | F111: 184.229996 | G111: 2980000 | H111: 183.664806 | I111: 0.99693215 | J111: 1 | K111: 188.41 | L111: 189.26 | M111: 183.66 | N111: 183.66 | O111: 2980000
A112: 97 | B112: 2015-06-23 | C112: 189.470001 | D112: 193.690002 | E112: 185.110001 | F112: 189.860001 | G112: 5301700 | H112: 189.277538 | I112: 0.9969321448 | J112: 1 | K112: 188.89 | L112: 193.1 | M112: 184.54 | N112: 189.28 | O112: 5301700
A113: 98 | B113: 2015-06-22 | C113: 207 | D113: 207.570007 | E113: 189.029999 | F113: 189.940002 | G113: 7556000 | H113: 189.357295 | I113: 0.9969321523 | J113: 1 | K113: 206.36 | L113: 206.93 | M113: 188.45 | N113: 189.36 | O113: 7556000
A114: 99 | B114: 2015-06-19 | C114: 199.619995 | D114: 202.679993 | E114: 198.429993 | F114: 202.309998 | G114: 1951900 | H114: 201.689341 | I114: 0.9969321487 | J114: 1 | K114: 199.01 | L114: 202.06 | M114: 197.82 | N114: 201.69 | O114: 1951900
A115: 100 | B115: 2015-06-18 | C115: 201.300003 | D115: 202.839996 | E115: 198.910004 | F115: 199.300003 | G115: 1864200 | H115: 198.68858 | I115: 0.9969321476 | J115: 1 | K115: 200.68 | L115: 202.22 | M115: 198.3 | N115: 198.69 | O115: 1864200
A116: 101 | B116: 2015-06-17 | C116: 200.5 | D116: 205.300003 | E116: 200.5 | F116: 200.889999 | G116: 3082000 | H116: 200.273699 | I116: 0.9969321519 | J116: 1 | K116: 199.88 | L116: 204.67 | M116: 199.88 | N116: 200.27 | O116: 3082000
A117: 102 | B117: 2015-06-16 | C117: 202.940002 | D117: 206.259995 | E117: 199.389999 | F117: 199.600006 | G117: 6326700 | H117: 198.987663 | I117: 0.9969321494 | J117: 1 | K117: 202.32 | L117: 205.63 | M117: 198.78 | N117: 198.99 | O117: 6326700
A118: 103 | B118: 2015-06-15 | C118: 211.660004 | D118: 217.770004 | E118: 198.800003 | F118: 206.580002 | G118: 8060500 | H118: 205.946245 | I118: 0.9969321474 | J118: 1 | K118: 211.01 | L118: 217.1 | M118: 198.19 | N118: 205.95 | O118: 8060500
A119: 104 | B119: 2015-06-12 | C119: 213.009995 | D119: 215.369995 | E119: 212.210007 | F119: 212.470001 | G119: 2334100 | H119: 211.818175 | I119: 0.9969321504 | J119: 1 | K119: 212.36 | L119: 214.71 | M119: 211.56 | N119: 211.82 | O119: 2334100
A120: 105 | B120: 2015-06-11 | C120: 215.070007 | D120: 216.660004 | E120: 213.369995 | F120: 214.169998 | G120: 1692800 | H120: 213.512957 | I120: 0.996932152 | J120: 1 | K120: 214.41 | L120: 216 | M120: 212.72 | N120: 213.51 | O120: 1692800
A121: 106 | B121: 2015-06-10 | C121: 212.369995 | D121: 215.550003 | E121: 211.550003 | F121: 214.449997 | G121: 2558500 | H121: 213.792096 | I121: 0.9969321473 | J121: 1 | K121: 211.72 | L121: 214.89 | M121: 210.9 | N121: 213.79 | O121: 2558500
A122: 107 | B122: 2015-06-09 | C122: 211.940002 | D122: 213.740005 | E122: 211.399994 | F122: 212.470001 | G122: 1897200 | H122: 211.818175 | I122: 0.9969321504 | J122: 1 | K122: 211.29 | L122: 213.08 | M122: 210.75 | N122: 211.82 | O122: 1897200
A123: 108 | B123: 2015-06-08 | C123: 216.550003 | D123: 219.479996 | E123: 212.029999 | F123: 212.330002 | G123: 2782500 | H123: 211.678605 | I123: 0.9969321481 | J123: 1 | K123: 215.89 | L123: 218.81 | M123: 211.38 | N123: 211.68 | O123: 2782500
A124: 109 | B124: 2015-06-05 | C124: 212.479996 | D124: 214.800003 | E124: 211.139999 | F124: 214.380005 | G124: 1736000 | H124: 213.722319 | I124: 0.9969321486 | J124: 1 | K124: 211.83 | L124: 214.14 | M124: 210.49 | N124: 213.72 | O124: 1736000
A125: 110 | B125: 2015-06-04 | C125: 212.5 | D125: 214 | E125: 211.460007 | F125: 213 | G125: 1725200 | H125: 212.346548 | I125: 0.9969321502 | J125: 1 | K125: 211.85 | L125: 213.34 | M125: 210.81 | N125: 212.35 | O125: 1725200
A126: 111 | B126: 2015-06-03 | C126: 214.5 | D126: 215.100006 | E126: 212.300003 | F126: 213.610001 | G126: 2662300 | H126: 212.954677 | I126: 0.9969321474 | J126: 1 | K126: 213.84 | L126: 214.44 | M126: 211.65 | N126: 212.95 | O126: 2662300
A127: 112 | B127: 2015-06-02 | C127: 214.660004 | D127: 216.020004 | E127: 213.550003 | F127: 214.740005 | G127: 2159500 | H127: 214.081215 | I127: 0.9969321506 | J127: 1 | K127: 214 | L127: 215.36 | M127: 212.89 | N127: 214.08 | O127: 2159500
A128: 113 | B128: 2015-06-01 | C128: 213.149994 | D128: 217 | E128: 210.330002 | F128: 214.919998 | G128: 5087400 | H128: 214.260656 | I128: 0.9969321515 | J128: 1 | K128: 212.5 | L128: 216.33 | M128: 209.68 | N128: 214.26 | O128: 5087400
A129: 114 | B129: 2015-05-29 | C129: 178.619995 | D129: 219.789993 | E129: 176.410004 | F129: 214.649994 | G129: 9938100 | H129: 213.99148 | I129: 0.9969321499 | J129: 1 | K129: 178.07 | L129: 219.12 | M129: 175.87 | N129: 213.99 | O129: 9938100
A130: 115 | B130: 2015-05-28 | C130: 178.080002 | D130: 179.75 | E130: 177.270004 | F130: 178.410004 | G130: 1105200 | H130: 177.862668 | I130: 0.9969321451 | J130: 1 | K130: 177.53 | L130: 179.2 | M130: 176.73 | N130: 177.86 | O130: 1105200
A131: 116 | B131: 2015-05-27 | C131: 178.740005 | D131: 180.169998 | E131: 177.820007 | F131: 178.520004 | G131: 1046500 | H131: 177.972331 | I131: 0.9969321477 | J131: 1 | K131: 178.19 | L131: 179.62 | M131: 177.27 | N131: 177.97 | O131: 1046500
A132: 117 | B132: 2015-05-26 | C132: 178.100006 | D132: 178.839996 | E132: 176.529999 | F132: 177.880005 | G132: 1099400 | H132: 177.334296 | I132: 0.996932151 | J132: 1 | K132: 177.55 | L132: 178.29 | M132: 175.99 | N132: 177.33 | O132: 1099400
A133: 118 | B133: 2015-05-22 | C133: 178.339996 | D133: 179.509995 | E133: 177.210007 | F133: 179 | G133: 1144000 | H133: 178.450855 | I133: 0.9969321508 | J133: 1 | K133: 177.79 | L133: 178.96 | M133: 176.67 | N133: 178.45 | O133: 1144000
A134: 119 | B134: 2015-05-21 | C134: 177.880005 | D134: 179.389999 | E134: 177.020004 | F134: 178.759995 | G134: 904500 | H134: 178.211585 | I134: 0.9969321436 | J134: 1 | K134: 177.33 | L134: 178.84 | M134: 176.48 | N134: 178.21 | O134: 904500
A135: 120 | B135: 2015-05-20 | C135: 177.75 | D135: 179.25 | E135: 176.960007 | F135: 178.539993 | G135: 684100 | H135: 177.992259 | I135: 0.9969321495 | J135: 1 | K135: 177.2 | L135: 178.7 | M135: 176.42 | N135: 177.99 | O135: 684100
A136: 121 | B136: 2015-05-19 | C136: 176.350006 | D136: 178.960007 | E136: 176.300003 | F136: 177.740005 | G136: 1224800 | H136: 177.194726 | I136: 0.9969321538 | J136: 1 | K136: 175.81 | L136: 178.41 | M136: 175.76 | N136: 177.19 | O136: 1224800
A137: 122 | B137: 2015-05-18 | C137: 175.300003 | D137: 177.309998 | E137: 175.25 | F137: 176.610001 | G137: 1143100 | H137: 176.068187 | I137: 0.9969321443 | J137: 1 | K137: 174.76 | L137: 176.77 | M137: 174.71 | N137: 176.07 | O137: 1143100
A138: 123 | B138: 2015-05-15 | C138: 175.009995 | D138: 175.910004 | E138: 173.460007 | F138: 175.899994 | G138: 743200 | H138: 175.360359 | I138: 0.9969321488 | J138: 1 | K138: 174.47 | L138: 175.37 | M138: 172.93 | N138: 175.36 | O138: 743200
A139: 124 | B139: 2015-05-14 | C139: 174.770004 | D139: 176.240005 | E139: 173.860001 | F139: 174.25 | G139: 1264900 | H139: 173.715427 | I139: 0.9969321492 | J139: 1 | K139: 174.23 | L139: 175.7 | M139: 173.33 | N139: 173.72 | O139: 1264900
A140: 125 | B140: 2015-05-13 | C140: 173.080002 | D140: 173.880005 | E140: 171.5 | F140: 173.5 | G140: 1727600 | H140: 172.967728 | I140: 0.9969321499 | J140: 1 | K140: 172.55 | L140: 173.35 | M140: 170.97 | N140: 172.97 | O140: 1727600
A141: 126 | B141: 2015-05-12 | C141: 166.630005 | D141: 174 | E141: 166.520004 | F141: 173.380005 | G141: 3630200 | H141: 172.848101 | I141: 0.9969321491 | J141: 1 | K141: 166.12 | L141: 173.47 | M141: 166.01 | N141: 172.85 | O141: 3630200
A142: 127 | B142: 2015-05-11 | C142: 167.559998 | D142: 168.639999 | E142: 166.429993 | F142: 166.619995 | G142: 1064000 | H142: 166.10883 | I142: 0.9969321509 | J142: 1 | K142: 167.05 | L142: 168.12 | M142: 165.92 | N142: 166.11 | O142: 1064000
A143: 128 | B143: 2015-05-08 | C143: 165.860001 | D143: 168.199997 | E143: 165.089996 | F143: 167.899994 | G143: 1282700 | H143: 167.384902 | I143: 0.99693215 | J143: 1 | K143: 165.35 | L143: 167.68 | M143: 164.58 | N143: 167.38 | O143: 1282700
A144: 129 | B144: 2015-05-07 | C144: 162.630005 | D144: 166.270004 | E144: 162.630005 | F144: 164.539993 | G144: 917900 | H144: 164.035209 | I144: 0.9969321501 | J144: 1 | K144: =ROUND($I144*C144,2) -> 162.13 | L144: =ROUND($I144*D144,2) -> 165.76 | M144: =ROUND($I144*E144,2) -> 162.13 | N144: =ROUND($I144*F144,2) -> 164.04 | O144: 917900
A145: 130 | B145: 2015-05-06 | C145: 165.289993 | D145: 165.380005 | E145: 162.350006 | F145: 163.070007 | G145: 1579600 | H145: 162.569733 | I145: 0.996932152 | J145: 1 | K145: 164.78 | L145: 164.87 | M145: 161.85 | N145: 162.57 | O145: 1579600
A146: 131 | B146: 2015-05-05 | C146: 167.419998 | D146: 168.399994 | E146: 163.940002 | F146: 164.25 | G146: 1466900 | H146: 163.746105 | I146: =H146/F146 -> 0.9969321461 | J146: =INDEX(OFFSET($T$15,0,0,$S$13+1,1),MATCH(B146,OFFSET($Q$15,0,0,$S$13+1,1),-1)) -> 1 | K146: 166.91 | L146: 167.88 | M146: 163.44 | N146: 163.75 | O146: =G146*J146 -> 1466900
A147: 132 | B147: 2015-05-04 | C147: 166.289993 | D147: 169.970001 | E147: 165.800003 | F147: 168.649994 | G147: 1115300 | H147: 168.132601 | I147: 0.9969321493 | J147: 1 | K147: 165.78 | L147: 169.45 | M147: 165.29 | N147: 168.13 | O147: 1115300
A148: 133 | B148: 2015-05-01 | C148: 167 | D148: 167.990005 | E148: 165.070007 | F148: 166.360001 | G148: 1102900 | H148: 165.849633 | I148: 0.9969321472 | J148: 1 | K148: 166.49 | L148: 167.47 | M148: 164.56 | N148: 165.85 | O148: 1102900
A149: 134 | B149: 2015-04-30 | C149: 167.210007 | D149: 167.809998 | E149: 164.940002 | F149: 165.600006 | G149: 2279700 | H149: 165.09197 | I149: 0.9969321499 | J149: 1 | K149: 166.7 | L149: 167.3 | M149: 164.43 | N149: 165.09 | O149: 2279700
A150: 135 | B150: 2015-04-29 | C150: 175.809998 | D150: 177.449997 | E150: 165.839996 | F150: 168.050003 | G150: 4526900 | H150: 167.534451 | I150: 0.9969321512 | J150: 1 | K150: 175.27 | L150: 176.91 | M150: 165.33 | N150: 167.53 | O150: 4526900
A151: 136 | B151: 2015-04-28 | C151: 180.490005 | D151: 182.050003 | E151: 177.789993 | F151: 181.110001 | G151: 1546400 | H151: 180.554382 | I151: 0.9969321462 | J151: 1 | K151: 179.94 | L151: 181.49 | M151: 177.24 | N151: 180.55 | O151: 1546400
A152: 137 | B152: 2015-04-27 | C152: 182.5 | D152: 182.960007 | E152: 179.789993 | F152: 180.119995 | G152: 1234800 | H152: 179.567414 | I152: 0.9969321507 | J152: 1 | K152: 181.94 | L152: 182.4 | M152: 179.24 | N152: 179.57 | O152: 1234800
A153: 138 | B153: 2015-04-24 | C153: 181.600006 | D153: 182.410004 | E153: 181.5 | F153: 182.350006 | G153: 806700 | H153: 181.790583 | I153: 0.9969321471 | J153: 1 | K153: 181.04 | L153: 181.85 | M153: 180.94 | N153: 181.79 | O153: 806700
A154: 139 | B154: 2015-04-23 | C154: 179.059998 | D154: 182.050003 | E154: 178.610001 | F154: 181.910004 | G154: 1070500 | H154: 181.351931 | I154: 0.9969321478 | J154: 1 | K154: 178.51 | L154: 181.49 | M154: 178.06 | N154: 181.35 | O154: 1070500
A155: 140 | B155: 2015-04-22 | C155: 180.070007 | D155: 180.5 | E155: 178.830002 | F155: 180.009995 | G155: 710000 | H155: 179.457751 | I155: 0.9969321481 | J155: 1 | K155: 179.52 | L155: 179.95 | M155: 178.28 | N155: 179.46 | O155: 710000
A156: 141 | B156: 2015-04-21 | C156: 179.199997 | D156: 180.440002 | E156: 178.960007 | F156: 180.130005 | G156: 613400 | H156: 179.577393 | I156: 0.9969321491 | J156: 1 | K156: 178.65 | L156: 179.89 | M156: 178.41 | N156: 179.58 | O156: 613400
A157: 142 | B157: 2015-04-20 | C157: 178.679993 | D157: 179.25 | E157: 178.410004 | F157: 178.699997 | G157: 621600 | H157: 178.151772 | I157: 0.9969321488 | J157: 1 | K157: 178.13 | L157: 178.7 | M157: 177.86 | N157: 178.15 | O157: 621600
A158: 143 | B158: 2015-04-17 | C158: 176.25 | D158: 177.639999 | E158: 176.070007 | F158: 177.479996 | G158: 992700 | H158: 176.935514 | I158: 0.99693215 | J158: 1 | K158: 175.71 | L158: 177.1 | M158: 175.53 | N158: 176.94 | O158: 992700
A159: 144 | B159: 2015-04-16 | C159: 180 | D159: 180.570007 | E159: 176.100006 | F159: 177.679993 | G159: 1510900 | H159: 177.134897 | I159: 0.9969321476 | J159: 1 | K159: 179.45 | L159: 180.02 | M159: 175.56 | N159: 177.13 | O159: 1510900
A160: 145 | B160: 2015-04-15 | C160: 179.990005 | D160: 180.679993 | E160: 175.490005 | F160: 176.729996 | G160: 1390800 | H160: 176.187814 | I160: 0.996932145 | J160: 1 | K160: 179.44 | L160: 180.13 | M160: 174.95 | N160: 176.19 | O160: 1390800
A161: 146 | B161: 2015-04-14 | C161: 178.389999 | D161: 180 | E161: 178.089996 | F161: 179.550003 | G161: 752800 | H161: 178.99917 | I161: 0.9969321471 | J161: 1 | K161: 177.84 | L161: 179.45 | M161: 177.54 | N161: 179 | O161: 752800
A162: 147 | B162: 2015-04-13 | C162: 178.830002 | D162: 181.050003 | E162: 178.520004 | F162: 178.580002 | G162: 561400 | H162: 178.032145 | I162: 0.9969321481 | J162: 1 | K162: 178.28 | L162: 180.49 | M162: 177.97 | N162: 178.03 | O162: 561400
A163: 148 | B163: 2015-04-10 | C163: 177.639999 | D163: 178.559998 | E163: 176.940002 | F163: 178.479996 | G163: 648200 | H163: 177.932446 | I163: 0.9969321492 | J163: 1 | K163: 177.1 | L163: 178.01 | M163: 176.4 | N163: 177.93 | O163: 648200
A164: 149 | B164: 2015-04-09 | C164: 178.130005 | D164: 179.139999 | E164: 176.339996 | F164: 177.729996 | G164: 1382200 | H164: 177.184747 | I164: 0.9969321498 | J164: 1 | K164: 177.58 | L164: 178.59 | M164: 175.8 | N164: 177.18 | O164: 1382200
A165: 150 | B165: 2015-04-08 | C165: 178.710007 | D165: 179.580002 | E165: 177.839996 | F165: 178.729996 | G165: 767200 | H165: 178.181679 | I165: 0.996932149 | J165: 1 | K165: 178.16 | L165: 179.03 | M165: 177.29 | N165: 178.18 | O165: 767200
A166: 151 | B166: 2015-04-07 | C166: 182 | D166: 182 | E166: 176.970001 | F166: 178.100006 | G166: 973400 | H166: 177.553622 | I166: 0.9969321506 | J166: 1 | K166: 181.44 | L166: 181.44 | M166: 176.43 | N166: 177.55 | O166: 973400
A167: 152 | B167: 2015-04-06 | C167: 177.190002 | D167: 178.929993 | E167: 176.600006 | F167: 178.259995 | G167: 515300 | H167: 177.713119 | I167: 0.996932144 | J167: 1 | K167: 176.65 | L167: 178.38 | M167: 176.06 | N167: 177.71 | O167: 515300
A168: 153 | B168: 2015-04-02 | C168: 177.839996 | D168: 180.139999 | E168: 177.070007 | F168: 177.979996 | G168: 677400 | H168: 177.43398 | I168: 0.9969321496 | J168: 1 | K168: 177.29 | L168: 179.59 | M168: 176.53 | N168: 177.43 | O168: 677400
A169: 154 | B169: 2015-04-01 | C169: 177.830002 | D169: 178.339996 | E169: 174.699997 | F169: 177.639999 | G169: 822800 | H169: 177.095026 | I169: 0.9969321493 | J169: 1 | K169: 177.28 | L169: 177.79 | M169: 174.16 | N169: 177.1 | O169: 822800
A170: 155 | B170: 2015-03-31 | C170: 180.029999 | D170: 181.369995 | E170: 178.020004 | F170: 178.020004 | G170: 1303500 | H170: 177.473865 | I170: 0.9969321481 | J170: 1 | K170: 179.48 | L170: 180.81 | M170: 177.47 | N170: 177.47 | O170: 1303500
A171: 156 | B171: 2015-03-30 | C171: 179.979996 | D171: 181.380005 | E171: 179.490005 | F171: 181.179993 | G171: 1365300 | H171: 180.624159 | I171: 0.9969321447 | J171: 1 | K171: 179.43 | L171: 180.82 | M171: 178.94 | N171: 180.62 | O171: 1365300
A172: 157 | B172: 2015-03-27 | C172: 175.759995 | D172: 177.770004 | E172: 175.399994 | F172: 177.520004 | G172: 1492000 | H172: 176.975399 | I172: 0.9969321486 | J172: 1 | K172: 175.22 | L172: 177.22 | M172: 174.86 | N172: 176.98 | O172: 1492000
A173: 158 | B173: 2015-03-26 | C173: 176.800003 | D173: 177.550003 | E173: 174.809998 | F173: 175.720001 | G173: 1473000 | H173: 174.901773 | I173: 0.9953435693 | J173: 1 | K173: 175.98 | L173: 176.72 | M173: 174 | N173: 174.9 | O173: 1473000
A174: 159 | B174: 2015-03-25 | C174: 181.479996 | D174: 182.830002 | E174: 177.169998 | F174: 177.330002 | G174: 1427100 | H174: 176.504276 | I174: 0.9953435629 | J174: 1 | K174: 180.63 | L174: 181.98 | M174: 176.35 | N174: 176.5 | O174: 1427100
A175: 160 | B175: 2015-03-24 | C175: 182.039993 | D175: 182.979996 | E175: 180.410004 | F175: 180.410004 | G175: 966600 | H175: 179.569936 | I175: 0.995343562 | J175: 1 | K175: 181.19 | L175: 182.13 | M175: 179.57 | N175: 179.57 | O175: 966600
A176: 161 | B176: 2015-03-23 | C176: 182.789993 | D176: 183.050003 | E176: 181.369995 | F176: 182.100006 | G176: 974200 | H176: 181.252069 | I176: 0.9953435641 | J176: 1 | K176: 181.94 | L176: 182.2 | M176: 180.53 | N176: 181.25 | O176: 974200
A177: 162 | B177: 2015-03-20 | C177: 182.309998 | D177: 183.009995 | E177: 180.080002 | F177: 182.789993 | G177: 2256300 | H177: 181.938844 | I177: 0.9953435689 | J177: 1 | K177: 181.46 | L177: 182.16 | M177: 179.24 | N177: 181.94 | O177: 2256300
A178: 163 | B178: 2015-03-19 | C178: 178.580002 | D178: 182.970001 | E178: 178.279999 | F178: 180.960007 | G178: 1703200 | H178: 180.117378 | I178: 0.9953435623 | J178: 1 | K178: 177.75 | L178: 182.12 | M178: 177.45 | N178: 180.12 | O178: 1703200
A179: 164 | B179: 2015-03-18 | C179: 174.350006 | D179: 179.559998 | E179: 173.699997 | F179: 178.630005 | G179: 1850000 | H179: 177.798226 | I179: 0.995343565 | J179: 1 | K179: 173.54 | L179: 178.72 | M179: 172.89 | N179: 177.8 | O179: 1850000
A180: 165 | B180: 2015-03-17 | C180: 172.649994 | D180: 174.970001 | E180: 172.639999 | F180: 174 | G180: 1647000 | H180: 173.18978 | I180: 0.9953435632 | J180: 1 | K180: 171.85 | L180: 174.16 | M180: 171.84 | N180: 173.19 | O180: 1647000
A181: 166 | B181: 2015-03-16 | C181: 167.669998 | D181: 175.300003 | E181: 167.210007 | F181: 174.309998 | G181: 2796100 | H181: 173.498335 | I181: 0.995343566 | J181: 1 | K181: 166.89 | L181: 174.48 | M181: 166.43 | N181: 173.5 | O181: 2796100
A182: 167 | B182: 2015-03-13 | C182: 163.490005 | D182: 166.589996 | E182: 162.630005 | F182: 166.5 | G182: 1525600 | H182: 165.724704 | I182: 0.9953435676 | J182: 1 | K182: 162.73 | L182: 165.81 | M182: 161.87 | N182: 165.72 | O182: 1525600
A183: 168 | B183: 2015-03-12 | C183: 161.869995 | D183: 164.380005 | E183: 161.110001 | F183: 164.279999 | G183: 992500 | H183: 163.51504 | I183: 0.9953435658 | J183: 1 | K183: 161.12 | L183: 163.61 | M183: 160.36 | N183: 163.52 | O183: 992500
A184: 169 | B184: 2015-03-11 | C184: 159.580002 | D184: 161.339996 | E184: 159 | F184: 161 | G184: 956700 | H184: 160.250314 | I184: 0.9953435652 | J184: 1 | K184: 158.84 | L184: 160.59 | M184: 158.26 | N184: 160.25 | O184: 956700
A185: 170 | B185: 2015-03-10 | C185: 160.619995 | D185: 160.690002 | E185: 158.160004 | F185: 159 | G185: 2359000 | H185: 158.259627 | I185: 0.995343566 | J185: 1 | K185: 159.87 | L185: 159.94 | M185: 157.42 | N185: 158.26 | O185: 2359000
A186: 171 | B186: 2015-03-09 | C186: 160.089996 | D186: 163.059998 | E186: 159.820007 | F186: 162.339996 | G186: 1046600 | H186: 161.584071 | I186: 0.9953435689 | J186: 1 | K186: 159.34 | L186: 162.3 | M186: 159.08 | N186: 161.58 | O186: 1046600
A187: 172 | B187: 2015-03-06 | C187: 160.949997 | D187: 162.070007 | E187: 159.149994 | F187: 159.729996 | G187: 1245400 | H187: 158.986224 | I187: 0.9953435672 | J187: 1 | K187: 160.2 | L187: 161.32 | M187: 158.41 | N187: 158.99 | O187: 1245400
A188: 173 | B188: 2015-03-05 | C188: 160.169998 | D188: 162.809998 | E188: 160.169998 | F188: 162.110001 | G188: 972900 | H188: 161.355146 | I188: 0.995343563 | J188: 1 | K188: 159.42 | L188: 162.05 | M188: 159.42 | N188: 161.36 | O188: 972900
A189: 174 | B189: 2015-03-04 | C189: 159.220001 | D189: 161.350006 | E189: 158.75 | F189: 160.220001 | G189: 2300900 | H189: 159.473947 | I189: 0.9953435651 | J189: 1 | K189: 158.48 | L189: 160.6 | M189: 158.01 | N189: 159.47 | O189: 2300900
A190: 175 | B190: 2015-03-03 | C190: 161.630005 | D190: 162 | E190: 159.580002 | F190: 160.25 | G190: 1223500 | H190: 159.503806 | I190: 0.9953435632 | J190: 1 | K190: 160.88 | L190: 161.25 | M190: 158.84 | N190: 159.5 | O190: 1223500
A191: 176 | B191: 2015-03-02 | C191: 164.380005 | D191: 164.850006 | E191: 161.240005 | F191: 162 | G191: 2140400 | H191: 161.245658 | I191: 0.9953435679 | J191: 1 | K191: 163.61 | L191: 164.08 | M191: 160.49 | N191: 161.25 | O191: 2140400
A192: 177 | B192: 2015-02-27 | C192: 162.699997 | D192: 165.75 | E192: 162.699997 | F192: 164.380005 | G192: 1495300 | H192: 163.61458 | I192: 0.9953435638 | J192: 1 | K192: 161.94 | L192: 164.98 | M192: 161.94 | N192: 163.61 | O192: 1495300
A193: 178 | B193: 2015-02-26 | C193: 163.970001 | D193: 164.5 | E193: 162.360001 | F193: 163.350006 | G193: 1720000 | H193: 162.589378 | I193: 0.9953435692 | J193: 1 | K193: 163.21 | L193: 163.73 | M193: 161.6 | N193: 162.59 | O193: 1720000
A194: 179 | B194: 2015-02-25 | C194: 164.440002 | D194: 166.199997 | E194: 163.880005 | F194: 165.369995 | G194: 804000 | H194: 164.599961 | I194: 0.9953435688 | J194: 1 | K194: 163.67 | L194: 165.43 | M194: 163.12 | N194: 164.6 | O194: 804000
A195: 180 | B195: 2015-02-24 | C195: 164.509995 | D195: 165.649994 | E195: 163.639999 | F195: 164.440002 | G195: 1024500 | H195: 163.674298 | I195: 0.9953435661 | J195: 1 | K195: 163.74 | L195: 164.88 | M195: 162.88 | N195: 163.67 | O195: 1024500
A196: 181 | B196: 2015-02-23 | C196: 156.559998 | D196: 165.520004 | E196: 156.539993 | F196: 164.520004 | G196: 3259700 | H196: 163.753928 | I196: 0.9953435693 | J196: 1 | K196: 155.83 | L196: 164.75 | M196: 155.81 | N196: 163.75 | O196: 3259700
A197: 182 | B197: 2015-02-20 | C197: 153.080002 | D197: 156.839996 | E197: 152.660004 | F197: 156.119995 | G197: 1293400 | H197: 155.393033 | I197: 0.9953435689 | J197: 1 | K197: 152.37 | L197: 156.11 | M197: 151.95 | N197: 155.39 | O197: 1293400
A198: 183 | B198: 2015-02-19 | C198: 154.399994 | D198: 155.279999 | E198: 153.130005 | F198: 153.279999 | G198: 1064100 | H198: 152.566261 | I198: 0.9953435673 | J198: 1 | K198: 153.68 | L198: 154.56 | M198: 152.42 | N198: 152.57 | O198: 1064100
A199: 184 | B199: 2015-02-18 | C199: 154.630005 | D199: 155.449997 | E199: 154.25 | F199: 155.399994 | G199: 724000 | H199: 154.676384 | I199: 0.9953435648 | J199: 1 | K199: 153.91 | L199: 154.73 | M199: 153.53 | N199: 154.68 | O199: 724000
A200: 185 | B200: 2015-02-17 | C200: 152.619995 | D200: 154.880005 | E200: 152.399994 | F200: 154.860001 | G200: 914900 | H200: 154.138905 | I200: 0.995343562 | J200: 1 | K200: 151.91 | L200: 154.16 | M200: 151.69 | N200: 154.14 | O200: 914900
... 323 more rows

Sheet InputIndexData
A1: SPDR S&P 500 (SPY) -PCX (Daily)
A2: Last Trade: | B2: 2015-11-06 | C2: 209.74 | D2: 210.32 | E2: 208.46 | F2: 209.23 | G2: 111171282 | H2: 11:03am | I2: -0.92 | J2: =IFERROR(OFFSET(J2,0,-1,1,1)/(OFFSET(J2,0,-4,1,1)-OFFSET(J2,0,-1,1,1)),"") -> -0.004377825363 | L2: Notes: | M2: Online Yahoo Finance Query Interfaces used in the VBA code to obtain this data: | IJ2: 241.79
A3: Request Online Yahoo History for: | M3: A.) Price History Only: "http://ichart.finance.yahoo.com/table.csv"
A4: Symbol | B4: SPY | D4: Valid | I4: =OFFSET(I4,-2,0,1,1) -> -0.92 | M4: B.) Price History w/ imbedded divs n splits: "http://ichart.finance.yahoo.com/x"
A5: From | B5: 1977-01-07 | D5: Data | AF5: Trailing 12 Div return (Cur Close)
A6: To | B6: =TODAY() -> 2015-11-06 | D6: Types | E6: =VLOOKUP(B7,D7:E10,2,FALSE) -> d | M6: C.) Fundamentals (in this case name and exchange):
A7: Data Type | B7: Daily | D7: Daily | E7: d | M7: "http://download.finance.yahoo.com/d/quotes.csv?"
D8: Weekly | E8: w | M8: For some how-to doc regarding this particular interface, including a list of the
A9: Available Data | D9: Monthly | E9: m | M9: specific fields you can include in a request to this interface see:
A10: Bar Count: | B10: =COUNTA(B15:B64738)-1 -> 508 | M10: http://www.gummy-stuff.org/Yahoo-data.htm | AF10: =OFFSET(AC15,1,0,1,1)/OFFSET(N15,1,0,1,1) -> 0.01973426373
A11: From: | B11: =IF(B10<=0,"",OFFSET(B15,B10,IF(HistReqDataType="v",1,0),1,1)) -> 2013-11-01 | M11: This web site includes a downloadable working EXCEL/VBA example | W11: Trailing 12 Month Dividend Returns
A12: To: | B12: =IF(B10<=0,"",IF(HistReqDataType="v",OFFSET(B15,2,1,1,1),OFFSET(B15,1,0,1,1))) -> 2015-11-06 | M12: of the capabilities of this interface. | W12: Raw Close price on Dividend date | X12: Div Year and Month | Y12: Looking for year ago Div Year and Month | Z12: Year ago Div Date we found | AA12: row offset to year ago div Date | AB12: Same month flag | AC12: Trailing 12 Div Total | AD12: Trailing 12 Div return
Q13: Split History | S13: =COUNT(Q16:Q14738) -> 0 | T13: Running | U13: Dividend History
B14: Raw Data Values | H14: Adjusted | I14: Price Adjust | J14: Vol Adjust | K14: Adjusted Values | P14: Last | Q14: Effective | R14: Shares | T14: Vol Adjust | V14: =COUNT(U16:U14738) -> 95
A15: RelRow | B15: Date | C15: Open | D15: High | E15: Low | F15: Close | G15: Volume | H15: Close | I15: Factor | J15: Factor | K15: Open | L15: High | M15: Low | N15: Close | O15: Volume | P15: Trade | Q15: 42315 | R15: New | S15: Old | T15: 1 | U15: Date | V15: $ / Share
A16: 1 | B16: 2015-11-06 | C16: 209.74 | D16: 210.32 | E16: 208.46 | F16: 209.23 | G16: 111171282 | H16: 209.23 | I16: =H16/F16 -> 1 | J16: =INDEX(OFFSET($T$15,0,0,$S$13+1,1),MATCH(B16,OFFSET($Q$15,0,0,$S$13+1,1),-1)) -> 1 | K16: =ROUND($I16*C16,2) -> 209.74 | L16: =ROUND($I16*D16,2) -> 210.32 | M16: =ROUND($I16*E16,2) -> 208.46 | N16: =ROUND($I16*F16,2) -> 209.23 | O16: =G16*J16 -> 111171282 | P16: 11:03am | U16: 2015-09-18 | V16: 1.033 | W16: =(INDEX(OFFSET($F$15,1,0,$B$10,1),MATCH(U16,OFFSET($B$15,1,0,$B$10,1),-1))) -> 195.360001 | X16: =YEAR(U16)&RIGHT("0"&MONTH(U16),2) -> 201509 | Y16: =YEAR(U16)-1&RIGHT("0"&MONTH(U16),2) -> 201409 | Z16: =OFFSET(U15,AA16,0,1,1) -> 2014-09-19 | AA16: =MATCH(Y16,OFFSET($X$15,A16,0,$V$14+1-A16,1),-1) -> 5 | AB16: =IF(OR(AND(YEAR(U16)=YEAR(Z16),MONTH(U16)=MONTH(Z16)),MONTH(U16)=MONTH(Z16)),1,0) -> 1 | AC16: =(V16+IF(AA16-AB16=0,0,IFERROR(SUM(OFFSET(V16,1,0,AA16-AB16-1,1)),0))) -> 4.129 | AD16: =AC16/(INDEX(OFFSET($F$15,1,0,$B$10,1),MATCH(U16,OFFSET($B$15,1,0,$B$10,1),-1))) -> 0.02113533978
A17: 2 | B17: 2015-11-05 | C17: 210.429993 | D17: 210.979996 | E17: 209.089996 | F17: 210.119995 | G17: 75834200 | H17: 210.119995 | I17: =H17/F17 -> 1 | J17: =INDEX(OFFSET($T$15,0,0,$S$13+1,1),MATCH(B17,OFFSET($Q$15,0,0,$S$13+1,1),-1)) -> 1 | K17: 210.43 | L17: 210.98 | M17: 209.09 | N17: 210.12 | O17: =G17*J17 -> 75834200 | U17: 2015-06-19 | V17: 1.03 | W17: =(INDEX(OFFSET($F$15,1,0,$B$10,1),MATCH(U17,OFFSET($B$15,1,0,$B$10,1),-1))) -> 210.809998 | X17: =YEAR(U17)&RIGHT("0"&MONTH(U17),2) -> 201506 | Y17: =YEAR(U17)-1&RIGHT("0"&MONTH(U17),2) -> 201406 | Z17: =OFFSET(U16,AA17,0,1,1) -> 2014-06-20 | AA17: =MATCH(Y17,OFFSET($X$15,A17,0,$V$14+1-A17,1),-1) -> 5 | AB17: =IF(OR(AND(YEAR(U17)=YEAR(Z17),MONTH(U17)=MONTH(Z17)),MONTH(U17)=MONTH(Z17)),1,0) -> 1 | AC17: =(V17+IF(AA17-AB17=0,0,IFERROR(SUM(OFFSET(V17,1,0,AA17-AB17-1,1)),0))) -> 4.035 | AD17: =AC17/(INDEX(OFFSET($F$15,1,0,$B$10,1),MATCH(U17,OFFSET($B$15,1,0,$B$10,1),-1))) -> 0.01914045841
A18: 3 | B18: 2015-11-04 | C18: 211.350006 | D18: 211.5 | E18: 209.720001 | F18: 210.380005 | G18: 90967700 | H18: 210.380005 | I18: =H18/F18 -> 1 | J18: =INDEX(OFFSET($T$15,0,0,$S$13+1,1),MATCH(B18,OFFSET($Q$15,0,0,$S$13+1,1),-1)) -> 1 | K18: 211.35 | L18: 211.5 | M18: 209.72 | N18: 210.38 | O18: =G18*J18 -> 90967700 | U18: 2015-03-20 | V18: 0.931 | W18: 210.410004 | X18: 201503 | Y18: 201403 | Z18: 2014-03-21 | AA18: 5 | AB18: 1 | AC18: 3.942 | AD18: 0.01873485065
A19: 4 | B19: 2015-11-03 | C19: 209.970001 | D19: 211.660004 | E19: 209.699997 | F19: 210.949997 | G19: 94524100 | H19: 210.949997 | I19: 1 | J19: 1 | K19: 209.97 | L19: 211.66 | M19: 209.7 | N19: 210.95 | O19: 94524100 | U19: 2014-12-19 | V19: 1.135 | W19: 206.520004 | X19: 201412 | Y19: 201312 | Z19: 2013-12-20 | AA19: 5 | AB19: 1 | AC19: 3.836 | AD19: 0.01857447185
A20: 5 | B20: 2015-11-02 | C20: 208.320007 | D20: 210.619995 | E20: 208.169998 | F20: 210.330002 | G20: 82533600 | H20: 210.330002 | I20: 1 | J20: 1 | K20: 208.32 | L20: 210.62 | M20: 208.17 | N20: 210.33 | O20: 82533600 | U20: 2014-09-19 | V20: 0.939 | W20: 200.699997 | X20: 201409 | Y20: 201309 | Z20: 2013-09-20 | AA20: 5 | AB20: 1 | AC20: 3.681 | AD20: 0.01834080745
A21: 6 | B21: 2015-10-30 | C21: 209.059998 | D21: 209.440002 | E21: 207.740005 | F21: 207.869995 | G21: 125338300 | H21: 207.869995 | I21: 1 | J21: 1 | K21: 209.06 | L21: 209.44 | M21: 207.74 | N21: 207.87 | O21: 125338300 | U21: 2014-06-20 | V21: 0.937 | W21: 195.940002 | X21: 201406 | Y21: 201306 | Z21: 2013-06-21 | AA21: 5 | AB21: 1 | AC21: 3.58 | AD21: 0.01827089907
A22: 7 | B22: 2015-10-29 | C22: 208.350006 | D22: 209.270004 | E22: 208.210007 | F22: 208.889999 | G22: 84727800 | H22: 208.889999 | I22: 1 | J22: 1 | K22: 208.35 | L22: 209.27 | M22: 208.21 | N22: 208.89 | O22: 84727800 | U22: 2014-03-21 | V22: 0.825 | W22: 186.199997 | X22: 201403 | Y22: 201303 | Z22: 2013-03-15 | AA22: 5 | AB22: 1 | AC22: 3.482 | AD22: 0.01870032254
A23: 8 | B23: 2015-10-28 | C23: 207 | D23: 208.979996 | E23: 206.210007 | F23: 208.940002 | G23: 132528000 | H23: 208.940002 | I23: 1 | J23: 1 | K23: 207 | L23: 208.98 | M23: 206.21 | N23: 208.94 | O23: 132528000 | U23: 2013-12-20 | V23: 0.98 | W23: 181.559998 | X23: 201312 | Y23: 201212 | Z23: 2012-12-21 | AA23: 5 | AB23: 1 | AC23: 3.351 | AD23: 0.01845670873
A24: 9 | B24: 2015-10-27 | C24: 206.199997 | D24: 207 | E24: 205.789993 | F24: 206.570007 | G24: 74930600 | H24: 206.570007 | I24: 1 | J24: 1 | K24: 206.2 | L24: 207 | M24: 205.79 | N24: 206.57 | O24: 74930600 | U24: 2013-09-20 | V24: 0.838 | W24: 176.210007 | X24: 201309 | Y24: 201209 | Z24: 2012-09-21 | AA24: 5 | AB24: 1 | AC24: 3.393 | AD24: 0.01925543309
A25: 10 | B25: 2015-10-26 | C25: 207.300003 | D25: 207.369995 | E25: 206.559998 | F25: 206.990005 | G25: 66254500 | H25: 206.990005 | I25: 1 | J25: 1 | K25: 207.3 | L25: 207.37 | M25: 206.56 | N25: 206.99 | O25: 66254500 | U25: 2013-06-21 | V25: 0.839 | W25: 176.210007 | X25: 201306 | Y25: 201206 | Z25: 2012-06-15 | AA25: 5 | AB25: 1 | AC25: 3.334 | AD25: 0.01892060534
A26: 11 | B26: 2015-10-23 | C26: 207.25 | D26: 207.949997 | E26: 206.300003 | F26: 207.520004 | G26: 138355700 | H26: 207.520004 | I26: 1 | J26: 1 | K26: 207.25 | L26: 207.95 | M26: 206.3 | N26: 207.52 | O26: 138355700 | U26: 2013-03-15 | V26: 0.694 | W26: 176.210007 | X26: 201303 | Y26: 201203 | Z26: 2012-03-16 | AA26: 5 | AB26: 1 | AC26: 3.183 | AD26: 0.01806367331
A27: 12 | B27: 2015-10-22 | C27: 202.979996 | D27: 205.509995 | E27: 201.850006 | F27: 205.210007 | G27: 164941500 | H27: 205.210007 | I27: 1 | J27: 1 | K27: 202.98 | L27: 205.51 | M27: 201.85 | N27: 205.21 | O27: 164941500 | U27: 2012-12-21 | V27: 1.022 | W27: 176.210007 | X27: 201212 | Y27: 201112 | Z27: 2011-12-16 | AA27: 5 | AB27: 1 | AC27: 3.103 | AD27: 0.01760966958
A28: 13 | B28: 2015-10-21 | C28: 203.610001 | D28: 203.789993 | E28: 201.649994 | F28: 201.869995 | G28: 99149500 | H28: 201.869995 | I28: 1 | J28: 1 | K28: 203.61 | L28: 203.79 | M28: 201.65 | N28: 201.87 | O28: 99149500 | U28: 2012-09-21 | V28: 0.779 | W28: 176.210007 | X28: 201209 | Y28: 201109 | Z28: 2011-09-16 | AA28: 5 | AB28: 1 | AC28: 2.851 | AD28: 0.01617955784
A29: 14 | B29: 2015-10-20 | C29: 202.850006 | D29: 203.839996 | E29: 202.550003 | F29: 203.089996 | G29: 75598000 | H29: 203.089996 | I29: 1 | J29: 1 | K29: 202.85 | L29: 203.84 | M29: 202.55 | N29: 203.09 | O29: 75598000 | U29: 2012-06-15 | V29: 0.688 | W29: 176.210007 | X29: 201206 | Y29: 201106 | Z29: 2011-06-17 | AA29: 5 | AB29: 1 | AC29: 2.697 | AD29: 0.01530560066
A30: 15 | B30: 2015-10-19 | C30: 202.5 | D30: 203.369995 | E30: 202.130005 | F30: 203.320007 | G30: 73106800 | H30: 203.320007 | I30: 1 | J30: 1 | K30: 202.5 | L30: 203.37 | M30: 202.13 | N30: 203.32 | O30: 73106800 | U30: 2012-03-16 | V30: 0.614 | W30: 176.210007 | X30: 201203 | Y30: 201103 | Z30: 2011-03-18 | AA30: 5 | AB30: 1 | AC30: 2.637 | AD30: 0.01496509787
A31: 16 | B31: 2015-10-16 | C31: 202.830002 | D31: 203.289993 | E31: 201.919998 | F31: 203.270004 | G31: 109692900 | H31: 203.270004 | I31: 1 | J31: 1 | K31: 202.83 | L31: 203.29 | M31: 201.92 | N31: 203.27 | O31: 109692900 | U31: 2011-12-16 | V31: 0.77 | W31: 176.210007 | X31: 201112 | Y31: 201012 | Z31: 2010-12-17 | AA31: 5 | AB31: 1 | AC31: 2.576 | AD31: 0.01461892003
A32: 17 | B32: 2015-10-15 | C32: 200.080002 | D32: 202.360001 | E32: 199.639999 | F32: 202.289993 | G32: 125812600 | H32: 202.289993 | I32: 1 | J32: 1 | K32: 200.08 | L32: 202.36 | M32: 199.64 | N32: 202.29 | O32: 125812600 | U32: 2011-09-16 | V32: 0.625 | W32: 176.210007 | X32: 201109 | Y32: 201009 | Z32: 2010-09-17 | AA32: 5 | AB32: 1 | AC32: 2.459 | AD32: 0.01395493957
A33: 18 | B33: 2015-10-14 | C33: 200.179993 | D33: 200.869995 | E33: 198.940002 | F33: 199.300003 | G33: 95532400 | H33: 199.300003 | I33: 1 | J33: 1 | K33: 200.18 | L33: 200.87 | M33: 198.94 | N33: 199.3 | O33: 95532400 | U33: 2011-06-17 | V33: 0.628 | W33: 176.210007 | X33: 201106 | Y33: 201006 | Z33: 2010-06-18 | AA33: 5 | AB33: 1 | AC33: 2.436 | AD33: 0.0138244135
A34: 19 | B34: 2015-10-13 | C34: 200.649994 | D34: 202.160004 | E34: 200.050003 | F34: 200.179993 | G34: 83578000 | H34: 200.179993 | I34: 1 | J34: 1 | K34: 200.65 | L34: 202.16 | M34: 200.05 | N34: 200.18 | O34: 83578000 | U34: 2011-03-18 | V34: 0.553 | W34: 176.210007 | X34: 201103 | Y34: 201003 | Z34: 2010-03-19 | AA34: 5 | AB34: 1 | AC34: 2.339 | AD34: 0.01327393398
A35: 20 | B35: 2015-10-12 | C35: 201.419998 | D35: 201.759995 | E35: 200.910004 | F35: 201.589996 | G35: 55425200 | H35: 201.589996 | I35: 1 | J35: 1 | K35: 201.42 | L35: 201.76 | M35: 200.91 | N35: 201.59 | O35: 55425200 | U35: 2010-12-17 | V35: 0.653 | W35: 176.210007 | X35: 201012 | Y35: 200912 | Z35: 2009-12-18 | AA35: 5 | AB35: 1 | AC35: 2.266 | AD35: 0.01285965558
A36: 21 | B36: 2015-10-09 | C36: 201.380005 | D36: 201.899994 | E36: 200.580002 | F36: 201.399994 | G36: 94899000 | H36: 201.399994 | I36: 1 | J36: 1 | K36: 201.38 | L36: 201.9 | M36: 200.58 | N36: 201.4 | O36: 94899000 | U36: 2010-09-17 | V36: 0.602 | W36: 176.210007 | X36: 201009 | Y36: 200909 | Z36: 2009-09-18 | AA36: 5 | AB36: 1 | AC36: 2.203 | AD36: 0.01250212765
A37: 22 | B37: 2015-10-08 | C37: 199.410004 | D37: 201.550003 | E37: 198.589996 | F37: 201.199997 | G37: 148387100 | H37: 201.199997 | I37: 1 | J37: 1 | K37: 199.41 | L37: 201.55 | M37: 198.59 | N37: 201.2 | O37: 148387100 | U37: 2010-06-18 | V37: 0.531 | W37: 176.210007 | X37: 201006 | Y37: 200906 | Z37: 2009-06-19 | AA37: 5 | AB37: 1 | AC37: 2.109 | AD37: 0.01196867327
A38: 23 | B38: 2015-10-07 | C38: 198.899994 | D38: 199.830002 | E38: 197.479996 | F38: 199.429993 | G38: 120246700 | H38: 199.429993 | I38: 1 | J38: 1 | K38: 198.9 | L38: 199.83 | M38: 197.48 | N38: 199.43 | O38: 120246700 | U38: 2010-03-19 | V38: 0.48 | W38: 176.210007 | X38: 201003 | Y38: 200903 | Z38: 2009-03-20 | AA38: 5 | AB38: 1 | AC38: 2.096 | AD38: 0.01189489766
A39: 24 | B39: 2015-10-06 | C39: 198.309998 | D39: 198.979996 | E39: 197 | F39: 197.809998 | G39: 106144200 | H39: 197.809998 | I39: 1 | J39: 1 | K39: 198.31 | L39: 198.98 | M39: 197 | N39: 197.81 | O39: 106144200 | U39: 2009-12-18 | V39: 0.59 | W39: 176.210007 | X39: 200912 | Y39: 200812 | Z39: 2008-12-19 | AA39: 5 | AB39: 1 | AC39: 2.177 | AD39: 0.01235457643
A40: 25 | B40: 2015-10-05 | C40: 196.460007 | D40: 198.740005 | E40: 196.330002 | F40: 198.479996 | G40: 122213200 | H40: 198.479996 | I40: 1 | J40: 1 | K40: 196.46 | L40: 198.74 | M40: 196.33 | N40: 198.48 | O40: 122213200 | U40: 2009-09-18 | V40: 0.508 | W40: 176.210007 | X40: 200909 | Y40: 200809 | Z40: 2008-09-19 | AA40: 5 | AB40: 1 | AC40: 2.306 | AD40: 0.01308665745
A41: 26 | B41: 2015-10-02 | C41: 189.770004 | D41: 195.029999 | E41: 189.119995 | F41: 194.990005 | G41: 206129500 | H41: 194.990005 | I41: 1 | J41: 1 | K41: 189.77 | L41: 195.03 | M41: 189.12 | N41: 194.99 | O41: 206129500 | U41: 2009-06-19 | V41: 0.518 | W41: 176.210007 | X41: 200906 | Y41: 200806 | Z41: 2008-06-20 | AA41: 5 | AB41: 1 | AC41: 2.489 | AD41: 0.01412519097
A42: 27 | B42: 2015-10-01 | C42: 192.080002 | D42: 192.490005 | E42: 189.820007 | F42: 192.160004 | G42: 127828700 | H42: 192.160004 | I42: 1 | J42: 1 | K42: 192.08 | L42: 192.49 | M42: 189.82 | N42: 192.16 | O42: 127828700 | U42: 2009-03-20 | V42: 0.561 | W42: 176.210007 | X42: 200903 | Y42: 200803 | Z42: 2008-03-20 | AA42: 5 | AB42: 1 | AC42: 2.64 | AD42: 0.01498212301
A43: 28 | B43: 2015-09-30 | C43: 190.369995 | D43: 191.830002 | E43: 189.440002 | F43: 191.589996 | G43: 152593200 | H43: 191.589996 | I43: 1 | J43: 1 | K43: 190.37 | L43: 191.83 | M43: 189.44 | N43: 191.59 | O43: 152593200 | U43: 2008-12-19 | V43: 0.719 | W43: 176.210007 | X43: 200812 | Y43: 200712 | Z43: 2007-12-21 | AA43: 5 | AB43: 1 | AC43: 2.721 | AD43: 0.01544180178
A44: 29 | B44: 2015-09-29 | C44: 188.270004 | D44: 189.740005 | E44: 186.929993 | F44: 188.080002 | G44: 152279900 | H44: 188.080002 | I44: 1 | J44: 1 | K44: 188.27 | L44: 189.74 | M44: 186.93 | N44: 188.08 | O44: 152279900 | U44: 2008-09-19 | V44: 0.691 | W44: 176.210007 | X44: 200809 | Y44: 200709 | Z44: 2007-09-21 | AA44: 5 | AB44: 1 | AC44: 2.777 | AD44: 0.01575960439
A45: 30 | B45: 2015-09-28 | C45: 191.779999 | D45: 191.910004 | E45: 187.639999 | F45: 187.910004 | G45: 158514500 | H45: 187.910004 | I45: 1 | J45: 1 | K45: 191.78 | L45: 191.91 | M45: 187.64 | N45: 187.91 | O45: 158514500 | U45: 2008-06-20 | V45: 0.669 | W45: 176.210007 | X45: 200806 | Y45: 200706 | Z45: 2007-06-15 | AA45: 5 | AB45: 1 | AC45: 2.805 | AD45: 0.0159185057
A46: 31 | B46: 2015-09-25 | C46: 194.639999 | D46: 195 | E46: 191.809998 | F46: 192.869995 | G46: 142052900 | H46: 192.869995 | I46: 1 | J46: 1 | K46: 194.64 | L46: 195 | M46: 191.81 | N46: 192.87 | O46: 142052900 | U46: 2008-03-20 | V46: 0.642 | W46: 176.210007 | X46: 200803 | Y46: 200703 | Z46: 2007-03-16 | AA46: 5 | AB46: 1 | AC46: 2.792 | AD46: 0.01584473009
A47: 32 | B47: 2015-09-24 | C47: 192.149994 | D47: 193.449997 | E47: 190.559998 | F47: 192.929993 | G47: 159378800 | H47: 192.929993 | I47: 1 | J47: 1 | K47: 192.15 | L47: 193.45 | M47: 190.56 | N47: 192.93 | O47: 159378800 | U47: 2007-12-21 | V47: 0.775 | W47: 176.210007 | X47: 200712 | Y47: 200612 | Z47: 2006-12-15 | AA47: 5 | AB47: 1 | AC47: 2.701 | AD47: 0.01532830085
A48: 33 | B48: 2015-09-23 | C48: 194.110001 | D48: 194.669998 | E48: 192.910004 | F48: 193.600006 | G48: 92790600 | H48: 193.600006 | I48: 1 | J48: 1 | K48: 194.11 | L48: 194.67 | M48: 192.91 | N48: 193.6 | O48: 92790600 | U48: 2007-09-21 | V48: 0.719 | W48: 176.210007 | X48: 200709 | Y48: 200609 | Z48: 2006-09-15 | AA48: 5 | AB48: 1 | AC48: 2.719 | AD48: 0.01543045169
A49: 34 | B49: 2015-09-22 | C49: 193.880005 | D49: 194.460007 | E49: 192.559998 | F49: 193.899994 | G49: 153890900 | H49: 193.899994 | I49: 1 | J49: 1 | K49: 193.88 | L49: 194.46 | M49: 192.56 | N49: 193.9 | O49: 153890900 | U49: 2007-06-15 | V49: 0.656 | W49: 176.210007 | X49: 200706 | Y49: 200606 | Z49: 2006-06-16 | AA49: 5 | AB49: 1 | AC49: 2.579 | AD49: 0.01463594517
A50: 35 | B50: 2015-09-21 | C50: 196.440002 | D50: 197.679993 | E50: 195.210007 | F50: 196.440002 | G50: 105726200 | H50: 196.440002 | I50: 1 | J50: 1 | K50: 196.44 | L50: 197.68 | M50: 195.21 | N50: 196.44 | O50: 105726200 | U50: 2007-03-16 | V50: 0.551 | W50: 176.210007 | X50: 200703 | Y50: 200603 | Z50: 2006-03-17 | AA50: 5 | AB50: 1 | AC50: 2.478 | AD50: 0.01406276546
A51: 36 | B51: 2015-09-18 | C51: 195.710007 | D51: 198.679993 | E51: 194.960007 | F51: 195.360001 | G51: 223657500 | H51: 195.360001 | I51: 1 | J51: 1 | K51: 195.71 | L51: 198.68 | M51: 194.96 | N51: 195.36 | O51: 223657500 | U51: 2006-12-15 | V51: 0.793 | W51: 176.210007 | X51: 200612 | Y51: 200512 | Z51: 2005-12-16 | AA51: 5 | AB51: 1 | AC51: 2.446 | AD51: 0.01388116397
A52: 37 | B52: 2015-09-17 | C52: 200.020004 | D52: 202.889999 | E52: 199.279999 | F52: 199.699997 | G52: 276046600 | H52: 198.667003 | I52: 0.9948272708 | J52: 1 | K52: 198.99 | L52: 201.84 | M52: 198.25 | N52: 198.67 | O52: 276046600 | U52: 2006-09-15 | V52: 0.579 | W52: 176.210007 | X52: 200609 | Y52: 200509 | Z52: 2005-09-16 | AA52: 5 | AB52: 1 | AC52: 2.325 | AD52: 0.01319448333
A53: 38 | B53: 2015-09-16 | C53: 198.820007 | D53: 200.410004 | E53: 198.410004 | F53: 200.139999 | G53: 99581600 | H53: 199.104729 | I53: 0.9948272709 | J53: 1 | K53: 197.79 | L53: 199.37 | M53: 197.38 | N53: 199.1 | O53: 99581600 | U53: 2006-06-16 | V53: 0.555 | W53: 176.210007 | X53: 200606 | Y53: 200506 | Z53: 2005-06-17 | AA53: 5 | AB53: 1 | AC53: 2.268 | AD53: 0.01287100567
A54: 39 | B54: 2015-09-15 | C54: 196.610001 | D54: 198.990005 | E54: 195.960007 | F54: 198.449997 | G54: 113806200 | H54: 197.423469 | I54: 0.9948272713 | J54: 1 | K54: 195.59 | L54: 197.96 | M54: 194.95 | N54: 197.42 | O54: 113806200 | U54: 2006-03-17 | V54: 0.519 | W54: 176.210007 | X54: 200603 | Y54: 200503 | Z54: 2005-03-18 | AA54: 5 | AB54: 1 | AC54: 2.201 | AD54: 0.01249077755
A55: 40 | B55: 2015-09-14 | C55: 196.949997 | D55: 197.009995 | E55: 195.429993 | F55: 195.979996 | G55: 79452000 | H55: 194.966244 | I55: 0.994827268 | J55: 1 | K55: 195.93 | L55: 195.99 | M55: 194.42 | N55: 194.97 | O55: 79452000 | U55: 2005-12-16 | V55: 0.672 | W55: 176.210007 | X55: 200512 | Y55: 200412 | Z55: 2004-12-17 | AA55: 5 | AB55: 1 | AC55: 2.149 | AD55: 0.01219567513
A56: 41 | B56: 2015-09-11 | C56: 195.380005 | D56: 196.820007 | E56: 194.529999 | F56: 196.809998 | G56: 119691200 | H56: 195.791953 | I56: 0.9948272699 | J56: 1 | K56: 194.37 | L56: 195.8 | M56: 193.52 | N56: 195.79 | O56: 119691200 | U56: 2005-09-16 | V56: 0.522 | W56: 176.210007 | X56: 200509 | Y56: 200409 | Z56: 2004-09-17 | AA56: 6 | AB56: 1 | AC56: 2.396 | AD56: 0.01359741164
A57: 42 | B57: 2015-09-10 | C57: 194.559998 | D57: 197.220001 | E57: 194.25 | F57: 195.850006 | G57: 158611100 | H57: 194.836927 | I57: 0.994827271 | J57: 1 | K57: 193.55 | L57: 196.2 | M57: 193.25 | N57: 194.84 | O57: 158611100 | U57: 2005-06-17 | V57: 0.488 | W57: 176.210007 | X57: 200506 | Y57: 200406 | Z57: 2004-06-18 | AA57: 6 | AB57: 1 | AC57: 2.343 | AD57: 0.01329663417
A58: 43 | B58: 2015-09-09 | C58: 199.320007 | D58: 199.470001 | E58: 194.350006 | F58: 194.759995 | G58: 149347700 | H58: 193.752554 | I58: 0.9948272693 | J58: 1 | K58: 198.29 | L58: 198.44 | M58: 193.34 | N58: 193.75 | O58: 149347700 | U58: 2005-03-18 | V58: 0.467 | W58: 176.210007 | X58: 200503 | Y58: 200403 | Z58: 2004-03-19 | AA58: 6 | AB58: 1 | AC58: 2.269 | AD58: 0.01287668072
A59: 44 | B59: 2015-09-08 | C59: 195.940002 | D59: 197.610001 | E59: 195.169998 | F59: 197.460007 | G59: 116025700 | H59: 196.4386 | I59: 0.9948272715 | J59: 1 | K59: 194.93 | L59: 196.59 | M59: 194.16 | N59: 196.44 | O59: 116025700 | U59: 2004-12-17 | V59: 0.568 | W59: 176.210007 | X59: 200412 | Y59: 200312 | Z59: 2003-12-19 | AA59: 6 | AB59: 1 | AC59: 2.197 | AD59: 0.01246807737
A60: 45 | B60: 2015-09-04 | C60: 192.850006 | D60: 193.860001 | E60: 191.610001 | F60: 192.589996 | G60: 207081000 | H60: 191.59378 | I60: 0.9948272703 | J60: 1 | K60: 191.85 | L60: 192.86 | M60: 190.62 | N60: 191.59 | O60: 207081000 | U60: 2004-11-15 | V60: 0.351 | W60: 176.210007 | X60: 200411 | Y60: 200311 | Z60: 2003-12-19 | AA60: 5 | AB60: 0 | AC60: 2.145 | AD60: 0.01217297494
A61: 46 | B61: 2015-09-03 | C61: 196.259995 | D61: 198.050003 | E61: 194.960007 | F61: 195.649994 | G61: 152087800 | H61: 194.637949 | I61: 0.9948272679 | J61: 1 | K61: 195.24 | L61: 197.03 | M61: 193.95 | N61: 194.64 | O61: 152087800 | U61: 2004-09-17 | V61: 0.469 | W61: 176.210007 | X61: 200409 | Y61: 200309 | Z61: 2003-09-19 | AA61: 5 | AB61: 1 | AC61: 1.794 | AD61: 0.01018103359
A62: 47 | B62: 2015-09-02 | C62: 194.619995 | D62: 195.460007 | E62: 191.770004 | F62: 195.360001 | G62: 160269300 | H62: 194.349456 | I62: 0.9948272676 | J62: 1 | K62: 193.61 | L62: 194.45 | M62: 190.78 | N62: 194.35 | O62: 160269300 | U62: 2004-06-18 | V62: 0.414 | W62: 176.210007 | X62: 200406 | Y62: 200306 | Z62: 2003-06-20 | AA62: 5 | AB62: 1 | AC62: 1.725 | AD62: 0.009789455374
A63: 48 | B63: 2015-09-01 | C63: 193.119995 | D63: 194.770004 | E63: 190.729996 | F63: 191.919998 | G63: 256000400 | H63: 190.927248 | I63: 0.9948272717 | J63: 1 | K63: 192.12 | L63: 193.76 | M63: 189.74 | N63: 190.93 | O63: 256000400 | U63: 2004-03-19 | V63: 0.395 | W63: 176.210007 | X63: 200403 | Y63: 200303 | Z63: 2003-03-21 | AA63: 5 | AB63: 1 | AC63: 1.671 | AD63: 0.009483002858
A64: 49 | B64: 2015-08-31 | C64: 198.110001 | D64: 199.130005 | E64: 197.009995 | F64: 197.539993 | G64: 163298800 | H64: 196.518172 | I64: 0.9948272702 | J64: 1 | K64: 197.09 | L64: 198.1 | M64: 195.99 | N64: 196.52 | O64: 163298800 | U64: 2003-12-19 | V64: 0.516 | W64: 176.210007 | X64: 200312 | Y64: 200212 | Z64: 2002-12-20 | AA64: 5 | AB64: 1 | AC64: 1.63 | AD64: 0.009250325948
A65: 50 | B65: 2015-08-28 | C65: 198.5 | D65: 199.839996 | E65: 197.919998 | F65: 199.240005 | G65: 160414400 | H65: 198.209391 | I65: 0.9948272738 | J65: 1 | K65: 197.47 | L65: 198.81 | M65: 196.9 | N65: 198.21 | O65: 160414400 | U65: 2003-09-19 | V65: 0.4 | W65: 176.210007 | X65: 200309 | Y65: 200209 | Z65: 2002-09-20 | AA65: 5 | AB65: 1 | AC65: 1.55 | AD65: 0.00879632222
A66: 51 | B66: 2015-08-27 | C66: 197.020004 | D66: 199.419998 | E66: 195.210007 | F66: 199.160004 | G66: 274143900 | H66: 198.129803 | I66: 0.9948272696 | J66: 1 | K66: 196 | L66: 198.39 | M66: 194.2 | N66: 198.13 | O66: 274143900 | U66: 2003-06-20 | V66: 0.36 | W66: 176.210007 | X66: 200306 | Y66: 200206 | Z66: 2002-06-21 | AA66: 5 | AB66: 1 | AC66: 1.528 | AD66: 0.008671471195
A67: 52 | B67: 2015-08-26 | C67: 192.080002 | D67: 194.789993 | E67: 188.369995 | F67: 194.679993 | G67: 339257000 | H67: 193.672966 | I67: 0.9948272702 | J67: 1 | K67: 191.09 | L67: 193.78 | M67: 187.4 | N67: 193.67 | O67: 339257000 | U67: 2003-03-21 | V67: 0.354 | W67: 176.210007 | X67: 200303 | Y67: 200203 | Z67: 2002-03-15 | AA67: 5 | AB67: 1 | AC67: 1.521 | AD67: 0.008631745869
A68: 53 | B68: 2015-08-25 | C68: 195.429993 | D68: 195.449997 | E68: 186.919998 | F68: 187.229996 | G68: 369833100 | H68: 186.261506 | I68: 0.9948272712 | J68: 1 | K68: 194.42 | L68: 194.44 | M68: 185.95 | N68: 186.26 | O68: 369833100 | U68: 2002-12-20 | V68: 0.436 | W68: 176.210007 | X68: 200212 | Y68: 200112 | Z68: 2001-12-21 | AA68: 5 | AB68: 1 | AC68: 1.498 | AD68: 0.008501219797
A69: 54 | B69: 2015-08-24 | C69: 197.630005 | D69: 197.630005 | E69: 182.399994 | F69: 189.550003 | G69: 507244300 | H69: 188.569512 | I69: 0.9948272699 | J69: 1 | K69: 196.61 | L69: 196.61 | M69: 181.46 | N69: 188.57 | O69: 507244300 | U69: 2002-09-20 | V69: 0.378 | W69: 176.210007 | X69: 200209 | Y69: 200109 | Z69: 2001-09-21 | AA69: 5 | AB69: 1 | AC69: 1.455 | AD69: 0.008257192794
A70: 55 | B70: 2015-08-21 | C70: 201.729996 | D70: 203.940002 | E70: 197.520004 | F70: 197.630005 | G70: 346588500 | H70: 196.607718 | I70: 0.9948272683 | J70: 1 | K70: 200.69 | L70: 202.89 | M70: 196.5 | N70: 196.61 | O70: 346588500 | U70: 2002-06-21 | V70: 0.353 | W70: 176.210007 | X70: 200206 | Y70: 200106 | Z70: 2001-06-15 | AA70: 5 | AB70: 1 | AC70: 1.446 | AD70: 0.008206117374
A71: 56 | B71: 2015-08-20 | C71: 206.509995 | D71: 208.289993 | E71: 203.899994 | F71: 204.009995 | G71: 194327900 | H71: 202.954706 | I71: 0.9948272681 | J71: 1 | K71: 205.44 | L71: 207.21 | M71: 202.85 | N71: 202.95 | O71: 194327900 | U71: 2002-03-15 | V71: 0.331 | W71: 176.210007 | X71: 200203 | Y71: 200103 | Z71: 2001-03-16 | AA71: 5 | AB71: 1 | AC71: 1.439 | AD71: 0.008166392048
A72: 57 | B72: 2015-08-19 | C72: 209.089996 | D72: 210.009995 | E72: 207.350006 | F72: 208.279999 | G72: 167316300 | H72: 207.202623 | I72: 0.994827271 | J72: 1 | K72: 208.01 | L72: 208.92 | M72: 206.28 | N72: 207.2 | O72: 167316300 | U72: 2001-12-21 | V72: 0.393 | W72: 176.210007 | X72: 200112 | Y72: 200012 | Z72: 2000-12-27 | AA72: 5 | AB72: 1 | AC72: 1.424 | AD72: 0.008081266349
A73: 58 | B73: 2015-08-18 | C73: 210.259995 | D73: 210.679993 | E73: 209.699997 | F73: 209.929993 | G73: 71692700 | H73: 208.844082 | I73: 0.9948272708 | J73: 1 | K73: 209.17 | L73: 209.59 | M73: 208.62 | N73: 208.84 | O73: 71692700 | U73: 2001-09-21 | V73: 0.369 | W73: 176.210007 | X73: 200109 | Y73: 200009 | Z73: 2000-09-15 | AA73: 6 | AB73: 1 | AC73: 1.442 | AD73: 0.008183417188
A74: 59 | B74: 2015-08-17 | C74: 208.710007 | D74: 210.589996 | E74: 208.160004 | F74: 210.559998 | G74: 79072600 | H74: 209.470828 | I74: 0.9948272701 | J74: 1 | K74: 207.63 | L74: 209.5 | M74: 207.08 | N74: 209.47 | O74: 79072600 | U74: 2001-06-15 | V74: 0.346 | W74: 176.210007 | X74: 200106 | Y74: 200006 | Z74: 2000-06-16 | AA74: 7 | AB74: 1 | AC74: 1.448 | AD74: 0.008217467468
A75: 60 | B75: 2015-08-14 | C75: 208.429993 | D75: 209.509995 | E75: 208.259995 | F75: 209.360001 | G75: 72786500 | H75: 208.277038 | I75: 0.9948272688 | J75: 1 | K75: 207.35 | L75: 208.43 | M75: 207.18 | N75: 208.28 | O75: 72786500 | U75: 2001-03-16 | V75: 0.316 | W75: 176.210007 | X75: 200103 | Y75: 200003 | Z75: 2000-03-17 | AA75: 7 | AB75: 1 | AC75: 1.45 | AD75: 0.008228817561
A76: 61 | B76: 2015-08-13 | C76: 208.729996 | D76: 209.550003 | E76: 208.009995 | F76: 208.699997 | G76: 89383300 | H76: 207.620448 | I76: 0.9948272687 | J76: 1 | K76: 207.65 | L76: 208.47 | M76: 206.93 | N76: 207.62 | O76: 89383300 | U76: 2000-12-27 | V76: 0 | W76: 176.210007 | X76: 200012 | Y76: 199912 | Z76: 1999-12-17 | AA76: 7 | AB76: 1 | AC76: 1.505 | AD76: 0.008540945124
A77: 62 | B77: 2015-08-12 | C77: 207.110001 | D77: 209.139999 | E77: 205.360001 | F77: 208.830002 | G77: 168996000 | H77: 207.749781 | I77: 0.994827271 | J77: 1 | K77: 206.04 | L77: 208.06 | M77: 204.3 | N77: 207.75 | O77: 168996000 | U77: 2000-12-15 | V77: 0.411 | W77: 176.210007 | X77: 200012 | Y77: 199912 | Z77: 1999-12-17 | AA77: 6 | AB77: 1 | AC77: 1.505 | AD77: 0.008540945124
A78: 63 | B78: 2015-08-11 | C78: 208.970001 | D78: 209.470001 | E78: 207.759995 | F78: 208.660004 | G78: 126081400 | H78: 207.580662 | I78: 0.9948272693 | J78: 1 | K78: 207.89 | L78: 208.39 | M78: 206.69 | N78: 207.58 | O78: 126081400 | U78: 2000-09-15 | V78: 0.375 | W78: 176.210007 | X78: 200009 | Y78: 199909 | Z78: 1999-09-17 | AA78: 6 | AB78: 1 | AC78: 1.442 | AD78: 0.008183417188
A79: 64 | B79: 2015-08-10 | C79: 209.279999 | D79: 210.669998 | E79: 209.279999 | F79: 210.630005 | G79: 80270700 | H79: 209.540473 | I79: 0.9948272707 | J79: 1 | K79: 208.2 | L79: 209.58 | M79: 208.2 | N79: 209.54 | O79: 80270700 | U79: 2000-09-14 | V79: 0 | W79: 176.210007 | X79: 200009 | Y79: 199909 | Z79: 1999-09-17 | AA79: 5 | AB79: 1 | AC79: 1.067 | AD79: 0.006055274715
A80: 65 | B80: 2015-08-07 | C80: 208.160004 | D80: 208.339996 | E80: 206.869995 | F80: 207.919998 | G80: 117858000 | H80: 206.844484 | I80: 0.9948272701 | J80: 1 | K80: =ROUND($I80*C80,2) -> 207.08 | L80: =ROUND($I80*D80,2) -> 207.26 | M80: =ROUND($I80*E80,2) -> 205.8 | N80: =ROUND($I80*F80,2) -> 206.84 | O80: 117858000 | U80: 2000-06-16 | V80: 0.348 | W80: 176.210007 | X80: 200006 | Y80: 199906 | Z80: 1999-06-18 | AA80: 5 | AB80: 1 | AC80: 1.439 | AD80: 0.008166392048
A81: 66 | B81: 2015-08-06 | C81: 210.289993 | D81: 210.419998 | E81: 207.649994 | F81: 208.350006 | G81: 116030800 | H81: 207.272268 | I81: 0.9948272716 | J81: 1 | K81: 209.2 | L81: 209.33 | M81: 206.58 | N81: 207.27 | O81: 116030800 | U81: 2000-03-17 | V81: 0.371 | W81: =(INDEX(OFFSET($F$15,1,0,$B$10,1),MATCH(U81,OFFSET($B$15,1,0,$B$10,1),-1))) -> 176.210007 | X81: =YEAR(U81)&RIGHT("0"&MONTH(U81),2) -> 200003 | Y81: =YEAR(U81)-1&RIGHT("0"&MONTH(U81),2) -> 199903 | Z81: =OFFSET(U80,AA81,0,1,1) -> 1999-03-19 | AA81: =MATCH(Y81,OFFSET($X$15,A81,0,$V$14+1-A81,1),-1) -> 5 | AB81: =IF(OR(AND(YEAR(U81)=YEAR(Z81),MONTH(U81)=MONTH(Z81)),MONTH(U81)=MONTH(Z81)),1,0) -> 1 | AC81: =(V81+IF(AA81-AB81=0,0,IFERROR(SUM(OFFSET(V81,1,0,AA81-AB81-1,1)),0))) -> 1.496 | AD81: =AC81/(INDEX(OFFSET($F$15,1,0,$B$10,1),MATCH(U81,OFFSET($B$15,1,0,$B$10,1),-1))) -> 0.008489869704
A82: 67 | B82: 2015-08-05 | C82: 210.449997 | D82: 211.309998 | E82: 209.729996 | F82: 210.100006 | G82: 85786800 | H82: 209.013216 | I82: =H82/F82 -> 0.9948272729 | J82: =INDEX(OFFSET($T$15,0,0,$S$13+1,1),MATCH(B82,OFFSET($Q$15,0,0,$S$13+1,1),-1)) -> 1 | K82: 209.36 | L82: 210.22 | M82: 208.65 | N82: 209.01 | O82: =G82*J82 -> 85786800 | U82: 1999-12-17 | V82: 0.348 | W82: 176.210007 | X82: 199912 | Y82: 199812 | Z82: 1998-12-18 | AA82: 5 | AB82: 1 | AC82: 1.445 | AD82: 0.008200442328
A83: 68 | B83: 2015-08-04 | C83: 209.699997 | D83: 210.25 | E83: 208.800003 | F83: 209.320007 | G83: 81820800 | H83: 208.237252 | I83: 0.9948272742 | J83: 1 | K83: 208.62 | L83: 209.16 | M83: 207.72 | N83: 208.24 | O83: 81820800 | U83: 1999-09-17 | V83: 0.372 | W83: 176.210007 | X83: 199909 | Y83: 199809 | Z83: 1998-09-18 | AA83: 5 | AB83: 1 | AC83: 1.489 | AD83: 0.008450144378
A84: 69 | B84: 2015-08-03 | C84: 210.460007 | D84: 210.529999 | E84: 208.649994 | F84: 209.729996 | G84: 113965700 | H84: 208.645119 | I84: 0.9948272683 | J84: 1 | K84: 209.37 | L84: 209.44 | M84: 207.57 | N84: 208.65 | O84: 113965700 | U84: 1999-06-18 | V84: 0.405 | W84: 176.210007 | X84: 199906 | Y84: 199806 | Z84: 1998-06-19 | AA84: 5 | AB84: 1 | AC84: 1.476 | AD84: 0.008376368772
A85: 70 | B85: 2015-07-31 | C85: 211.419998 | D85: 211.449997 | E85: 210.160004 | F85: 210.449997 | G85: 103266900 | H85: 209.361396 | I85: 0.9948272701 | J85: 1 | K85: 210.33 | L85: 210.36 | M85: 209.07 | N85: 209.36 | O85: 103266900 | U85: 1999-03-19 | V85: 0.32 | W85: 176.210007 | X85: 199903 | Y85: 199803 | Z85: 1998-03-20 | AA85: 5 | AB85: 1 | AC85: 1.423 | AD85: 0.008075591303
A86: 71 | B86: 2015-07-30 | C86: 210.160004 | D86: 211.020004 | E86: 209.419998 | F86: 210.820007 | G86: 91304400 | H86: 209.729492 | I86: 0.9948272699 | J86: 1 | K86: 209.07 | L86: 209.93 | M86: 208.34 | N86: 209.73 | O86: 91304400 | U86: 1998-12-18 | V86: 0.392 | W86: 176.210007 | X86: 199812 | Y86: 199712 | Z86: 1997-12-19 | AA86: 5 | AB86: 1 | AC86: 1.416 | AD86: 0.008035865977
A87: 72 | B87: 2015-07-29 | C87: 209.479996 | D87: 211.039993 | E87: 209.309998 | F87: 210.770004 | G87: 105791300 | H87: 209.679748 | I87: 0.9948272715 | J87: 1 | K87: 208.4 | L87: 209.95 | M87: 208.23 | N87: 209.68 | O87: 105791300 | U87: 1998-09-18 | V87: 0.359 | W87: 176.210007 | X87: 199809 | Y87: 199709 | Z87: 1997-09-19 | AA87: 5 | AB87: 1 | AC87: 1.404 | AD87: 0.007967765418
A88: 73 | B88: 2015-07-28 | C88: 207.789993 | D88: 209.5 | E88: 206.800003 | F88: 209.309998 | G88: 123544800 | H88: 208.227294 | I88: 0.9948272705 | J88: 1 | K88: 206.72 | L88: 208.42 | M88: 205.73 | N88: 208.23 | O88: 123544800 | U88: 1998-06-19 | V88: 0.352 | W88: 176.210007 | X88: 199806 | Y88: 199706 | Z88: 1997-06-20 | AA88: 5 | AB88: 1 | AC88: 1.393 | AD88: 0.007905339905
A89: 74 | B89: 2015-07-27 | C89: 208 | D89: 208 | E89: 206.259995 | F89: 206.740005 | G89: 132361100 | H89: 205.670595 | I89: 0.9948272711 | J89: 1 | K89: 206.92 | L89: 206.92 | M89: 205.19 | N89: 205.67 | O89: 132361100 | U89: 1998-03-20 | V89: 0.313 | W89: 176.210007 | X89: 199803 | Y89: 199703 | Z89: 1997-03-21 | AA89: 5 | AB89: 1 | AC89: 1.391 | AD89: 0.007893989812
A90: 75 | B90: 2015-07-24 | C90: 210.300003 | D90: 210.369995 | E90: 207.600006 | F90: 207.940002 | G90: 117755000 | H90: 206.864385 | I90: 0.9948272723 | J90: 1 | K90: 209.21 | L90: 209.28 | M90: 206.53 | N90: 206.86 | O90: 117755000 | U90: 1997-12-19 | V90: 0.38 | W90: 176.210007 | X90: 199712 | Y90: 199612 | Z90: 1996-12-20 | AA90: 5 | AB90: 1 | AC90: 1.377 | AD90: 0.00781453916
A91: 76 | B91: 2015-07-23 | C91: 211.529999 | D91: 211.649994 | E91: 209.75 | F91: 210.139999 | G91: 90509100 | H91: 209.053002 | I91: 0.9948272723 | J91: 1 | K91: 210.44 | L91: 210.56 | M91: 208.67 | N91: 209.05 | O91: 90509100 | U91: 1997-09-19 | V91: 0.348 | W91: 176.210007 | X91: 199709 | Y91: 199609 | Z91: 1996-09-20 | AA91: 5 | AB91: 1 | AC91: 1.364 | AD91: 0.007740763554
A92: 77 | B92: 2015-07-22 | C92: 210.929993 | D92: 211.770004 | E92: 210.889999 | F92: 211.289993 | G92: 88667900 | H92: 210.197047 | I92: 0.9948272704 | J92: 1 | K92: 209.84 | L92: 210.67 | M92: 209.8 | N92: 210.2 | O92: 88667900 | U92: 1997-06-20 | V92: 0.35 | W92: 176.210007 | X92: 199706 | Y92: 199606 | Z92: 1996-06-21 | AA92: 5 | AB92: 1 | AC92: 1.368 | AD92: 0.00776346374
A93: 78 | B93: 2015-07-21 | C93: 212.429993 | D93: 212.740005 | E93: 211.389999 | F93: 211.759995 | G93: 77965000 | H93: 210.664617 | I93: 0.9948272666 | J93: 1 | K93: 211.33 | L93: 211.64 | M93: 210.3 | N93: 210.66 | O93: 77965000 | U93: 1997-03-21 | V93: 0.299 | W93: 176.210007 | X93: 199703 | Y93: 199603 | Z93: 1996-03-15 | AA93: 5 | AB93: 1 | AC93: 1.369 | AD93: 0.007769138787
A94: 79 | B94: 2015-07-20 | C94: 212.75 | D94: 213.179993 | E94: 212.210007 | F94: 212.619995 | G94: 70446800 | H94: 211.520169 | I94: 0.9948272692 | J94: 1 | K94: 211.65 | L94: 212.08 | M94: 211.11 | N94: 211.52 | O94: 70446800 | U94: 1996-12-20 | V94: 0.367 | W94: 176.210007 | X94: 199612 | Y94: 199512 | Z94: 1995-12-15 | AA94: 5 | AB94: 1 | AC94: 1.355 | AD94: 0.007689688134
A95: 80 | B95: 2015-07-17 | C95: 212.289993 | D95: 212.550003 | E95: 211.800003 | F95: 212.470001 | G95: 89030000 | H95: 211.370951 | I95: 0.9948272698 | J95: 1 | K95: 211.19 | L95: 211.45 | M95: 210.7 | N95: 211.37 | O95: 89030000 | U95: 1996-09-20 | V95: 0.352 | W95: 176.210007 | X95: 199609 | Y95: 199509 | Z95: 1995-09-15 | AA95: 5 | AB95: 1 | AC95: 1.37 | AD95: 0.007774813833
A96: 81 | B96: 2015-07-16 | C96: 211.869995 | D96: 212.300003 | E96: 211.580002 | F96: 212.270004 | G96: 106683300 | H96: 211.171989 | I96: 0.994827272 | J96: 1 | K96: 210.77 | L96: 211.2 | M96: 210.49 | N96: 211.17 | O96: 106683300 | U96: 1996-06-21 | V96: 0.351 | W96: 176.210007 | X96: 199606 | Y96: 199506 | Z96: 1995-06-16 | AA96: 5 | AB96: 1 | AC96: 1.33 | AD96: 0.00754781197
A97: 82 | B97: 2015-07-15 | C97: 210.729996 | D97: 211.279999 | E97: 210.039993 | F97: 210.630005 | G97: 97914100 | H97: 209.540473 | I97: 0.9948272707 | J97: 1 | K97: 209.64 | L97: 210.19 | M97: 208.95 | N97: 209.54 | O97: 97914100 | U97: 1996-03-15 | V97: 0.285 | W97: 176.210007 | X97: 199603 | Y97: 199503 | Z97: 1995-03-17 | AA97: 5 | AB97: 1 | AC97: 1.295 | AD97: 0.007349185339
A98: 83 | B98: 2015-07-14 | C98: 209.720001 | D98: 211.050003 | E98: 209.649994 | F98: 210.720001 | G98: 81709600 | H98: 209.630004 | I98: 0.9948272732 | J98: 1 | K98: 208.64 | L98: 209.96 | M98: 208.57 | N98: 209.63 | O98: 81709600 | U98: 1995-12-15 | V98: 0.382 | W98: 176.210007 | X98: 199512 | Y98: 199412 | Z98: 1994-12-16 | AA98: 5 | AB98: 1 | AC98: 1.278 | AD98: 0.007252709547
A99: 84 | B99: 2015-07-13 | C99: 208.990005 | D99: 209.899994 | E99: 208.940002 | F99: 209.759995 | G99: 106069400 | H99: 208.674963 | I99: 0.9948272691 | J99: 1 | K99: 207.91 | L99: 208.81 | M99: 207.86 | N99: 208.67 | O99: 106069400 | U99: 1995-09-15 | V99: 0.312 | W99: 176.210007 | X99: 199509 | Y99: 199409 | Z99: 1994-09-19 | AA99: 5 | AB99: 1 | AC99: 1.259 | AD99: 0.007144883661
A100: 85 | B100: 2015-07-10 | C100: 207.289993 | D100: 207.979996 | E100: 204.949997 | F100: 207.479996 | G100: 129456900 | H100: 206.406758 | I100: 0.99482727 | J100: 1 | K100: 206.22 | L100: 206.9 | M100: 203.89 | N100: 206.41 | O100: 129456900 | U100: 1995-06-16 | V100: 0.316 | W100: 176.210007 | X100: 199506 | Y100: 199406 | Z100: 1994-06-17 | AA100: 6 | AB100: 1 | AC100: 1.235 | AD100: 0.007008682543
A101: 86 | B101: 2015-07-09 | C101: 207.039993 | D101: 207.350006 | E101: 204.770004 | F101: 204.800003 | G101: 139210600 | H101: 203.740628 | I101: 0.9948272706 | J101: 1 | K101: 205.97 | L101: 206.28 | M101: 203.71 | N101: 203.74 | O101: 139210600 | U101: 1995-03-17 | V101: 0.268 | W101: 176.210007 | X101: 199503 | Y101: 199403 | Z101: 1994-03-18 | AA101: 6 | AB101: 1 | AC101: 1.224 | AD101: 0.006946257031
A102: 87 | B102: 2015-07-08 | C102: 206.419998 | D102: 206.759995 | E102: 204.25 | F102: 204.529999 | G102: 164020100 | H102: 203.47202 | I102: 0.9948272674 | J102: 1 | K102: 205.35 | L102: 205.69 | M102: 203.19 | N102: 203.47 | O102: 164020100 | U102: 1994-12-16 | V102: 0.363 | W102: 176.210007 | X102: 199412 | Y102: 199312 | Z102: 1993-12-17 | AA102: 6 | AB102: 1 | AC102: 1.227 | AD102: 0.00696328217
A103: 88 | B103: 2015-07-07 | C103: 206.960007 | D103: 208.169998 | E103: 204.110001 | F103: 208.009995 | G103: 173820200 | H103: 206.934015 | I103: 0.9948272678 | J103: 1 | K103: 205.89 | L103: 207.09 | M103: 203.05 | N103: 206.93 | O103: 173820200 | U103: 1994-09-19 | V103: 0 | W103: 176.210007 | X103: 199409 | Y103: 199309 | Z103: 1993-09-17 | AA103: 6 | AB103: 1 | AC103: 1.181 | AD103: 0.006702230027
A104: 89 | B104: 2015-07-06 | C104: 205.770004 | D104: 207.649994 | E104: 205.529999 | F104: 206.669998 | G104: 117975400 | H104: 205.60095 | I104: 0.9948272705 | J104: 1 | K104: 204.71 | L104: 206.58 | M104: 204.47 | N104: 205.6 | O104: 117975400 | U104: 1994-09-16 | V104: 0.288 | W104: 176.210007 | X104: 199409 | Y104: 199309 | Z104: 1993-09-17 | AA104: 5 | AB104: 1 | AC104: 1.181 | AD104: 0.006702230027
A105: 90 | B105: 2015-07-02 | C105: 208.070007 | D105: 208.270004 | E105: 206.809998 | F105: 207.320007 | G105: 104373700 | H105: 206.247597 | I105: 0.994827272 | J105: 1 | K105: 206.99 | L105: 207.19 | M105: 205.74 | N105: 206.25 | O105: 104373700 | U105: 1994-06-17 | V105: 0.305 | W105: 176.210007 | X105: 199406 | Y105: 199306 | Z105: 1993-06-18 | AA105: 5 | AB105: 1 | AC105: 1.179 | AD105: 0.006690879934
A106: 91 | B106: 2015-07-01 | C106: 207.729996 | D106: 208.029999 | E106: 206.559998 | F106: 207.570007 | G106: 135979900 | H106: 206.496304 | I106: 0.9948272729 | J106: 1 | K106: 206.66 | L106: 206.95 | M106: 205.49 | N106: 206.5 | O106: 135979900 | U106: 1994-03-18 | V106: 0.271 | W106: 176.210007 | X106: 199403 | Y106: 199303 | Z106: 1993-03-19 | AA106: 5 | AB106: 1 | AC106: 1.192 | AD106: 0.00676465554
A107: 92 | B107: 2015-06-30 | C107: 207.259995 | D107: 207.320007 | E107: 205.279999 | F107: 205.889999 | G107: 182925100 | H107: 204.824986 | I107: 0.9948272718 | J107: 1 | K107: 206.19 | L107: 206.25 | M107: 204.22 | N107: 204.82 | O107: 182925100 | U107: 1993-12-17 | V107: 0.317 | W107: 176.210007 | X107: 199312 | Y107: 199212 | Z107: 1993-03-19 | AA107: 4 | AB107: 0 | AC107: 1.134 | AD107: 0.006435502837
A108: 93 | B108: 2015-06-29 | C108: 208.050003 | D108: 209.830002 | E108: 205.330002 | F108: 205.470001 | G108: 202621300 | H108: 204.40716 | I108: 0.9948272692 | J108: 1 | K108: 206.97 | L108: 208.74 | M108: 204.27 | N108: 204.41 | O108: 202621300 | U108: 1993-09-17 | V108: 0.286 | W108: 176.210007 | X108: 199309 | Y108: 199209 | Z108: 1993-03-19 | AA108: 3 | AB108: 0 | AC108: 0.817 | AD108: 0.004636513067
A109: 94 | B109: 2015-06-26 | C109: 210.289993 | D109: 210.580002 | E109: 209.160004 | F109: 209.899994 | G109: 104174800 | H109: 208.814238 | I109: 0.99482727 | J109: 1 | K109: 209.2 | L109: 209.49 | M109: 208.08 | N109: 208.81 | O109: 104174800 | U109: 1993-06-18 | V109: 0.318 | W109: 176.210007 | X109: 199306 | Y109: 199206 | Z109: 1993-03-19 | AA109: 2 | AB109: 0 | AC109: 0.531 | AD109: 0.003013449741
A110: 95 | B110: 2015-06-25 | C110: 211.100006 | D110: 211.25 | E110: 209.770004 | F110: 209.830002 | G110: 97107400 | H110: 208.744608 | I110: 0.9948272697 | J110: 1 | K110: 210.01 | L110: 210.16 | M110: 208.68 | N110: 208.74 | O110: 97107400 | U110: 1993-03-19 | V110: 0.213 | W110: 176.210007 | X110: 199303 | Y110: 199203 | Z110: 1993-03-19 | AA110: 1 | AB110: 1 | AC110: 0.213 | AD110: 0.001208784924
A111: 96 | B111: 2015-06-24 | C111: 211.720001 | D111: 212.169998 | E111: 210.470001 | F111: 210.509995 | G111: 92307300 | H111: 209.421083 | I111: 0.994827267 | J111: 1 | K111: 210.62 | L111: 211.07 | M111: 209.38 | N111: 209.42 | O111: 92307300
A112: 97 | B112: 2015-06-23 | C112: 212.139999 | D112: 212.440002 | E112: 211.570007 | F112: 212.050003 | G112: 68476800 | H112: 210.953126 | I112: 0.9948272719 | J112: 1 | K112: 211.04 | L112: 211.34 | M112: 210.48 | N112: 210.95 | O112: 68476800
A113: 98 | B113: 2015-06-22 | C113: 211.910004 | D113: 212.589996 | E113: 211.639999 | F113: 211.889999 | G113: 70696000 | H113: 210.79395 | I113: 0.9948272736 | J113: 1 | K113: 210.81 | L113: 211.49 | M113: 210.55 | N113: 210.79 | O113: 70696000
A114: 99 | B114: 2015-06-19 | C114: 211.460007 | D114: 211.550003 | E114: 210.360001 | F114: 210.809998 | G114: 130478700 | H114: 209.719534 | I114: 0.9948272662 | J114: 1 | K114: 210.37 | L114: 210.46 | M114: 209.27 | N114: 209.72 | O114: 130478700
A115: 100 | B115: 2015-06-18 | C115: 211.309998 | D115: 213.339996 | E115: 210.630005 | F115: 212.710007 | G115: 165867900 | H115: 210.585039 | I115: 0.9900100234 | J115: 1 | K115: 209.2 | L115: 211.21 | M115: 208.53 | N115: 210.59 | O115: 165867900
A116: 101 | B116: 2015-06-17 | C116: 210.589996 | D116: 211.320007 | E116: 209.360001 | F116: 210.589996 | G116: 126708600 | H116: 208.486207 | I116: 0.990010024 | J116: 1 | K116: 208.49 | L116: 209.21 | M116: 207.27 | N116: 208.49 | O116: 126708600
A117: 102 | B117: 2015-06-16 | C117: 208.929993 | D117: 210.350006 | E117: 208.720001 | F117: 210.25 | G117: 85308200 | H117: 208.149607 | I117: 0.9900100214 | J117: 1 | K117: 206.84 | L117: 208.25 | M117: 206.63 | N117: 208.15 | O117: 85308200
A118: 103 | B118: 2015-06-15 | C118: 208.639999 | D118: 209.449997 | E118: 207.789993 | F118: 209.100006 | G118: 124384200 | H118: 207.011102 | I118: 0.9900100242 | J118: 1 | K118: 206.56 | L118: 207.36 | M118: 205.71 | N118: 207.01 | O118: 124384200
A119: 104 | B119: 2015-06-12 | C119: 210.639999 | D119: 211.479996 | E119: 209.679993 | F119: 209.929993 | G119: 135382400 | H119: 207.832797 | I119: 0.9900100221 | J119: 1 | K119: 208.54 | L119: 209.37 | M119: 207.59 | N119: 207.83 | O119: 135382400
A120: 105 | B120: 2015-06-11 | C120: 211.479996 | D120: 212.089996 | E120: 211.199997 | F120: 211.649994 | G120: 73876400 | H120: 209.535615 | I120: 0.990010021 | J120: 1 | K120: 209.37 | L120: 209.97 | M120: 209.09 | N120: 209.54 | O120: 73876400
A121: 106 | B121: 2015-06-10 | C121: 209.369995 | D121: 211.410004 | E121: 209.300003 | F121: 210.960007 | G121: 134551300 | H121: 208.852521 | I121: 0.9900100212 | J121: 1 | K121: 207.28 | L121: 209.3 | M121: 207.21 | N121: 208.85 | O121: 134551300
A122: 107 | B122: 2015-06-09 | C122: 208.449997 | D122: 209.100006 | E122: 207.690002 | F122: 208.449997 | G122: 105034700 | H122: 206.367586 | I122: 0.9900100214 | J122: 1 | K122: 206.37 | L122: 207.01 | M122: 205.62 | N122: 206.37 | O122: 105034700
A123: 108 | B123: 2015-06-08 | C123: 209.639999 | D123: 209.820007 | E123: 208.389999 | F123: 208.419998 | G123: 89063300 | H123: 206.337887 | I123: 0.9900100229 | J123: 1 | K123: 207.55 | L123: 207.72 | M123: 206.31 | N123: 206.34 | O123: 89063300
A124: 109 | B124: 2015-06-05 | C124: 209.949997 | D124: 210.580002 | E124: 208.979996 | F124: 209.770004 | G124: 121704700 | H124: 207.674407 | I124: 0.9900100255 | J124: 1 | K124: 207.85 | L124: 208.48 | M124: 206.89 | N124: 207.67 | O124: 121704700
A125: 110 | B125: 2015-06-04 | C125: 211.070007 | D125: 211.860001 | E125: 209.75 | F125: 210.130005 | G125: 151882800 | H125: 208.030811 | I125: 0.9900100226 | J125: 1 | K125: 208.96 | L125: 209.74 | M125: 207.65 | N125: 208.03 | O125: 151882800
A126: 111 | B126: 2015-06-03 | C126: 212 | D126: 212.669998 | E126: 211.330002 | F126: 211.919998 | G126: 86954600 | H126: 209.802922 | I126: 0.9900100226 | J126: 1 | K126: 209.88 | L126: 210.55 | M126: 209.22 | N126: 209.8 | O126: 86954600
A127: 112 | B127: 2015-06-02 | C127: 211.020004 | D127: 212.190002 | E127: 210.270004 | F127: 211.360001 | G127: 91531000 | H127: 209.248519 | I127: 0.9900100209 | J127: 1 | K127: 208.91 | L127: 210.07 | M127: 208.17 | N127: 209.25 | O127: 91531000
A128: 113 | B128: 2015-06-01 | C128: 211.940002 | D128: 212.339996 | E128: 210.619995 | F128: 211.570007 | G128: 93338800 | H128: 209.456428 | I128: 0.9900100254 | J128: 1 | K128: 209.82 | L128: 210.22 | M128: 208.52 | N128: 209.46 | O128: 93338800
A129: 114 | B129: 2015-05-29 | C129: 212.380005 | D129: 212.429993 | E129: 210.820007 | F129: 211.139999 | G129: 124919600 | H129: 209.030716 | I129: 0.9900100265 | J129: 1 | K129: 210.26 | L129: 210.31 | M129: 208.71 | N129: 209.03 | O129: 124919600
A130: 115 | B130: 2015-05-28 | C130: 212.330002 | D130: 212.589996 | E130: 211.630005 | F130: 212.460007 | G130: 74974600 | H130: 210.337536 | I130: 0.990010021 | J130: 1 | K130: 210.21 | L130: 210.47 | M130: 209.52 | N130: 210.34 | O130: 74974600
A131: 116 | B131: 2015-05-27 | C131: 211.25 | D131: 212.979996 | E131: 210.759995 | F131: 212.699997 | G131: 93214000 | H131: 210.575129 | I131: 0.9900100234 | J131: 1 | K131: 209.14 | L131: 210.85 | M131: 208.65 | N131: 210.58 | O131: 93214000
A132: 117 | B132: 2015-05-26 | C132: 212.399994 | D132: 212.910004 | E132: 210.199997 | F132: 210.699997 | G132: 124308600 | H132: 208.595109 | I132: 0.9900100236 | J132: 1 | K132: 210.28 | L132: 210.78 | M132: 208.1 | N132: 208.6 | O132: 124308600
A133: 118 | B133: 2015-05-22 | C133: 213.039993 | D133: 213.539993 | E133: 212.910004 | F133: 212.990005 | G133: 57433500 | H133: 210.86224 | I133: 0.9900100242 | J133: 1 | K133: 210.91 | L133: 211.41 | M133: 210.78 | N133: 210.86 | O133: 57433500
A134: 119 | B134: 2015-05-21 | C134: 212.710007 | D134: 213.75 | E134: 212.509995 | F134: 213.5 | G134: 64764600 | H134: 211.36714 | I134: 0.9900100234 | J134: 1 | K134: 210.59 | L134: 211.61 | M134: 210.39 | N134: 211.37 | O134: 64764600
A135: 120 | B135: 2015-05-20 | C135: 213.149994 | D135: 213.779999 | E135: 212.5 | F135: 212.880005 | G135: 76857500 | H135: 210.753339 | I135: 0.9900100247 | J135: 1 | K135: 211.02 | L135: 211.64 | M135: 210.38 | N135: 210.75 | O135: 76857500
A136: 121 | B136: 2015-05-19 | C136: 213.240005 | D136: 213.570007 | E136: 212.690002 | F136: 213.029999 | G136: 72114600 | H136: 210.901834 | I136: 0.990010022 | J136: 1 | K136: 211.11 | L136: 211.44 | M136: 210.57 | N136: 210.9 | O136: 72114600
A137: 122 | B137: 2015-05-18 | C137: 212.240005 | D137: 213.399994 | E137: 212.160004 | F137: 213.100006 | G137: 74549700 | H137: 210.971142 | I137: 0.9900100237 | J137: 1 | K137: 210.12 | L137: 211.27 | M137: 210.04 | N137: 210.97 | O137: 74549700
A138: 123 | B138: 2015-05-15 | C138: 212.440002 | D138: 212.610001 | E138: 211.860001 | F138: 212.440002 | G138: 76510100 | H138: 210.317732 | I138: 0.9900100265 | J138: 1 | K138: 210.32 | L138: 210.49 | M138: 209.74 | N138: 210.32 | O138: 76510100
A139: 124 | B139: 2015-05-14 | C139: 211.240005 | D139: 212.320007 | E139: 210.910004 | F139: 212.210007 | G139: 95934000 | H139: 210.090034 | I139: 0.9900100234 | J139: 1 | K139: 209.13 | L139: 210.2 | M139: 208.8 | N139: 210.09 | O139: 95934000
A140: 125 | B140: 2015-05-13 | C140: 210.470001 | D140: 211.220001 | E140: 209.740005 | F140: 210.020004 | G140: 94667900 | H140: 207.921909 | I140: 0.990010023 | J140: 1 | K140: 208.37 | L140: 209.11 | M140: 207.64 | N140: 207.92 | O140: 94667900
A141: 126 | B141: 2015-05-12 | C141: 209.610001 | D141: 210.630005 | E141: 208.619995 | F141: 209.979996 | G141: 119727600 | H141: 207.8823 | I141: 0.9900100198 | J141: 1 | K141: 207.52 | L141: 208.53 | M141: 206.54 | N141: 207.88 | O141: 119727600
A142: 127 | B142: 2015-05-11 | C142: 211.570007 | D142: 211.889999 | E142: 210.520004 | F142: 210.610001 | G142: 75708100 | H142: 208.506012 | I142: 0.9900100233 | J142: 1 | K142: 209.46 | L142: 209.77 | M142: 208.42 | N142: 208.51 | O142: 75708100
A143: 128 | B143: 2015-05-08 | C143: 210.880005 | D143: 211.860001 | E143: 210.779999 | F143: 211.619995 | G143: 155877300 | H143: 209.505916 | I143: 0.9900100224 | J143: 1 | K143: 208.77 | L143: 209.74 | M143: 208.67 | N143: 209.51 | O143: 155877300
A144: 129 | B144: 2015-05-07 | C144: 207.919998 | D144: 209.380005 | E144: 207.520004 | F144: 208.869995 | G144: 88244900 | H144: 206.783389 | I144: 0.9900100251 | J144: 1 | K144: =ROUND($I144*C144,2) -> 205.84 | L144: =ROUND($I144*D144,2) -> 207.29 | M144: =ROUND($I144*E144,2) -> 205.45 | N144: =ROUND($I144*F144,2) -> 206.78 | O144: 88244900
A145: 130 | B145: 2015-05-06 | C145: 209.559998 | D145: 209.929993 | E145: 206.759995 | F145: 208.039993 | G145: 135060200 | H145: 205.961679 | I145: 0.9900100266 | J145: 1 | K145: 207.47 | L145: 207.83 | M145: 204.69 | N145: 205.96 | O145: 135060200
A146: 131 | B146: 2015-05-05 | C146: 211.029999 | D146: 211.460007 | E146: 208.729996 | F146: 208.899994 | G146: 113326200 | H146: 206.813088 | I146: =H146/F146 -> 0.9900100236 | J146: =INDEX(OFFSET($T$15,0,0,$S$13+1,1),MATCH(B146,OFFSET($Q$15,0,0,$S$13+1,1),-1)) -> 1 | K146: 208.92 | L146: 209.35 | M146: 206.64 | N146: 206.81 | O146: =G146*J146 -> 113326200
A147: 132 | B147: 2015-05-04 | C147: 211.229996 | D147: 212.020004 | E147: 211.100006 | F147: 211.320007 | G147: 70927200 | H147: 209.208925 | I147: 0.990010023 | J147: 1 | K147: 209.12 | L147: 209.9 | M147: 208.99 | N147: 209.21 | O147: 70927200
A148: 133 | B148: 2015-05-01 | C148: 209.399994 | D148: 210.770004 | E148: 209.279999 | F148: 210.720001 | G148: 103399700 | H148: 208.614913 | I148: 0.9900100228 | J148: 1 | K148: 207.31 | L148: 208.66 | M148: 207.19 | N148: 208.61 | O148: 103399700
A149: 134 | B149: 2015-04-30 | C149: 209.880005 | D149: 210.350006 | E149: 207.619995 | F149: 208.460007 | G149: 161304900 | H149: 206.377496 | I149: 0.9900100214 | J149: 1 | K149: 207.78 | L149: 208.25 | M149: 205.55 | N149: 206.38 | O149: 161304900
A150: 135 | B150: 2015-04-29 | C150: 211.440002 | D150: 211.440002 | E150: 209.600006 | F150: 210.570007 | G150: 125684900 | H150: 208.466418 | I150: 0.9900100255 | J150: 1 | K150: 209.33 | L150: 209.33 | M150: 207.51 | N150: 208.47 | O150: 125684900
A151: 136 | B151: 2015-04-28 | C151: 210.740005 | D151: 211.5 | E151: 209.330002 | F151: 211.440002 | G151: 86863500 | H151: 209.327722 | I151: 0.9900100266 | J151: 1 | K151: 208.63 | L151: 209.39 | M151: 207.24 | N151: 209.33 | O151: 86863500
A152: 137 | B152: 2015-04-27 | C152: 212.330002 | D152: 212.479996 | E152: 210.539993 | F152: 210.770004 | G152: 79358100 | H152: 208.664417 | I152: 0.9900100253 | J152: 1 | K152: 210.21 | L152: 210.36 | M152: 208.44 | N152: 208.66 | O152: 79358100
A153: 138 | B153: 2015-04-24 | C153: 211.660004 | D153: 211.970001 | E153: 211.110001 | F153: 211.649994 | G153: 61327400 | H153: 209.535615 | I153: 0.990010021 | J153: 1 | K153: 209.55 | L153: 209.85 | M153: 209 | N153: 209.54 | O153: 61327400
A154: 139 | B154: 2015-04-23 | C154: 210.149994 | D154: 211.940002 | E154: 210.009995 | F154: 211.160004 | G154: 102585900 | H154: 209.05052 | I154: 0.990010021 | J154: 1 | K154: 208.05 | L154: 209.82 | M154: 207.91 | N154: 209.05 | O154: 102585900
A155: 140 | B155: 2015-04-22 | C155: 210.009995 | D155: 210.850006 | E155: 208.899994 | F155: 210.630005 | G155: 78264600 | H155: 208.525816 | I155: 0.9900100226 | J155: 1 | K155: 207.91 | L155: 208.74 | M155: 206.81 | N155: 208.53 | O155: 78264600
A156: 141 | B156: 2015-04-21 | C156: 209.850006 | D156: 210.860001 | E156: 209.240005 | F156: 209.600006 | G156: 72559800 | H156: 207.506107 | I156: 0.9900100241 | J156: 1 | K156: 207.75 | L156: 208.75 | M156: 207.15 | N156: 207.51 | O156: 72559800
A157: 142 | B157: 2015-04-20 | C157: 209.059998 | D157: 210.25 | E157: 208.960007 | F157: 209.850006 | G157: 92189500 | H157: 207.753609 | I157: 0.9900100217 | J157: 1 | K157: 206.97 | L157: 208.15 | M157: 206.87 | N157: 207.75 | O157: 92189500
A158: 143 | B158: 2015-04-17 | C158: 208.940002 | D158: 209.229996 | E158: 207.009995 | F158: 207.949997 | G158: 191113200 | H158: 205.872581 | I158: 0.9900100215 | J158: 1 | K158: 206.85 | L158: 207.14 | M158: 204.94 | N158: 205.87 | O158: 191113200
A159: 144 | B159: 2015-04-16 | C159: 210.029999 | D159: 210.979996 | E159: 209.789993 | F159: 210.369995 | G159: 68934900 | H159: 208.268404 | I159: 0.990010025 | J159: 1 | K159: 207.93 | L159: 208.87 | M159: 207.69 | N159: 208.27 | O159: 68934900
A160: 145 | B160: 2015-04-15 | C160: 210.050003 | D160: 211.039993 | E160: 209.949997 | F160: 210.429993 | G160: 99529300 | H160: 208.327802 | I160: 0.990010022 | J160: 1 | K160: 207.95 | L160: 208.93 | M160: 207.85 | N160: 208.33 | O160: 99529300
A161: 146 | B161: 2015-04-14 | C161: 208.850006 | D161: 209.710007 | E161: 208.100006 | F161: 209.490005 | G161: 75099900 | H161: 207.397205 | I161: 0.9900100246 | J161: 1 | K161: 206.76 | L161: 207.62 | M161: 206.02 | N161: 207.4 | O161: 75099900
A162: 147 | B162: 2015-04-13 | C162: 209.869995 | D162: 210.630005 | E162: 209.029999 | F162: 209.089996 | G162: 74436600 | H162: 207.001192 | I162: 0.9900100242 | J162: 1 | K162: 207.77 | L162: 208.53 | M162: 206.94 | N162: 207 | O162: 74436600
A163: 148 | B163: 2015-04-10 | C163: 209.199997 | D163: 210.089996 | E163: 208.960007 | F163: 210.039993 | G163: 72722900 | H163: 207.941699 | I163: 0.9900100263 | J163: 1 | K163: 207.11 | L163: 207.99 | M163: 206.87 | N163: 207.94 | O163: 72722900
A164: 149 | B164: 2015-04-09 | C164: 207.779999 | D164: 209.179993 | E164: 207.190002 | F164: 208.899994 | G164: 85548900 | H164: 206.813088 | I164: 0.9900100236 | J164: 1 | K164: 205.7 | L164: 207.09 | M164: 205.12 | N164: 206.81 | O164: 85548900
A165: 150 | B165: 2015-04-08 | C165: 207.550003 | D165: 208.509995 | E165: 207.080002 | F165: 207.979996 | G165: 89351900 | H165: 205.90228 | I165: 0.99001002 | J165: 1 | K165: 205.48 | L165: 206.43 | M165: 205.01 | N165: 205.9 | O165: 89351900
A166: 151 | B166: 2015-04-07 | C166: 207.860001 | D166: 208.759995 | E166: 207.240005 | F166: 207.279999 | G166: 81236300 | H166: 205.209276 | I166: 0.9900100202 | J166: 1 | K166: 205.78 | L166: 206.67 | M166: 205.17 | N166: 205.21 | O166: 81236300
A167: 152 | B167: 2015-04-06 | C167: 206.440002 | D167: 208.449997 | E167: 205.210007 | F167: 207.830002 | G167: 114368200 | H167: 205.753785 | I167: 0.9900100227 | J167: 1 | K167: 204.38 | L167: 206.37 | M167: 203.16 | N167: 205.75 | O167: 114368200
A168: 153 | B168: 2015-04-02 | C168: 205.619995 | D168: 206.979996 | E168: 205.399994 | F168: 206.440002 | G168: 86900900 | H168: 204.377672 | I168: 0.9900100272 | J168: 1 | K168: 203.57 | L168: 204.91 | M168: 203.35 | N168: 204.38 | O168: 86900900
A169: 154 | B169: 2015-04-01 | C169: 206.429993 | D169: 206.429993 | E169: 204.509995 | F169: 205.699997 | G169: 137303600 | H169: 203.645059 | I169: 0.9900100242 | J169: 1 | K169: 204.37 | L169: 204.37 | M169: 202.47 | N169: 203.65 | O169: 137303600
A170: 155 | B170: 2015-03-31 | C170: 207.259995 | D170: 208.100006 | E170: 206.360001 | F170: 206.429993 | G170: 126768700 | H170: 204.367762 | I170: 0.9900100224 | J170: 1 | K170: 205.19 | L170: 206.02 | M170: 204.3 | N170: 204.37 | O170: 126768700
A171: 156 | B171: 2015-03-30 | C171: 206.979996 | D171: 208.610001 | E171: 206.960007 | F171: 208.25 | G171: 96180400 | H171: 206.169587 | I171: 0.9900100216 | J171: 1 | K171: 204.91 | L171: 206.53 | M171: 204.89 | N171: 206.17 | O171: 96180400
A172: 157 | B172: 2015-03-27 | C172: 205.130005 | D172: 205.949997 | E172: 204.899994 | F172: 205.740005 | G172: 118939000 | H172: 203.684668 | I172: 0.9900100275 | J172: 1 | K172: 203.08 | L172: 203.89 | M172: 202.85 | N172: 203.68 | O172: 118939000
A173: 158 | B173: 2015-03-26 | C173: 204.960007 | D173: 206.369995 | E173: 204.119995 | F173: 205.270004 | G173: 153067200 | H173: 203.219362 | I173: 0.990010026 | J173: 1 | K173: 202.91 | L173: 204.31 | M173: 202.08 | N173: 203.22 | O173: 153067200
A174: 159 | B174: 2015-03-25 | C174: 209.070007 | D174: 209.350006 | E174: 205.710007 | F174: 205.759995 | G174: 159521700 | H174: 203.704457 | I174: 0.9900100211 | J174: 1 | K174: 206.98 | L174: 207.26 | M174: 203.65 | N174: 203.7 | O174: 159521700
A175: 160 | B175: 2015-03-24 | C175: 209.850006 | D175: 210.399994 | E175: 208.740005 | F175: 208.820007 | G175: 77805300 | H175: 206.7339 | I175: 0.9900100233 | J175: 1 | K175: 207.75 | L175: 208.3 | M175: 206.65 | N175: 206.73 | O175: 77805300
A176: 161 | B176: 2015-03-23 | C176: 210.419998 | D176: 211.110001 | E176: 210 | F176: 210 | G176: 71784500 | H176: 207.902105 | I176: 0.9900100238 | J176: 1 | K176: 208.32 | L176: 209 | M176: 207.9 | N176: 207.9 | O176: 71784500
A177: 162 | B177: 2015-03-20 | C177: 209.710007 | D177: 211.020004 | E177: 209.490005 | F177: 210.410004 | G177: 177715100 | H177: 208.308013 | I177: 0.9900100235 | J177: 1 | K177: 207.62 | L177: 208.91 | M177: 207.4 | N177: 208.31 | O177: 177715100
A178: 163 | B178: 2015-03-19 | C178: 209.960007 | D178: 210.470001 | E178: 209.029999 | F178: 209.5 | G178: 117917300 | H178: 206.485397 | I178: 0.9856104869 | J178: 1 | K178: 206.94 | L178: 207.44 | M178: 206.02 | N178: 206.49 | O178: 117917300
A179: 164 | B179: 2015-03-18 | C179: 207.389999 | D179: 211.270004 | E179: 206.619995 | F179: 210.460007 | G179: 228808500 | H179: 207.431589 | I179: 0.9856104823 | J179: 1 | K179: 204.41 | L179: 208.23 | M179: 203.65 | N179: 207.43 | O179: 228808500
A180: 165 | B180: 2015-03-17 | C180: 207.690002 | D180: 208.419998 | E180: 206.979996 | F180: 207.960007 | G180: 94510400 | H180: 204.967563 | I180: 0.9856104833 | J180: 1 | K180: 204.7 | L180: 205.42 | M180: 204 | N180: 204.97 | O180: 94510400
A181: 166 | B181: 2015-03-16 | C181: 206.710007 | D181: 208.690002 | E181: 205.860001 | F181: 208.580002 | G181: 136099200 | H181: 205.578637 | I181: 0.9856104853 | J181: 1 | K181: 203.74 | L181: 205.69 | M181: 202.9 | N181: 205.58 | O181: 136099200
A182: 167 | B182: 2015-03-13 | C182: 206.770004 | D182: 207.929993 | E182: 204.580002 | F182: 205.830002 | G182: 162410900 | H182: 202.868208 | I182: 0.9856104845 | J182: 1 | K182: 203.79 | L182: 204.94 | M182: 201.64 | N182: 202.87 | O182: 162410900
A183: 168 | B183: 2015-03-12 | C183: 205.259995 | D183: 207.179993 | E183: 205.199997 | F183: 207.100006 | G183: 93993500 | H183: 204.119937 | I183: 0.9856104833 | J183: 1 | K183: 202.31 | L183: 204.2 | M183: 202.25 | N183: 204.12 | O183: 93993500
A184: 169 | B184: 2015-03-11 | C184: 205.289993 | D184: 205.5 | E184: 204.399994 | F184: 204.5 | G184: 110145700 | H184: 201.557344 | I184: 0.9856104841 | J184: 1 | K184: 202.34 | L184: 202.54 | M184: 201.46 | N184: 201.56 | O184: 110145700
A185: 170 | B185: 2015-03-10 | C185: 206.710007 | D185: 206.809998 | E185: 204.929993 | F185: 204.979996 | G185: 157121300 | H185: 202.030433 | I185: 0.9856104837 | J185: 1 | K185: 203.74 | L185: 203.83 | M185: 201.98 | N185: 202.03 | O185: 157121300
A186: 171 | B186: 2015-03-09 | C186: 207.740005 | D186: 208.789993 | E186: 207.550003 | F186: 208.360001 | G186: 89818900 | H186: 205.361801 | I186: 0.9856104819 | J186: 1 | K186: 204.75 | L186: 205.79 | M186: 204.56 | N186: 205.36 | O186: 89818900
A187: 172 | B187: 2015-03-06 | C187: 209.419998 | D187: 209.940002 | E187: 207.100006 | F187: 207.5 | G187: 188128000 | H187: 204.514176 | I187: 0.9856104867 | J187: 1 | K187: 206.41 | L187: 206.92 | M187: 204.12 | N187: 204.51 | O187: 188128000
A188: 173 | B188: 2015-03-05 | C188: 210.619995 | D188: 210.800003 | E188: 209.850006 | F188: 210.460007 | G188: 76873000 | H188: 207.431589 | I188: 0.9856104823 | J188: 1 | K188: 207.59 | L188: 207.77 | M188: 206.83 | N188: 207.43 | O188: 76873000
A189: 174 | B189: 2015-03-04 | C189: 210.399994 | D189: 210.490005 | E189: 209.059998 | F189: 210.229996 | G189: 114497200 | H189: 207.204888 | I189: 0.9856104835 | J189: 1 | K189: 207.37 | L189: 207.46 | M189: 206.05 | N189: 207.2 | O189: 114497200
A190: 175 | B190: 2015-03-03 | C190: 211.470001 | D190: 212.050003 | E190: 210.080002 | F190: 211.119995 | G190: 110325800 | H190: 208.082081 | I190: 0.9856104866 | J190: 1 | K190: 208.43 | L190: 209 | M190: 207.06 | N190: 208.08 | O190: 110325800
A191: 176 | B191: 2015-03-02 | C191: 210.779999 | D191: 212.059998 | E191: 210.720001 | F191: 211.990005 | G191: 87491400 | H191: 208.939572 | I191: 0.9856104867 | J191: 1 | K191: 207.75 | L191: 209.01 | M191: 207.69 | N191: 208.94 | O191: 87491400
A192: 177 | B192: 2015-02-27 | C192: 211.259995 | D192: 211.580002 | E192: 210.600006 | F192: 210.660004 | G192: 108076000 | H192: 207.628708 | I192: 0.9856104816 | J192: 1 | K192: 208.22 | L192: 208.54 | M192: 207.57 | N192: 207.63 | O192: 108076000
A193: 178 | B193: 2015-02-26 | C193: 211.520004 | D193: 211.710007 | E193: 210.649994 | F193: 211.380005 | G193: 72697900 | H193: 208.338349 | I193: 0.9856104838 | J193: 1 | K193: 208.48 | L193: 208.66 | M193: 207.62 | N193: 208.34 | O193: 72697900
A194: 179 | B194: 2015-02-25 | C194: 211.660004 | D194: 212.240005 | E194: 211.220001 | F194: 211.630005 | G194: 73061700 | H194: 208.584752 | I194: 0.9856104856 | J194: 1 | K194: 208.61 | L194: 209.19 | M194: 208.18 | N194: 208.58 | O194: 73061700
A195: 180 | B195: 2015-02-24 | C195: 211.119995 | D195: 212.050003 | E195: 210.759995 | F195: 211.809998 | G195: 72472300 | H195: 208.762154 | I195: 0.985610481 | J195: 1 | K195: 208.08 | L195: 209 | M195: 207.73 | N195: 208.76 | O195: 72472300
A196: 181 | B196: 2015-02-23 | C196: 210.940002 | D196: 211.210007 | E196: 210.479996 | F196: 211.210007 | G196: 74411100 | H196: 208.170797 | I196: 0.9856104829 | J196: 1 | K196: 207.9 | L196: 208.17 | M196: 207.45 | N196: 208.17 | O196: 74411100
A197: 182 | B197: 2015-02-20 | C197: 209.479996 | D197: 211.330002 | E197: 208.729996 | F197: 211.240005 | G197: 140896400 | H197: 208.200364 | I197: 0.985610486 | J197: 1 | K197: 206.47 | L197: 208.29 | M197: 205.73 | N197: 208.2 | O197: 140896400
A198: 183 | B198: 2015-02-19 | C198: 209.410004 | D198: 210.419998 | E198: 209.240005 | F198: 209.979996 | G198: 91462500 | H198: 206.958485 | I198: 0.9856104817 | J198: 1 | K198: 206.4 | L198: 207.39 | M198: 206.23 | N198: 206.96 | O198: 91462500
A199: 184 | B199: 2015-02-18 | C199: 209.660004 | D199: 210.220001 | E199: 209.339996 | F199: 210.130005 | G199: 80652900 | H199: 207.106336 | I199: 0.9856104843 | J199: 1 | K199: 206.64 | L199: 207.2 | M199: 206.33 | N199: 207.11 | O199: 80652900
A200: 185 | B200: 2015-02-17 | C200: 209.399994 | D200: 210.320007 | E200: 209.100006 | F200: 210.110001 | G200: 76968200 | H200: 207.08662 | I200: 0.9856104851 | J200: 1 | K200: 206.39 | L200: 207.29 | M200: 206.09 | N200: 207.09 | O200: 76968200
... 323 more rows

Sheet CalculationsAndCharts
A1: Simplify It | R1: Price Chart
A2: =InputPriceData!A1 -> Humana Inc. Common Stock (HUM) -NYQ (Daily) | R2: Clutter Controls
R3: TRUE
A4: User Charting Controls | R4: TRUE
A5: Data Control | R5: TRUE
A6: =InputPriceData!$B$10 -> 508 | B6: Available Input Data Rows | E6: Earliest: | F6: =OFFSET(InputPriceData!B15,CalculationsAndCharts!A6,0,1,1) -> 2013-11-01 | R6: TRUE
B7: Use Close Adjusted: | C7: TRUE | E7: Latest: | F7: =OFFSET(InputPriceData!B15,1,0,1,1) -> 2015-11-06
A8: =MIN(A6-A11,COUNTA(B33:B9983)) -> 367 | B8: Logically Available for Calc / Plot | E8: $ Change: | F8: =InputPriceData!I4 -> -2.31 | R8: Trade Setup:
R9: "Entry Allowed" Columns
A10: Price Chart Windowing Controls | F10: Y-axis Range | R10: Rule Parts Controls | T10: For Long Entry Allowed, all of: | V10: For Short Entry Allowed, all of:
A11: 141 | B11: Input Data Offset (Pan) | E11: Max High+ | F11: =CEILING(MAX(MAX(OFFSET($E$33,0,0,$A$12,1)),MAX(OFFSET($H$33,0,0,$A$12,1)))+2*F14,0.1) -> 189.2 | R11: TRUE | T11: =IF($R$11,"Index trending up","") -> Index trending up | V11: =IF($R$11,"Index trending Down","") -> Index trending Down
A12: 149 | B12: Data Points to Plot (Zoom) | E12: Min Low- | F12: =FLOOR(MIN(MIN(OFFSET($F$33,0,0,$A$12,1)),MIN(OFFSET($H$33,0,0,$A$12,1)))-2*F14,0.1) -> 106 | R12: TRUE | T12: =IF($R$12,"SMA(" & $A$18 & ") >= SMA(" & $A$17 & ")","") -> SMA(50) >= SMA(200) | V12: =IF($R$12,"SMA(" & $A$18 & ") <= SMA(" & $A$17 & ")","") -> SMA(50) <= SMA(200)
B13: First: | C13: =OFFSET(B32,A12,0,1,1) -> 2014-09-16 | E13: White space %: | F13: 0.05 | R13: TRUE | T13: =IF($R$13,"SMA(" & $A$19 & ") >= SMA(" & $A$18 & ")","") -> SMA(20) >= SMA(50) | V13: =IF($R$13,"SMA(" & $A$19 & ") <= SMA(" & $A$18 & ")","") -> SMA(20) <= SMA(50)
B14: ="Last: "&OFFSET(InputPriceData!P15,1+A11,0,1,1) -> Last: | C14: =B33 -> 2015-04-20 | E14: Allowance: | F14: =FLOOR((CEILING(MAX(MAX(OFFSET($E$33,0,0,$A$12,1)),MAX(OFFSET($H$33,0,0,$A$12,1))),1)-FLOOR(MIN(MIN(OFFSET($F$33,0,0,$A$12,1)),MIN(OFFSET($H$33,0,0,$A$12,1))),1))*F13,0.01) -> 3.5 | R14: TRUE | T14: =IF($R$14,"Close >= SMA(" & $A$18 & ")","") -> Close >= SMA(50) | V14: =IF($R$14,"Close <= SMA(" & $A$18 & ")","") -> Close <= SMA(50)
A15: User Controls for Indicator Calculations
A16: Stock Indicators | D16: Index Trend Indicator Controls
A17: 200 | B17: Bar SMA period | D17: 50 | E17: Bar SMA period
A18: 50 | B18: Bar SMA period | D18: 4 | E18: Bar Trend period | T18: For Long Entry Signal: | V18: For Short Entry Signal:
A19: 20 | B19: Bar SMA period | T19: Long Entry Allowed, and | V19: Short Entry Allowed, and
A20: 8 | B20: High Band SMA Length | T20: Close above Upper Band | V20: Close below Lower Band
A21: 8 | B21: Low Band SMA Length
A23: Help! I would like to plot data | T23: Long | V23: Short
A24: From | B24: 2014-09-16 | C24: =OFFSET(InputPriceData!$A$15,MATCH(B24,OFFSET(InputPriceData!B15,1,0,InputPriceData!$B$10,1),0),0,1,1)-C25 -> 149 | E24: 69 | T24: ='Transaction Summary'!$B$6&" Winners" -> 2 Winners | U24: ='Transaction Summary'!$I$6 -> 4.74 | V24: ='Transaction Summary'!$K$6 & " Winners" -> 0 Winners | W24: ='Transaction Summary'!$R$6 -> 0 | AP24: IndexChart
A25: To | B25: 2015-04-20 | C25: =OFFSET(InputPriceData!$A$15,MATCH(B25,OFFSET(InputPriceData!$B$15,1,0,InputPriceData!$B$10,1),0),0,1,1)-1 -> 141 | E25: =$A$12-$E$24+1 -> 81 | T25: ='Transaction Summary'!$B$7&" Loosers" -> 2 Loosers | U25: ='Transaction Summary'!$I$7 -> -4.97 | V25: ='Transaction Summary'!$K$7 & " Loosers" -> 0 Loosers | W25: ='Transaction Summary'!$R$7 -> 0 | AA25: and(OR(W39,Y39),OR(AF39,AH39)) | AJ25: This copy of the values is used for charting so as to not disturb the values used in the signal computations when I turn a series plot off. #NA is an on purpose result that prevents plotting of a data point thus allowing one to effectively shut off a plot for a data series by way of a cell formula. | AP25: Vertical Axis Calculations
B26: Long | D26: Short | U26: =U24+U25 -> -0.23 | W26: =W24+W25 -> 0 | AP26: MAX | AQ26: =MAX(MAX(OFFSET(AP33,0,0,$A$12,1)),MAX(OFFSET(AQ33,0,0,$A$12,1))) -> 208.94 | AR26: =CEILING(AQ26+2*AQ28,1) -> 212
B27: ='Transaction Summary'!$B$6&" Winners" -> 2 Winners | C27: ='Transaction Summary'!$I$6 -> 4.74 | D27: ='Transaction Summary'!$K$6 & " Winners" -> 0 Winners | E27: ='Transaction Summary'!$R$6 -> 0 | U27: Transaction Summary Net | V27: =U26+W26 -> -0.23 | AP27: MIN | AQ27: =MIN(MIN(OFFSET(AP33,0,0,$A$12,1)),MIN(OFFSET(AQ33,0,0,$A$12,1))) -> 182.58 | AR27: =FLOOR(AQ27-2*AQ28,1) -> 179
B28: ='Transaction Summary'!$B$7&" Loosers" -> 2 Loosers | C28: ='Transaction Summary'!$I$7 -> -4.97 | D28: ='Transaction Summary'!$K$7 & " Loosers" -> 0 Loosers | E28: ='Transaction Summary'!$R$7 -> 0 | H28: @ Cursor => | I28: =OFFSET(A32,$E$25,0,1,1)&"(RR)" -> 81(RR) | J28: =OFFSET($B$32,E25,0,1,1) -> 2014-12-22 | K28: =TEXT(OFFSET(D32,$E$25,0,1,1),"#,##0.00")&"(o)" -> 145.28(o) | L28: =TEXT(OFFSET(E32,$E$25,0,1,1),"#,##0.00")&"(h)" -> 146.89(h) | M28: =TEXT(OFFSET(F32,$E$25,0,1,1),"#,##0.00")&"(l)" -> 145.27(l) | N28: =TEXT(OFFSET(G32,$E$25,0,1,1),"#,##0.00")&"(c)" -> 145.38(c) | AP28: Allowance | AQ28: =(AQ26-AQ27)*$F$13 -> 1.318
C29: =C27+C28 -> -0.23 | E29: =E27+E28 -> 0 | Q29: <== Cursor | AV29: These columns provide background shading on the index chart
C30: Transaction Summary Net | D30: =C29+E29 -> -0.23 | AZ30: Volume Cursor
A31: Rel Row | H31: ="SMA(" & $A$17 & ") of Close" -> SMA(200) of Close | I31: ="SMA(" & $A$18 & ") of Close" -> SMA(50) of Close | J31: ="SMA(" & $A$19 & ") of Close" -> SMA(20) of Close | K31: ="SMA(" & $A$20 & ") of Highs" -> SMA(8) of Highs | L31: ="SMA(" & $A$21 & ") of Lows" -> SMA(8) of Lows | M31: Up Bar Volume | N31: Down Bar Volume | O31: Upper Band Cross Over | P31: "Cross Over" Status | Q31: Lower Band Cross Over | R31: Signal Points | T31: LONG Entry Allowed | U31: Long Entry Signal | V31: Long Entry | W31: Long Active | X31: Long Exit Signal | Z31: Shading | AA31: L/S Overlap | AC31: Short Entry Allowed | AD31: Short Entry Signal | AE31: Short Entry | AF31: Short Active | AG31: Short Exit Signal | AI31: Shading | AJ31: =H31 -> SMA(200) of Close | AK31: =I31 -> SMA(50) of Close | AL31: =J31 -> SMA(20) of Close | AM31: =K31 -> SMA(8) of Highs | AN31: =L31 -> SMA(8) of Lows | AP31: Close of | AQ31: ="SMA(" & $D$17 & ") of " & AP32 -> SMA(50) of SPY | AR31: ="1 day Delta of SMA(" & $D$17 & ")" -> 1 day Delta of SMA(50) | AS31: ="SMA("&$D$18&") of 1 day Deltas" -> SMA(4) of 1 day Deltas
B32: Date | C32: Volume | D32: Open | E32: High | F32: Low | G32: Close | R32: Cross Up | S32: Cross Down | Y32: Long Exit | Z32: Long | AA32: Signal | AB32: Shading | AH32: Short Exit | AI32: Short | AP32: =UPPER(InputIndexData!$B$4) -> SPY | AT32: UP? | AV32: Up | AW32: Down | AX32: Index Cursor | AZ32: =MAX(OFFSET(C33,0,0,$A$12,1)) -> 5468300 | BA32: 0 | BB32: Price Chart Cursor
A33: 1 | B33: =OFFSET(InputPriceData!B$15,CalculationsAndCharts!$A33+$A$11,0,1,1) -> 2015-04-20 | C33: =OFFSET(InputPriceData!G$15,CalculationsAndCharts!$A33+$A$11,IF($C$7,8,0),1,1) -> 621600 | D33: =OFFSET(InputPriceData!C$15,CalculationsAndCharts!$A33+$A$11,IF($C$7,8,0),1,1) -> 178.13 | E33: =OFFSET(InputPriceData!D$15,CalculationsAndCharts!$A33+$A$11,IF($C$7,8,0),1,1) -> 178.7 | F33: =OFFSET(InputPriceData!E$15,CalculationsAndCharts!$A33+$A$11,IF($C$7,8,0),1,1) -> 177.86 | G33: =OFFSET(InputPriceData!F$15,CalculationsAndCharts!$A33+$A$11,IF($C$7,8,0),1,1) -> 178.15 | H33: =AVERAGE(OFFSET(G33,0,0,$A$17,1)) -> 142.0682 | I33: =AVERAGE(OFFSET(G33,0,0,$A$18,1)) -> 167.7858 | J33: =AVERAGE(OFFSET(G33,0,0,$A$19,1)) -> 177.7905 | K33: =AVERAGE(OFFSET(E33,0,0,$A$20,1)) -> 179.06125 | L33: =AVERAGE(OFFSET(F33,0,0,$A$21,1)) -> 176.45125 | M33: =IF(D33<=G33,C33,NA()) -> 621600 | N33: =IF(D33<=G33,NA(),C33) ->  | O33: =AND(G34<=K34,G33>K33,OR(P34="DOWN",P34=0)) -> FALSE | P33: =IF(AND(OR(P34=0,P34="UP"),Q33),"DOWN",IF(AND(OR(P34=0,P34="DOWN"),O33),"UP",P34)) -> DOWN | Q33: =AND(G34>=L34,G33<L33,OR(P34=0,P34="UP")) -> FALSE | R33: =IF(O33,G33,NA()) ->  | S33: =IF(Q33,G33,NA()) ->  | T33: =AND(OR(NOT($R$11),AT33),OR(NOT($R$12),J33<=I33),OR(NOT($R$13),I33<=H33),OR(NOT($R$14),G33<=I33)) -> FALSE | U33: =AND(T33,O33) -> FALSE | V33: =U34 -> FALSE | W33: =IF(V33,TRUE,IF(X34,FALSE,W34)) -> FALSE | X33: =AND(W33,Q33) -> FALSE | Y33: =X34 -> FALSE | Z33: =IF(AND(NOT(AA33),OR(W33,Y33)),$F$11,NA()) ->  | AA33: =AND(OR(W33,Y33),OR(AF33,AH33)) -> FALSE | AB33: =IF(AA33,$F$11,NA()) ->  | AC33: =AND( OR(NOT($R$11),NOT(AT33)), OR(NOT($R$12),J33<=I33), OR(NOT($R$13),I33<=H33), OR(NOT($R$14),G33<=I33) ) -> FALSE | AD33: =AND(AC33,Q33) -> FALSE | AE33: =AD34 -> FALSE | AF33: =IF(AE33,TRUE,IF(AG34,FALSE,AF34)) -> FALSE | AG33: =AND(AF33,O33) -> FALSE | AH33: =AG34 -> FALSE | AI33: =IF(AND(NOT(AA33),OR(AF33,AH33)),$F$11,NA()) ->  | AJ33: =IF($R$3,H33,NA()) -> 142.0682 | AK33: =IF($R$4,I33,NA()) -> 167.7858 | AL33: =IF($R$5,J33,NA()) -> 177.7905 | AM33: =IF($R$6,K33,NA()) -> 179.06125 | AN33: =IF($R$6,L33,NA()) -> 176.45125 | AP33: =OFFSET(InputIndexData!F$15,CalculationsAndCharts!$A33+$A$11,IF($C$7,8,0),1,1) -> 207.75 | AQ33: =AVERAGE(OFFSET(AP33,0,0,$D$17,1)) -> 206.0096 | AR33: =IF(AQ33-AQ34>=0,1,-1) -> 1 | AS33: =AVERAGE(OFFSET(AR33,0,0,$D$18,1)) -> 1 | AT33: =OR(AS33>0,AND(AS33=0,AS34>0)) -> TRUE | AV33: =IF(AT33,$AR$26,NA()) -> 212 | AW33: =IF(AT33,NA(),$AR$26) ->  | AX33: =$E$25 -> 81 | AY33: =AR26 -> 212 | AZ33: =$E$25 -> 81 | BA33: =AZ32*1.1 -> 6015130 | BB33: =$E$25 -> 81 | BC33: =$F$11 -> 189.2
A34: 2 | B34: =OFFSET(InputPriceData!B$15,CalculationsAndCharts!$A34+$A$11,0,1,1) -> 2015-04-17 | C34: =OFFSET(InputPriceData!G$15,CalculationsAndCharts!$A34+$A$11,IF($C$7,8,0),1,1) -> 992700 | D34: =OFFSET(InputPriceData!C$15,CalculationsAndCharts!$A34+$A$11,IF($C$7,8,0),1,1) -> 175.71 | E34: =OFFSET(InputPriceData!D$15,CalculationsAndCharts!$A34+$A$11,IF($C$7,8,0),1,1) -> 177.1 | F34: =OFFSET(InputPriceData!E$15,CalculationsAndCharts!$A34+$A$11,IF($C$7,8,0),1,1) -> 175.53 | G34: =OFFSET(InputPriceData!F$15,CalculationsAndCharts!$A34+$A$11,IF($C$7,8,0),1,1) -> 176.94 | H34: 141.8198 | I34: 167.216 | J34: 177.98 | K34: 179.1025 | L34: 176.38 | M34: =IF(D34<=G34,C34,NA()) -> 992700 | N34: =IF(D34<=G34,NA(),C34) ->  | O34: FALSE | P34: DOWN | Q34: FALSE | T34: =AND(OR(NOT($R$11),AT34),OR(NOT($R$12),J34<=I34),OR(NOT($R$13),I34<=H34),OR(NOT($R$14),G34<=I34)) -> FALSE | U34: FALSE | V34: FALSE | W34: FALSE | X34: FALSE | Y34: FALSE | AA34: FALSE | AC34: =AND( OR(NOT($R$11),NOT(AT34)), OR(NOT($R$12),J34<=I34), OR(NOT($R$13),I34<=H34), OR(NOT($R$14),G34<=I34) ) -> FALSE | AD34: FALSE | AE34: FALSE | AF34: =IF(AE34,TRUE,IF(AG35,FALSE,AF35)) -> FALSE | AG34: =AND(AF34,O34) -> FALSE | AH34: FALSE | AJ34: =IF($R$3,H34,NA()) -> 141.8198 | AK34: =IF($R$4,I34,NA()) -> 167.216 | AL34: =IF($R$5,J34,NA()) -> 177.98 | AM34: =IF($R$6,K34,NA()) -> 179.1025 | AN34: =IF($R$6,L34,NA()) -> 176.38 | AP34: =OFFSET(InputIndexData!F$15,CalculationsAndCharts!$A34+$A$11,IF($C$7,8,0),1,1) -> 205.87 | AQ34: =AVERAGE(OFFSET(AP34,0,0,$D$17,1)) -> 205.9176 | AR34: =IF(AQ34-AQ35>=0,1,-1) -> 1 | AS34: =AVERAGE(OFFSET(AR34,0,0,$D$18,1)) -> 1 | AT34: =OR(AS34>0,AND(AS34=0,AS35>0)) -> TRUE | AV34: 212 | AX34: =$E$25 -> 81 | AY34: =AR27 -> 179 | AZ34: =$E$25 -> 81 | BA34: 0 | BB34: =$E$25 -> 81 | BC34: =$F$12 -> 106
A35: 3 | B35: =OFFSET(InputPriceData!B$15,CalculationsAndCharts!$A35+$A$11,0,1,1) -> 2015-04-16 | C35: =OFFSET(InputPriceData!G$15,CalculationsAndCharts!$A35+$A$11,IF($C$7,8,0),1,1) -> 1510900 | D35: =OFFSET(InputPriceData!C$15,CalculationsAndCharts!$A35+$A$11,IF($C$7,8,0),1,1) -> 179.45 | E35: =OFFSET(InputPriceData!D$15,CalculationsAndCharts!$A35+$A$11,IF($C$7,8,0),1,1) -> 180.02 | F35: =OFFSET(InputPriceData!E$15,CalculationsAndCharts!$A35+$A$11,IF($C$7,8,0),1,1) -> 175.56 | G35: =OFFSET(InputPriceData!F$15,CalculationsAndCharts!$A35+$A$11,IF($C$7,8,0),1,1) -> 177.13 | H35: 141.57595 | I35: 166.674 | J35: 178.139 | K35: 179.645 | L35: 176.4925 | N35: 1510900 | O35: FALSE | P35: DOWN | Q35: FALSE | T35: FALSE | U35: FALSE | V35: FALSE | W35: FALSE | X35: FALSE | Y35: FALSE | AA35: FALSE | AC35: FALSE | AD35: FALSE | AE35: FALSE | AF35: FALSE | AG35: FALSE | AH35: FALSE | AJ35: 141.57595 | AK35: 166.674 | AL35: 178.139 | AM35: 179.645 | AN35: 176.4925 | AP35: =OFFSET(InputIndexData!F$15,CalculationsAndCharts!$A35+$A$11,IF($C$7,8,0),1,1) -> 208.27 | AQ35: 205.8226 | AR35: 1 | AS35: 1 | AT35: TRUE | AV35: 212
A36: 4 | B36: =OFFSET(InputPriceData!B$15,CalculationsAndCharts!$A36+$A$11,0,1,1) -> 2015-04-15 | C36: =OFFSET(InputPriceData!G$15,CalculationsAndCharts!$A36+$A$11,IF($C$7,8,0),1,1) -> 1390800 | D36: =OFFSET(InputPriceData!C$15,CalculationsAndCharts!$A36+$A$11,IF($C$7,8,0),1,1) -> 179.44 | E36: =OFFSET(InputPriceData!D$15,CalculationsAndCharts!$A36+$A$11,IF($C$7,8,0),1,1) -> 180.13 | F36: =OFFSET(InputPriceData!E$15,CalculationsAndCharts!$A36+$A$11,IF($C$7,8,0),1,1) -> 174.95 | G36: =OFFSET(InputPriceData!F$15,CalculationsAndCharts!$A36+$A$11,IF($C$7,8,0),1,1) -> 176.19 | H36: 141.32335 | I36: 166.0892 | J36: 178.1725 | K36: 179.44 | L36: 176.555 | N36: 1390800 | O36: FALSE | P36: DOWN | Q36: FALSE | T36: FALSE | U36: FALSE | V36: FALSE | W36: FALSE | X36: FALSE | Y36: FALSE | AA36: FALSE | AC36: FALSE | AD36: FALSE | AE36: FALSE | AF36: FALSE | AG36: FALSE | AH36: FALSE | AJ36: 141.32335 | AK36: 166.0892 | AL36: 178.1725 | AM36: 179.44 | AN36: 176.555 | AP36: =OFFSET(InputIndexData!F$15,CalculationsAndCharts!$A36+$A$11,IF($C$7,8,0),1,1) -> 208.33 | AQ36: 205.695 | AR36: 1 | AS36: 1 | AT36: TRUE | AV36: 212
A37: 5 | B37: =OFFSET(InputPriceData!B$15,CalculationsAndCharts!$A37+$A$11,0,1,1) -> 2015-04-14 | C37: =OFFSET(InputPriceData!G$15,CalculationsAndCharts!$A37+$A$11,IF($C$7,8,0),1,1) -> 752800 | D37: =OFFSET(InputPriceData!C$15,CalculationsAndCharts!$A37+$A$11,IF($C$7,8,0),1,1) -> 177.84 | E37: =OFFSET(InputPriceData!D$15,CalculationsAndCharts!$A37+$A$11,IF($C$7,8,0),1,1) -> 179.45 | F37: =OFFSET(InputPriceData!E$15,CalculationsAndCharts!$A37+$A$11,IF($C$7,8,0),1,1) -> 177.54 | G37: =OFFSET(InputPriceData!F$15,CalculationsAndCharts!$A37+$A$11,IF($C$7,8,0),1,1) -> 179 | H37: 141.0739 | I37: 165.4714 | J37: 178.0225 | K37: 179.3725 | L37: 176.7525 | M37: 752800 | O37: FALSE | P37: DOWN | Q37: FALSE | T37: FALSE | U37: FALSE | V37: FALSE | W37: FALSE | X37: FALSE | Y37: FALSE | AA37: FALSE | AC37: FALSE | AD37: FALSE | AE37: FALSE | AF37: FALSE | AG37: FALSE | AH37: FALSE | AJ37: 141.0739 | AK37: 165.4714 | AL37: 178.0225 | AM37: 179.3725 | AN37: 176.7525 | AP37: =OFFSET(InputIndexData!F$15,CalculationsAndCharts!$A37+$A$11,IF($C$7,8,0),1,1) -> 207.4 | AQ37: 205.5086 | AR37: 1 | AS37: 1 | AT37: TRUE | AV37: 212
A38: 6 | B38: =OFFSET(InputPriceData!B$15,CalculationsAndCharts!$A38+$A$11,0,1,1) -> 2015-04-13 | C38: =OFFSET(InputPriceData!G$15,CalculationsAndCharts!$A38+$A$11,IF($C$7,8,0),1,1) -> 561400 | D38: =OFFSET(InputPriceData!C$15,CalculationsAndCharts!$A38+$A$11,IF($C$7,8,0),1,1) -> 178.28 | E38: =OFFSET(InputPriceData!D$15,CalculationsAndCharts!$A38+$A$11,IF($C$7,8,0),1,1) -> 180.49 | F38: =OFFSET(InputPriceData!E$15,CalculationsAndCharts!$A38+$A$11,IF($C$7,8,0),1,1) -> 177.97 | G38: =OFFSET(InputPriceData!F$15,CalculationsAndCharts!$A38+$A$11,IF($C$7,8,0),1,1) -> 178.03 | H38: 140.81235 | I38: 164.8066 | J38: 177.7475 | K38: 179.165 | L38: 176.33 | N38: 561400 | O38: FALSE | P38: DOWN | Q38: FALSE | T38: FALSE | U38: FALSE | V38: FALSE | W38: FALSE | X38: FALSE | Y38: FALSE | AA38: FALSE | AC38: FALSE | AD38: FALSE | AE38: FALSE | AF38: FALSE | AG38: FALSE | AH38: FALSE | AJ38: 140.81235 | AK38: 164.8066 | AL38: 177.7475 | AM38: 179.165 | AN38: 176.33 | AP38: =OFFSET(InputIndexData!F$15,CalculationsAndCharts!$A38+$A$11,IF($C$7,8,0),1,1) -> 207 | AQ38: 205.2922 | AR38: 1 | AS38: 1 | AT38: TRUE | AV38: 212
A39: 7 | B39: =OFFSET(InputPriceData!B$15,CalculationsAndCharts!$A39+$A$11,0,1,1) -> 2015-04-10 | C39: =OFFSET(InputPriceData!G$15,CalculationsAndCharts!$A39+$A$11,IF($C$7,8,0),1,1) -> 648200 | D39: =OFFSET(InputPriceData!C$15,CalculationsAndCharts!$A39+$A$11,IF($C$7,8,0),1,1) -> 177.1 | E39: =OFFSET(InputPriceData!D$15,CalculationsAndCharts!$A39+$A$11,IF($C$7,8,0),1,1) -> 178.01 | F39: =OFFSET(InputPriceData!E$15,CalculationsAndCharts!$A39+$A$11,IF($C$7,8,0),1,1) -> 176.4 | G39: =OFFSET(InputPriceData!F$15,CalculationsAndCharts!$A39+$A$11,IF($C$7,8,0),1,1) -> 177.93 | H39: 140.55995 | I39: 164.2244 | J39: 177.132 | K39: 179.205 | L39: 176.2675 | M39: 648200 | O39: FALSE | P39: DOWN | Q39: FALSE | T39: FALSE | U39: FALSE | V39: FALSE | W39: FALSE | X39: FALSE | Y39: FALSE | AA39: =AND(OR(W39,Y39),OR(AF39,AH39)) -> FALSE | AB39: =IF(AA39,$F$11,NA()) ->  | AC39: FALSE | AD39: FALSE | AE39: FALSE | AF39: FALSE | AG39: FALSE | AH39: FALSE | AJ39: 140.55995 | AK39: 164.2244 | AL39: 177.132 | AM39: 179.205 | AN39: 176.2675 | AP39: =OFFSET(InputIndexData!F$15,CalculationsAndCharts!$A39+$A$11,IF($C$7,8,0),1,1) -> 207.94 | AQ39: 205.1338 | AR39: 1 | AS39: 1 | AT39: TRUE | AV39: 212
A40: 8 | B40: =OFFSET(InputPriceData!B$15,CalculationsAndCharts!$A40+$A$11,0,1,1) -> 2015-04-09 | C40: =OFFSET(InputPriceData!G$15,CalculationsAndCharts!$A40+$A$11,IF($C$7,8,0),1,1) -> 1382200 | D40: =OFFSET(InputPriceData!C$15,CalculationsAndCharts!$A40+$A$11,IF($C$7,8,0),1,1) -> 177.58 | E40: =OFFSET(InputPriceData!D$15,CalculationsAndCharts!$A40+$A$11,IF($C$7,8,0),1,1) -> 178.59 | F40: =OFFSET(InputPriceData!E$15,CalculationsAndCharts!$A40+$A$11,IF($C$7,8,0),1,1) -> 175.8 | G40: =OFFSET(InputPriceData!F$15,CalculationsAndCharts!$A40+$A$11,IF($C$7,8,0),1,1) -> 177.18 | H40: 140.29875 | I40: 163.6302 | J40: 176.4115 | K40: 179.55625 | L40: 176.585 | N40: 1382200 | O40: FALSE | P40: DOWN | Q40: FALSE | R40: =IF(O40,G40,NA()) ->  | S40: =IF(Q40,G40,NA()) ->  | T40: FALSE | U40: FALSE | V40: FALSE | W40: FALSE | X40: FALSE | Y40: FALSE | AA40: FALSE | AB40: =IF(AA40,$F$11,NA()) ->  | AC40: FALSE | AD40: FALSE | AE40: FALSE | AF40: FALSE | AG40: FALSE | AH40: FALSE | AJ40: 140.29875 | AK40: 163.6302 | AL40: 176.4115 | AM40: 179.55625 | AN40: 176.585 | AP40: =OFFSET(InputIndexData!F$15,CalculationsAndCharts!$A40+$A$11,IF($C$7,8,0),1,1) -> 206.81 | AQ40: 204.9202 | AR40: 1 | AS40: 1 | AT40: TRUE | AV40: 212
A41: 9 | B41: =OFFSET(InputPriceData!B$15,CalculationsAndCharts!$A41+$A$11,0,1,1) -> 2015-04-08 | C41: =OFFSET(InputPriceData!G$15,CalculationsAndCharts!$A41+$A$11,IF($C$7,8,0),1,1) -> 767200 | D41: =OFFSET(InputPriceData!C$15,CalculationsAndCharts!$A41+$A$11,IF($C$7,8,0),1,1) -> 178.16 | E41: =OFFSET(InputPriceData!D$15,CalculationsAndCharts!$A41+$A$11,IF($C$7,8,0),1,1) -> 179.03 | F41: =OFFSET(InputPriceData!E$15,CalculationsAndCharts!$A41+$A$11,IF($C$7,8,0),1,1) -> 177.29 | G41: =OFFSET(InputPriceData!F$15,CalculationsAndCharts!$A41+$A$11,IF($C$7,8,0),1,1) -> 178.18 | H41: 140.04255 | I41: 163.0876 | J41: 175.565 | K41: 179.385 | L41: 176.4675 | M41: 767200 | O41: FALSE | P41: DOWN | Q41: FALSE | R41: =IF(O41,G41,NA()) ->  | S41: =IF(Q41,G41,NA()) ->  | T41: =AND(OR(NOT($R$11),AT41),OR(NOT($R$12),J41>=I41),OR(NOT($R$13),I41>=H41),OR(NOT($R$14),G41>=I41)) -> TRUE | U41: FALSE | V41: FALSE | W41: FALSE | X41: FALSE | Y41: FALSE | AA41: FALSE | AC41: FALSE | AD41: FALSE | AE41: FALSE | AF41: FALSE | AG41: FALSE | AH41: FALSE | AJ41: 140.04255 | AK41: 163.0876 | AL41: 175.565 | AM41: 179.385 | AN41: 176.4675 | AP41: =OFFSET(InputIndexData!F$15,CalculationsAndCharts!$A41+$A$11,IF($C$7,8,0),1,1) -> 205.9 | AQ41: 204.7804 | AR41: 1 | AS41: 1 | AT41: TRUE | AV41: 212
A42: 10 | B42: =OFFSET(InputPriceData!B$15,CalculationsAndCharts!$A42+$A$11,0,1,1) -> 2015-04-07 | C42: =OFFSET(InputPriceData!G$15,CalculationsAndCharts!$A42+$A$11,IF($C$7,8,0),1,1) -> 973400 | D42: =OFFSET(InputPriceData!C$15,CalculationsAndCharts!$A42+$A$11,IF($C$7,8,0),1,1) -> 181.44 | E42: =OFFSET(InputPriceData!D$15,CalculationsAndCharts!$A42+$A$11,IF($C$7,8,0),1,1) -> 181.44 | F42: =OFFSET(InputPriceData!E$15,CalculationsAndCharts!$A42+$A$11,IF($C$7,8,0),1,1) -> 176.43 | G42: =OFFSET(InputPriceData!F$15,CalculationsAndCharts!$A42+$A$11,IF($C$7,8,0),1,1) -> 177.55 | H42: 139.7805 | I42: 162.5498 | J42: 174.569 | K42: 179.09625 | L42: 176.05625 | N42: 973400 | O42: FALSE | P42: DOWN | Q42: FALSE | T42: TRUE | U42: FALSE | V42: FALSE | W42: FALSE | X42: FALSE | Y42: FALSE | AA42: FALSE | AC42: FALSE | AD42: FALSE | AE42: FALSE | AF42: FALSE | AG42: FALSE | AH42: FALSE | AJ42: 139.7805 | AK42: 162.5498 | AL42: 174.569 | AM42: 179.09625 | AN42: 176.05625 | AP42: =OFFSET(InputIndexData!F$15,CalculationsAndCharts!$A42+$A$11,IF($C$7,8,0),1,1) -> 205.21 | AQ42: 204.7122 | AR42: 1 | AS42: 1 | AT42: TRUE | AV42: 212
A43: 11 | B43: =OFFSET(InputPriceData!B$15,CalculationsAndCharts!$A43+$A$11,0,1,1) -> 2015-04-06 | C43: =OFFSET(InputPriceData!G$15,CalculationsAndCharts!$A43+$A$11,IF($C$7,8,0),1,1) -> 515300 | D43: =OFFSET(InputPriceData!C$15,CalculationsAndCharts!$A43+$A$11,IF($C$7,8,0),1,1) -> 176.65 | E43: =OFFSET(InputPriceData!D$15,CalculationsAndCharts!$A43+$A$11,IF($C$7,8,0),1,1) -> 178.38 | F43: =OFFSET(InputPriceData!E$15,CalculationsAndCharts!$A43+$A$11,IF($C$7,8,0),1,1) -> 176.06 | G43: =OFFSET(InputPriceData!F$15,CalculationsAndCharts!$A43+$A$11,IF($C$7,8,0),1,1) -> 177.71 | H43: 139.5188 | I43: 162.014 | J43: 173.7705 | K43: 179.16375 | L43: 176.04625 | M43: 515300 | O43: FALSE | P43: DOWN | Q43: FALSE | T43: TRUE | U43: FALSE | V43: FALSE | W43: FALSE | X43: FALSE | Y43: FALSE | AA43: FALSE | AC43: FALSE | AD43: FALSE | AE43: FALSE | AF43: FALSE | AG43: FALSE | AH43: FALSE | AJ43: 139.5188 | AK43: 162.014 | AL43: 173.7705 | AM43: 179.16375 | AN43: 176.04625 | AP43: =OFFSET(InputIndexData!F$15,CalculationsAndCharts!$A43+$A$11,IF($C$7,8,0),1,1) -> 205.75 | AQ43: 204.6484 | AR43: 1 | AS43: 1 | AT43: TRUE | AV43: 212
A44: 12 | B44: =OFFSET(InputPriceData!B$15,CalculationsAndCharts!$A44+$A$11,0,1,1) -> 2015-04-02 | C44: =OFFSET(InputPriceData!G$15,CalculationsAndCharts!$A44+$A$11,IF($C$7,8,0),1,1) -> 677400 | D44: =OFFSET(InputPriceData!C$15,CalculationsAndCharts!$A44+$A$11,IF($C$7,8,0),1,1) -> 177.29 | E44: =OFFSET(InputPriceData!D$15,CalculationsAndCharts!$A44+$A$11,IF($C$7,8,0),1,1) -> 179.59 | F44: =OFFSET(InputPriceData!E$15,CalculationsAndCharts!$A44+$A$11,IF($C$7,8,0),1,1) -> 176.53 | G44: =OFFSET(InputPriceData!F$15,CalculationsAndCharts!$A44+$A$11,IF($C$7,8,0),1,1) -> 177.43 | H44: 139.2478 | I44: 161.5184 | J44: 172.8345 | K44: 179.6325 | L44: 176.485 | M44: 677400 | O44: FALSE | P44: DOWN | Q44: FALSE | T44: TRUE | U44: FALSE | V44: FALSE | W44: FALSE | X44: FALSE | Y44: FALSE | AA44: FALSE | AC44: FALSE | AD44: FALSE | AE44: FALSE | AF44: FALSE | AG44: FALSE | AH44: FALSE | AJ44: 139.2478 | AK44: 161.5184 | AL44: 172.8345 | AM44: 179.6325 | AN44: 176.485 | AP44: =OFFSET(InputIndexData!F$15,CalculationsAndCharts!$A44+$A$11,IF($C$7,8,0),1,1) -> 204.38 | AQ44: 204.596 | AR44: 1 | AS44: 1 | AT44: TRUE | AV44: 212
A45: 13 | B45: =OFFSET(InputPriceData!B$15,CalculationsAndCharts!$A45+$A$11,0,1,1) -> 2015-04-01 | C45: =OFFSET(InputPriceData!G$15,CalculationsAndCharts!$A45+$A$11,IF($C$7,8,0),1,1) -> 822800 | D45: =OFFSET(InputPriceData!C$15,CalculationsAndCharts!$A45+$A$11,IF($C$7,8,0),1,1) -> 177.28 | E45: =OFFSET(InputPriceData!D$15,CalculationsAndCharts!$A45+$A$11,IF($C$7,8,0),1,1) -> 177.79 | F45: =OFFSET(InputPriceData!E$15,CalculationsAndCharts!$A45+$A$11,IF($C$7,8,0),1,1) -> 174.16 | G45: =OFFSET(InputPriceData!F$15,CalculationsAndCharts!$A45+$A$11,IF($C$7,8,0),1,1) -> 177.1 | H45: 138.96865 | I45: 161.0212 | J45: 172.031 | K45: 179.95875 | L45: 176.985 | N45: 822800 | O45: FALSE | P45: DOWN | Q45: FALSE | T45: TRUE | U45: FALSE | V45: FALSE | W45: FALSE | X45: FALSE | Y45: FALSE | AA45: FALSE | AC45: FALSE | AD45: FALSE | AE45: FALSE | AF45: FALSE | AG45: FALSE | AH45: FALSE | AJ45: 138.96865 | AK45: 161.0212 | AL45: 172.031 | AM45: 179.95875 | AN45: 176.985 | AP45: =OFFSET(InputIndexData!F$15,CalculationsAndCharts!$A45+$A$11,IF($C$7,8,0),1,1) -> 203.65 | AQ45: 204.5116 | AR45: 1 | AS45: 1 | AT45: TRUE | AV45: 212
A46: 14 | B46: =OFFSET(InputPriceData!B$15,CalculationsAndCharts!$A46+$A$11,0,1,1) -> 2015-03-31 | C46: =OFFSET(InputPriceData!G$15,CalculationsAndCharts!$A46+$A$11,IF($C$7,8,0),1,1) -> 1303500 | D46: =OFFSET(InputPriceData!C$15,CalculationsAndCharts!$A46+$A$11,IF($C$7,8,0),1,1) -> 179.48 | E46: =OFFSET(InputPriceData!D$15,CalculationsAndCharts!$A46+$A$11,IF($C$7,8,0),1,1) -> 180.81 | F46: =OFFSET(InputPriceData!E$15,CalculationsAndCharts!$A46+$A$11,IF($C$7,8,0),1,1) -> 177.47 | G46: =OFFSET(InputPriceData!F$15,CalculationsAndCharts!$A46+$A$11,IF($C$7,8,0),1,1) -> 177.47 | H46: 138.69175 | I46: 160.4448 | J46: 171.1495 | K46: 180.505 | L46: 177.62 | N46: 1303500 | O46: FALSE | P46: DOWN | Q46: FALSE | T46: TRUE | U46: FALSE | V46: FALSE | W46: FALSE | X46: FALSE | Y46: FALSE | AA46: FALSE | AC46: FALSE | AD46: FALSE | AE46: FALSE | AF46: FALSE | AG46: FALSE | AH46: FALSE | AJ46: 138.69175 | AK46: 160.4448 | AL46: 171.1495 | AM46: 180.505 | AN46: 177.62 | AP46: =OFFSET(InputIndexData!F$15,CalculationsAndCharts!$A46+$A$11,IF($C$7,8,0),1,1) -> 204.37 | AQ46: 204.4216 | AR46: 1 | AS46: 1 | AT46: TRUE | AV46: 212
A47: 15 | B47: =OFFSET(InputPriceData!B$15,CalculationsAndCharts!$A47+$A$11,0,1,1) -> 2015-03-30 | C47: =OFFSET(InputPriceData!G$15,CalculationsAndCharts!$A47+$A$11,IF($C$7,8,0),1,1) -> 1365300 | D47: =OFFSET(InputPriceData!C$15,CalculationsAndCharts!$A47+$A$11,IF($C$7,8,0),1,1) -> 179.43 | E47: =OFFSET(InputPriceData!D$15,CalculationsAndCharts!$A47+$A$11,IF($C$7,8,0),1,1) -> 180.82 | F47: =OFFSET(InputPriceData!E$15,CalculationsAndCharts!$A47+$A$11,IF($C$7,8,0),1,1) -> 178.94 | G47: =OFFSET(InputPriceData!F$15,CalculationsAndCharts!$A47+$A$11,IF($C$7,8,0),1,1) -> 180.62 | H47: 138.42095 | I47: 159.8802 | J47: 170.251 | K47: 180.66875 | L47: 177.6175 | M47: 1365300 | O47: FALSE | P47: DOWN | Q47: FALSE | T47: TRUE | U47: FALSE | V47: FALSE | W47: FALSE | X47: FALSE | Y47: FALSE | AA47: FALSE | AC47: FALSE | AD47: FALSE | AE47: FALSE | AF47: FALSE | AG47: FALSE | AH47: FALSE | AJ47: 138.42095 | AK47: 159.8802 | AL47: 170.251 | AM47: 180.66875 | AN47: 177.6175 | AP47: =OFFSET(InputIndexData!F$15,CalculationsAndCharts!$A47+$A$11,IF($C$7,8,0),1,1) -> 206.17 | AQ47: 204.3088 | AR47: 1 | AS47: 1 | AT47: TRUE | AV47: 212
A48: 16 | B48: =OFFSET(InputPriceData!B$15,CalculationsAndCharts!$A48+$A$11,0,1,1) -> 2015-03-27 | C48: =OFFSET(InputPriceData!G$15,CalculationsAndCharts!$A48+$A$11,IF($C$7,8,0),1,1) -> 1492000 | D48: =OFFSET(InputPriceData!C$15,CalculationsAndCharts!$A48+$A$11,IF($C$7,8,0),1,1) -> 175.22 | E48: =OFFSET(InputPriceData!D$15,CalculationsAndCharts!$A48+$A$11,IF($C$7,8,0),1,1) -> 177.22 | F48: =OFFSET(InputPriceData!E$15,CalculationsAndCharts!$A48+$A$11,IF($C$7,8,0),1,1) -> 174.86 | G48: =OFFSET(InputPriceData!F$15,CalculationsAndCharts!$A48+$A$11,IF($C$7,8,0),1,1) -> 176.98 | H48: 138.13725 | I48: 159.2124 | J48: 169.2825 | K48: 180.40625 | L48: 176.86125 | M48: 1492000 | O48: FALSE | P48: DOWN | Q48: FALSE | T48: TRUE | U48: FALSE | V48: FALSE | W48: FALSE | X48: FALSE | Y48: FALSE | AA48: =AND(OR(W48,Y48),OR(AF48,AH48)) -> FALSE | AC48: FALSE | AD48: FALSE | AE48: FALSE | AF48: FALSE | AG48: FALSE | AH48: FALSE | AJ48: 138.13725 | AK48: 159.2124 | AL48: 169.2825 | AM48: 180.40625 | AN48: 176.86125 | AP48: =OFFSET(InputIndexData!F$15,CalculationsAndCharts!$A48+$A$11,IF($C$7,8,0),1,1) -> 203.68 | AQ48: 204.1086 | AR48: 1 | AS48: 1 | AT48: TRUE | AV48: 212
A49: 17 | B49: =OFFSET(InputPriceData!B$15,CalculationsAndCharts!$A49+$A$11,0,1,1) -> 2015-03-26 | C49: =OFFSET(InputPriceData!G$15,CalculationsAndCharts!$A49+$A$11,IF($C$7,8,0),1,1) -> 1473000 | D49: =OFFSET(InputPriceData!C$15,CalculationsAndCharts!$A49+$A$11,IF($C$7,8,0),1,1) -> 175.98 | E49: =OFFSET(InputPriceData!D$15,CalculationsAndCharts!$A49+$A$11,IF($C$7,8,0),1,1) -> 176.72 | F49: =OFFSET(InputPriceData!E$15,CalculationsAndCharts!$A49+$A$11,IF($C$7,8,0),1,1) -> 174 | G49: =OFFSET(InputPriceData!F$15,CalculationsAndCharts!$A49+$A$11,IF($C$7,8,0),1,1) -> 174.9 | H49: 137.8799 | I49: 158.61 | J49: 168.614 | K49: 180.02375 | L49: 176.48375 | N49: 1473000 | O49: FALSE | P49: DOWN | Q49: TRUE | S49: 174.9 | T49: TRUE | U49: FALSE | V49: FALSE | W49: FALSE | X49: FALSE | Y49: FALSE | AA49: FALSE | AC49: FALSE | AD49: FALSE | AE49: FALSE | AF49: FALSE | AG49: FALSE | AH49: FALSE | AJ49: 137.8799 | AK49: 158.61 | AL49: 168.614 | AM49: 180.02375 | AN49: 176.48375 | AP49: =OFFSET(InputIndexData!F$15,CalculationsAndCharts!$A49+$A$11,IF($C$7,8,0),1,1) -> 203.22 | AQ49: 203.9944 | AR49: 1 | AS49: 1 | AT49: TRUE | AV49: 212
A50: 18 | B50: =OFFSET(InputPriceData!B$15,CalculationsAndCharts!$A50+$A$11,0,1,1) -> 2015-03-25 | C50: =OFFSET(InputPriceData!G$15,CalculationsAndCharts!$A50+$A$11,IF($C$7,8,0),1,1) -> 1427100 | D50: =OFFSET(InputPriceData!C$15,CalculationsAndCharts!$A50+$A$11,IF($C$7,8,0),1,1) -> 180.63 | E50: =OFFSET(InputPriceData!D$15,CalculationsAndCharts!$A50+$A$11,IF($C$7,8,0),1,1) -> 181.98 | F50: =OFFSET(InputPriceData!E$15,CalculationsAndCharts!$A50+$A$11,IF($C$7,8,0),1,1) -> 176.35 | G50: =OFFSET(InputPriceData!F$15,CalculationsAndCharts!$A50+$A$11,IF($C$7,8,0),1,1) -> 176.5 | H50: 137.63125 | I50: 158.0352 | J50: 167.9985 | K50: 179.74375 | L50: 175.5375 | N50: 1427100 | O50: FALSE | P50: UP | Q50: FALSE | T50: TRUE | U50: FALSE | V50: FALSE | W50: FALSE | X50: FALSE | Y50: FALSE | AA50: FALSE | AC50: FALSE | AD50: FALSE | AE50: FALSE | AF50: FALSE | AG50: FALSE | AH50: FALSE | AJ50: 137.63125 | AK50: 158.0352 | AL50: 167.9985 | AM50: 179.74375 | AN50: 175.5375 | AP50: =OFFSET(InputIndexData!F$15,CalculationsAndCharts!$A50+$A$11,IF($C$7,8,0),1,1) -> 203.7 | AQ50: 203.9134 | AR50: 1 | AS50: 1 | AT50: TRUE | AV50: 212
A51: 19 | B51: =OFFSET(InputPriceData!B$15,CalculationsAndCharts!$A51+$A$11,0,1,1) -> 2015-03-24 | C51: =OFFSET(InputPriceData!G$15,CalculationsAndCharts!$A51+$A$11,IF($C$7,8,0),1,1) -> 966600 | D51: =OFFSET(InputPriceData!C$15,CalculationsAndCharts!$A51+$A$11,IF($C$7,8,0),1,1) -> 181.19 | E51: =OFFSET(InputPriceData!D$15,CalculationsAndCharts!$A51+$A$11,IF($C$7,8,0),1,1) -> 182.13 | F51: =OFFSET(InputPriceData!E$15,CalculationsAndCharts!$A51+$A$11,IF($C$7,8,0),1,1) -> 179.57 | G51: =OFFSET(InputPriceData!F$15,CalculationsAndCharts!$A51+$A$11,IF($C$7,8,0),1,1) -> 179.57 | H51: 137.36885 | I51: 157.4018 | J51: 167.4035 | K51: 177.7225 | L51: 173.7275 | N51: 966600 | O51: FALSE | P51: UP | Q51: FALSE | T51: TRUE | U51: FALSE | V51: FALSE | W51: FALSE | X51: FALSE | Y51: FALSE | AA51: FALSE | AC51: FALSE | AD51: FALSE | AE51: FALSE | AF51: FALSE | AG51: FALSE | AH51: FALSE | AJ51: 137.36885 | AK51: 157.4018 | AL51: 167.4035 | AM51: 177.7225 | AN51: 173.7275 | AP51: =OFFSET(InputIndexData!F$15,CalculationsAndCharts!$A51+$A$11,IF($C$7,8,0),1,1) -> 206.73 | AQ51: 203.834 | AR51: 1 | AS51: 1 | AT51: TRUE | AV51: 212
A52: 20 | B52: =OFFSET(InputPriceData!B$15,CalculationsAndCharts!$A52+$A$11,0,1,1) -> 2015-03-23 | C52: =OFFSET(InputPriceData!G$15,CalculationsAndCharts!$A52+$A$11,IF($C$7,8,0),1,1) -> 974200 | D52: =OFFSET(InputPriceData!C$15,CalculationsAndCharts!$A52+$A$11,IF($C$7,8,0),1,1) -> 181.94 | E52: =OFFSET(InputPriceData!D$15,CalculationsAndCharts!$A52+$A$11,IF($C$7,8,0),1,1) -> 182.2 | F52: =OFFSET(InputPriceData!E$15,CalculationsAndCharts!$A52+$A$11,IF($C$7,8,0),1,1) -> 180.53 | G52: =OFFSET(InputPriceData!F$15,CalculationsAndCharts!$A52+$A$11,IF($C$7,8,0),1,1) -> 181.25 | H52: 137.09605 | I52: 156.7318 | J52: 166.6085 | K52: 175.4075 | L52: 171.32625 | N52: 974200 | O52: FALSE | P52: UP | Q52: FALSE | T52: TRUE | U52: FALSE | V52: FALSE | W52: FALSE | X52: FALSE | Y52: FALSE | AA52: FALSE | AC52: FALSE | AD52: FALSE | AE52: FALSE | AF52: FALSE | AG52: FALSE | AH52: FALSE | AJ52: 137.09605 | AK52: 156.7318 | AL52: 166.6085 | AM52: 175.4075 | AN52: 171.32625 | AP52: =OFFSET(InputIndexData!F$15,CalculationsAndCharts!$A52+$A$11,IF($C$7,8,0),1,1) -> 207.9 | AQ52: 203.7256 | AR52: 1 | AS52: 1 | AT52: TRUE | AV52: 212
A53: 21 | B53: =OFFSET(InputPriceData!B$15,CalculationsAndCharts!$A53+$A$11,0,1,1) -> 2015-03-20 | C53: =OFFSET(InputPriceData!G$15,CalculationsAndCharts!$A53+$A$11,IF($C$7,8,0),1,1) -> 2256300 | D53: =OFFSET(InputPriceData!C$15,CalculationsAndCharts!$A53+$A$11,IF($C$7,8,0),1,1) -> 181.46 | E53: =OFFSET(InputPriceData!D$15,CalculationsAndCharts!$A53+$A$11,IF($C$7,8,0),1,1) -> 182.16 | F53: =OFFSET(InputPriceData!E$15,CalculationsAndCharts!$A53+$A$11,IF($C$7,8,0),1,1) -> 179.24 | G53: =OFFSET(InputPriceData!F$15,CalculationsAndCharts!$A53+$A$11,IF($C$7,8,0),1,1) -> 181.94 | H53: 136.8048 | I53: 156.0496 | J53: 165.7335 | K53: 172.70625 | L53: 168.5425 | M53: 2256300 | O53: FALSE | P53: UP | Q53: FALSE | T53: TRUE | U53: FALSE | V53: FALSE | W53: FALSE | X53: FALSE | Y53: FALSE | AA53: FALSE | AC53: FALSE | AD53: FALSE | AE53: FALSE | AF53: FALSE | AG53: FALSE | AH53: FALSE | AJ53: 136.8048 | AK53: 156.0496 | AL53: 165.7335 | AM53: 172.70625 | AN53: 168.5425 | AP53: =OFFSET(InputIndexData!F$15,CalculationsAndCharts!$A53+$A$11,IF($C$7,8,0),1,1) -> 208.31 | AQ53: 203.6264 | AR53: 1 | AS53: 1 | AT53: TRUE | AV53: 212
A54: 22 | B54: =OFFSET(InputPriceData!B$15,CalculationsAndCharts!$A54+$A$11,0,1,1) -> 2015-03-19 | C54: =OFFSET(InputPriceData!G$15,CalculationsAndCharts!$A54+$A$11,IF($C$7,8,0),1,1) -> 1703200 | D54: =OFFSET(InputPriceData!C$15,CalculationsAndCharts!$A54+$A$11,IF($C$7,8,0),1,1) -> 177.75 | E54: =OFFSET(InputPriceData!D$15,CalculationsAndCharts!$A54+$A$11,IF($C$7,8,0),1,1) -> 182.12 | F54: =OFFSET(InputPriceData!E$15,CalculationsAndCharts!$A54+$A$11,IF($C$7,8,0),1,1) -> 177.45 | G54: =OFFSET(InputPriceData!F$15,CalculationsAndCharts!$A54+$A$11,IF($C$7,8,0),1,1) -> 180.12 | H54: 136.5145 | I54: 155.2322 | J54: 164.406 | K54: 169.92875 | L54: 165.815 | M54: 1703200 | O54: FALSE | P54: UP | Q54: FALSE | T54: TRUE | U54: FALSE | V54: FALSE | W54: FALSE | X54: FALSE | Y54: FALSE | AA54: FALSE | AC54: FALSE | AD54: FALSE | AE54: FALSE | AF54: FALSE | AG54: FALSE | AH54: FALSE | AJ54: 136.5145 | AK54: 155.2322 | AL54: 164.406 | AM54: 169.92875 | AN54: 165.815 | AP54: =OFFSET(InputIndexData!F$15,CalculationsAndCharts!$A54+$A$11,IF($C$7,8,0),1,1) -> 206.49 | AQ54: 203.4482 | AR54: 1 | AS54: 1 | AT54: TRUE | AV54: 212
A55: 23 | B55: =OFFSET(InputPriceData!B$15,CalculationsAndCharts!$A55+$A$11,0,1,1) -> 2015-03-18 | C55: =OFFSET(InputPriceData!G$15,CalculationsAndCharts!$A55+$A$11,IF($C$7,8,0),1,1) -> 1850000 | D55: =OFFSET(InputPriceData!C$15,CalculationsAndCharts!$A55+$A$11,IF($C$7,8,0),1,1) -> 173.54 | E55: =OFFSET(InputPriceData!D$15,CalculationsAndCharts!$A55+$A$11,IF($C$7,8,0),1,1) -> 178.72 | F55: =OFFSET(InputPriceData!E$15,CalculationsAndCharts!$A55+$A$11,IF($C$7,8,0),1,1) -> 172.89 | G55: =OFFSET(InputPriceData!F$15,CalculationsAndCharts!$A55+$A$11,IF($C$7,8,0),1,1) -> 177.8 | H55: 136.22915 | I55: 154.3986 | J55: 163.0285 | K55: 167.45125 | L55: 163.51875 | M55: 1850000 | O55: FALSE | P55: UP | Q55: FALSE | T55: TRUE | U55: FALSE | V55: FALSE | W55: FALSE | X55: FALSE | Y55: FALSE | AA55: FALSE | AC55: FALSE | AD55: FALSE | AE55: FALSE | AF55: FALSE | AG55: FALSE | AH55: FALSE | AJ55: 136.22915 | AK55: 154.3986 | AL55: 163.0285 | AM55: 167.45125 | AN55: 163.51875 | AP55: =OFFSET(InputIndexData!F$15,CalculationsAndCharts!$A55+$A$11,IF($C$7,8,0),1,1) -> 207.43 | AQ55: 203.2572 | AR55: 1 | AS55: 0.5 | AT55: TRUE | AV55: 212
A56: 24 | B56: =OFFSET(InputPriceData!B$15,CalculationsAndCharts!$A56+$A$11,0,1,1) -> 2015-03-17 | C56: =OFFSET(InputPriceData!G$15,CalculationsAndCharts!$A56+$A$11,IF($C$7,8,0),1,1) -> 1647000 | D56: =OFFSET(InputPriceData!C$15,CalculationsAndCharts!$A56+$A$11,IF($C$7,8,0),1,1) -> 171.85 | E56: =OFFSET(InputPriceData!D$15,CalculationsAndCharts!$A56+$A$11,IF($C$7,8,0),1,1) -> 174.16 | F56: =OFFSET(InputPriceData!E$15,CalculationsAndCharts!$A56+$A$11,IF($C$7,8,0),1,1) -> 171.84 | G56: =OFFSET(InputPriceData!F$15,CalculationsAndCharts!$A56+$A$11,IF($C$7,8,0),1,1) -> 173.19 | H56: 135.96035 | I56: 153.6136 | J56: 161.8725 | K56: 165.27625 | L56: 161.70875 | M56: 1647000 | O56: FALSE | P56: UP | Q56: FALSE | T56: FALSE | U56: FALSE | V56: FALSE | W56: FALSE | X56: FALSE | Y56: FALSE | AA56: FALSE | AC56: FALSE | AD56: FALSE | AE56: FALSE | AF56: FALSE | AG56: FALSE | AH56: FALSE | AJ56: 135.96035 | AK56: 153.6136 | AL56: 161.8725 | AM56: 165.27625 | AN56: 161.70875 | AP56: =OFFSET(InputIndexData!F$15,CalculationsAndCharts!$A56+$A$11,IF($C$7,8,0),1,1) -> 204.97 | AQ56: 203.085 | AR56: 1 | AS56: 0 | AT56: FALSE | AW56: 212
A57: 25 | B57: =OFFSET(InputPriceData!B$15,CalculationsAndCharts!$A57+$A$11,0,1,1) -> 2015-03-16 | C57: =OFFSET(InputPriceData!G$15,CalculationsAndCharts!$A57+$A$11,IF($C$7,8,0),1,1) -> 2796100 | D57: =OFFSET(InputPriceData!C$15,CalculationsAndCharts!$A57+$A$11,IF($C$7,8,0),1,1) -> 166.89 | E57: =OFFSET(InputPriceData!D$15,CalculationsAndCharts!$A57+$A$11,IF($C$7,8,0),1,1) -> 174.48 | F57: =OFFSET(InputPriceData!E$15,CalculationsAndCharts!$A57+$A$11,IF($C$7,8,0),1,1) -> 166.43 | G57: =OFFSET(InputPriceData!F$15,CalculationsAndCharts!$A57+$A$11,IF($C$7,8,0),1,1) -> 173.5 | H57: 135.70995 | I57: 152.9962 | J57: 160.92 | K57: 163.7625 | L57: 160.15625 | M57: 2796100 | O57: FALSE | P57: UP | Q57: FALSE | T57: FALSE | U57: FALSE | V57: FALSE | W57: FALSE | X57: FALSE | Y57: FALSE | AA57: FALSE | AC57: FALSE | AD57: FALSE | AE57: FALSE | AF57: FALSE | AG57: FALSE | AH57: FALSE | AJ57: 135.70995 | AK57: 152.9962 | AL57: 160.92 | AM57: 163.7625 | AN57: 160.15625 | AP57: =OFFSET(InputIndexData!F$15,CalculationsAndCharts!$A57+$A$11,IF($C$7,8,0),1,1) -> 205.58 | AQ57: 203.035 | AR57: 1 | AS57: -0.5 | AT57: FALSE | AW57: 212
A58: 26 | B58: =OFFSET(InputPriceData!B$15,CalculationsAndCharts!$A58+$A$11,0,1,1) -> 2015-03-13 | C58: =OFFSET(InputPriceData!G$15,CalculationsAndCharts!$A58+$A$11,IF($C$7,8,0),1,1) -> 1525600 | D58: =OFFSET(InputPriceData!C$15,CalculationsAndCharts!$A58+$A$11,IF($C$7,8,0),1,1) -> 162.73 | E58: =OFFSET(InputPriceData!D$15,CalculationsAndCharts!$A58+$A$11,IF($C$7,8,0),1,1) -> 165.81 | F58: =OFFSET(InputPriceData!E$15,CalculationsAndCharts!$A58+$A$11,IF($C$7,8,0),1,1) -> 161.87 | G58: =OFFSET(InputPriceData!F$15,CalculationsAndCharts!$A58+$A$11,IF($C$7,8,0),1,1) -> 165.72 | H58: 135.4585 | I58: 152.3854 | J58: 159.843 | K58: 162.0275 | L58: 159.10375 | M58: 1525600 | O58: FALSE | P58: UP | Q58: FALSE | T58: FALSE | U58: FALSE | V58: FALSE | W58: FALSE | X58: FALSE | Y58: FALSE | AA58: FALSE | AC58: FALSE | AD58: FALSE | AE58: FALSE | AF58: FALSE | AG58: FALSE | AH58: FALSE | AJ58: 135.4585 | AK58: 152.3854 | AL58: 159.843 | AM58: 162.0275 | AN58: 159.10375 | AP58: =OFFSET(InputIndexData!F$15,CalculationsAndCharts!$A58+$A$11,IF($C$7,8,0),1,1) -> 202.87 | AQ58: 202.975 | AR58: -1 | AS58: -1 | AT58: FALSE | AW58: 212
A59: 27 | B59: =OFFSET(InputPriceData!B$15,CalculationsAndCharts!$A59+$A$11,0,1,1) -> 2015-03-12 | C59: =OFFSET(InputPriceData!G$15,CalculationsAndCharts!$A59+$A$11,IF($C$7,8,0),1,1) -> 992500 | D59: =OFFSET(InputPriceData!C$15,CalculationsAndCharts!$A59+$A$11,IF($C$7,8,0),1,1) -> 161.12 | E59: =OFFSET(InputPriceData!D$15,CalculationsAndCharts!$A59+$A$11,IF($C$7,8,0),1,1) -> 163.61 | F59: =OFFSET(InputPriceData!E$15,CalculationsAndCharts!$A59+$A$11,IF($C$7,8,0),1,1) -> 160.36 | G59: =OFFSET(InputPriceData!F$15,CalculationsAndCharts!$A59+$A$11,IF($C$7,8,0),1,1) -> 163.52 | H59: 135.24475 | I59: 151.9728 | J59: 159.2075 | K59: 161.4575 | L59: 158.725 | M59: 992500 | O59: TRUE | P59: UP | Q59: FALSE | R59: 163.52 | T59: FALSE | U59: FALSE | V59: FALSE | W59: FALSE | X59: FALSE | Y59: FALSE | AA59: FALSE | AC59: FALSE | AD59: FALSE | AE59: FALSE | AF59: FALSE | AG59: FALSE | AH59: FALSE | AJ59: 135.24475 | AK59: 151.9728 | AL59: 159.2075 | AM59: 161.4575 | AN59: 158.725 | AP59: =OFFSET(InputIndexData!F$15,CalculationsAndCharts!$A59+$A$11,IF($C$7,8,0),1,1) -> 204.12 | AQ59: 203.0098 | AR59: -1 | AS59: -0.5 | AT59: FALSE | AW59: 212
A60: 28 | B60: =OFFSET(InputPriceData!B$15,CalculationsAndCharts!$A60+$A$11,0,1,1) -> 2015-03-11 | C60: =OFFSET(InputPriceData!G$15,CalculationsAndCharts!$A60+$A$11,IF($C$7,8,0),1,1) -> 956700 | D60: =OFFSET(InputPriceData!C$15,CalculationsAndCharts!$A60+$A$11,IF($C$7,8,0),1,1) -> 158.84 | E60: =OFFSET(InputPriceData!D$15,CalculationsAndCharts!$A60+$A$11,IF($C$7,8,0),1,1) -> 160.59 | F60: =OFFSET(InputPriceData!E$15,CalculationsAndCharts!$A60+$A$11,IF($C$7,8,0),1,1) -> 158.26 | G60: =OFFSET(InputPriceData!F$15,CalculationsAndCharts!$A60+$A$11,IF($C$7,8,0),1,1) -> 160.25 | H60: 135.0466 | I60: 151.5786 | J60: 158.662 | K60: 161.51625 | L60: 158.74125 | M60: 956700 | O60: FALSE | P60: DOWN | Q60: FALSE | T60: TRUE | U60: FALSE | V60: FALSE | W60: FALSE | X60: FALSE | Y60: FALSE | AA60: FALSE | AC60: FALSE | AD60: FALSE | AE60: FALSE | AF60: FALSE | AG60: FALSE | AH60: FALSE | AJ60: 135.0466 | AK60: 151.5786 | AL60: 158.662 | AM60: 161.51625 | AN60: 158.74125 | AP60: =OFFSET(InputIndexData!F$15,CalculationsAndCharts!$A60+$A$11,IF($C$7,8,0),1,1) -> 201.56 | AQ60: 203.0418 | AR60: -1 | AS60: 0 | AT60: TRUE | AV60: 212
A61: 29 | B61: =OFFSET(InputPriceData!B$15,CalculationsAndCharts!$A61+$A$11,0,1,1) -> 2015-03-10 | C61: =OFFSET(InputPriceData!G$15,CalculationsAndCharts!$A61+$A$11,IF($C$7,8,0),1,1) -> 2359000 | D61: =OFFSET(InputPriceData!C$15,CalculationsAndCharts!$A61+$A$11,IF($C$7,8,0),1,1) -> 159.87 | E61: =OFFSET(InputPriceData!D$15,CalculationsAndCharts!$A61+$A$11,IF($C$7,8,0),1,1) -> 159.94 | F61: =OFFSET(InputPriceData!E$15,CalculationsAndCharts!$A61+$A$11,IF($C$7,8,0),1,1) -> 157.42 | G61: =OFFSET(InputPriceData!F$15,CalculationsAndCharts!$A61+$A$11,IF($C$7,8,0),1,1) -> 158.26 | H61: 134.86105 | I61: 151.256 | J61: 158.1965 | K61: 162.065 | L61: 159.20125 | N61: 2359000 | O61: FALSE | P61: DOWN | Q61: FALSE | T61: TRUE | U61: FALSE | V61: FALSE | W61: FALSE | X61: FALSE | Y61: FALSE | AA61: FALSE | AC61: FALSE | AD61: FALSE | AE61: FALSE | AF61: FALSE | AG61: FALSE | AH61: FALSE | AJ61: 134.86105 | AK61: 151.256 | AL61: 158.1965 | AM61: 162.065 | AN61: 159.20125 | AP61: =OFFSET(InputIndexData!F$15,CalculationsAndCharts!$A61+$A$11,IF($C$7,8,0),1,1) -> 202.03 | AQ61: 203.1194 | AR61: -1 | AS61: 0.5 | AT61: TRUE | AV61: 212
A62: 30 | B62: =OFFSET(InputPriceData!B$15,CalculationsAndCharts!$A62+$A$11,0,1,1) -> 2015-03-09 | C62: =OFFSET(InputPriceData!G$15,CalculationsAndCharts!$A62+$A$11,IF($C$7,8,0),1,1) -> 1046600 | D62: =OFFSET(InputPriceData!C$15,CalculationsAndCharts!$A62+$A$11,IF($C$7,8,0),1,1) -> 159.34 | E62: =OFFSET(InputPriceData!D$15,CalculationsAndCharts!$A62+$A$11,IF($C$7,8,0),1,1) -> 162.3 | F62: =OFFSET(InputPriceData!E$15,CalculationsAndCharts!$A62+$A$11,IF($C$7,8,0),1,1) -> 159.08 | G62: =OFFSET(InputPriceData!F$15,CalculationsAndCharts!$A62+$A$11,IF($C$7,8,0),1,1) -> 161.58 | H62: 134.6796 | I62: 150.9594 | J62: 157.6065 | K62: 162.53875 | L62: 159.72375 | M62: 1046600 | O62: FALSE | P62: DOWN | Q62: FALSE | T62: TRUE | U62: FALSE | V62: FALSE | W62: FALSE | X62: FALSE | Y62: FALSE | AA62: FALSE | AC62: FALSE | AD62: FALSE | AE62: FALSE | AF62: FALSE | AG62: FALSE | AH62: FALSE | AJ62: 134.6796 | AK62: 150.9594 | AL62: 157.6065 | AM62: 162.53875 | AN62: 159.72375 | AP62: =OFFSET(InputIndexData!F$15,CalculationsAndCharts!$A62+$A$11,IF($C$7,8,0),1,1) -> 205.36 | AQ62: 203.1744 | AR62: 1 | AS62: 1 | AT62: TRUE | AV62: 212
A63: 31 | B63: =OFFSET(InputPriceData!B$15,CalculationsAndCharts!$A63+$A$11,0,1,1) -> 2015-03-06 | C63: =OFFSET(InputPriceData!G$15,CalculationsAndCharts!$A63+$A$11,IF($C$7,8,0),1,1) -> 1245400 | D63: =OFFSET(InputPriceData!C$15,CalculationsAndCharts!$A63+$A$11,IF($C$7,8,0),1,1) -> 160.2 | E63: =OFFSET(InputPriceData!D$15,CalculationsAndCharts!$A63+$A$11,IF($C$7,8,0),1,1) -> 161.32 | F63: =OFFSET(InputPriceData!E$15,CalculationsAndCharts!$A63+$A$11,IF($C$7,8,0),1,1) -> 158.41 | G63: =OFFSET(InputPriceData!F$15,CalculationsAndCharts!$A63+$A$11,IF($C$7,8,0),1,1) -> 158.99 | H63: 134.4771 | I63: 150.6026 | J63: 156.88 | K63: 162.93 | L63: 160.22875 | N63: 1245400 | O63: FALSE | P63: DOWN | Q63: FALSE | T63: TRUE | U63: FALSE | V63: FALSE | W63: FALSE | X63: FALSE | Y63: FALSE | AA63: FALSE | AC63: FALSE | AD63: FALSE | AE63: FALSE | AF63: FALSE | AG63: FALSE | AH63: FALSE | AJ63: 134.4771 | AK63: 150.6026 | AL63: 156.88 | AM63: 162.93 | AN63: 160.22875 | AP63: =OFFSET(InputIndexData!F$15,CalculationsAndCharts!$A63+$A$11,IF($C$7,8,0),1,1) -> 204.51 | AQ63: 203.1624 | AR63: 1 | AS63: 1 | AT63: TRUE | AV63: 212
A64: 32 | B64: =OFFSET(InputPriceData!B$15,CalculationsAndCharts!$A64+$A$11,0,1,1) -> 2015-03-05 | C64: =OFFSET(InputPriceData!G$15,CalculationsAndCharts!$A64+$A$11,IF($C$7,8,0),1,1) -> 972900 | D64: =OFFSET(InputPriceData!C$15,CalculationsAndCharts!$A64+$A$11,IF($C$7,8,0),1,1) -> 159.42 | E64: =OFFSET(InputPriceData!D$15,CalculationsAndCharts!$A64+$A$11,IF($C$7,8,0),1,1) -> 162.05 | F64: =OFFSET(InputPriceData!E$15,CalculationsAndCharts!$A64+$A$11,IF($C$7,8,0),1,1) -> 159.42 | G64: =OFFSET(InputPriceData!F$15,CalculationsAndCharts!$A64+$A$11,IF($C$7,8,0),1,1) -> 161.36 | H64: 134.2822 | I64: 150.3304 | J64: 156.4135 | K64: 163.375 | L64: 160.7875 | M64: 972900 | O64: FALSE | P64: DOWN | Q64: FALSE | T64: TRUE | U64: FALSE | V64: FALSE | W64: FALSE | X64: FALSE | Y64: FALSE | AA64: FALSE | AC64: FALSE | AD64: FALSE | AE64: FALSE | AF64: FALSE | AG64: FALSE | AH64: FALSE | AJ64: 134.2822 | AK64: 150.3304 | AL64: 156.4135 | AM64: 163.375 | AN64: 160.7875 | AP64: =OFFSET(InputIndexData!F$15,CalculationsAndCharts!$A64+$A$11,IF($C$7,8,0),1,1) -> 207.43 | AQ64: 203.1618 | AR64: 1 | AS64: 1 | AT64: TRUE | AV64: 212
A65: 33 | B65: =OFFSET(InputPriceData!B$15,CalculationsAndCharts!$A65+$A$11,0,1,1) -> 2015-03-04 | C65: =OFFSET(InputPriceData!G$15,CalculationsAndCharts!$A65+$A$11,IF($C$7,8,0),1,1) -> 2300900 | D65: =OFFSET(InputPriceData!C$15,CalculationsAndCharts!$A65+$A$11,IF($C$7,8,0),1,1) -> 158.48 | E65: =OFFSET(InputPriceData!D$15,CalculationsAndCharts!$A65+$A$11,IF($C$7,8,0),1,1) -> 160.6 | F65: =OFFSET(InputPriceData!E$15,CalculationsAndCharts!$A65+$A$11,IF($C$7,8,0),1,1) -> 158.01 | G65: =OFFSET(InputPriceData!F$15,CalculationsAndCharts!$A65+$A$11,IF($C$7,8,0),1,1) -> 159.47 | H65: 134.0755 | I65: 150.0134 | J65: 155.8375 | K65: 163.7125 | L65: 160.33625 | M65: 2300900 | O65: FALSE | P65: DOWN | Q65: FALSE | T65: TRUE | U65: FALSE | V65: FALSE | W65: FALSE | X65: FALSE | Y65: FALSE | AA65: FALSE | AC65: FALSE | AD65: FALSE | AE65: FALSE | AF65: FALSE | AG65: FALSE | AH65: FALSE | AJ65: 134.0755 | AK65: 150.0134 | AL65: 155.8375 | AM65: 163.7125 | AN65: 160.33625 | AP65: =OFFSET(InputIndexData!F$15,CalculationsAndCharts!$A65+$A$11,IF($C$7,8,0),1,1) -> 207.2 | AQ65: 203.0842 | AR65: 1 | AS65: 1 | AT65: TRUE | AV65: 212
A66: 34 | B66: =OFFSET(InputPriceData!B$15,CalculationsAndCharts!$A66+$A$11,0,1,1) -> 2015-03-03 | C66: =OFFSET(InputPriceData!G$15,CalculationsAndCharts!$A66+$A$11,IF($C$7,8,0),1,1) -> 1223500 | D66: =OFFSET(InputPriceData!C$15,CalculationsAndCharts!$A66+$A$11,IF($C$7,8,0),1,1) -> 160.88 | E66: =OFFSET(InputPriceData!D$15,CalculationsAndCharts!$A66+$A$11,IF($C$7,8,0),1,1) -> 161.25 | F66: =OFFSET(InputPriceData!E$15,CalculationsAndCharts!$A66+$A$11,IF($C$7,8,0),1,1) -> 158.84 | G66: =OFFSET(InputPriceData!F$15,CalculationsAndCharts!$A66+$A$11,IF($C$7,8,0),1,1) -> 159.5 | H66: 133.8667 | I66: 149.7858 | J66: 155.2585 | K66: 163.15125 | L66: 159.57875 | N66: 1223500 | O66: FALSE | P66: DOWN | Q66: TRUE | S66: 159.5 | T66: TRUE | U66: FALSE | V66: FALSE | W66: FALSE | X66: FALSE | Y66: FALSE | AA66: FALSE | AC66: FALSE | AD66: FALSE | AE66: FALSE | AF66: FALSE | AG66: FALSE | AH66: FALSE | AJ66: 133.8667 | AK66: 149.7858 | AL66: 155.2585 | AM66: 163.15125 | AN66: 159.57875 | AP66: =OFFSET(InputIndexData!F$15,CalculationsAndCharts!$A66+$A$11,IF($C$7,8,0),1,1) -> 208.08 | AQ66: 202.994 | AR66: 1 | AS66: 1 | AT66: TRUE | AV66: 212
A67: 35 | B67: =OFFSET(InputPriceData!B$15,CalculationsAndCharts!$A67+$A$11,0,1,1) -> 2015-03-02 | C67: =OFFSET(InputPriceData!G$15,CalculationsAndCharts!$A67+$A$11,IF($C$7,8,0),1,1) -> 2140400 | D67: =OFFSET(InputPriceData!C$15,CalculationsAndCharts!$A67+$A$11,IF($C$7,8,0),1,1) -> 163.61 | E67: =OFFSET(InputPriceData!D$15,CalculationsAndCharts!$A67+$A$11,IF($C$7,8,0),1,1) -> 164.08 | F67: =OFFSET(InputPriceData!E$15,CalculationsAndCharts!$A67+$A$11,IF($C$7,8,0),1,1) -> 160.49 | G67: =OFFSET(InputPriceData!F$15,CalculationsAndCharts!$A67+$A$11,IF($C$7,8,0),1,1) -> 161.25 | H67: 133.6605 | I67: 149.4436 | J67: 154.5485 | K67: 162.315 | L67: 158.77625 | N67: 2140400 | O67: FALSE | P67: UP | Q67: FALSE | T67: TRUE | U67: FALSE | V67: FALSE | W67: FALSE | X67: FALSE | Y67: FALSE | AA67: FALSE | AC67: FALSE | AD67: FALSE | AE67: FALSE | AF67: FALSE | AG67: FALSE | AH67: FALSE | AJ67: 133.6605 | AK67: 149.4436 | AL67: 154.5485 | AM67: 162.315 | AN67: 158.77625 | AP67: =OFFSET(InputIndexData!F$15,CalculationsAndCharts!$A67+$A$11,IF($C$7,8,0),1,1) -> 208.94 | AQ67: 202.7882 | AR67: 1 | AS67: 1 | AT67: TRUE | AV67: 212
A68: 36 | B68: =OFFSET(InputPriceData!B$15,CalculationsAndCharts!$A68+$A$11,0,1,1) -> 2015-02-27 | C68: =OFFSET(InputPriceData!G$15,CalculationsAndCharts!$A68+$A$11,IF($C$7,8,0),1,1) -> 1495300 | D68: =OFFSET(InputPriceData!C$15,CalculationsAndCharts!$A68+$A$11,IF($C$7,8,0),1,1) -> 161.94 | E68: =OFFSET(InputPriceData!D$15,CalculationsAndCharts!$A68+$A$11,IF($C$7,8,0),1,1) -> 164.98 | F68: =OFFSET(InputPriceData!E$15,CalculationsAndCharts!$A68+$A$11,IF($C$7,8,0),1,1) -> 161.94 | G68: =OFFSET(InputPriceData!F$15,CalculationsAndCharts!$A68+$A$11,IF($C$7,8,0),1,1) -> 163.61 | H68: 133.4477 | I68: 149.023 | J68: 153.774 | K68: 161.14625 | L68: 157.90625 | M68: 1495300 | O68: FALSE | P68: UP | Q68: FALSE | T68: TRUE | U68: FALSE | V68: FALSE | W68: FALSE | X68: FALSE | Y68: FALSE | AA68: FALSE | AC68: FALSE | AD68: FALSE | AE68: FALSE | AF68: FALSE | AG68: FALSE | AH68: FALSE | AJ68: 133.4477 | AK68: 149.023 | AL68: 153.774 | AM68: 161.14625 | AN68: 157.90625 | AP68: =OFFSET(InputIndexData!F$15,CalculationsAndCharts!$A68+$A$11,IF($C$7,8,0),1,1) -> 207.63 | AQ68: 202.4892 | AR68: 1 | AS68: 1 | AT68: TRUE | AV68: 212
A69: 37 | B69: =OFFSET(InputPriceData!B$15,CalculationsAndCharts!$A69+$A$11,0,1,1) -> 2015-02-26 | C69: =OFFSET(InputPriceData!G$15,CalculationsAndCharts!$A69+$A$11,IF($C$7,8,0),1,1) -> 1720000 | D69: =OFFSET(InputPriceData!C$15,CalculationsAndCharts!$A69+$A$11,IF($C$7,8,0),1,1) -> 163.21 | E69: =OFFSET(InputPriceData!D$15,CalculationsAndCharts!$A69+$A$11,IF($C$7,8,0),1,1) -> 163.73 | F69: =OFFSET(InputPriceData!E$15,CalculationsAndCharts!$A69+$A$11,IF($C$7,8,0),1,1) -> 161.6 | G69: =OFFSET(InputPriceData!F$15,CalculationsAndCharts!$A69+$A$11,IF($C$7,8,0),1,1) -> 162.59 | H69: 133.23265 | I69: 148.5936 | J69: 153.0395 | K69: 159.79375 | L69: 156.625 | N69: 1720000 | O69: FALSE | P69: UP | Q69: FALSE | T69: TRUE | U69: FALSE | V69: FALSE | W69: FALSE | X69: FALSE | Y69: FALSE | AA69: FALSE | AC69: FALSE | AD69: FALSE | AE69: FALSE | AF69: FALSE | AG69: FALSE | AH69: FALSE | AJ69: 133.23265 | AK69: 148.5936 | AL69: 153.0395 | AM69: 159.79375 | AN69: 156.625 | AP69: =OFFSET(InputIndexData!F$15,CalculationsAndCharts!$A69+$A$11,IF($C$7,8,0),1,1) -> 208.34 | AQ69: 202.2478 | AR69: 1 | AS69: 1 | AT69: TRUE | AV69: 212
A70: 38 | B70: =OFFSET(InputPriceData!B$15,CalculationsAndCharts!$A70+$A$11,0,1,1) -> 2015-02-25 | C70: =OFFSET(InputPriceData!G$15,CalculationsAndCharts!$A70+$A$11,IF($C$7,8,0),1,1) -> 804000 | D70: =OFFSET(InputPriceData!C$15,CalculationsAndCharts!$A70+$A$11,IF($C$7,8,0),1,1) -> 163.67 | E70: =OFFSET(InputPriceData!D$15,CalculationsAndCharts!$A70+$A$11,IF($C$7,8,0),1,1) -> 165.43 | F70: =OFFSET(InputPriceData!E$15,CalculationsAndCharts!$A70+$A$11,IF($C$7,8,0),1,1) -> 163.12 | G70: =OFFSET(InputPriceData!F$15,CalculationsAndCharts!$A70+$A$11,IF($C$7,8,0),1,1) -> 164.6 | H70: 133.0311 | I70: 148.195 | J70: 152.321 | K70: 158.44 | L70: 155.31 | M70: 804000 | O70: FALSE | P70: UP | Q70: FALSE | T70: TRUE | U70: FALSE | V70: FALSE | W70: FALSE | X70: FALSE | Y70: FALSE | AA70: FALSE | AC70: FALSE | AD70: FALSE | AE70: FALSE | AF70: FALSE | AG70: FALSE | AH70: FALSE | AJ70: 133.0311 | AK70: 148.195 | AL70: 152.321 | AM70: 158.44 | AN70: 155.31 | AP70: =OFFSET(InputIndexData!F$15,CalculationsAndCharts!$A70+$A$11,IF($C$7,8,0),1,1) -> 208.58 | AQ70: 202.0192 | AR70: 1 | AS70: 1 | AT70: TRUE | AV70: 212
A71: 39 | B71: =OFFSET(InputPriceData!B$15,CalculationsAndCharts!$A71+$A$11,0,1,1) -> 2015-02-24 | C71: =OFFSET(InputPriceData!G$15,CalculationsAndCharts!$A71+$A$11,IF($C$7,8,0),1,1) -> 1024500 | D71: =OFFSET(InputPriceData!C$15,CalculationsAndCharts!$A71+$A$11,IF($C$7,8,0),1,1) -> 163.74 | E71: =OFFSET(InputPriceData!D$15,CalculationsAndCharts!$A71+$A$11,IF($C$7,8,0),1,1) -> 164.88 | F71: =OFFSET(InputPriceData!E$15,CalculationsAndCharts!$A71+$A$11,IF($C$7,8,0),1,1) -> 162.88 | G71: =OFFSET(InputPriceData!F$15,CalculationsAndCharts!$A71+$A$11,IF($C$7,8,0),1,1) -> 163.67 | H71: 132.8018 | I71: 147.7338 | J71: 151.5935 | K71: 157.01625 | L71: 153.93375 | N71: 1024500 | O71: FALSE | P71: UP | Q71: FALSE | T71: TRUE | U71: FALSE | V71: FALSE | W71: FALSE | X71: FALSE | Y71: FALSE | AA71: FALSE | AC71: FALSE | AD71: FALSE | AE71: FALSE | AF71: FALSE | AG71: FALSE | AH71: FALSE | AJ71: 132.8018 | AK71: 147.7338 | AL71: 151.5935 | AM71: 157.01625 | AN71: 153.93375 | AP71: =OFFSET(InputIndexData!F$15,CalculationsAndCharts!$A71+$A$11,IF($C$7,8,0),1,1) -> 208.76 | AQ71: 201.8506 | AR71: 1 | AS71: 1 | AT71: TRUE | AV71: 212
A72: 40 | B72: =OFFSET(InputPriceData!B$15,CalculationsAndCharts!$A72+$A$11,0,1,1) -> 2015-02-23 | C72: =OFFSET(InputPriceData!G$15,CalculationsAndCharts!$A72+$A$11,IF($C$7,8,0),1,1) -> 3259700 | D72: =OFFSET(InputPriceData!C$15,CalculationsAndCharts!$A72+$A$11,IF($C$7,8,0),1,1) -> 155.83 | E72: =OFFSET(InputPriceData!D$15,CalculationsAndCharts!$A72+$A$11,IF($C$7,8,0),1,1) -> 164.75 | F72: =OFFSET(InputPriceData!E$15,CalculationsAndCharts!$A72+$A$11,IF($C$7,8,0),1,1) -> 155.81 | G72: =OFFSET(InputPriceData!F$15,CalculationsAndCharts!$A72+$A$11,IF($C$7,8,0),1,1) -> 163.75 | H72: 132.5607 | I72: 147.2706 | J72: 150.9745 | K72: 155.5375 | L72: 152.35125 | M72: 3259700 | O72: FALSE | P72: UP | Q72: FALSE | T72: TRUE | U72: FALSE | V72: FALSE | W72: FALSE | X72: FALSE | Y72: FALSE | AA72: FALSE | AC72: FALSE | AD72: FALSE | AE72: FALSE | AF72: FALSE | AG72: FALSE | AH72: FALSE | AJ72: 132.5607 | AK72: 147.2706 | AL72: 150.9745 | AM72: 155.5375 | AN72: 152.35125 | AP72: =OFFSET(InputIndexData!F$15,CalculationsAndCharts!$A72+$A$11,IF($C$7,8,0),1,1) -> 208.17 | AQ72: 201.6582 | AR72: 1 | AS72: 1 | AT72: TRUE | AV72: 212
A73: 41 | B73: =OFFSET(InputPriceData!B$15,CalculationsAndCharts!$A73+$A$11,0,1,1) -> 2015-02-20 | C73: =OFFSET(InputPriceData!G$15,CalculationsAndCharts!$A73+$A$11,IF($C$7,8,0),1,1) -> 1293400 | D73: =OFFSET(InputPriceData!C$15,CalculationsAndCharts!$A73+$A$11,IF($C$7,8,0),1,1) -> 152.37 | E73: =OFFSET(InputPriceData!D$15,CalculationsAndCharts!$A73+$A$11,IF($C$7,8,0),1,1) -> 156.11 | F73: =OFFSET(InputPriceData!E$15,CalculationsAndCharts!$A73+$A$11,IF($C$7,8,0),1,1) -> 151.95 | G73: =OFFSET(InputPriceData!F$15,CalculationsAndCharts!$A73+$A$11,IF($C$7,8,0),1,1) -> 155.39 | H73: 132.33075 | I73: 146.8458 | J73: 150.325 | K73: 153.84125 | L73: 151.28875 | M73: 1293400 | O73: FALSE | P73: UP | Q73: FALSE | T73: TRUE | U73: FALSE | V73: FALSE | W73: FALSE | X73: FALSE | Y73: FALSE | AA73: FALSE | AC73: FALSE | AD73: FALSE | AE73: FALSE | AF73: FALSE | AG73: FALSE | AH73: FALSE | AJ73: 132.33075 | AK73: 146.8458 | AL73: 150.325 | AM73: 153.84125 | AN73: 151.28875 | AP73: =OFFSET(InputIndexData!F$15,CalculationsAndCharts!$A73+$A$11,IF($C$7,8,0),1,1) -> 208.2 | AQ73: 201.5424 | AR73: 1 | AS73: 1 | AT73: TRUE | AV73: 212
A74: 42 | B74: =OFFSET(InputPriceData!B$15,CalculationsAndCharts!$A74+$A$11,0,1,1) -> 2015-02-19 | C74: =OFFSET(InputPriceData!G$15,CalculationsAndCharts!$A74+$A$11,IF($C$7,8,0),1,1) -> 1064100 | D74: =OFFSET(InputPriceData!C$15,CalculationsAndCharts!$A74+$A$11,IF($C$7,8,0),1,1) -> 153.68 | E74: =OFFSET(InputPriceData!D$15,CalculationsAndCharts!$A74+$A$11,IF($C$7,8,0),1,1) -> 154.56 | F74: =OFFSET(InputPriceData!E$15,CalculationsAndCharts!$A74+$A$11,IF($C$7,8,0),1,1) -> 152.42 | G74: =OFFSET(InputPriceData!F$15,CalculationsAndCharts!$A74+$A$11,IF($C$7,8,0),1,1) -> 152.57 | H74: 132.0968 | I74: 146.6104 | J74: 150.202 | K74: 152.895 | L74: 150.54 | N74: 1064100 | O74: FALSE | P74: UP | Q74: FALSE | T74: TRUE | U74: FALSE | V74: FALSE | W74: FALSE | X74: FALSE | Y74: FALSE | AA74: FALSE | AC74: FALSE | AD74: FALSE | AE74: FALSE | AF74: FALSE | AG74: FALSE | AH74: FALSE | AJ74: 132.0968 | AK74: 146.6104 | AL74: 150.202 | AM74: 152.895 | AN74: 150.54 | AP74: =OFFSET(InputIndexData!F$15,CalculationsAndCharts!$A74+$A$11,IF($C$7,8,0),1,1) -> 206.96 | AQ74: 201.4288 | AR74: 1 | AS74: 1 | AT74: TRUE | AV74: 212
A75: 43 | B75: =OFFSET(InputPriceData!B$15,CalculationsAndCharts!$A75+$A$11,0,1,1) -> 2015-02-18 | C75: =OFFSET(InputPriceData!G$15,CalculationsAndCharts!$A75+$A$11,IF($C$7,8,0),1,1) -> 724000 | D75: =OFFSET(InputPriceData!C$15,CalculationsAndCharts!$A75+$A$11,IF($C$7,8,0),1,1) -> 153.91 | E75: =OFFSET(InputPriceData!D$15,CalculationsAndCharts!$A75+$A$11,IF($C$7,8,0),1,1) -> 154.73 | F75: =OFFSET(InputPriceData!E$15,CalculationsAndCharts!$A75+$A$11,IF($C$7,8,0),1,1) -> 153.53 | G75: =OFFSET(InputPriceData!F$15,CalculationsAndCharts!$A75+$A$11,IF($C$7,8,0),1,1) -> 154.68 | H75: 131.8786 | I75: 146.4264 | J75: 150.202 | K75: 152.31125 | L75: 149.82125 | M75: 724000 | O75: FALSE | P75: UP | Q75: FALSE | T75: TRUE | U75: FALSE | V75: FALSE | W75: FALSE | X75: FALSE | Y75: FALSE | AA75: FALSE | AC75: FALSE | AD75: FALSE | AE75: FALSE | AF75: FALSE | AG75: FALSE | AH75: FALSE | AJ75: 131.8786 | AK75: 146.4264 | AL75: 150.202 | AM75: 152.31125 | AN75: 149.82125 | AP75: =OFFSET(InputIndexData!F$15,CalculationsAndCharts!$A75+$A$11,IF($C$7,8,0),1,1) -> 207.11 | AQ75: 201.3672 | AR75: 1 | AS75: 1 | AT75: TRUE | AV75: 212
A76: 44 | B76: =OFFSET(InputPriceData!B$15,CalculationsAndCharts!$A76+$A$11,0,1,1) -> 2015-02-17 | C76: =OFFSET(InputPriceData!G$15,CalculationsAndCharts!$A76+$A$11,IF($C$7,8,0),1,1) -> 914900 | D76: =OFFSET(InputPriceData!C$15,CalculationsAndCharts!$A76+$A$11,IF($C$7,8,0),1,1) -> 151.91 | E76: =OFFSET(InputPriceData!D$15,CalculationsAndCharts!$A76+$A$11,IF($C$7,8,0),1,1) -> 154.16 | F76: =OFFSET(InputPriceData!E$15,CalculationsAndCharts!$A76+$A$11,IF($C$7,8,0),1,1) -> 151.69 | G76: =OFFSET(InputPriceData!F$15,CalculationsAndCharts!$A76+$A$11,IF($C$7,8,0),1,1) -> 154.14 | H76: 131.64375 | I76: 146.1366 | J76: 149.882 | K76: 152.11875 | L76: 149.2475 | M76: 914900 | O76: FALSE | P76: UP | Q76: FALSE | T76: TRUE | U76: FALSE | V76: FALSE | W76: FALSE | X76: FALSE | Y76: FALSE | AA76: FALSE | AC76: FALSE | AD76: FALSE | AE76: FALSE | AF76: FALSE | AG76: FALSE | AH76: FALSE | AJ76: 131.64375 | AK76: 146.1366 | AL76: 149.882 | AM76: 152.11875 | AN76: 149.2475 | AP76: =OFFSET(InputIndexData!F$15,CalculationsAndCharts!$A76+$A$11,IF($C$7,8,0),1,1) -> 207.09 | AQ76: 201.296 | AR76: 1 | AS76: 1 | AT76: TRUE | AV76: 212
A77: 45 | B77: =OFFSET(InputPriceData!B$15,CalculationsAndCharts!$A77+$A$11,0,1,1) -> 2015-02-13 | C77: =OFFSET(InputPriceData!G$15,CalculationsAndCharts!$A77+$A$11,IF($C$7,8,0),1,1) -> 727100 | D77: =OFFSET(InputPriceData!C$15,CalculationsAndCharts!$A77+$A$11,IF($C$7,8,0),1,1) -> 152.59 | E77: =OFFSET(InputPriceData!D$15,CalculationsAndCharts!$A77+$A$11,IF($C$7,8,0),1,1) -> 152.9 | F77: =OFFSET(InputPriceData!E$15,CalculationsAndCharts!$A77+$A$11,IF($C$7,8,0),1,1) -> 151.08 | G77: =OFFSET(InputPriceData!F$15,CalculationsAndCharts!$A77+$A$11,IF($C$7,8,0),1,1) -> 151.96 | H77: 131.4142 | I77: 145.8694 | J77: 149.637 | K77: 151.87 | L77: 148.36 | N77: 727100 | O77: FALSE | P77: UP | Q77: FALSE | T77: TRUE | U77: FALSE | V77: FALSE | W77: FALSE | X77: FALSE | Y77: FALSE | AA77: FALSE | AC77: FALSE | AD77: FALSE | AE77: FALSE | AF77: FALSE | AG77: FALSE | AH77: FALSE | AJ77: 131.4142 | AK77: 145.8694 | AL77: 149.637 | AM77: 151.87 | AN77: 148.36 | AP77: =OFFSET(InputIndexData!F$15,CalculationsAndCharts!$A77+$A$11,IF($C$7,8,0),1,1) -> 206.76 | AQ77: 201.2296 | AR77: 1 | AS77: 1 | AT77: TRUE | AV77: 212
A78: 46 | B78: =OFFSET(InputPriceData!B$15,CalculationsAndCharts!$A78+$A$11,0,1,1) -> 2015-02-12 | C78: =OFFSET(InputPriceData!G$15,CalculationsAndCharts!$A78+$A$11,IF($C$7,8,0),1,1) -> 655800 | D78: =OFFSET(InputPriceData!C$15,CalculationsAndCharts!$A78+$A$11,IF($C$7,8,0),1,1) -> 153.28 | E78: =OFFSET(InputPriceData!D$15,CalculationsAndCharts!$A78+$A$11,IF($C$7,8,0),1,1) -> 154.04 | F78: =OFFSET(InputPriceData!E$15,CalculationsAndCharts!$A78+$A$11,IF($C$7,8,0),1,1) -> 152.11 | G78: =OFFSET(InputPriceData!F$15,CalculationsAndCharts!$A78+$A$11,IF($C$7,8,0),1,1) -> 153.01 | H78: 131.1972 | I78: 145.6142 | J78: 149.4005 | K78: 151.265 | L78: 147.4375 | N78: 655800 | O78: FALSE | P78: UP | Q78: FALSE | T78: TRUE | U78: FALSE | V78: FALSE | W78: FALSE | X78: FALSE | Y78: FALSE | AA78: FALSE | AC78: FALSE | AD78: FALSE | AE78: FALSE | AF78: FALSE | AG78: FALSE | AH78: FALSE | AJ78: 131.1972 | AK78: 145.6142 | AL78: 149.4005 | AM78: 151.265 | AN78: 147.4375 | AP78: =OFFSET(InputIndexData!F$15,CalculationsAndCharts!$A78+$A$11,IF($C$7,8,0),1,1) -> 205.91 | AQ78: 201.1542 | AR78: 1 | AS78: 0.5 | AT78: TRUE | AV78: 212
A79: 47 | B79: =OFFSET(InputPriceData!B$15,CalculationsAndCharts!$A79+$A$11,0,1,1) -> 2015-02-11 | C79: =OFFSET(InputPriceData!G$15,CalculationsAndCharts!$A79+$A$11,IF($C$7,8,0),1,1) -> 717100 | D79: =OFFSET(InputPriceData!C$15,CalculationsAndCharts!$A79+$A$11,IF($C$7,8,0),1,1) -> 150.74 | E79: =OFFSET(InputPriceData!D$15,CalculationsAndCharts!$A79+$A$11,IF($C$7,8,0),1,1) -> 153.05 | F79: =OFFSET(InputPriceData!E$15,CalculationsAndCharts!$A79+$A$11,IF($C$7,8,0),1,1) -> 150.22 | G79: =OFFSET(InputPriceData!F$15,CalculationsAndCharts!$A79+$A$11,IF($C$7,8,0),1,1) -> 152.61 | H79: 130.9715 | I79: 145.3174 | J79: 149.093 | K79: 150.3125 | L79: 146.27 | M79: 717100 | O79: FALSE | P79: UP | Q79: FALSE | T79: FALSE | U79: FALSE | V79: FALSE | W79: FALSE | X79: FALSE | Y79: FALSE | AA79: FALSE | AC79: FALSE | AD79: FALSE | AE79: FALSE | AF79: FALSE | AG79: FALSE | AH79: FALSE | AJ79: 130.9715 | AK79: 145.3174 | AL79: 149.093 | AM79: 150.3125 | AN79: 146.27 | AP79: =OFFSET(InputIndexData!F$15,CalculationsAndCharts!$A79+$A$11,IF($C$7,8,0),1,1) -> 203.95 | AQ79: 201.0698 | AR79: 1 | AS79: 0 | AT79: FALSE | AW79: 212
A80: 48 | B80: =OFFSET(InputPriceData!B$15,CalculationsAndCharts!$A80+$A$11,0,1,1) -> 2015-02-10 | C80: =OFFSET(InputPriceData!G$15,CalculationsAndCharts!$A80+$A$11,IF($C$7,8,0),1,1) -> 784700 | D80: =OFFSET(InputPriceData!C$15,CalculationsAndCharts!$A80+$A$11,IF($C$7,8,0),1,1) -> 148.04 | E80: =OFFSET(InputPriceData!D$15,CalculationsAndCharts!$A80+$A$11,IF($C$7,8,0),1,1) -> 151.18 | F80: =OFFSET(InputPriceData!E$15,CalculationsAndCharts!$A80+$A$11,IF($C$7,8,0),1,1) -> 147.31 | G80: =OFFSET(InputPriceData!F$15,CalculationsAndCharts!$A80+$A$11,IF($C$7,8,0),1,1) -> 150.94 | H80: 130.7474 | I80: 145.0064 | J80: 148.7705 | K80: 149.8 | L80: 145.6525 | M80: 784700 | O80: TRUE | P80: UP | Q80: FALSE | R80: 150.94 | T80: FALSE | U80: FALSE | V80: FALSE | W80: FALSE | X80: FALSE | Y80: FALSE | AA80: FALSE | AC80: FALSE | AD80: FALSE | AE80: FALSE | AF80: FALSE | AG80: FALSE | AH80: FALSE | AJ80: 130.7474 | AK80: 145.0064 | AL80: 148.7705 | AM80: 149.8 | AN80: 145.6525 | AP80: =OFFSET(InputIndexData!F$15,CalculationsAndCharts!$A80+$A$11,IF($C$7,8,0),1,1) -> 203.83 | AQ80: 201.0528 | AR80: 1 | AS80: 0 | AT80: FALSE | AW80: 212
A81: 49 | B81: =OFFSET(InputPriceData!B$15,CalculationsAndCharts!$A81+$A$11,0,1,1) -> 2015-02-09 | C81: =OFFSET(InputPriceData!G$15,CalculationsAndCharts!$A81+$A$11,IF($C$7,8,0),1,1) -> 756700 | D81: =OFFSET(InputPriceData!C$15,CalculationsAndCharts!$A81+$A$11,IF($C$7,8,0),1,1) -> 146.58 | E81: =OFFSET(InputPriceData!D$15,CalculationsAndCharts!$A81+$A$11,IF($C$7,8,0),1,1) -> 148.54 | F81: =OFFSET(InputPriceData!E$15,CalculationsAndCharts!$A81+$A$11,IF($C$7,8,0),1,1) -> 145.96 | G81: =OFFSET(InputPriceData!F$15,CalculationsAndCharts!$A81+$A$11,IF($C$7,8,0),1,1) -> 146.46 | H81: 130.5327 | I81: 144.7194 | J81: 148.465 | K81: 149.56 | L81: 145.42875 | N81: 756700 | O81: FALSE | P81: DOWN | Q81: FALSE | T81: FALSE | U81: FALSE | V81: FALSE | W81: FALSE | X81: FALSE | Y81: FALSE | AA81: FALSE | AC81: FALSE | AD81: FALSE | AE81: FALSE | AF81: FALSE | AG81: FALSE | AH81: FALSE | AJ81: 130.5327 | AK81: 144.7194 | AL81: 148.465 | AM81: 149.56 | AN81: 145.42875 | AP81: =OFFSET(InputIndexData!F$15,CalculationsAndCharts!$A81+$A$11,IF($C$7,8,0),1,1) -> 201.69 | AQ81: 201.0468 | AR81: -1 | AS81: -0.5 | AT81: FALSE | AW81: 212
A82: 50 | B82: =OFFSET(InputPriceData!B$15,CalculationsAndCharts!$A82+$A$11,0,1,1) -> 2015-02-06 | C82: =OFFSET(InputPriceData!G$15,CalculationsAndCharts!$A82+$A$11,IF($C$7,8,0),1,1) -> 1159000 | D82: =OFFSET(InputPriceData!C$15,CalculationsAndCharts!$A82+$A$11,IF($C$7,8,0),1,1) -> 149.59 | E82: =OFFSET(InputPriceData!D$15,CalculationsAndCharts!$A82+$A$11,IF($C$7,8,0),1,1) -> 149.89 | F82: =OFFSET(InputPriceData!E$15,CalculationsAndCharts!$A82+$A$11,IF($C$7,8,0),1,1) -> 146.67 | G82: =OFFSET(InputPriceData!F$15,CalculationsAndCharts!$A82+$A$11,IF($C$7,8,0),1,1) -> 147.05 | H82: 130.3386 | I82: 144.5258 | J82: 148.4455 | K82: 149.94125 | L82: 145.65875 | N82: 1159000 | O82: FALSE | P82: DOWN | Q82: FALSE | T82: FALSE | U82: FALSE | V82: FALSE | W82: FALSE | X82: FALSE | Y82: FALSE | AA82: FALSE | AC82: FALSE | AD82: FALSE | AE82: FALSE | AF82: FALSE | AG82: FALSE | AH82: FALSE | AJ82: 130.3386 | AK82: 144.5258 | AL82: 148.4455 | AM82: 149.94125 | AN82: 145.65875 | AP82: =OFFSET(InputIndexData!F$15,CalculationsAndCharts!$A82+$A$11,IF($C$7,8,0),1,1) -> 202.59 | AQ82: 201.0732 | AR82: -1 | AS82: 0 | AT82: FALSE | AW82: 212
A83: 51 | B83: =OFFSET(InputPriceData!B$15,CalculationsAndCharts!$A83+$A$11,0,1,1) -> 2015-02-05 | C83: =OFFSET(InputPriceData!G$15,CalculationsAndCharts!$A83+$A$11,IF($C$7,8,0),1,1) -> 1203700 | D83: =OFFSET(InputPriceData!C$15,CalculationsAndCharts!$A83+$A$11,IF($C$7,8,0),1,1) -> 152.79 | E83: =OFFSET(InputPriceData!D$15,CalculationsAndCharts!$A83+$A$11,IF($C$7,8,0),1,1) -> 153.19 | F83: =OFFSET(InputPriceData!E$15,CalculationsAndCharts!$A83+$A$11,IF($C$7,8,0),1,1) -> 148.94 | G83: =OFFSET(InputPriceData!F$15,CalculationsAndCharts!$A83+$A$11,IF($C$7,8,0),1,1) -> 149.66 | H83: 130.13685 | I83: 144.3632 | J83: 148.45 | K83: 150.1225 | L83: 145.99375 | N83: 1203700 | O83: FALSE | P83: DOWN | Q83: FALSE | T83: FALSE | U83: FALSE | V83: FALSE | W83: FALSE | X83: FALSE | Y83: FALSE | AA83: FALSE | AC83: FALSE | AD83: FALSE | AE83: FALSE | AF83: FALSE | AG83: FALSE | AH83: FALSE | AJ83: 130.13685 | AK83: 144.3632 | AL83: 148.45 | AM83: 150.1225 | AN83: 145.99375 | AP83: =OFFSET(InputIndexData!F$15,CalculationsAndCharts!$A83+$A$11,IF($C$7,8,0),1,1) -> 203.15 | AQ83: 201.0846 | AR83: 1 | AS83: 0 | AT83: FALSE | AW83: 212
A84: 52 | B84: =OFFSET(InputPriceData!B$15,CalculationsAndCharts!$A84+$A$11,0,1,1) -> 2015-02-04 | C84: =OFFSET(InputPriceData!G$15,CalculationsAndCharts!$A84+$A$11,IF($C$7,8,0),1,1) -> 1784300 | D84: =OFFSET(InputPriceData!C$15,CalculationsAndCharts!$A84+$A$11,IF($C$7,8,0),1,1) -> 147.48 | E84: =OFFSET(InputPriceData!D$15,CalculationsAndCharts!$A84+$A$11,IF($C$7,8,0),1,1) -> 152.17 | F84: =OFFSET(InputPriceData!E$15,CalculationsAndCharts!$A84+$A$11,IF($C$7,8,0),1,1) -> 144.59 | G84: =OFFSET(InputPriceData!F$15,CalculationsAndCharts!$A84+$A$11,IF($C$7,8,0),1,1) -> 149.84 | H84: 129.9221 | I84: 144.0804 | J84: 148.0205 | K84: 149.92375 | L84: 145.9025 | M84: 1784300 | O84: FALSE | P84: DOWN | Q84: FALSE | T84: FALSE | U84: FALSE | V84: FALSE | W84: FALSE | X84: FALSE | Y84: FALSE | AA84: FALSE | AC84: FALSE | AD84: FALSE | AE84: FALSE | AF84: FALSE | AG84: FALSE | AH84: FALSE | AJ84: 129.9221 | AK84: 144.0804 | AL84: 148.0205 | AM84: 149.92375 | AN84: 145.9025 | AP84: =OFFSET(InputIndexData!F$15,CalculationsAndCharts!$A84+$A$11,IF($C$7,8,0),1,1) -> 201.12 | AQ84: 201.0734 | AR84: -1 | AS84: -0.5 | AT84: FALSE | AW84: 212
A85: 53 | B85: =OFFSET(InputPriceData!B$15,CalculationsAndCharts!$A85+$A$11,0,1,1) -> 2015-02-03 | C85: =OFFSET(InputPriceData!G$15,CalculationsAndCharts!$A85+$A$11,IF($C$7,8,0),1,1) -> 1241400 | D85: =OFFSET(InputPriceData!C$15,CalculationsAndCharts!$A85+$A$11,IF($C$7,8,0),1,1) -> 145.28 | E85: =OFFSET(InputPriceData!D$15,CalculationsAndCharts!$A85+$A$11,IF($C$7,8,0),1,1) -> 148.06 | F85: =OFFSET(InputPriceData!E$15,CalculationsAndCharts!$A85+$A$11,IF($C$7,8,0),1,1) -> 143.7 | G85: =OFFSET(InputPriceData!F$15,CalculationsAndCharts!$A85+$A$11,IF($C$7,8,0),1,1) -> 147.89 | H85: 129.6941 | I85: 143.7896 | J85: 147.4505 | K85: 150.225 | L85: 146.6625 | M85: 1241400 | O85: FALSE | P85: DOWN | Q85: FALSE | T85: FALSE | U85: FALSE | V85: FALSE | W85: FALSE | X85: FALSE | Y85: FALSE | AA85: FALSE | AC85: FALSE | AD85: FALSE | AE85: FALSE | AF85: FALSE | AG85: FALSE | AH85: FALSE | AJ85: 129.6941 | AK85: 143.7896 | AL85: 147.4505 | AM85: 150.225 | AN85: 146.6625 | AP85: =OFFSET(InputIndexData!F$15,CalculationsAndCharts!$A85+$A$11,IF($C$7,8,0),1,1) -> 201.89 | AQ85: 201.0812 | AR85: 1 | AS85: -0.5 | AT85: FALSE | AW85: 212
A86: 54 | B86: =OFFSET(InputPriceData!B$15,CalculationsAndCharts!$A86+$A$11,0,1,1) -> 2015-02-02 | C86: =OFFSET(InputPriceData!G$15,CalculationsAndCharts!$A86+$A$11,IF($C$7,8,0),1,1) -> 1538800 | D86: =OFFSET(InputPriceData!C$15,CalculationsAndCharts!$A86+$A$11,IF($C$7,8,0),1,1) -> 146.2 | E86: =OFFSET(InputPriceData!D$15,CalculationsAndCharts!$A86+$A$11,IF($C$7,8,0),1,1) -> 146.42 | F86: =OFFSET(InputPriceData!E$15,CalculationsAndCharts!$A86+$A$11,IF($C$7,8,0),1,1) -> 142.77 | G86: =OFFSET(InputPriceData!F$15,CalculationsAndCharts!$A86+$A$11,IF($C$7,8,0),1,1) -> 145.3 | H86: 129.47265 | I86: 143.545 | J86: 146.9835 | K86: 150.935 | L86: 147.56125 | N86: 1538800 | O86: FALSE | P86: DOWN | Q86: FALSE | T86: FALSE | U86: FALSE | V86: FALSE | W86: FALSE | X86: FALSE | Y86: FALSE | AA86: FALSE | AC86: FALSE | AD86: FALSE | AE86: FALSE | AF86: FALSE | AG86: FALSE | AH86: FALSE | AJ86: 129.47265 | AK86: 143.545 | AL86: 146.9835 | AM86: 150.935 | AN86: 147.56125 | AP86: =OFFSET(InputIndexData!F$15,CalculationsAndCharts!$A86+$A$11,IF($C$7,8,0),1,1) -> 199.01 | AQ86: 201.0666 | AR86: -1 | AS86: -1 | AT86: FALSE | AW86: 212
A87: 55 | B87: =OFFSET(InputPriceData!B$15,CalculationsAndCharts!$A87+$A$11,0,1,1) -> 2015-01-30 | C87: =OFFSET(InputPriceData!G$15,CalculationsAndCharts!$A87+$A$11,IF($C$7,8,0),1,1) -> 1005800 | D87: =OFFSET(InputPriceData!C$15,CalculationsAndCharts!$A87+$A$11,IF($C$7,8,0),1,1) -> 147.33 | E87: =OFFSET(InputPriceData!D$15,CalculationsAndCharts!$A87+$A$11,IF($C$7,8,0),1,1) -> 148.95 | F87: =OFFSET(InputPriceData!E$15,CalculationsAndCharts!$A87+$A$11,IF($C$7,8,0),1,1) -> 145.28 | G87: =OFFSET(InputPriceData!F$15,CalculationsAndCharts!$A87+$A$11,IF($C$7,8,0),1,1) -> 145.76 | H87: 129.28425 | I87: 143.4064 | J87: 146.8345 | K87: 151.84 | L87: 148.27 | N87: 1005800 | O87: FALSE | P87: DOWN | Q87: FALSE | T87: FALSE | U87: FALSE | V87: FALSE | W87: FALSE | X87: FALSE | Y87: FALSE | AA87: FALSE | AC87: FALSE | AD87: FALSE | AE87: FALSE | AF87: FALSE | AG87: FALSE | AH87: FALSE | AJ87: 129.28425 | AK87: 143.4064 | AL87: 146.8345 | AM87: 151.84 | AN87: 148.27 | AP87: =OFFSET(InputIndexData!F$15,CalculationsAndCharts!$A87+$A$11,IF($C$7,8,0),1,1) -> 196.58 | AQ87: 201.116 | AR87: -1 | AS87: -1 | AT87: FALSE | AW87: 212
A88: 56 | B88: =OFFSET(InputPriceData!B$15,CalculationsAndCharts!$A88+$A$11,0,1,1) -> 2015-01-29 | C88: =OFFSET(InputPriceData!G$15,CalculationsAndCharts!$A88+$A$11,IF($C$7,8,0),1,1) -> 915300 | D88: =OFFSET(InputPriceData!C$15,CalculationsAndCharts!$A88+$A$11,IF($C$7,8,0),1,1) -> 148.31 | E88: =OFFSET(InputPriceData!D$15,CalculationsAndCharts!$A88+$A$11,IF($C$7,8,0),1,1) -> 149.26 | F88: =OFFSET(InputPriceData!E$15,CalculationsAndCharts!$A88+$A$11,IF($C$7,8,0),1,1) -> 145.52 | G88: =OFFSET(InputPriceData!F$15,CalculationsAndCharts!$A88+$A$11,IF($C$7,8,0),1,1) -> 148.92 | H88: 129.09775 | I88: 143.2226 | J88: 146.6945 | K88: 152.02375 | L88: 148.39875 | M88: 915300 | O88: FALSE | P88: DOWN | Q88: FALSE | T88: FALSE | U88: FALSE | V88: FALSE | W88: FALSE | X88: FALSE | Y88: TRUE | Z88: 189.2 | AA88: FALSE | AC88: FALSE | AD88: FALSE | AE88: FALSE | AF88: FALSE | AG88: FALSE | AH88: FALSE | AJ88: 129.09775 | AK88: 143.2226 | AL88: 146.6945 | AM88: 152.02375 | AN88: 148.39875 | AP88: =OFFSET(InputIndexData!F$15,CalculationsAndCharts!$A88+$A$11,IF($C$7,8,0),1,1) -> 199.08 | AQ88: 201.1908 | AR88: -1 | AS88: -0.5 | AT88: FALSE | AW88: 212
A89: 57 | B89: =OFFSET(InputPriceData!B$15,CalculationsAndCharts!$A89+$A$11,0,1,1) -> 2015-01-28 | C89: =OFFSET(InputPriceData!G$15,CalculationsAndCharts!$A89+$A$11,IF($C$7,8,0),1,1) -> 982100 | D89: =OFFSET(InputPriceData!C$15,CalculationsAndCharts!$A89+$A$11,IF($C$7,8,0),1,1) -> 150.89 | E89: =OFFSET(InputPriceData!D$15,CalculationsAndCharts!$A89+$A$11,IF($C$7,8,0),1,1) -> 151.59 | F89: =OFFSET(InputPriceData!E$15,CalculationsAndCharts!$A89+$A$11,IF($C$7,8,0),1,1) -> 147.8 | G89: =OFFSET(InputPriceData!F$15,CalculationsAndCharts!$A89+$A$11,IF($C$7,8,0),1,1) -> 148.22 | H89: 128.89345 | I89: 142.9418 | J89: 146.503 | K89: 152.03625 | L89: 148.4775 | N89: 982100 | O89: FALSE | P89: DOWN | Q89: TRUE | S89: 148.22 | T89: TRUE | U89: FALSE | V89: FALSE | W89: TRUE | X89: TRUE | Y89: FALSE | Z89: 189.2 | AA89: FALSE | AC89: FALSE | AD89: FALSE | AE89: FALSE | AF89: FALSE | AG89: FALSE | AH89: FALSE | AJ89: 128.89345 | AK89: 142.9418 | AL89: 146.503 | AM89: 152.03625 | AN89: 148.4775 | AP89: =OFFSET(InputIndexData!F$15,CalculationsAndCharts!$A89+$A$11,IF($C$7,8,0),1,1) -> 197.26 | AQ89: 201.2132 | AR89: -1 | AS89: 0 | AT89: TRUE | AV89: 212
A90: 58 | B90: =OFFSET(InputPriceData!B$15,CalculationsAndCharts!$A90+$A$11,0,1,1) -> 2015-01-27 | C90: =OFFSET(InputPriceData!G$15,CalculationsAndCharts!$A90+$A$11,IF($C$7,8,0),1,1) -> 634100 | D90: =OFFSET(InputPriceData!C$15,CalculationsAndCharts!$A90+$A$11,IF($C$7,8,0),1,1) -> 150.35 | E90: =OFFSET(InputPriceData!D$15,CalculationsAndCharts!$A90+$A$11,IF($C$7,8,0),1,1) -> 151.34 | F90: =OFFSET(InputPriceData!E$15,CalculationsAndCharts!$A90+$A$11,IF($C$7,8,0),1,1) -> 149.35 | G90: =OFFSET(InputPriceData!F$15,CalculationsAndCharts!$A90+$A$11,IF($C$7,8,0),1,1) -> 150.05 | H90: 128.6873 | I90: 142.7274 | J90: 146.2825 | K90: 151.72 | L90: 148.3475 | N90: 634100 | O90: FALSE | P90: UP | Q90: FALSE | T90: TRUE | U90: FALSE | V90: FALSE | W90: TRUE | X90: FALSE | Y90: FALSE | Z90: 189.2 | AA90: FALSE | AC90: FALSE | AD90: FALSE | AE90: FALSE | AF90: FALSE | AG90: FALSE | AH90: FALSE | AJ90: 128.6873 | AK90: 142.7274 | AL90: 146.2825 | AM90: 151.72 | AN90: 148.3475 | AP90: =OFFSET(InputIndexData!F$15,CalculationsAndCharts!$A90+$A$11,IF($C$7,8,0),1,1) -> 199.82 | AQ90: 201.271 | AR90: -1 | AS90: 0.5 | AT90: TRUE | AV90: 212
A91: 59 | B91: =OFFSET(InputPriceData!B$15,CalculationsAndCharts!$A91+$A$11,0,1,1) -> 2015-01-26 | C91: =OFFSET(InputPriceData!G$15,CalculationsAndCharts!$A91+$A$11,IF($C$7,8,0),1,1) -> 822700 | D91: =OFFSET(InputPriceData!C$15,CalculationsAndCharts!$A91+$A$11,IF($C$7,8,0),1,1) -> 150.27 | E91: =OFFSET(InputPriceData!D$15,CalculationsAndCharts!$A91+$A$11,IF($C$7,8,0),1,1) -> 151.6 | F91: =OFFSET(InputPriceData!E$15,CalculationsAndCharts!$A91+$A$11,IF($C$7,8,0),1,1) -> 148.21 | G91: =OFFSET(InputPriceData!F$15,CalculationsAndCharts!$A91+$A$11,IF($C$7,8,0),1,1) -> 151.29 | H91: 128.4794 | I91: 142.4534 | J91: 145.986 | K91: 151.1825 | L91: 147.65625 | M91: 822700 | O91: FALSE | P91: UP | Q91: FALSE | T91: TRUE | U91: FALSE | V91: FALSE | W91: TRUE | X91: FALSE | Y91: FALSE | Z91: 189.2 | AA91: FALSE | AC91: FALSE | AD91: FALSE | AE91: FALSE | AF91: FALSE | AG91: FALSE | AH91: FALSE | AJ91: 128.4794 | AK91: 142.4534 | AL91: 145.986 | AM91: 151.1825 | AN91: 147.65625 | AP91: =OFFSET(InputIndexData!F$15,CalculationsAndCharts!$A91+$A$11,IF($C$7,8,0),1,1) -> 202.49 | AQ91: 201.273 | AR91: 1 | AS91: 1 | AT91: TRUE | AV91: 212
A92: 60 | B92: =OFFSET(InputPriceData!B$15,CalculationsAndCharts!$A92+$A$11,0,1,1) -> 2015-01-23 | C92: =OFFSET(InputPriceData!G$15,CalculationsAndCharts!$A92+$A$11,IF($C$7,8,0),1,1) -> 659400 | D92: =OFFSET(InputPriceData!C$15,CalculationsAndCharts!$A92+$A$11,IF($C$7,8,0),1,1) -> 153.22 | E92: =OFFSET(InputPriceData!D$15,CalculationsAndCharts!$A92+$A$11,IF($C$7,8,0),1,1) -> 154.58 | F92: =OFFSET(InputPriceData!E$15,CalculationsAndCharts!$A92+$A$11,IF($C$7,8,0),1,1) -> 150.67 | G92: =OFFSET(InputPriceData!F$15,CalculationsAndCharts!$A92+$A$11,IF($C$7,8,0),1,1) -> 150.76 | H92: 128.28625 | I92: 142.1384 | J92: 145.593 | K92: 150.79875 | L92: 147.2675 | N92: 659400 | O92: FALSE | P92: UP | Q92: FALSE | T92: TRUE | U92: FALSE | V92: FALSE | W92: TRUE | X92: FALSE | Y92: FALSE | Z92: 189.2 | AA92: FALSE | AC92: FALSE | AD92: FALSE | AE92: FALSE | AF92: FALSE | AG92: FALSE | AH92: FALSE | AJ92: 128.28625 | AK92: 142.1384 | AL92: 145.593 | AM92: 150.79875 | AN92: 147.2675 | AP92: =OFFSET(InputIndexData!F$15,CalculationsAndCharts!$A92+$A$11,IF($C$7,8,0),1,1) -> 202.02 | AQ92: 201.226 | AR92: 1 | AS92: 1 | AT92: TRUE | AV92: 212
A93: 61 | B93: =OFFSET(InputPriceData!B$15,CalculationsAndCharts!$A93+$A$11,0,1,1) -> 2015-01-22 | C93: =OFFSET(InputPriceData!G$15,CalculationsAndCharts!$A93+$A$11,IF($C$7,8,0),1,1) -> 988800 | D93: =OFFSET(InputPriceData!C$15,CalculationsAndCharts!$A93+$A$11,IF($C$7,8,0),1,1) -> 152.99 | E93: =OFFSET(InputPriceData!D$15,CalculationsAndCharts!$A93+$A$11,IF($C$7,8,0),1,1) -> 153.74 | F93: =OFFSET(InputPriceData!E$15,CalculationsAndCharts!$A93+$A$11,IF($C$7,8,0),1,1) -> 150.89 | G93: =OFFSET(InputPriceData!F$15,CalculationsAndCharts!$A93+$A$11,IF($C$7,8,0),1,1) -> 152.93 | H93: 128.08275 | I93: 141.755 | J93: 145.242 | K93: 149.8525 | L93: 146.45875 | N93: 988800 | O93: FALSE | P93: UP | Q93: FALSE | T93: TRUE | U93: FALSE | V93: FALSE | W93: TRUE | X93: FALSE | Y93: FALSE | Z93: 189.2 | AA93: FALSE | AC93: FALSE | AD93: FALSE | AE93: FALSE | AF93: FALSE | AG93: FALSE | AH93: FALSE | AJ93: 128.08275 | AK93: 141.755 | AL93: 145.242 | AM93: 149.8525 | AN93: 146.45875 | AP93: =OFFSET(InputIndexData!F$15,CalculationsAndCharts!$A93+$A$11,IF($C$7,8,0),1,1) -> 203.13 | AQ93: 201.1844 | AR93: 1 | AS93: 1 | AT93: TRUE | AV93: 212
A94: 62 | B94: =OFFSET(InputPriceData!B$15,CalculationsAndCharts!$A94+$A$11,0,1,1) -> 2015-01-21 | C94: =OFFSET(InputPriceData!G$15,CalculationsAndCharts!$A94+$A$11,IF($C$7,8,0),1,1) -> 1642900 | D94: =OFFSET(InputPriceData!C$15,CalculationsAndCharts!$A94+$A$11,IF($C$7,8,0),1,1) -> 148.73 | E94: =OFFSET(InputPriceData!D$15,CalculationsAndCharts!$A94+$A$11,IF($C$7,8,0),1,1) -> 153.66 | F94: =OFFSET(InputPriceData!E$15,CalculationsAndCharts!$A94+$A$11,IF($C$7,8,0),1,1) -> 148.44 | G94: =OFFSET(InputPriceData!F$15,CalculationsAndCharts!$A94+$A$11,IF($C$7,8,0),1,1) -> 152.57 | H94: 127.872 | I94: 141.2908 | J94: 144.8645 | K94: 149.05625 | L94: 145.83375 | M94: 1642900 | O94: FALSE | P94: UP | Q94: FALSE | T94: TRUE | U94: FALSE | V94: FALSE | W94: TRUE | X94: FALSE | Y94: FALSE | Z94: 189.2 | AA94: FALSE | AC94: FALSE | AD94: FALSE | AE94: FALSE | AF94: FALSE | AG94: FALSE | AH94: FALSE | AJ94: 127.872 | AK94: 141.2908 | AL94: 144.8645 | AM94: 149.05625 | AN94: 145.83375 | AP94: =OFFSET(InputIndexData!F$15,CalculationsAndCharts!$A94+$A$11,IF($C$7,8,0),1,1) -> 200.16 | AQ94: 201.108 | AR94: 1 | AS94: 0.5 | AT94: TRUE | AV94: 212
A95: 63 | B95: =OFFSET(InputPriceData!B$15,CalculationsAndCharts!$A95+$A$11,0,1,1) -> 2015-01-20 | C95: =OFFSET(InputPriceData!G$15,CalculationsAndCharts!$A95+$A$11,IF($C$7,8,0),1,1) -> 1659000 | D95: =OFFSET(InputPriceData!C$15,CalculationsAndCharts!$A95+$A$11,IF($C$7,8,0),1,1) -> 150.16 | E95: =OFFSET(InputPriceData!D$15,CalculationsAndCharts!$A95+$A$11,IF($C$7,8,0),1,1) -> 150.42 | F95: =OFFSET(InputPriceData!E$15,CalculationsAndCharts!$A95+$A$11,IF($C$7,8,0),1,1) -> 146.31 | G95: =OFFSET(InputPriceData!F$15,CalculationsAndCharts!$A95+$A$11,IF($C$7,8,0),1,1) -> 148.28 | H95: 127.6641 | I95: 141.0184 | J95: 144.5115 | K95: 148.31125 | L95: 145.1475 | N95: 1659000 | O95: FALSE | P95: UP | Q95: FALSE | T95: TRUE | U95: FALSE | V95: FALSE | W95: TRUE | X95: FALSE | Y95: FALSE | Z95: 189.2 | AA95: FALSE | AC95: FALSE | AD95: FALSE | AE95: FALSE | AF95: FALSE | AG95: FALSE | AH95: FALSE | AJ95: 127.6641 | AK95: 141.0184 | AL95: 144.5115 | AM95: 148.31125 | AN95: 145.1475 | AP95: =OFFSET(InputIndexData!F$15,CalculationsAndCharts!$A95+$A$11,IF($C$7,8,0),1,1) -> 199.15 | AQ95: 201.0874 | AR95: 1 | AS95: 0.5 | AT95: TRUE | AV95: 212
A96: 64 | B96: =OFFSET(InputPriceData!B$15,CalculationsAndCharts!$A96+$A$11,0,1,1) -> 2015-01-16 | C96: =OFFSET(InputPriceData!G$15,CalculationsAndCharts!$A96+$A$11,IF($C$7,8,0),1,1) -> 816300 | D96: =OFFSET(InputPriceData!C$15,CalculationsAndCharts!$A96+$A$11,IF($C$7,8,0),1,1) -> 147.14 | E96: =OFFSET(InputPriceData!D$15,CalculationsAndCharts!$A96+$A$11,IF($C$7,8,0),1,1) -> 149.36 | F96: =OFFSET(InputPriceData!E$15,CalculationsAndCharts!$A96+$A$11,IF($C$7,8,0),1,1) -> 146.15 | G96: =OFFSET(InputPriceData!F$15,CalculationsAndCharts!$A96+$A$11,IF($C$7,8,0),1,1) -> 149.24 | H96: 127.48695 | I96: 140.8134 | J96: 144.502 | K96: 147.20625 | L96: 144.24375 | M96: 816300 | O96: FALSE | P96: UP | Q96: FALSE | T96: TRUE | U96: FALSE | V96: FALSE | W96: TRUE | X96: FALSE | Y96: FALSE | Z96: 189.2 | AA96: FALSE | AC96: FALSE | AD96: FALSE | AE96: FALSE | AF96: FALSE | AG96: FALSE | AH96: FALSE | AJ96: 127.48695 | AK96: 140.8134 | AL96: 144.502 | AM96: 147.20625 | AN96: 144.24375 | AP96: =OFFSET(InputIndexData!F$15,CalculationsAndCharts!$A96+$A$11,IF($C$7,8,0),1,1) -> 198.73 | AQ96: 201.071 | AR96: 1 | AS96: 0.5 | AT96: TRUE | AV96: 212
A97: 65 | B97: =OFFSET(InputPriceData!B$15,CalculationsAndCharts!$A97+$A$11,0,1,1) -> 2015-01-15 | C97: =OFFSET(InputPriceData!G$15,CalculationsAndCharts!$A97+$A$11,IF($C$7,8,0),1,1) -> 882400 | D97: =OFFSET(InputPriceData!C$15,CalculationsAndCharts!$A97+$A$11,IF($C$7,8,0),1,1) -> 147.21 | E97: =OFFSET(InputPriceData!D$15,CalculationsAndCharts!$A97+$A$11,IF($C$7,8,0),1,1) -> 149.06 | F97: =OFFSET(InputPriceData!E$15,CalculationsAndCharts!$A97+$A$11,IF($C$7,8,0),1,1) -> 146.76 | G97: =OFFSET(InputPriceData!F$15,CalculationsAndCharts!$A97+$A$11,IF($C$7,8,0),1,1) -> 147.23 | H97: =AVERAGE(OFFSET(G97,0,0,$A$17,1)) -> 127.2955 | I97: =AVERAGE(OFFSET(G97,0,0,$A$18,1)) -> 140.5654 | J97: =AVERAGE(OFFSET(G97,0,0,$A$19,1)) -> 144.1595 | K97: =AVERAGE(OFFSET(E97,0,0,$A$20,1)) -> 146.14 | L97: =AVERAGE(OFFSET(F97,0,0,$A$21,1)) -> 143.07625 | M97: 882400 | O97: =AND(G98<=K98,G97>K97,OR(P98="DOWN",P98=0)) -> FALSE | P97: =IF(AND(OR(P98=0,P98="UP"),Q97),"DOWN",IF(AND(OR(P98=0,P98="DOWN"),O97),"UP",P98)) -> UP | Q97: =AND(G98>=L98,G97<L97,OR(P98=0,P98="UP")) -> FALSE | T97: TRUE | U97: =AND(T97,O97) -> FALSE | V97: =U98 -> FALSE | W97: =IF(V97,TRUE,IF(X98,FALSE,W98)) -> TRUE | X97: =AND(W97,Q97) -> FALSE | Y97: =X98 -> FALSE | Z97: =IF(AND(NOT(AA97),OR(W97,Y97)),$F$11,NA()) -> 189.2 | AA97: FALSE | AC97: FALSE | AD97: =AND(AC97,Q97) -> FALSE | AE97: =AD98 -> FALSE | AF97: FALSE | AG97: FALSE | AH97: =AG98 -> FALSE | AI97: =IF(AND(NOT(AA97),OR(AF97,AH97)),$F$11,NA()) ->  | AJ97: 127.2955 | AK97: 140.5654 | AL97: 144.1595 | AM97: 146.14 | AN97: 143.07625 | AP97: =OFFSET(InputIndexData!F$15,CalculationsAndCharts!$A97+$A$11,IF($C$7,8,0),1,1) -> 196.16 | AQ97: 201.0382 | AR97: -1 | AS97: 0.5 | AT97: TRUE | AV97: =IF(AT97,$AR$26,NA()) -> 212 | AW97: =IF(AT97,NA(),$AR$26) -> 
A98: 66 | B98: =OFFSET(InputPriceData!B$15,CalculationsAndCharts!$A98+$A$11,0,1,1) -> 2015-01-14 | C98: =OFFSET(InputPriceData!G$15,CalculationsAndCharts!$A98+$A$11,IF($C$7,8,0),1,1) -> 945600 | D98: =OFFSET(InputPriceData!C$15,CalculationsAndCharts!$A98+$A$11,IF($C$7,8,0),1,1) -> 144.57 | E98: =OFFSET(InputPriceData!D$15,CalculationsAndCharts!$A98+$A$11,IF($C$7,8,0),1,1) -> 147.04 | F98: =OFFSET(InputPriceData!E$15,CalculationsAndCharts!$A98+$A$11,IF($C$7,8,0),1,1) -> 143.82 | G98: =OFFSET(InputPriceData!F$15,CalculationsAndCharts!$A98+$A$11,IF($C$7,8,0),1,1) -> 146.86 | H98: 127.11955 | I98: 140.3722 | J98: 143.809 | K98: 145.27 | L98: 141.98625 | M98: =IF(D98<=G98,C98,NA()) -> 945600 | N98: =IF(D98<=G98,NA(),C98) ->  | O98: FALSE | P98: UP | Q98: FALSE | T98: =AND(OR(NOT($R$11),AT98),OR(NOT($R$12),J98>=I98),OR(NOT($R$13),I98>=H98),OR(NOT($R$14),G98>=I98)) -> TRUE | U98: FALSE | V98: FALSE | W98: TRUE | X98: FALSE | Y98: FALSE | Z98: 189.2 | AA98: FALSE | AC98: =AND( OR(NOT($R$11),NOT(AT98)), OR(NOT($R$12),J98<=I98), OR(NOT($R$13),I98<=H98), OR(NOT($R$14),G98<=I98) ) -> FALSE | AD98: FALSE | AE98: FALSE | AF98: =IF(AE98,TRUE,IF(AG99,FALSE,AF99)) -> FALSE | AG98: =AND(AF98,O98) -> FALSE | AH98: FALSE | AJ98: =IF($R$3,H98,NA()) -> 127.11955 | AK98: =IF($R$4,I98,NA()) -> 140.3722 | AL98: =IF($R$5,J98,NA()) -> 143.809 | AM98: =IF($R$6,K98,NA()) -> 145.27 | AN98: =IF($R$6,L98,NA()) -> 141.98625 | AP98: =OFFSET(InputIndexData!F$15,CalculationsAndCharts!$A98+$A$11,IF($C$7,8,0),1,1) -> 197.97 | AQ98: =AVERAGE(OFFSET(AP98,0,0,$D$17,1)) -> 201.0706 | AR98: =IF(AQ98-AQ99>=0,1,-1) -> 1 | AS98: =AVERAGE(OFFSET(AR98,0,0,$D$18,1)) -> 1 | AT98: =OR(AS98>0,AND(AS98=0,AS99>0)) -> TRUE | AV98: 212
A99: 67 | B99: =OFFSET(InputPriceData!B$15,CalculationsAndCharts!$A99+$A$11,0,1,1) -> 2015-01-13 | C99: =OFFSET(InputPriceData!G$15,CalculationsAndCharts!$A99+$A$11,IF($C$7,8,0),1,1) -> 794100 | D99: =OFFSET(InputPriceData!C$15,CalculationsAndCharts!$A99+$A$11,IF($C$7,8,0),1,1) -> 146.56 | E99: =OFFSET(InputPriceData!D$15,CalculationsAndCharts!$A99+$A$11,IF($C$7,8,0),1,1) -> 148.53 | F99: =OFFSET(InputPriceData!E$15,CalculationsAndCharts!$A99+$A$11,IF($C$7,8,0),1,1) -> 145.1 | G99: =OFFSET(InputPriceData!F$15,CalculationsAndCharts!$A99+$A$11,IF($C$7,8,0),1,1) -> 146.16 | H99: 126.94275 | I99: 140.1938 | J99: 143.573 | K99: 145.11875 | L99: 141.6 | N99: 794100 | O99: FALSE | P99: UP | Q99: FALSE | T99: TRUE | U99: FALSE | V99: FALSE | W99: TRUE | X99: FALSE | Y99: FALSE | Z99: 189.2 | AA99: FALSE | AC99: FALSE | AD99: FALSE | AE99: FALSE | AF99: FALSE | AG99: FALSE | AH99: FALSE | AJ99: 126.94275 | AK99: 140.1938 | AL99: 143.573 | AM99: 145.11875 | AN99: 141.6 | AP99: =OFFSET(InputIndexData!F$15,CalculationsAndCharts!$A99+$A$11,IF($C$7,8,0),1,1) -> 199.17 | AQ99: 201.0646 | AR99: 1 | AS99: 1 | AT99: TRUE | AV99: 212
A100: 68 | B100: =OFFSET(InputPriceData!B$15,CalculationsAndCharts!$A100+$A$11,0,1,1) -> 2015-01-12 | C100: =OFFSET(InputPriceData!G$15,CalculationsAndCharts!$A100+$A$11,IF($C$7,8,0),1,1) -> 788100 | D100: =OFFSET(InputPriceData!C$15,CalculationsAndCharts!$A100+$A$11,IF($C$7,8,0),1,1) -> 145.98 | E100: =OFFSET(InputPriceData!D$15,CalculationsAndCharts!$A100+$A$11,IF($C$7,8,0),1,1) -> 147.01 | F100: =OFFSET(InputPriceData!E$15,CalculationsAndCharts!$A100+$A$11,IF($C$7,8,0),1,1) -> 144.2 | G100: =OFFSET(InputPriceData!F$15,CalculationsAndCharts!$A100+$A$11,IF($C$7,8,0),1,1) -> 144.83 | H100: 126.7712 | I100: 139.9962 | J100: 143.398 | K100: 144.98375 | L100: 141.31375 | N100: 788100 | O100: FALSE | P100: UP | Q100: FALSE | T100: TRUE | U100: FALSE | V100: FALSE | W100: TRUE | X100: FALSE | Y100: FALSE | Z100: 189.2 | AA100: FALSE | AC100: FALSE | AD100: FALSE | AE100: FALSE | AF100: FALSE | AG100: FALSE | AH100: FALSE | AJ100: 126.7712 | AK100: 139.9962 | AL100: 143.398 | AM100: 144.98375 | AN100: 141.31375 | AP100: =OFFSET(InputIndexData!F$15,CalculationsAndCharts!$A100+$A$11,IF($C$7,8,0),1,1) -> 199.73 | AQ100: 200.9898 | AR100: 1 | AS100: 1 | AT100: TRUE | AV100: 212
A101: 69 | B101: =OFFSET(InputPriceData!B$15,CalculationsAndCharts!$A101+$A$11,0,1,1) -> 2015-01-09 | C101: =OFFSET(InputPriceData!G$15,CalculationsAndCharts!$A101+$A$11,IF($C$7,8,0),1,1) -> 1221300 | D101: =OFFSET(InputPriceData!C$15,CalculationsAndCharts!$A101+$A$11,IF($C$7,8,0),1,1) -> 146.65 | E101: =OFFSET(InputPriceData!D$15,CalculationsAndCharts!$A101+$A$11,IF($C$7,8,0),1,1) -> 147.37 | F101: =OFFSET(InputPriceData!E$15,CalculationsAndCharts!$A101+$A$11,IF($C$7,8,0),1,1) -> 145.89 | G101: =OFFSET(InputPriceData!F$15,CalculationsAndCharts!$A101+$A$11,IF($C$7,8,0),1,1) -> 146.07 | H101: 126.60125 | I101: 139.7808 | J101: 143.2335 | K101: 144.79 | L101: 141.22375 | N101: 1221300 | O101: FALSE | P101: UP | Q101: FALSE | T101: TRUE | U101: FALSE | V101: TRUE | W101: TRUE | X101: FALSE | Y101: FALSE | Z101: 189.2 | AA101: FALSE | AC101: FALSE | AD101: FALSE | AE101: FALSE | AF101: FALSE | AG101: FALSE | AH101: FALSE | AJ101: 126.60125 | AK101: 139.7808 | AL101: 143.2335 | AM101: 144.79 | AN101: 141.22375 | AP101: =OFFSET(InputIndexData!F$15,CalculationsAndCharts!$A101+$A$11,IF($C$7,8,0),1,1) -> 201.31 | AQ101: 200.879 | AR101: 1 | AS101: 1 | AT101: TRUE | AV101: 212
A102: 70 | B102: =OFFSET(InputPriceData!B$15,CalculationsAndCharts!$A102+$A$11,0,1,1) -> 2015-01-08 | C102: =OFFSET(InputPriceData!G$15,CalculationsAndCharts!$A102+$A$11,IF($C$7,8,0),1,1) -> 1350000 | D102: =OFFSET(InputPriceData!C$15,CalculationsAndCharts!$A102+$A$11,IF($C$7,8,0),1,1) -> 142.95 | E102: =OFFSET(InputPriceData!D$15,CalculationsAndCharts!$A102+$A$11,IF($C$7,8,0),1,1) -> 147.7 | F102: =OFFSET(InputPriceData!E$15,CalculationsAndCharts!$A102+$A$11,IF($C$7,8,0),1,1) -> 142.95 | G102: =OFFSET(InputPriceData!F$15,CalculationsAndCharts!$A102+$A$11,IF($C$7,8,0),1,1) -> 147.14 | H102: 126.4281 | I102: 139.5362 | J102: 142.9555 | K102: 144.4625 | L102: 140.785 | M102: 1350000 | O102: TRUE | P102: UP | Q102: FALSE | R102: 147.14 | T102: TRUE | U102: TRUE | V102: FALSE | W102: FALSE | X102: FALSE | Y102: FALSE | AA102: FALSE | AC102: FALSE | AD102: FALSE | AE102: FALSE | AF102: FALSE | AG102: FALSE | AH102: FALSE | AJ102: 126.4281 | AK102: 139.5362 | AL102: 142.9555 | AM102: 144.4625 | AN102: 140.785 | AP102: =OFFSET(InputIndexData!F$15,CalculationsAndCharts!$A102+$A$11,IF($C$7,8,0),1,1) -> 202.94 | AQ102: 200.7424 | AR102: 1 | AS102: 1 | AT102: TRUE | AV102: 212
A103: 71 | B103: =OFFSET(InputPriceData!B$15,CalculationsAndCharts!$A103+$A$11,0,1,1) -> 2015-01-07 | C103: =OFFSET(InputPriceData!G$15,CalculationsAndCharts!$A103+$A$11,IF($C$7,8,0),1,1) -> 877400 | D103: =OFFSET(InputPriceData!C$15,CalculationsAndCharts!$A103+$A$11,IF($C$7,8,0),1,1) -> 139.08 | E103: =OFFSET(InputPriceData!D$15,CalculationsAndCharts!$A103+$A$11,IF($C$7,8,0),1,1) -> 141.58 | F103: =OFFSET(InputPriceData!E$15,CalculationsAndCharts!$A103+$A$11,IF($C$7,8,0),1,1) -> 139.08 | G103: =OFFSET(InputPriceData!F$15,CalculationsAndCharts!$A103+$A$11,IF($C$7,8,0),1,1) -> 141.07 | H103: 126.25585 | I103: 139.2306 | J103: 142.724 | K103: 144.0975 | L103: 140.83625 | M103: 877400 | O103: FALSE | P103: DOWN | Q103: FALSE | T103: TRUE | U103: FALSE | V103: FALSE | W103: FALSE | X103: FALSE | Y103: FALSE | AA103: FALSE | AC103: FALSE | AD103: FALSE | AE103: FALSE | AF103: FALSE | AG103: FALSE | AH103: FALSE | AJ103: 126.25585 | AK103: 139.2306 | AL103: 142.724 | AM103: 144.0975 | AN103: 140.83625 | AP103: =OFFSET(InputIndexData!F$15,CalculationsAndCharts!$A103+$A$11,IF($C$7,8,0),1,1) -> 199.4 | AQ103: 200.5292 | AR103: 1 | AS103: 1 | AT103: TRUE | AV103: 212
A104: 72 | B104: =OFFSET(InputPriceData!B$15,CalculationsAndCharts!$A104+$A$11,0,1,1) -> 2015-01-06 | C104: =OFFSET(InputPriceData!G$15,CalculationsAndCharts!$A104+$A$11,IF($C$7,8,0),1,1) -> 1770100 | D104: =OFFSET(InputPriceData!C$15,CalculationsAndCharts!$A104+$A$11,IF($C$7,8,0),1,1) -> 139.56 | E104: =OFFSET(InputPriceData!D$15,CalculationsAndCharts!$A104+$A$11,IF($C$7,8,0),1,1) -> 140.83 | F104: =OFFSET(InputPriceData!E$15,CalculationsAndCharts!$A104+$A$11,IF($C$7,8,0),1,1) -> 136.81 | G104: =OFFSET(InputPriceData!F$15,CalculationsAndCharts!$A104+$A$11,IF($C$7,8,0),1,1) -> 138.44 | H104: 126.11195 | I104: 139.0538 | J104: 142.8515 | K104: 144.43375 | L104: 141.35625 | N104: 1770100 | O104: FALSE | P104: DOWN | Q104: FALSE | T104: FALSE | U104: FALSE | V104: FALSE | W104: FALSE | X104: FALSE | Y104: FALSE | AA104: FALSE | AB104: =IF(AA104,$F$11,NA()) ->  | AC104: FALSE | AD104: FALSE | AE104: FALSE | AF104: FALSE | AG104: FALSE | AH104: FALSE | AJ104: 126.11195 | AK104: 139.0538 | AL104: 142.8515 | AM104: 144.43375 | AN104: 141.35625 | AP104: =OFFSET(InputIndexData!F$15,CalculationsAndCharts!$A104+$A$11,IF($C$7,8,0),1,1) -> 196.94 | AQ104: 200.392 | AR104: 1 | AS104: 1 | AT104: TRUE | AV104: 212
A105: 73 | B105: =OFFSET(InputPriceData!B$15,CalculationsAndCharts!$A105+$A$11,0,1,1) -> 2015-01-05 | C105: =OFFSET(InputPriceData!G$15,CalculationsAndCharts!$A105+$A$11,IF($C$7,8,0),1,1) -> 1686700 | D105: =OFFSET(InputPriceData!C$15,CalculationsAndCharts!$A105+$A$11,IF($C$7,8,0),1,1) -> 141.03 | E105: =OFFSET(InputPriceData!D$15,CalculationsAndCharts!$A105+$A$11,IF($C$7,8,0),1,1) -> 142.1 | F105: =OFFSET(InputPriceData!E$15,CalculationsAndCharts!$A105+$A$11,IF($C$7,8,0),1,1) -> 138.04 | G105: =OFFSET(InputPriceData!F$15,CalculationsAndCharts!$A105+$A$11,IF($C$7,8,0),1,1) -> 138.55 | H105: 125.99695 | I105: 138.9202 | J105: 143.098 | K105: 145.21375 | L105: 142.10375 | N105: 1686700 | O105: FALSE | P105: DOWN | Q105: FALSE | R105: =IF(O105,G105,NA()) ->  | S105: =IF(Q105,G105,NA()) ->  | T105: FALSE | U105: FALSE | V105: FALSE | W105: FALSE | X105: FALSE | Y105: FALSE | AA105: FALSE | AC105: FALSE | AD105: FALSE | AE105: FALSE | AF105: FALSE | AG105: FALSE | AH105: FALSE | AJ105: 125.99695 | AK105: 138.9202 | AL105: 143.098 | AM105: 145.21375 | AN105: 142.10375 | AP105: =OFFSET(InputIndexData!F$15,CalculationsAndCharts!$A105+$A$11,IF($C$7,8,0),1,1) -> 198.82 | AQ105: 200.2746 | AR105: 1 | AS105: 1 | AT105: TRUE | AV105: 212
A106: 74 | B106: =OFFSET(InputPriceData!B$15,CalculationsAndCharts!$A106+$A$11,0,1,1) -> 2015-01-02 | C106: =OFFSET(InputPriceData!G$15,CalculationsAndCharts!$A106+$A$11,IF($C$7,8,0),1,1) -> 982800 | D106: =OFFSET(InputPriceData!C$15,CalculationsAndCharts!$A106+$A$11,IF($C$7,8,0),1,1) -> 144.28 | E106: =OFFSET(InputPriceData!D$15,CalculationsAndCharts!$A106+$A$11,IF($C$7,8,0),1,1) -> 145.83 | F106: =OFFSET(InputPriceData!E$15,CalculationsAndCharts!$A106+$A$11,IF($C$7,8,0),1,1) -> 140.73 | G106: =OFFSET(InputPriceData!F$15,CalculationsAndCharts!$A106+$A$11,IF($C$7,8,0),1,1) -> 142.32 | H106: 125.89025 | I106: 138.7614 | J106: 143.18 | K106: 145.8125 | L106: 143.0075 | N106: 982800 | O106: FALSE | P106: DOWN | Q106: FALSE | T106: TRUE | U106: FALSE | V106: FALSE | W106: FALSE | X106: FALSE | Y106: TRUE | Z106: 189.2 | AA106: FALSE | AC106: FALSE | AD106: FALSE | AE106: FALSE | AF106: FALSE | AG106: FALSE | AH106: FALSE | AJ106: 125.89025 | AK106: 138.7614 | AL106: 143.18 | AM106: 145.8125 | AN106: 143.0075 | AP106: =OFFSET(InputIndexData!F$15,CalculationsAndCharts!$A106+$A$11,IF($C$7,8,0),1,1) -> 202.47 | AQ106: 200.0756 | AR106: 1 | AS106: 1 | AT106: TRUE | AV106: 212
A107: 75 | B107: =OFFSET(InputPriceData!B$15,CalculationsAndCharts!$A107+$A$11,0,1,1) -> 2014-12-31 | C107: =OFFSET(InputPriceData!G$15,CalculationsAndCharts!$A107+$A$11,IF($C$7,8,0),1,1) -> 662700 | D107: =OFFSET(InputPriceData!C$15,CalculationsAndCharts!$A107+$A$11,IF($C$7,8,0),1,1) -> 145.13 | E107: =OFFSET(InputPriceData!D$15,CalculationsAndCharts!$A107+$A$11,IF($C$7,8,0),1,1) -> 147.45 | F107: =OFFSET(InputPriceData!E$15,CalculationsAndCharts!$A107+$A$11,IF($C$7,8,0),1,1) -> 142.81 | G107: =OFFSET(InputPriceData!F$15,CalculationsAndCharts!$A107+$A$11,IF($C$7,8,0),1,1) -> 142.96 | H107: 125.7557 | I107: 138.5628 | J107: 143.103 | K107: 146.39875 | L107: 143.59875 | N107: 662700 | O107: FALSE | P107: DOWN | Q107: TRUE | S107: 142.96 | T107: TRUE | U107: FALSE | V107: FALSE | W107: TRUE | X107: TRUE | Y107: FALSE | Z107: 189.2 | AA107: FALSE | AC107: FALSE | AD107: FALSE | AE107: FALSE | AF107: FALSE | AG107: FALSE | AH107: FALSE | AJ107: 125.7557 | AK107: 138.5628 | AL107: 143.103 | AM107: 146.39875 | AN107: 143.59875 | AP107: =OFFSET(InputIndexData!F$15,CalculationsAndCharts!$A107+$A$11,IF($C$7,8,0),1,1) -> 202.58 | AQ107: 199.8308 | AR107: 1 | AS107: 1 | AT107: TRUE | AV107: 212
A108: 76 | B108: =OFFSET(InputPriceData!B$15,CalculationsAndCharts!$A108+$A$11,0,1,1) -> 2014-12-30 | C108: =OFFSET(InputPriceData!G$15,CalculationsAndCharts!$A108+$A$11,IF($C$7,8,0),1,1) -> 689400 | D108: =OFFSET(InputPriceData!C$15,CalculationsAndCharts!$A108+$A$11,IF($C$7,8,0),1,1) -> 143.68 | E108: =OFFSET(InputPriceData!D$15,CalculationsAndCharts!$A108+$A$11,IF($C$7,8,0),1,1) -> 145.46 | F108: =OFFSET(InputPriceData!E$15,CalculationsAndCharts!$A108+$A$11,IF($C$7,8,0),1,1) -> 143.48 | G108: =OFFSET(InputPriceData!F$15,CalculationsAndCharts!$A108+$A$11,IF($C$7,8,0),1,1) -> 145.09 | H108: 125.60065 | I108: 138.2884 | J108: 142.915 | K108: 146.48125 | L108: 143.55125 | M108: 689400 | O108: FALSE | P108: UP | Q108: FALSE | T108: TRUE | U108: FALSE | V108: FALSE | W108: TRUE | X108: FALSE | Y108: FALSE | Z108: 189.2 | AA108: FALSE | AC108: FALSE | AD108: FALSE | AE108: FALSE | AF108: FALSE | AG108: FALSE | AH108: FALSE | AJ108: 125.60065 | AK108: 138.2884 | AL108: 142.915 | AM108: 146.48125 | AN108: 143.55125 | AP108: =OFFSET(InputIndexData!F$15,CalculationsAndCharts!$A108+$A$11,IF($C$7,8,0),1,1) -> 204.61 | AQ108: 199.5098 | AR108: 1 | AS108: 1 | AT108: TRUE | AV108: 212
A109: 77 | B109: =OFFSET(InputPriceData!B$15,CalculationsAndCharts!$A109+$A$11,0,1,1) -> 2014-12-29 | C109: =OFFSET(InputPriceData!G$15,CalculationsAndCharts!$A109+$A$11,IF($C$7,8,0),1,1) -> 536000 | D109: =OFFSET(InputPriceData!C$15,CalculationsAndCharts!$A109+$A$11,IF($C$7,8,0),1,1) -> 144.08 | E109: =OFFSET(InputPriceData!D$15,CalculationsAndCharts!$A109+$A$11,IF($C$7,8,0),1,1) -> 144.75 | F109: =OFFSET(InputPriceData!E$15,CalculationsAndCharts!$A109+$A$11,IF($C$7,8,0),1,1) -> 142.38 | G109: =OFFSET(InputPriceData!F$15,CalculationsAndCharts!$A109+$A$11,IF($C$7,8,0),1,1) -> 143.81 | H109: 125.42555 | I109: 137.9344 | J109: 142.569 | K109: 146.23875 | L109: 143.15125 | N109: 536000 | O109: FALSE | P109: UP | Q109: FALSE | T109: TRUE | U109: FALSE | V109: FALSE | W109: TRUE | X109: FALSE | Y109: FALSE | Z109: 189.2 | AA109: FALSE | AC109: FALSE | AD109: FALSE | AE109: FALSE | AF109: FALSE | AG109: FALSE | AH109: FALSE | AJ109: 125.42555 | AK109: 137.9344 | AL109: 142.569 | AM109: 146.23875 | AN109: 143.15125 | AP109: =OFFSET(InputIndexData!F$15,CalculationsAndCharts!$A109+$A$11,IF($C$7,8,0),1,1) -> 205.72 | AQ109: 199.1124 | AR109: 1 | AS109: 1 | AT109: TRUE | AV109: 212
A110: 78 | B110: =OFFSET(InputPriceData!B$15,CalculationsAndCharts!$A110+$A$11,0,1,1) -> 2014-12-26 | C110: =OFFSET(InputPriceData!G$15,CalculationsAndCharts!$A110+$A$11,IF($C$7,8,0),1,1) -> 693700 | D110: =OFFSET(InputPriceData!C$15,CalculationsAndCharts!$A110+$A$11,IF($C$7,8,0),1,1) -> 144.17 | E110: =OFFSET(InputPriceData!D$15,CalculationsAndCharts!$A110+$A$11,IF($C$7,8,0),1,1) -> 144.78 | F110: =OFFSET(InputPriceData!E$15,CalculationsAndCharts!$A110+$A$11,IF($C$7,8,0),1,1) -> 143.36 | G110: =OFFSET(InputPriceData!F$15,CalculationsAndCharts!$A110+$A$11,IF($C$7,8,0),1,1) -> 144.12 | H110: 125.2467 | I110: 137.5562 | J110: 142.2315 | K110: 146.225 | L110: 142.8625 | N110: 693700 | O110: FALSE | P110: UP | Q110: FALSE | T110: TRUE | U110: FALSE | V110: FALSE | W110: TRUE | X110: FALSE | Y110: FALSE | Z110: 189.2 | AA110: FALSE | AC110: FALSE | AD110: FALSE | AE110: FALSE | AF110: FALSE | AG110: FALSE | AH110: FALSE | AJ110: 125.2467 | AK110: 137.5562 | AL110: 142.2315 | AM110: 146.225 | AN110: 142.8625 | AP110: =OFFSET(InputIndexData!F$15,CalculationsAndCharts!$A110+$A$11,IF($C$7,8,0),1,1) -> 205.44 | AQ110: 198.6496 | AR110: 1 | AS110: 1 | AT110: TRUE | AV110: 212
A111: 79 | B111: =OFFSET(InputPriceData!B$15,CalculationsAndCharts!$A111+$A$11,0,1,1) -> 2014-12-24 | C111: =OFFSET(InputPriceData!G$15,CalculationsAndCharts!$A111+$A$11,IF($C$7,8,0),1,1) -> 267300 | D111: =OFFSET(InputPriceData!C$15,CalculationsAndCharts!$A111+$A$11,IF($C$7,8,0),1,1) -> 144.21 | E111: =OFFSET(InputPriceData!D$15,CalculationsAndCharts!$A111+$A$11,IF($C$7,8,0),1,1) -> 144.27 | F111: =OFFSET(InputPriceData!E$15,CalculationsAndCharts!$A111+$A$11,IF($C$7,8,0),1,1) -> 143.24 | G111: =OFFSET(InputPriceData!F$15,CalculationsAndCharts!$A111+$A$11,IF($C$7,8,0),1,1) -> 143.43 | H111: 125.06695 | I111: 137.1408 | J111: 141.855 | K111: 146.07625 | L111: 142.4525 | N111: 267300 | O111: FALSE | P111: UP | Q111: FALSE | T111: TRUE | U111: FALSE | V111: FALSE | W111: TRUE | X111: FALSE | Y111: FALSE | Z111: 189.2 | AA111: FALSE | AC111: FALSE | AD111: FALSE | AE111: FALSE | AF111: FALSE | AG111: FALSE | AH111: FALSE | AJ111: 125.06695 | AK111: 137.1408 | AL111: 141.855 | AM111: 146.07625 | AN111: 142.4525 | AP111: =OFFSET(InputIndexData!F$15,CalculationsAndCharts!$A111+$A$11,IF($C$7,8,0),1,1) -> 204.78 | AQ111: 198.1956 | AR111: 1 | AS111: 1 | AT111: TRUE | AV111: 212
A112: 80 | B112: =OFFSET(InputPriceData!B$15,CalculationsAndCharts!$A112+$A$11,0,1,1) -> 2014-12-23 | C112: =OFFSET(InputPriceData!G$15,CalculationsAndCharts!$A112+$A$11,IF($C$7,8,0),1,1) -> 1300900 | D112: =OFFSET(InputPriceData!C$15,CalculationsAndCharts!$A112+$A$11,IF($C$7,8,0),1,1) -> 146.52 | E112: =OFFSET(InputPriceData!D$15,CalculationsAndCharts!$A112+$A$11,IF($C$7,8,0),1,1) -> 147.07 | F112: =OFFSET(InputPriceData!E$15,CalculationsAndCharts!$A112+$A$11,IF($C$7,8,0),1,1) -> 142.79 | G112: =OFFSET(InputPriceData!F$15,CalculationsAndCharts!$A112+$A$11,IF($C$7,8,0),1,1) -> 143.74 | H112: 124.8974 | I112: 136.7398 | J112: 141.5225 | K112: 146.1725 | L112: 142.1375 | N112: 1300900 | O112: FALSE | P112: UP | Q112: FALSE | T112: TRUE | U112: FALSE | V112: FALSE | W112: TRUE | X112: FALSE | Y112: FALSE | Z112: 189.2 | AA112: =AND(OR(W112,Y112),OR(AF112,AH112)) -> FALSE | AC112: FALSE | AD112: FALSE | AE112: FALSE | AF112: FALSE | AG112: FALSE | AH112: FALSE | AJ112: 124.8974 | AK112: 136.7398 | AL112: 141.5225 | AM112: 146.1725 | AN112: 142.1375 | AP112: =OFFSET(InputIndexData!F$15,CalculationsAndCharts!$A112+$A$11,IF($C$7,8,0),1,1) -> 204.76 | AQ112: 197.7796 | AR112: 1 | AS112: 1 | AT112: TRUE | AV112: 212
A113: 81 | B113: =OFFSET(InputPriceData!B$15,CalculationsAndCharts!$A113+$A$11,0,1,1) -> 2014-12-22 | C113: =OFFSET(InputPriceData!G$15,CalculationsAndCharts!$A113+$A$11,IF($C$7,8,0),1,1) -> 1188500 | D113: =OFFSET(InputPriceData!C$15,CalculationsAndCharts!$A113+$A$11,IF($C$7,8,0),1,1) -> 145.28 | E113: =OFFSET(InputPriceData!D$15,CalculationsAndCharts!$A113+$A$11,IF($C$7,8,0),1,1) -> 146.89 | F113: =OFFSET(InputPriceData!E$15,CalculationsAndCharts!$A113+$A$11,IF($C$7,8,0),1,1) -> 145.27 | G113: =OFFSET(InputPriceData!F$15,CalculationsAndCharts!$A113+$A$11,IF($C$7,8,0),1,1) -> 145.38 | H113: 124.7232 | I113: 136.3412 | J113: 141.2815 | K113: 145.73125 | L113: 141.88125 | M113: 1188500 | O113: FALSE | P113: UP | Q113: FALSE | T113: TRUE | U113: FALSE | V113: FALSE | W113: TRUE | X113: FALSE | Y113: FALSE | Z113: 189.2 | AA113: FALSE | AC113: FALSE | AD113: FALSE | AE113: FALSE | AF113: FALSE | AG113: FALSE | AH113: FALSE | AJ113: 124.7232 | AK113: 136.3412 | AL113: 141.2815 | AM113: 145.73125 | AN113: 141.88125 | AP113: =OFFSET(InputIndexData!F$15,CalculationsAndCharts!$A113+$A$11,IF($C$7,8,0),1,1) -> 204.48 | AQ113: 197.3584 | AR113: 1 | AS113: 1 | AT113: TRUE | AV113: 212
A114: 82 | B114: =OFFSET(InputPriceData!B$15,CalculationsAndCharts!$A114+$A$11,0,1,1) -> 2014-12-19 | C114: =OFFSET(InputPriceData!G$15,CalculationsAndCharts!$A114+$A$11,IF($C$7,8,0),1,1) -> 2094000 | D114: =OFFSET(InputPriceData!C$15,CalculationsAndCharts!$A114+$A$11,IF($C$7,8,0),1,1) -> 148.85 | E114: =OFFSET(InputPriceData!D$15,CalculationsAndCharts!$A114+$A$11,IF($C$7,8,0),1,1) -> 150.52 | F114: =OFFSET(InputPriceData!E$15,CalculationsAndCharts!$A114+$A$11,IF($C$7,8,0),1,1) -> 145.46 | G114: =OFFSET(InputPriceData!F$15,CalculationsAndCharts!$A114+$A$11,IF($C$7,8,0),1,1) -> 145.51 | H114: 124.54335 | I114: 135.9448 | J114: 140.7885 | K114: 145.10125 | L114: 141.1575 | N114: 2094000 | O114: FALSE | P114: UP | Q114: FALSE | T114: TRUE | U114: FALSE | V114: TRUE | W114: TRUE | X114: FALSE | Y114: FALSE | Z114: 189.2 | AA114: FALSE | AC114: FALSE | AD114: FALSE | AE114: FALSE | AF114: FALSE | AG114: FALSE | AH114: FALSE | AJ114: 124.54335 | AK114: 135.9448 | AL114: 140.7885 | AM114: 145.10125 | AN114: 141.1575 | AP114: =OFFSET(InputIndexData!F$15,CalculationsAndCharts!$A114+$A$11,IF($C$7,8,0),1,1) -> 203.55 | AQ114: 197.0042 | AR114: 1 | AS114: 1 | AT114: TRUE | AV114: 212
A115: 83 | B115: =OFFSET(InputPriceData!B$15,CalculationsAndCharts!$A115+$A$11,0,1,1) -> 2014-12-18 | C115: =OFFSET(InputPriceData!G$15,CalculationsAndCharts!$A115+$A$11,IF($C$7,8,0),1,1) -> 1393800 | D115: =OFFSET(InputPriceData!C$15,CalculationsAndCharts!$A115+$A$11,IF($C$7,8,0),1,1) -> 143.86 | E115: =OFFSET(InputPriceData!D$15,CalculationsAndCharts!$A115+$A$11,IF($C$7,8,0),1,1) -> 148.11 | F115: =OFFSET(InputPriceData!E$15,CalculationsAndCharts!$A115+$A$11,IF($C$7,8,0),1,1) -> 142.43 | G115: =OFFSET(InputPriceData!F$15,CalculationsAndCharts!$A115+$A$11,IF($C$7,8,0),1,1) -> 148.09 | H115: 124.36305 | I115: 135.5188 | J115: 140.278 | K115: 144.1575 | L115: 140.61125 | M115: 1393800 | O115: TRUE | P115: UP | Q115: FALSE | R115: 148.09 | T115: TRUE | U115: TRUE | V115: FALSE | W115: FALSE | X115: FALSE | Y115: FALSE | AA115: FALSE | AC115: FALSE | AD115: FALSE | AE115: FALSE | AF115: FALSE | AG115: FALSE | AH115: FALSE | AJ115: 124.36305 | AK115: 135.5188 | AL115: 140.278 | AM115: 144.1575 | AN115: 140.61125 | AP115: =OFFSET(InputIndexData!F$15,CalculationsAndCharts!$A115+$A$11,IF($C$7,8,0),1,1) -> 202.69 | AQ115: 196.7116 | AR115: 1 | AS115: 1 | AT115: TRUE | AV115: 212
A116: 84 | B116: =OFFSET(InputPriceData!B$15,CalculationsAndCharts!$A116+$A$11,0,1,1) -> 2014-12-17 | C116: =OFFSET(InputPriceData!G$15,CalculationsAndCharts!$A116+$A$11,IF($C$7,8,0),1,1) -> 1194700 | D116: =OFFSET(InputPriceData!C$15,CalculationsAndCharts!$A116+$A$11,IF($C$7,8,0),1,1) -> 140.28 | E116: =OFFSET(InputPriceData!D$15,CalculationsAndCharts!$A116+$A$11,IF($C$7,8,0),1,1) -> 143.52 | F116: =OFFSET(InputPriceData!E$15,CalculationsAndCharts!$A116+$A$11,IF($C$7,8,0),1,1) -> 140.28 | G116: =OFFSET(InputPriceData!F$15,CalculationsAndCharts!$A116+$A$11,IF($C$7,8,0),1,1) -> 142.39 | H116: 124.1726 | I116: 135.0886 | J116: 139.6565 | K116: 143.68125 | L116: 140.65875 | M116: 1194700 | O116: FALSE | P116: DOWN | Q116: FALSE | T116: TRUE | U116: FALSE | V116: FALSE | W116: FALSE | X116: FALSE | Y116: TRUE | Z116: 189.2 | AA116: FALSE | AC116: FALSE | AD116: FALSE | AE116: FALSE | AF116: FALSE | AG116: FALSE | AH116: FALSE | AJ116: 124.1726 | AK116: 135.0886 | AL116: 139.6565 | AM116: 143.68125 | AN116: 140.65875 | AP116: =OFFSET(InputIndexData!F$15,CalculationsAndCharts!$A116+$A$11,IF($C$7,8,0),1,1) -> 197.79 | AQ116: 196.5128 | AR116: 1 | AS116: 1 | AT116: TRUE | AV116: 212
A117: 85 | B117: =OFFSET(InputPriceData!B$15,CalculationsAndCharts!$A117+$A$11,0,1,1) -> 2014-12-16 | C117: =OFFSET(InputPriceData!G$15,CalculationsAndCharts!$A117+$A$11,IF($C$7,8,0),1,1) -> 1409100 | D117: =OFFSET(InputPriceData!C$15,CalculationsAndCharts!$A117+$A$11,IF($C$7,8,0),1,1) -> 141.77 | E117: =OFFSET(InputPriceData!D$15,CalculationsAndCharts!$A117+$A$11,IF($C$7,8,0),1,1) -> 144.64 | F117: =OFFSET(InputPriceData!E$15,CalculationsAndCharts!$A117+$A$11,IF($C$7,8,0),1,1) -> 140.07 | G117: =OFFSET(InputPriceData!F$15,CalculationsAndCharts!$A117+$A$11,IF($C$7,8,0),1,1) -> 140.22 | H117: 124.01305 | I117: 134.719 | J117: 139.4555 | K117: 143.84125 | L117: 140.69125 | N117: 1409100 | O117: FALSE | P117: DOWN | Q117: TRUE | S117: 140.22 | T117: TRUE | U117: FALSE | V117: FALSE | W117: TRUE | X117: TRUE | Y117: FALSE | Z117: 189.2 | AA117: FALSE | AC117: FALSE | AD117: FALSE | AE117: FALSE | AF117: FALSE | AG117: FALSE | AH117: FALSE | AJ117: 124.01305 | AK117: 134.719 | AL117: 139.4555 | AM117: 143.84125 | AN117: 140.69125 | AP117: =OFFSET(InputIndexData!F$15,CalculationsAndCharts!$A117+$A$11,IF($C$7,8,0),1,1) -> 193.99 | AQ117: 196.3456 | AR117: 1 | AS117: 1 | AT117: TRUE | AV117: 212
A118: 86 | B118: =OFFSET(InputPriceData!B$15,CalculationsAndCharts!$A118+$A$11,0,1,1) -> 2014-12-15 | C118: =OFFSET(InputPriceData!G$15,CalculationsAndCharts!$A118+$A$11,IF($C$7,8,0),1,1) -> 1051800 | D118: =OFFSET(InputPriceData!C$15,CalculationsAndCharts!$A118+$A$11,IF($C$7,8,0),1,1) -> 143.05 | E118: =OFFSET(InputPriceData!D$15,CalculationsAndCharts!$A118+$A$11,IF($C$7,8,0),1,1) -> 143.59 | F118: =OFFSET(InputPriceData!E$15,CalculationsAndCharts!$A118+$A$11,IF($C$7,8,0),1,1) -> 140.08 | G118: =OFFSET(InputPriceData!F$15,CalculationsAndCharts!$A118+$A$11,IF($C$7,8,0),1,1) -> 142.14 | H118: 123.8663 | I118: 134.4228 | J118: 139.273 | K118: 143.3425 | L118: 140.5075 | N118: 1051800 | O118: FALSE | P118: UP | Q118: FALSE | T118: TRUE | U118: FALSE | V118: FALSE | W118: TRUE | X118: FALSE | Y118: FALSE | Z118: 189.2 | AA118: FALSE | AC118: FALSE | AD118: FALSE | AE118: FALSE | AF118: FALSE | AG118: FALSE | AH118: FALSE | AJ118: 123.8663 | AK118: 134.4228 | AL118: 139.273 | AM118: 143.3425 | AN118: 140.5075 | AP118: =OFFSET(InputIndexData!F$15,CalculationsAndCharts!$A118+$A$11,IF($C$7,8,0),1,1) -> 195.56 | AQ118: 196.3138 | AR118: 1 | AS118: 1 | AT118: TRUE | AV118: 212
A119: 87 | B119: =OFFSET(InputPriceData!B$15,CalculationsAndCharts!$A119+$A$11,0,1,1) -> 2014-12-12 | C119: =OFFSET(InputPriceData!G$15,CalculationsAndCharts!$A119+$A$11,IF($C$7,8,0),1,1) -> 1421400 | D119: =OFFSET(InputPriceData!C$15,CalculationsAndCharts!$A119+$A$11,IF($C$7,8,0),1,1) -> 140.79 | E119: =OFFSET(InputPriceData!D$15,CalculationsAndCharts!$A119+$A$11,IF($C$7,8,0),1,1) -> 145.04 | F119: =OFFSET(InputPriceData!E$15,CalculationsAndCharts!$A119+$A$11,IF($C$7,8,0),1,1) -> 140.72 | G119: =OFFSET(InputPriceData!F$15,CalculationsAndCharts!$A119+$A$11,IF($C$7,8,0),1,1) -> 142.66 | H119: 123.7093 | I119: 134.1414 | J119: 138.91 | K119: 143.3125 | L119: 140.4525 | M119: 1421400 | O119: FALSE | P119: UP | Q119: FALSE | T119: TRUE | U119: FALSE | V119: FALSE | W119: TRUE | X119: FALSE | Y119: FALSE | Z119: 189.2 | AA119: FALSE | AC119: FALSE | AD119: FALSE | AE119: FALSE | AF119: FALSE | AG119: FALSE | AH119: FALSE | AJ119: 123.7093 | AK119: 134.1414 | AL119: 138.91 | AM119: 143.3125 | AN119: 140.4525 | AP119: =OFFSET(InputIndexData!F$15,CalculationsAndCharts!$A119+$A$11,IF($C$7,8,0),1,1) -> 196.91 | AQ119: 196.2552 | AR119: 1 | AS119: 1 | AT119: TRUE | AV119: 212
A120: 88 | B120: =OFFSET(InputPriceData!B$15,CalculationsAndCharts!$A120+$A$11,0,1,1) -> 2014-12-11 | C120: =OFFSET(InputPriceData!G$15,CalculationsAndCharts!$A120+$A$11,IF($C$7,8,0),1,1) -> 777200 | D120: =OFFSET(InputPriceData!C$15,CalculationsAndCharts!$A120+$A$11,IF($C$7,8,0),1,1) -> 140.74 | E120: =OFFSET(InputPriceData!D$15,CalculationsAndCharts!$A120+$A$11,IF($C$7,8,0),1,1) -> 143.54 | F120: =OFFSET(InputPriceData!E$15,CalculationsAndCharts!$A120+$A$11,IF($C$7,8,0),1,1) -> 140.74 | G120: =OFFSET(InputPriceData!F$15,CalculationsAndCharts!$A120+$A$11,IF($C$7,8,0),1,1) -> 141.54 | H120: 123.55085 | I120: 133.8144 | J120: 138.652 | K120: 142.595 | L120: 139.8975 | M120: 777200 | O120: FALSE | P120: UP | Q120: FALSE | T120: TRUE | U120: FALSE | V120: FALSE | W120: TRUE | X120: FALSE | Y120: FALSE | Z120: 189.2 | AA120: FALSE | AC120: FALSE | AD120: FALSE | AE120: FALSE | AF120: FALSE | AG120: FALSE | AH120: FALSE | AJ120: 123.55085 | AK120: 133.8144 | AL120: 138.652 | AM120: 142.595 | AN120: 139.8975 | AP120: =OFFSET(InputIndexData!F$15,CalculationsAndCharts!$A120+$A$11,IF($C$7,8,0),1,1) -> 200.15 | AQ120: 196.1276 | AR120: 1 | AS120: 1 | AT120: TRUE | AV120: 212
A121: 89 | B121: =OFFSET(InputPriceData!B$15,CalculationsAndCharts!$A121+$A$11,0,1,1) -> 2014-12-10 | C121: =OFFSET(InputPriceData!G$15,CalculationsAndCharts!$A121+$A$11,IF($C$7,8,0),1,1) -> 1333100 | D121: =OFFSET(InputPriceData!C$15,CalculationsAndCharts!$A121+$A$11,IF($C$7,8,0),1,1) -> 141.31 | E121: =OFFSET(InputPriceData!D$15,CalculationsAndCharts!$A121+$A$11,IF($C$7,8,0),1,1) -> 141.85 | F121: =OFFSET(InputPriceData!E$15,CalculationsAndCharts!$A121+$A$11,IF($C$7,8,0),1,1) -> 139.48 | G121: =OFFSET(InputPriceData!F$15,CalculationsAndCharts!$A121+$A$11,IF($C$7,8,0),1,1) -> 140.51 | H121: 123.38895 | I121: 133.5266 | J121: 138.3925 | K121: 142.115 | L121: 139.35 | N121: 1333100 | O121: FALSE | P121: UP | Q121: FALSE | T121: TRUE | U121: FALSE | V121: FALSE | W121: TRUE | X121: FALSE | Y121: FALSE | Z121: 189.2 | AA121: FALSE | AC121: FALSE | AD121: FALSE | AE121: FALSE | AF121: FALSE | AG121: FALSE | AH121: FALSE | AJ121: 123.38895 | AK121: 133.5266 | AL121: 138.3925 | AM121: 142.115 | AN121: 139.35 | AP121: =OFFSET(InputIndexData!F$15,CalculationsAndCharts!$A121+$A$11,IF($C$7,8,0),1,1) -> 199.14 | AQ121: 195.9346 | AR121: 1 | AS121: 1 | AT121: TRUE | AV121: 212
A122: 90 | B122: =OFFSET(InputPriceData!B$15,CalculationsAndCharts!$A122+$A$11,0,1,1) -> 2014-12-09 | C122: =OFFSET(InputPriceData!G$15,CalculationsAndCharts!$A122+$A$11,IF($C$7,8,0),1,1) -> 699700 | D122: =OFFSET(InputPriceData!C$15,CalculationsAndCharts!$A122+$A$11,IF($C$7,8,0),1,1) -> 141.29 | E122: =OFFSET(InputPriceData!D$15,CalculationsAndCharts!$A122+$A$11,IF($C$7,8,0),1,1) -> 142.97 | F122: =OFFSET(InputPriceData!E$15,CalculationsAndCharts!$A122+$A$11,IF($C$7,8,0),1,1) -> 141.09 | G122: =OFFSET(InputPriceData!F$15,CalculationsAndCharts!$A122+$A$11,IF($C$7,8,0),1,1) -> 142.51 | H122: 123.23065 | I122: 133.305 | J122: 138.144 | K122: 141.6425 | L122: 138.98375 | M122: 699700 | O122: FALSE | P122: UP | Q122: FALSE | T122: TRUE | U122: FALSE | V122: FALSE | W122: TRUE | X122: FALSE | Y122: FALSE | Z122: 189.2 | AA122: FALSE | AC122: FALSE | AD122: FALSE | AE122: FALSE | AF122: FALSE | AG122: FALSE | AH122: FALSE | AJ122: 123.23065 | AK122: 133.305 | AL122: 138.144 | AM122: 141.6425 | AN122: 138.98375 | AP122: =OFFSET(InputIndexData!F$15,CalculationsAndCharts!$A122+$A$11,IF($C$7,8,0),1,1) -> 202.38 | AQ122: 195.8142 | AR122: 1 | AS122: 1 | AT122: TRUE | AV122: 212
A123: 91 | B123: =OFFSET(InputPriceData!B$15,CalculationsAndCharts!$A123+$A$11,0,1,1) -> 2014-12-08 | C123: =OFFSET(InputPriceData!G$15,CalculationsAndCharts!$A123+$A$11,IF($C$7,8,0),1,1) -> 1121100 | D123: =OFFSET(InputPriceData!C$15,CalculationsAndCharts!$A123+$A$11,IF($C$7,8,0),1,1) -> 143.02 | E123: =OFFSET(InputPriceData!D$15,CalculationsAndCharts!$A123+$A$11,IF($C$7,8,0),1,1) -> 144.3 | F123: =OFFSET(InputPriceData!E$15,CalculationsAndCharts!$A123+$A$11,IF($C$7,8,0),1,1) -> 142.81 | G123: =OFFSET(InputPriceData!F$15,CalculationsAndCharts!$A123+$A$11,IF($C$7,8,0),1,1) -> 143.62 | H123: 123.06325 | I123: 133.0754 | J123: 137.598 | K123: 140.99375 | L123: 138.31875 | M123: 1121100 | O123: FALSE | P123: UP | Q123: FALSE | T123: TRUE | U123: FALSE | V123: FALSE | W123: TRUE | X123: FALSE | Y123: FALSE | Z123: 189.2 | AA123: FALSE | AC123: FALSE | AD123: FALSE | AE123: FALSE | AF123: FALSE | AG123: FALSE | AH123: FALSE | AJ123: 123.06325 | AK123: 133.0754 | AL123: 137.598 | AM123: 140.99375 | AN123: 138.31875 | AP123: =OFFSET(InputIndexData!F$15,CalculationsAndCharts!$A123+$A$11,IF($C$7,8,0),1,1) -> 202.52 | AQ123: 195.6392 | AR123: 1 | AS123: 1 | AT123: TRUE | AV123: 212
A124: 92 | B124: =OFFSET(InputPriceData!B$15,CalculationsAndCharts!$A124+$A$11,0,1,1) -> 2014-12-05 | C124: =OFFSET(InputPriceData!G$15,CalculationsAndCharts!$A124+$A$11,IF($C$7,8,0),1,1) -> 2356100 | D124: =OFFSET(InputPriceData!C$15,CalculationsAndCharts!$A124+$A$11,IF($C$7,8,0),1,1) -> 140.69 | E124: =OFFSET(InputPriceData!D$15,CalculationsAndCharts!$A124+$A$11,IF($C$7,8,0),1,1) -> 144.8 | F124: =OFFSET(InputPriceData!E$15,CalculationsAndCharts!$A124+$A$11,IF($C$7,8,0),1,1) -> 140.54 | G124: =OFFSET(InputPriceData!F$15,CalculationsAndCharts!$A124+$A$11,IF($C$7,8,0),1,1) -> 143.37 | H124: 122.9061 | I124: 132.8202 | J124: 136.903 | K124: 140.455 | L124: 137.5575 | M124: 2356100 | O124: FALSE | P124: UP | Q124: FALSE | T124: TRUE | U124: FALSE | V124: FALSE | W124: TRUE | X124: FALSE | Y124: FALSE | Z124: 189.2 | AA124: FALSE | AC124: FALSE | AD124: FALSE | AE124: FALSE | AF124: FALSE | AG124: FALSE | AH124: FALSE | AJ124: 122.9061 | AK124: 132.8202 | AL124: 136.903 | AM124: 140.455 | AN124: 137.5575 | AP124: =OFFSET(InputIndexData!F$15,CalculationsAndCharts!$A124+$A$11,IF($C$7,8,0),1,1) -> 203.88 | AQ124: 195.4684 | AR124: 1 | AS124: 1 | AT124: TRUE | AV124: 212
A125: 93 | B125: =OFFSET(InputPriceData!B$15,CalculationsAndCharts!$A125+$A$11,0,1,1) -> 2014-12-04 | C125: =OFFSET(InputPriceData!G$15,CalculationsAndCharts!$A125+$A$11,IF($C$7,8,0),1,1) -> 983000 | D125: =OFFSET(InputPriceData!C$15,CalculationsAndCharts!$A125+$A$11,IF($C$7,8,0),1,1) -> 140.19 | E125: =OFFSET(InputPriceData!D$15,CalculationsAndCharts!$A125+$A$11,IF($C$7,8,0),1,1) -> 140.65 | F125: =OFFSET(InputPriceData!E$15,CalculationsAndCharts!$A125+$A$11,IF($C$7,8,0),1,1) -> 138.6 | G125: =OFFSET(InputPriceData!F$15,CalculationsAndCharts!$A125+$A$11,IF($C$7,8,0),1,1) -> 140.19 | H125: 122.69655 | I125: 132.5556 | J125: 136.682 | K125: 139.7975 | L125: 136.96625 | M125: 983000 | O125: FALSE | P125: UP | Q125: FALSE | T125: TRUE | U125: FALSE | V125: FALSE | W125: TRUE | X125: FALSE | Y125: FALSE | Z125: 189.2 | AA125: FALSE | AC125: FALSE | AD125: FALSE | AE125: FALSE | AF125: FALSE | AG125: FALSE | AH125: FALSE | AJ125: 122.69655 | AK125: 132.5556 | AL125: 136.682 | AM125: 139.7975 | AN125: 136.96625 | AP125: =OFFSET(InputIndexData!F$15,CalculationsAndCharts!$A125+$A$11,IF($C$7,8,0),1,1) -> 203.55 | AQ125: 195.2398 | AR125: 1 | AS125: 1 | AT125: TRUE | AV125: 212
A126: 94 | B126: =OFFSET(InputPriceData!B$15,CalculationsAndCharts!$A126+$A$11,0,1,1) -> 2014-12-03 | C126: =OFFSET(InputPriceData!G$15,CalculationsAndCharts!$A126+$A$11,IF($C$7,8,0),1,1) -> 1475400 | D126: =OFFSET(InputPriceData!C$15,CalculationsAndCharts!$A126+$A$11,IF($C$7,8,0),1,1) -> 140.19 | E126: =OFFSET(InputPriceData!D$15,CalculationsAndCharts!$A126+$A$11,IF($C$7,8,0),1,1) -> 143.35 | F126: =OFFSET(InputPriceData!E$15,CalculationsAndCharts!$A126+$A$11,IF($C$7,8,0),1,1) -> 139.64 | G126: =OFFSET(InputPriceData!F$15,CalculationsAndCharts!$A126+$A$11,IF($C$7,8,0),1,1) -> 140.78 | H126: 122.50005 | I126: 132.4384 | J126: 136.574 | K126: 139.32625 | L126: 136.5325 | M126: 1475400 | O126: FALSE | P126: UP | Q126: FALSE | T126: TRUE | U126: FALSE | V126: FALSE | W126: TRUE | X126: FALSE | Y126: FALSE | Z126: 189.2 | AA126: FALSE | AC126: FALSE | AD126: FALSE | AE126: FALSE | AF126: FALSE | AG126: FALSE | AH126: FALSE | AJ126: 122.50005 | AK126: 132.4384 | AL126: 136.574 | AM126: 139.32625 | AN126: 136.5325 | AP126: =OFFSET(InputIndexData!F$15,CalculationsAndCharts!$A126+$A$11,IF($C$7,8,0),1,1) -> 203.77 | AQ126: 195.081 | AR126: 1 | AS126: 1 | AT126: TRUE | AV126: 212
A127: 95 | B127: =OFFSET(InputPriceData!B$15,CalculationsAndCharts!$A127+$A$11,0,1,1) -> 2014-12-02 | C127: =OFFSET(InputPriceData!G$15,CalculationsAndCharts!$A127+$A$11,IF($C$7,8,0),1,1) -> 1041500 | D127: =OFFSET(InputPriceData!C$15,CalculationsAndCharts!$A127+$A$11,IF($C$7,8,0),1,1) -> 137.45 | E127: =OFFSET(InputPriceData!D$15,CalculationsAndCharts!$A127+$A$11,IF($C$7,8,0),1,1) -> 139.3 | F127: =OFFSET(InputPriceData!E$15,CalculationsAndCharts!$A127+$A$11,IF($C$7,8,0),1,1) -> 136.28 | G127: =OFFSET(InputPriceData!F$15,CalculationsAndCharts!$A127+$A$11,IF($C$7,8,0),1,1) -> 139.2 | H127: 122.2993 | I127: 132.2468 | J127: 136.377 | K127: 138.38375 | L127: 135.88875 | M127: 1041500 | O127: FALSE | P127: UP | Q127: FALSE | T127: TRUE | U127: FALSE | V127: FALSE | W127: TRUE | X127: FALSE | Y127: FALSE | Z127: 189.2 | AA127: FALSE | AC127: FALSE | AD127: FALSE | AE127: FALSE | AF127: FALSE | AG127: FALSE | AH127: FALSE | AJ127: 122.2993 | AK127: 132.2468 | AL127: 136.377 | AM127: 138.38375 | AN127: 135.88875 | AP127: =OFFSET(InputIndexData!F$15,CalculationsAndCharts!$A127+$A$11,IF($C$7,8,0),1,1) -> 202.99 | AQ127: 194.8874 | AR127: 1 | AS127: 1 | AT127: TRUE | AV127: 212
A128: 96 | B128: =OFFSET(InputPriceData!B$15,CalculationsAndCharts!$A128+$A$11,0,1,1) -> 2014-12-01 | C128: =OFFSET(InputPriceData!G$15,CalculationsAndCharts!$A128+$A$11,IF($C$7,8,0),1,1) -> 1114800 | D128: =OFFSET(InputPriceData!C$15,CalculationsAndCharts!$A128+$A$11,IF($C$7,8,0),1,1) -> 136.74 | E128: =OFFSET(InputPriceData!D$15,CalculationsAndCharts!$A128+$A$11,IF($C$7,8,0),1,1) -> 139.7 | F128: =OFFSET(InputPriceData!E$15,CalculationsAndCharts!$A128+$A$11,IF($C$7,8,0),1,1) -> 136.36 | G128: =OFFSET(InputPriceData!F$15,CalculationsAndCharts!$A128+$A$11,IF($C$7,8,0),1,1) -> 138.17 | H128: 122.1081 | I128: 132.135 | J128: 136.2955 | K128: 138.28625 | L128: 135.7625 | M128: 1114800 | O128: FALSE | P128: UP | Q128: FALSE | T128: TRUE | U128: FALSE | V128: FALSE | W128: TRUE | X128: FALSE | Y128: FALSE | Z128: 189.2 | AA128: FALSE | AC128: FALSE | AD128: FALSE | AE128: FALSE | AF128: FALSE | AG128: FALSE | AH128: FALSE | AJ128: 122.1081 | AK128: 132.135 | AL128: 136.2955 | AM128: 138.28625 | AN128: 135.7625 | AP128: =OFFSET(InputIndexData!F$15,CalculationsAndCharts!$A128+$A$11,IF($C$7,8,0),1,1) -> 201.69 | AQ128: 194.7318 | AR128: 1 | AS128: 1 | AT128: TRUE | AV128: 212
A129: 97 | B129: =OFFSET(InputPriceData!B$15,CalculationsAndCharts!$A129+$A$11,0,1,1) -> 2014-11-28 | C129: =OFFSET(InputPriceData!G$15,CalculationsAndCharts!$A129+$A$11,IF($C$7,8,0),1,1) -> 814500 | D129: =OFFSET(InputPriceData!C$15,CalculationsAndCharts!$A129+$A$11,IF($C$7,8,0),1,1) -> 136.64 | E129: =OFFSET(InputPriceData!D$15,CalculationsAndCharts!$A129+$A$11,IF($C$7,8,0),1,1) -> 138.07 | F129: =OFFSET(InputPriceData!E$15,CalculationsAndCharts!$A129+$A$11,IF($C$7,8,0),1,1) -> 136.55 | G129: =OFFSET(InputPriceData!F$15,CalculationsAndCharts!$A129+$A$11,IF($C$7,8,0),1,1) -> 137.06 | H129: 121.9118 | I129: 132.0464 | J129: 136.284 | K129: 138.3025 | L129: 135.8 | M129: 814500 | O129: FALSE | P129: UP | Q129: FALSE | T129: TRUE | U129: FALSE | V129: FALSE | W129: TRUE | X129: FALSE | Y129: FALSE | Z129: 189.2 | AA129: FALSE | AC129: FALSE | AD129: FALSE | AE129: FALSE | AF129: FALSE | AG129: FALSE | AH129: FALSE | AJ129: 121.9118 | AK129: 132.0464 | AL129: 136.284 | AM129: 138.3025 | AN129: 135.8 | AP129: =OFFSET(InputIndexData!F$15,CalculationsAndCharts!$A129+$A$11,IF($C$7,8,0),1,1) -> 203.1 | AQ129: 194.6326 | AR129: 1 | AS129: 1 | AT129: TRUE | AV129: 212
A130: 98 | B130: =OFFSET(InputPriceData!B$15,CalculationsAndCharts!$A130+$A$11,0,1,1) -> 2014-11-26 | C130: =OFFSET(InputPriceData!G$15,CalculationsAndCharts!$A130+$A$11,IF($C$7,8,0),1,1) -> 806200 | D130: =OFFSET(InputPriceData!C$15,CalculationsAndCharts!$A130+$A$11,IF($C$7,8,0),1,1) -> 137.27 | E130: =OFFSET(InputPriceData!D$15,CalculationsAndCharts!$A130+$A$11,IF($C$7,8,0),1,1) -> 137.78 | F130: =OFFSET(InputPriceData!E$15,CalculationsAndCharts!$A130+$A$11,IF($C$7,8,0),1,1) -> 135.77 | G130: =OFFSET(InputPriceData!F$15,CalculationsAndCharts!$A130+$A$11,IF($C$7,8,0),1,1) -> 136.59 | H130: 121.7052 | I130: 131.9456 | J130: 136.245 | K130: 138.19125 | L130: 135.56625 | N130: 806200 | O130: FALSE | P130: UP | Q130: FALSE | T130: TRUE | U130: FALSE | V130: FALSE | W130: TRUE | X130: FALSE | Y130: FALSE | Z130: 189.2 | AA130: FALSE | AC130: FALSE | AD130: FALSE | AE130: FALSE | AF130: FALSE | AG130: FALSE | AH130: FALSE | AJ130: 121.7052 | AK130: 131.9456 | AL130: 136.245 | AM130: 138.19125 | AN130: 135.56625 | AP130: =OFFSET(InputIndexData!F$15,CalculationsAndCharts!$A130+$A$11,IF($C$7,8,0),1,1) -> 203.53 | AQ130: 194.5086 | AR130: 1 | AS130: 1 | AT130: TRUE | AV130: 212
A131: 99 | B131: =OFFSET(InputPriceData!B$15,CalculationsAndCharts!$A131+$A$11,0,1,1) -> 2014-11-25 | C131: =OFFSET(InputPriceData!G$15,CalculationsAndCharts!$A131+$A$11,IF($C$7,8,0),1,1) -> 1667400 | D131: =OFFSET(InputPriceData!C$15,CalculationsAndCharts!$A131+$A$11,IF($C$7,8,0),1,1) -> 138.92 | E131: =OFFSET(InputPriceData!D$15,CalculationsAndCharts!$A131+$A$11,IF($C$7,8,0),1,1) -> 139.99 | F131: =OFFSET(InputPriceData!E$15,CalculationsAndCharts!$A131+$A$11,IF($C$7,8,0),1,1) -> 136.72 | G131: =OFFSET(InputPriceData!F$15,CalculationsAndCharts!$A131+$A$11,IF($C$7,8,0),1,1) -> 136.78 | H131: 121.4939 | I131: 131.8412 | J131: 136.1185 | K131: 138.15875 | L131: 135.41 | N131: 1667400 | O131: FALSE | P131: UP | Q131: FALSE | T131: TRUE | U131: FALSE | V131: FALSE | W131: TRUE | X131: FALSE | Y131: FALSE | Z131: 189.2 | AA131: FALSE | AC131: FALSE | AD131: FALSE | AE131: FALSE | AF131: FALSE | AG131: FALSE | AH131: FALSE | AJ131: 121.4939 | AK131: 131.8412 | AL131: 136.1185 | AM131: 138.15875 | AN131: 135.41 | AP131: =OFFSET(InputIndexData!F$15,CalculationsAndCharts!$A131+$A$11,IF($C$7,8,0),1,1) -> 203.01 | AQ131: 194.3552 | AR131: 1 | AS131: 1 | AT131: TRUE | AV131: 212
A132: 100 | B132: =OFFSET(InputPriceData!B$15,CalculationsAndCharts!$A132+$A$11,0,1,1) -> 2014-11-24 | C132: =OFFSET(InputPriceData!G$15,CalculationsAndCharts!$A132+$A$11,IF($C$7,8,0),1,1) -> 1388800 | D132: =OFFSET(InputPriceData!C$15,CalculationsAndCharts!$A132+$A$11,IF($C$7,8,0),1,1) -> 136.4 | E132: =OFFSET(InputPriceData!D$15,CalculationsAndCharts!$A132+$A$11,IF($C$7,8,0),1,1) -> 139.54 | F132: =OFFSET(InputPriceData!E$15,CalculationsAndCharts!$A132+$A$11,IF($C$7,8,0),1,1) -> 135.81 | G132: =OFFSET(InputPriceData!F$15,CalculationsAndCharts!$A132+$A$11,IF($C$7,8,0),1,1) -> 138.92 | H132: 121.2899 | I132: 131.73 | J132: 135.9715 | K132: 137.9575 | L132: 135.3275 | M132: 1388800 | O132: FALSE | P132: UP | Q132: FALSE | T132: TRUE | U132: FALSE | V132: FALSE | W132: TRUE | X132: FALSE | Y132: FALSE | Z132: 189.2 | AA132: FALSE | AC132: FALSE | AD132: FALSE | AE132: FALSE | AF132: FALSE | AG132: FALSE | AH132: FALSE | AJ132: 121.2899 | AK132: 131.73 | AL132: 135.9715 | AM132: 137.9575 | AN132: 135.3275 | AP132: =OFFSET(InputIndexData!F$15,CalculationsAndCharts!$A132+$A$11,IF($C$7,8,0),1,1) -> 203.16 | AQ132: 194.207 | AR132: 1 | AS132: 1 | AT132: TRUE | AV132: 212
A133: 101 | B133: =OFFSET(InputPriceData!B$15,CalculationsAndCharts!$A133+$A$11,0,1,1) -> 2014-11-21 | C133: =OFFSET(InputPriceData!G$15,CalculationsAndCharts!$A133+$A$11,IF($C$7,8,0),1,1) -> 1118200 | D133: =OFFSET(InputPriceData!C$15,CalculationsAndCharts!$A133+$A$11,IF($C$7,8,0),1,1) -> 136.6 | E133: =OFFSET(InputPriceData!D$15,CalculationsAndCharts!$A133+$A$11,IF($C$7,8,0),1,1) -> 136.88 | F133: =OFFSET(InputPriceData!E$15,CalculationsAndCharts!$A133+$A$11,IF($C$7,8,0),1,1) -> 135.13 | G133: =OFFSET(InputPriceData!F$15,CalculationsAndCharts!$A133+$A$11,IF($C$7,8,0),1,1) -> 135.52 | H133: 121.0713 | I133: 131.4826 | J133: 135.6185 | K133: 137.62 | L133: 135.04625 | N133: 1118200 | O133: FALSE | P133: UP | Q133: FALSE | T133: TRUE | U133: FALSE | V133: FALSE | W133: TRUE | X133: FALSE | Y133: FALSE | Z133: 189.2 | AA133: FALSE | AC133: FALSE | AD133: FALSE | AE133: FALSE | AF133: FALSE | AG133: FALSE | AH133: FALSE | AJ133: 121.0713 | AK133: 131.4826 | AL133: 135.6185 | AM133: 137.62 | AN133: 135.04625 | AP133: =OFFSET(InputIndexData!F$15,CalculationsAndCharts!$A133+$A$11,IF($C$7,8,0),1,1) -> 202.59 | AQ133: 194.0264 | AR133: 1 | AS133: 1 | AT133: TRUE | AV133: 212
A134: 102 | B134: =OFFSET(InputPriceData!B$15,CalculationsAndCharts!$A134+$A$11,0,1,1) -> 2014-11-20 | C134: =OFFSET(InputPriceData!G$15,CalculationsAndCharts!$A134+$A$11,IF($C$7,8,0),1,1) -> 982600 | D134: =OFFSET(InputPriceData!C$15,CalculationsAndCharts!$A134+$A$11,IF($C$7,8,0),1,1) -> 135.22 | E134: =OFFSET(InputPriceData!D$15,CalculationsAndCharts!$A134+$A$11,IF($C$7,8,0),1,1) -> 135.81 | F134: =OFFSET(InputPriceData!E$15,CalculationsAndCharts!$A134+$A$11,IF($C$7,8,0),1,1) -> 134.49 | G134: =OFFSET(InputPriceData!F$15,CalculationsAndCharts!$A134+$A$11,IF($C$7,8,0),1,1) -> 135.3 | H134: 120.8672 | I134: 131.315 | J134: 135.454 | K134: 137.47125 | L134: 134.665 | M134: 982600 | O134: FALSE | P134: UP | Q134: FALSE | T134: TRUE | U134: FALSE | V134: FALSE | W134: TRUE | X134: FALSE | Y134: FALSE | Z134: 189.2 | AA134: FALSE | AC134: FALSE | AD134: FALSE | AE134: FALSE | AF134: FALSE | AG134: FALSE | AH134: FALSE | AJ134: 120.8672 | AK134: 131.315 | AL134: 135.454 | AM134: 137.47125 | AN134: 134.665 | AP134: =OFFSET(InputIndexData!F$15,CalculationsAndCharts!$A134+$A$11,IF($C$7,8,0),1,1) -> 201.51 | AQ134: 193.8602 | AR134: 1 | AS134: 1 | AT134: TRUE | AV134: 212
A135: 103 | B135: =OFFSET(InputPriceData!B$15,CalculationsAndCharts!$A135+$A$11,0,1,1) -> 2014-11-19 | C135: =OFFSET(InputPriceData!G$15,CalculationsAndCharts!$A135+$A$11,IF($C$7,8,0),1,1) -> 1041000 | D135: =OFFSET(InputPriceData!C$15,CalculationsAndCharts!$A135+$A$11,IF($C$7,8,0),1,1) -> 138.11 | E135: =OFFSET(InputPriceData!D$15,CalculationsAndCharts!$A135+$A$11,IF($C$7,8,0),1,1) -> 138.52 | F135: =OFFSET(InputPriceData!E$15,CalculationsAndCharts!$A135+$A$11,IF($C$7,8,0),1,1) -> 135.27 | G135: =OFFSET(InputPriceData!F$15,CalculationsAndCharts!$A135+$A$11,IF($C$7,8,0),1,1) -> 135.66 | H135: 120.6676 | I135: 131.1744 | J135: 135.277 | K135: 137.03625 | L135: 134.14125 | N135: 1041000 | O135: FALSE | P135: UP | Q135: FALSE | T135: TRUE | U135: FALSE | V135: FALSE | W135: TRUE | X135: FALSE | Y135: FALSE | Z135: 189.2 | AA135: FALSE | AC135: FALSE | AD135: FALSE | AE135: FALSE | AF135: FALSE | AG135: FALSE | AH135: FALSE | AJ135: 120.6676 | AK135: 131.1744 | AL135: 135.277 | AM135: 137.03625 | AN135: 134.14125 | AP135: =OFFSET(InputIndexData!F$15,CalculationsAndCharts!$A135+$A$11,IF($C$7,8,0),1,1) -> 201.16 | AQ135: 193.7384 | AR135: 1 | AS135: 1 | AT135: TRUE | AV135: 212
A136: 104 | B136: =OFFSET(InputPriceData!B$15,CalculationsAndCharts!$A136+$A$11,0,1,1) -> 2014-11-18 | C136: =OFFSET(InputPriceData!G$15,CalculationsAndCharts!$A136+$A$11,IF($C$7,8,0),1,1) -> 1114700 | D136: =OFFSET(InputPriceData!C$15,CalculationsAndCharts!$A136+$A$11,IF($C$7,8,0),1,1) -> 137 | E136: =OFFSET(InputPriceData!D$15,CalculationsAndCharts!$A136+$A$11,IF($C$7,8,0),1,1) -> 139.83 | F136: =OFFSET(InputPriceData!E$15,CalculationsAndCharts!$A136+$A$11,IF($C$7,8,0),1,1) -> 136.66 | G136: =OFFSET(InputPriceData!F$15,CalculationsAndCharts!$A136+$A$11,IF($C$7,8,0),1,1) -> 138.37 | H136: 120.46155 | I136: 131.018 | J136: 135.0245 | K136: 136.57875 | L136: 133.29 | M136: 1114700 | O136: FALSE | P136: UP | Q136: FALSE | T136: TRUE | U136: FALSE | V136: FALSE | W136: TRUE | X136: FALSE | Y136: FALSE | Z136: 189.2 | AA136: FALSE | AC136: FALSE | AD136: FALSE | AE136: FALSE | AF136: FALSE | AG136: FALSE | AH136: FALSE | AJ136: 120.46155 | AK136: 131.018 | AL136: 135.0245 | AM136: 136.57875 | AN136: 133.29 | AP136: =OFFSET(InputIndexData!F$15,CalculationsAndCharts!$A136+$A$11,IF($C$7,8,0),1,1) -> 201.48 | AQ136: 193.6192 | AR136: 1 | AS136: 1 | AT136: TRUE | AV136: 212
A137: 105 | B137: =OFFSET(InputPriceData!B$15,CalculationsAndCharts!$A137+$A$11,0,1,1) -> 2014-11-17 | C137: =OFFSET(InputPriceData!G$15,CalculationsAndCharts!$A137+$A$11,IF($C$7,8,0),1,1) -> 721900 | D137: =OFFSET(InputPriceData!C$15,CalculationsAndCharts!$A137+$A$11,IF($C$7,8,0),1,1) -> 135.11 | E137: =OFFSET(InputPriceData!D$15,CalculationsAndCharts!$A137+$A$11,IF($C$7,8,0),1,1) -> 137.18 | F137: =OFFSET(InputPriceData!E$15,CalculationsAndCharts!$A137+$A$11,IF($C$7,8,0),1,1) -> 134.68 | G137: =OFFSET(InputPriceData!F$15,CalculationsAndCharts!$A137+$A$11,IF($C$7,8,0),1,1) -> 136.57 | H137: 120.2506 | I137: 130.837 | J137: 134.7255 | K137: 136.565 | L137: 133.435 | M137: 721900 | O137: FALSE | P137: UP | Q137: FALSE | T137: TRUE | U137: FALSE | V137: FALSE | W137: TRUE | X137: FALSE | Y137: FALSE | Z137: 189.2 | AA137: FALSE | AC137: FALSE | AD137: FALSE | AE137: FALSE | AF137: FALSE | AG137: FALSE | AH137: FALSE | AJ137: 120.2506 | AK137: 130.837 | AL137: 134.7255 | AM137: 136.565 | AN137: 133.435 | AP137: =OFFSET(InputIndexData!F$15,CalculationsAndCharts!$A137+$A$11,IF($C$7,8,0),1,1) -> 200.32 | AQ137: 193.4788 | AR137: 1 | AS137: 1 | AT137: TRUE | AV137: 212
A138: 106 | B138: =OFFSET(InputPriceData!B$15,CalculationsAndCharts!$A138+$A$11,0,1,1) -> 2014-11-14 | C138: =OFFSET(InputPriceData!G$15,CalculationsAndCharts!$A138+$A$11,IF($C$7,8,0),1,1) -> 1179800 | D138: =OFFSET(InputPriceData!C$15,CalculationsAndCharts!$A138+$A$11,IF($C$7,8,0),1,1) -> 137.2 | E138: =OFFSET(InputPriceData!D$15,CalculationsAndCharts!$A138+$A$11,IF($C$7,8,0),1,1) -> 137.52 | F138: =OFFSET(InputPriceData!E$15,CalculationsAndCharts!$A138+$A$11,IF($C$7,8,0),1,1) -> 134.52 | G138: =OFFSET(InputPriceData!F$15,CalculationsAndCharts!$A138+$A$11,IF($C$7,8,0),1,1) -> 134.88 | H138: 120.0432 | I138: 130.674 | J138: 134.359 | K138: 136.795 | L138: 133.62875 | N138: 1179800 | O138: FALSE | P138: UP | Q138: FALSE | T138: TRUE | U138: FALSE | V138: TRUE | W138: TRUE | X138: FALSE | Y138: FALSE | Z138: 189.2 | AA138: FALSE | AC138: FALSE | AD138: FALSE | AE138: FALSE | AF138: FALSE | AG138: FALSE | AH138: FALSE | AJ138: 120.0432 | AK138: 130.674 | AL138: 134.359 | AM138: 136.795 | AN138: 133.62875 | AP138: =OFFSET(InputIndexData!F$15,CalculationsAndCharts!$A138+$A$11,IF($C$7,8,0),1,1) -> 200.2 | AQ138: 193.3864 | AR138: 1 | AS138: 1 | AT138: TRUE | AV138: 212
A139: 107 | B139: =OFFSET(InputPriceData!B$15,CalculationsAndCharts!$A139+$A$11,0,1,1) -> 2014-11-13 | C139: =OFFSET(InputPriceData!G$15,CalculationsAndCharts!$A139+$A$11,IF($C$7,8,0),1,1) -> 1485700 | D139: =OFFSET(InputPriceData!C$15,CalculationsAndCharts!$A139+$A$11,IF($C$7,8,0),1,1) -> 136.59 | E139: =OFFSET(InputPriceData!D$15,CalculationsAndCharts!$A139+$A$11,IF($C$7,8,0),1,1) -> 138.38 | F139: =OFFSET(InputPriceData!E$15,CalculationsAndCharts!$A139+$A$11,IF($C$7,8,0),1,1) -> 136.06 | G139: =OFFSET(InputPriceData!F$15,CalculationsAndCharts!$A139+$A$11,IF($C$7,8,0),1,1) -> 137.5 | H139: 119.84885 | I139: 130.538 | J139: 133.9845 | K139: 136.94625 | L139: 133.85375 | M139: 1485700 | O139: TRUE | P139: UP | Q139: FALSE | R139: 137.5 | T139: TRUE | U139: TRUE | V139: FALSE | W139: FALSE | X139: FALSE | Y139: FALSE | AA139: FALSE | AC139: FALSE | AD139: FALSE | AE139: FALSE | AF139: FALSE | AG139: FALSE | AH139: FALSE | AJ139: 119.84885 | AK139: 130.538 | AL139: 133.9845 | AM139: 136.94625 | AN139: 133.85375 | AP139: =OFFSET(InputIndexData!F$15,CalculationsAndCharts!$A139+$A$11,IF($C$7,8,0),1,1) -> 200.15 | AQ139: 193.3066 | AR139: 1 | AS139: 1 | AT139: TRUE | AV139: 212
A140: 108 | B140: =OFFSET(InputPriceData!B$15,CalculationsAndCharts!$A140+$A$11,0,1,1) -> 2014-11-12 | C140: =OFFSET(InputPriceData!G$15,CalculationsAndCharts!$A140+$A$11,IF($C$7,8,0),1,1) -> 1376100 | D140: =OFFSET(InputPriceData!C$15,CalculationsAndCharts!$A140+$A$11,IF($C$7,8,0),1,1) -> 135.19 | E140: =OFFSET(InputPriceData!D$15,CalculationsAndCharts!$A140+$A$11,IF($C$7,8,0),1,1) -> 136.84 | F140: =OFFSET(InputPriceData!E$15,CalculationsAndCharts!$A140+$A$11,IF($C$7,8,0),1,1) -> 133.56 | G140: =OFFSET(InputPriceData!F$15,CalculationsAndCharts!$A140+$A$11,IF($C$7,8,0),1,1) -> 136.35 | H140: 119.6457 | I140: 130.3036 | J140: 133.3545 | K140: 137.0025 | L140: 133.9375 | M140: 1376100 | O140: FALSE | P140: DOWN | Q140: FALSE | T140: TRUE | U140: FALSE | V140: FALSE | W140: FALSE | X140: FALSE | Y140: FALSE | AA140: FALSE | AC140: FALSE | AD140: FALSE | AE140: FALSE | AF140: FALSE | AG140: FALSE | AH140: FALSE | AJ140: 119.6457 | AK140: 130.3036 | AL140: 133.3545 | AM140: 137.0025 | AN140: 133.9375 | AP140: =OFFSET(InputIndexData!F$15,CalculationsAndCharts!$A140+$A$11,IF($C$7,8,0),1,1) -> 199.92 | AQ140: 193.2102 | AR140: 1 | AS140: 1 | AT140: TRUE | AV140: 212
A141: 109 | B141: =OFFSET(InputPriceData!B$15,CalculationsAndCharts!$A141+$A$11,0,1,1) -> 2014-11-11 | C141: =OFFSET(InputPriceData!G$15,CalculationsAndCharts!$A141+$A$11,IF($C$7,8,0),1,1) -> 1411100 | D141: =OFFSET(InputPriceData!C$15,CalculationsAndCharts!$A141+$A$11,IF($C$7,8,0),1,1) -> 132.08 | E141: =OFFSET(InputPriceData!D$15,CalculationsAndCharts!$A141+$A$11,IF($C$7,8,0),1,1) -> 135.69 | F141: =OFFSET(InputPriceData!E$15,CalculationsAndCharts!$A141+$A$11,IF($C$7,8,0),1,1) -> 132.08 | G141: =OFFSET(InputPriceData!F$15,CalculationsAndCharts!$A141+$A$11,IF($C$7,8,0),1,1) -> 135.54 | H141: 119.44015 | I141: 130.0994 | J141: 132.7045 | K141: 137.26625 | L141: 134.4175 | M141: 1411100 | O141: FALSE | P141: DOWN | Q141: FALSE | T141: TRUE | U141: FALSE | V141: FALSE | W141: FALSE | X141: FALSE | Y141: FALSE | AA141: FALSE | AC141: FALSE | AD141: FALSE | AE141: FALSE | AF141: FALSE | AG141: FALSE | AH141: FALSE | AJ141: 119.44015 | AK141: 130.0994 | AL141: 132.7045 | AM141: 137.26625 | AN141: 134.4175 | AP141: =OFFSET(InputIndexData!F$15,CalculationsAndCharts!$A141+$A$11,IF($C$7,8,0),1,1) -> 200.14 | AQ141: 193.1242 | AR141: 1 | AS141: 1 | AT141: TRUE | AV141: 212
A142: 110 | B142: =OFFSET(InputPriceData!B$15,CalculationsAndCharts!$A142+$A$11,0,1,1) -> 2014-11-10 | C142: =OFFSET(InputPriceData!G$15,CalculationsAndCharts!$A142+$A$11,IF($C$7,8,0),1,1) -> 2620300 | D142: =OFFSET(InputPriceData!C$15,CalculationsAndCharts!$A142+$A$11,IF($C$7,8,0),1,1) -> 130.64 | E142: =OFFSET(InputPriceData!D$15,CalculationsAndCharts!$A142+$A$11,IF($C$7,8,0),1,1) -> 132.33 | F142: =OFFSET(InputPriceData!E$15,CalculationsAndCharts!$A142+$A$11,IF($C$7,8,0),1,1) -> 130.3 | G142: =OFFSET(InputPriceData!F$15,CalculationsAndCharts!$A142+$A$11,IF($C$7,8,0),1,1) -> 131.59 | H142: 119.2362 | I142: 129.9154 | J142: 132.0965 | K142: 137.44125 | L142: 134.61125 | M142: 2620300 | O142: FALSE | P142: DOWN | Q142: FALSE | T142: TRUE | U142: FALSE | V142: FALSE | W142: FALSE | X142: FALSE | Y142: FALSE | AA142: FALSE | AC142: FALSE | AD142: FALSE | AE142: FALSE | AF142: FALSE | AG142: FALSE | AH142: FALSE | AJ142: 119.2362 | AK142: 129.9154 | AL142: 132.0965 | AM142: 137.44125 | AN142: 134.61125 | AP142: =OFFSET(InputIndexData!F$15,CalculationsAndCharts!$A142+$A$11,IF($C$7,8,0),1,1) -> 199.94 | AQ142: 193.0358 | AR142: 1 | AS142: 1 | AT142: TRUE | AV142: 212
A143: 111 | B143: =OFFSET(InputPriceData!B$15,CalculationsAndCharts!$A143+$A$11,0,1,1) -> 2014-11-07 | C143: =OFFSET(InputPriceData!G$15,CalculationsAndCharts!$A143+$A$11,IF($C$7,8,0),1,1) -> 5468300 | D143: =OFFSET(InputPriceData!C$15,CalculationsAndCharts!$A143+$A$11,IF($C$7,8,0),1,1) -> 130.54 | E143: =OFFSET(InputPriceData!D$15,CalculationsAndCharts!$A143+$A$11,IF($C$7,8,0),1,1) -> 134.86 | F143: =OFFSET(InputPriceData!E$15,CalculationsAndCharts!$A143+$A$11,IF($C$7,8,0),1,1) -> 128.46 | G143: =OFFSET(InputPriceData!F$15,CalculationsAndCharts!$A143+$A$11,IF($C$7,8,0),1,1) -> 129.72 | H143: 119.0521 | I143: 129.836 | J143: 131.7075 | K143: 137.8625 | L143: 134.99625 | N143: 5468300 | O143: FALSE | P143: DOWN | Q143: TRUE | S143: 129.72 | T143: FALSE | U143: FALSE | V143: FALSE | W143: FALSE | X143: FALSE | Y143: FALSE | AA143: FALSE | AC143: FALSE | AD143: FALSE | AE143: FALSE | AF143: FALSE | AG143: FALSE | AH143: FALSE | AJ143: 119.0521 | AK143: 129.836 | AL143: 131.7075 | AM143: 137.8625 | AN143: 134.99625 | AP143: =OFFSET(InputIndexData!F$15,CalculationsAndCharts!$A143+$A$11,IF($C$7,8,0),1,1) -> 199.31 | AQ143: 192.9534 | AR143: 1 | AS143: 1 | AT143: TRUE | AV143: 212
A144: 112 | B144: =OFFSET(InputPriceData!B$15,CalculationsAndCharts!$A144+$A$11,0,1,1) -> 2014-11-06 | C144: =OFFSET(InputPriceData!G$15,CalculationsAndCharts!$A144+$A$11,IF($C$7,8,0),1,1) -> 1395500 | D144: =OFFSET(InputPriceData!C$15,CalculationsAndCharts!$A144+$A$11,IF($C$7,8,0),1,1) -> 138.15 | E144: =OFFSET(InputPriceData!D$15,CalculationsAndCharts!$A144+$A$11,IF($C$7,8,0),1,1) -> 139.72 | F144: =OFFSET(InputPriceData!E$15,CalculationsAndCharts!$A144+$A$11,IF($C$7,8,0),1,1) -> 137.82 | G144: =OFFSET(InputPriceData!F$15,CalculationsAndCharts!$A144+$A$11,IF($C$7,8,0),1,1) -> 138.95 | H144: 118.87715 | I144: 129.7722 | J144: 131.4995 | K144: 137.7575 | L144: 135.145 | M144: 1395500 | O144: FALSE | P144: UP | Q144: FALSE | T144: TRUE | U144: FALSE | V144: FALSE | W144: FALSE | X144: FALSE | Y144: FALSE | AA144: FALSE | AC144: FALSE | AD144: FALSE | AE144: FALSE | AF144: FALSE | AG144: FALSE | AH144: FALSE | AJ144: 118.87715 | AK144: 129.7722 | AL144: 131.4995 | AM144: 137.7575 | AN144: 135.145 | AP144: =OFFSET(InputIndexData!F$15,CalculationsAndCharts!$A144+$A$11,IF($C$7,8,0),1,1) -> 199.13 | AQ144: 192.8724 | AR144: 1 | AS144: 1 | AT144: TRUE | AV144: 212
A145: 113 | B145: =OFFSET(InputPriceData!B$15,CalculationsAndCharts!$A145+$A$11,0,1,1) -> 2014-11-05 | C145: =OFFSET(InputPriceData!G$15,CalculationsAndCharts!$A145+$A$11,IF($C$7,8,0),1,1) -> 1582000 | D145: =OFFSET(InputPriceData!C$15,CalculationsAndCharts!$A145+$A$11,IF($C$7,8,0),1,1) -> 138.53 | E145: =OFFSET(InputPriceData!D$15,CalculationsAndCharts!$A145+$A$11,IF($C$7,8,0),1,1) -> 139.02 | F145: =OFFSET(InputPriceData!E$15,CalculationsAndCharts!$A145+$A$11,IF($C$7,8,0),1,1) -> 136.23 | G145: =OFFSET(InputPriceData!F$15,CalculationsAndCharts!$A145+$A$11,IF($C$7,8,0),1,1) -> 138.03 | H145: 118.657 | I145: 129.5174 | J145: 130.7625 | K145: 136.89625 | L145: 134.36375 | N145: 1582000 | O145: FALSE | P145: UP | Q145: FALSE | T145: TRUE | U145: FALSE | V145: FALSE | W145: FALSE | X145: FALSE | Y145: FALSE | AA145: FALSE | AC145: FALSE | AD145: FALSE | AE145: FALSE | AF145: FALSE | AG145: FALSE | AH145: FALSE | AJ145: 118.657 | AK145: 129.5174 | AL145: 130.7625 | AM145: 136.89625 | AN145: 134.36375 | AP145: =OFFSET(InputIndexData!F$15,CalculationsAndCharts!$A145+$A$11,IF($C$7,8,0),1,1) -> 198.33 | AQ145: 192.7972 | AR145: 1 | AS145: 1 | AT145: TRUE | AV145: 212
A146: 114 | B146: =OFFSET(InputPriceData!B$15,CalculationsAndCharts!$A146+$A$11,0,1,1) -> 2014-11-04 | C146: =OFFSET(InputPriceData!G$15,CalculationsAndCharts!$A146+$A$11,IF($C$7,8,0),1,1) -> 1138300 | D146: =OFFSET(InputPriceData!C$15,CalculationsAndCharts!$A146+$A$11,IF($C$7,8,0),1,1) -> 137.59 | E146: =OFFSET(InputPriceData!D$15,CalculationsAndCharts!$A146+$A$11,IF($C$7,8,0),1,1) -> 138.73 | F146: =OFFSET(InputPriceData!E$15,CalculationsAndCharts!$A146+$A$11,IF($C$7,8,0),1,1) -> 136.32 | G146: =OFFSET(InputPriceData!F$15,CalculationsAndCharts!$A146+$A$11,IF($C$7,8,0),1,1) -> 136.84 | H146: 118.4412 | I146: 129.236 | J146: 130.19 | K146: 136.05375 | L146: 133.67875 | N146: 1138300 | O146: FALSE | P146: UP | Q146: FALSE | T146: TRUE | U146: FALSE | V146: FALSE | W146: FALSE | X146: FALSE | Y146: FALSE | AA146: FALSE | AC146: FALSE | AD146: FALSE | AE146: FALSE | AF146: FALSE | AG146: FALSE | AH146: FALSE | AJ146: 118.4412 | AK146: 129.236 | AL146: 130.19 | AM146: 136.05375 | AN146: 133.67875 | AP146: =OFFSET(InputIndexData!F$15,CalculationsAndCharts!$A146+$A$11,IF($C$7,8,0),1,1) -> 197.09 | AQ146: 192.7396 | AR146: 1 | AS146: 1 | AT146: TRUE | AV146: 212
A147: 115 | B147: =OFFSET(InputPriceData!B$15,CalculationsAndCharts!$A147+$A$11,0,1,1) -> 2014-11-03 | C147: =OFFSET(InputPriceData!G$15,CalculationsAndCharts!$A147+$A$11,IF($C$7,8,0),1,1) -> 818000 | D147: =OFFSET(InputPriceData!C$15,CalculationsAndCharts!$A147+$A$11,IF($C$7,8,0),1,1) -> 138.09 | E147: =OFFSET(InputPriceData!D$15,CalculationsAndCharts!$A147+$A$11,IF($C$7,8,0),1,1) -> 138.83 | F147: =OFFSET(InputPriceData!E$15,CalculationsAndCharts!$A147+$A$11,IF($C$7,8,0),1,1) -> 136.73 | G147: =OFFSET(InputPriceData!F$15,CalculationsAndCharts!$A147+$A$11,IF($C$7,8,0),1,1) -> 137.57 | H147: 118.229 | I147: 128.962 | J147: 129.5435 | K147: 135.275 | L147: 133.06125 | N147: 818000 | O147: FALSE | P147: UP | Q147: FALSE | T147: TRUE | U147: FALSE | V147: FALSE | W147: FALSE | X147: FALSE | Y147: FALSE | AA147: FALSE | AC147: FALSE | AD147: FALSE | AE147: FALSE | AF147: FALSE | AG147: FALSE | AH147: FALSE | AJ147: 118.229 | AK147: 128.962 | AL147: 129.5435 | AM147: 135.275 | AN147: 133.06125 | AP147: =OFFSET(InputIndexData!F$15,CalculationsAndCharts!$A147+$A$11,IF($C$7,8,0),1,1) -> 197.78 | AQ147: 192.7042 | AR147: 1 | AS147: 1 | AT147: TRUE | AV147: 212
A148: 116 | B148: =OFFSET(InputPriceData!B$15,CalculationsAndCharts!$A148+$A$11,0,1,1) -> 2014-10-31 | C148: =OFFSET(InputPriceData!G$15,CalculationsAndCharts!$A148+$A$11,IF($C$7,8,0),1,1) -> 1219100 | D148: =OFFSET(InputPriceData!C$15,CalculationsAndCharts!$A148+$A$11,IF($C$7,8,0),1,1) -> 138.02 | E148: =OFFSET(InputPriceData!D$15,CalculationsAndCharts!$A148+$A$11,IF($C$7,8,0),1,1) -> 138.95 | F148: =OFFSET(InputPriceData!E$15,CalculationsAndCharts!$A148+$A$11,IF($C$7,8,0),1,1) -> 137.4 | G148: =OFFSET(InputPriceData!F$15,CalculationsAndCharts!$A148+$A$11,IF($C$7,8,0),1,1) -> 137.94 | H148: 118.0176 | I148: 128.653 | J148: 128.9355 | K148: 134.53375 | L148: 132.25 | N148: 1219100 | O148: FALSE | P148: UP | Q148: FALSE | T148: TRUE | U148: FALSE | V148: FALSE | W148: FALSE | X148: FALSE | Y148: FALSE | AA148: FALSE | AC148: FALSE | AD148: FALSE | AE148: FALSE | AF148: FALSE | AG148: FALSE | AH148: FALSE | AJ148: 118.0176 | AK148: 128.653 | AL148: 128.9355 | AM148: 134.53375 | AN148: 132.25 | AP148: =OFFSET(InputIndexData!F$15,CalculationsAndCharts!$A148+$A$11,IF($C$7,8,0),1,1) -> 197.67 | AQ148: 192.6354 | AR148: 1 | AS148: 1 | AT148: TRUE | AV148: 212
A149: 117 | B149: =OFFSET(InputPriceData!B$15,CalculationsAndCharts!$A149+$A$11,0,1,1) -> 2014-10-30 | C149: =OFFSET(InputPriceData!G$15,CalculationsAndCharts!$A149+$A$11,IF($C$7,8,0),1,1) -> 847500 | D149: =OFFSET(InputPriceData!C$15,CalculationsAndCharts!$A149+$A$11,IF($C$7,8,0),1,1) -> 133.63 | E149: =OFFSET(InputPriceData!D$15,CalculationsAndCharts!$A149+$A$11,IF($C$7,8,0),1,1) -> 137.09 | F149: =OFFSET(InputPriceData!E$15,CalculationsAndCharts!$A149+$A$11,IF($C$7,8,0),1,1) -> 133.63 | G149: =OFFSET(InputPriceData!F$15,CalculationsAndCharts!$A149+$A$11,IF($C$7,8,0),1,1) -> 136.28 | H149: 117.80235 | I149: 128.3418 | J149: 128.442 | K149: 133.7775 | L149: 131.2475 | M149: 847500 | O149: FALSE | P149: UP | Q149: FALSE | T149: TRUE | U149: FALSE | V149: FALSE | W149: FALSE | X149: FALSE | Y149: FALSE | AA149: FALSE | AC149: FALSE | AD149: FALSE | AE149: FALSE | AF149: FALSE | AG149: FALSE | AH149: FALSE | AJ149: 117.80235 | AK149: 128.3418 | AL149: 128.442 | AM149: 133.7775 | AN149: 131.2475 | AP149: =OFFSET(InputIndexData!F$15,CalculationsAndCharts!$A149+$A$11,IF($C$7,8,0),1,1) -> 195.43 | AQ149: 192.5748 | AR149: 1 | AS149: 1 | AT149: TRUE | AV149: 212
A150: 118 | B150: =OFFSET(InputPriceData!B$15,CalculationsAndCharts!$A150+$A$11,0,1,1) -> 2014-10-29 | C150: =OFFSET(InputPriceData!G$15,CalculationsAndCharts!$A150+$A$11,IF($C$7,8,0),1,1) -> 741500 | D150: =OFFSET(InputPriceData!C$15,CalculationsAndCharts!$A150+$A$11,IF($C$7,8,0),1,1) -> 134.11 | E150: =OFFSET(InputPriceData!D$15,CalculationsAndCharts!$A150+$A$11,IF($C$7,8,0),1,1) -> 135.7 | F150: =OFFSET(InputPriceData!E$15,CalculationsAndCharts!$A150+$A$11,IF($C$7,8,0),1,1) -> 133.38 | G150: =OFFSET(InputPriceData!F$15,CalculationsAndCharts!$A150+$A$11,IF($C$7,8,0),1,1) -> 134.06 | H150: 117.6002 | I150: 128.0578 | J150: 127.9435 | K150: 132.805 | L150: 130.45125 | N150: 741500 | O150: FALSE | P150: UP | Q150: FALSE | T150: FALSE | U150: FALSE | V150: FALSE | W150: FALSE | X150: FALSE | Y150: FALSE | AA150: FALSE | AC150: FALSE | AD150: FALSE | AE150: FALSE | AF150: FALSE | AG150: FALSE | AH150: FALSE | AJ150: 117.6002 | AK150: 128.0578 | AL150: 127.9435 | AM150: 132.805 | AN150: 130.45125 | AP150: =OFFSET(InputIndexData!F$15,CalculationsAndCharts!$A150+$A$11,IF($C$7,8,0),1,1) -> 194.19 | AQ150: 192.5476 | AR150: 1 | AS150: 1 | AT150: TRUE | AV150: 212
A151: 119 | B151: =OFFSET(InputPriceData!B$15,CalculationsAndCharts!$A151+$A$11,0,1,1) -> 2014-10-28 | C151: =OFFSET(InputPriceData!G$15,CalculationsAndCharts!$A151+$A$11,IF($C$7,8,0),1,1) -> 806800 | D151: =OFFSET(InputPriceData!C$15,CalculationsAndCharts!$A151+$A$11,IF($C$7,8,0),1,1) -> 130.28 | E151: =OFFSET(InputPriceData!D$15,CalculationsAndCharts!$A151+$A$11,IF($C$7,8,0),1,1) -> 134.02 | F151: =OFFSET(InputPriceData!E$15,CalculationsAndCharts!$A151+$A$11,IF($C$7,8,0),1,1) -> 129.65 | G151: =OFFSET(InputPriceData!F$15,CalculationsAndCharts!$A151+$A$11,IF($C$7,8,0),1,1) -> 133.84 | H151: 117.40745 | I151: 127.8138 | J151: 127.598 | K151: 131.80375 | L151: 129.3825 | M151: 806800 | O151: FALSE | P151: UP | Q151: FALSE | T151: FALSE | U151: FALSE | V151: FALSE | W151: FALSE | X151: FALSE | Y151: FALSE | AA151: FALSE | AC151: FALSE | AD151: FALSE | AE151: FALSE | AF151: FALSE | AG151: FALSE | AH151: FALSE | AJ151: 117.40745 | AK151: 127.8138 | AL151: 127.598 | AM151: 131.80375 | AN151: 129.3825 | AP151: =OFFSET(InputIndexData!F$15,CalculationsAndCharts!$A151+$A$11,IF($C$7,8,0),1,1) -> 194.48 | AQ151: 192.535 | AR151: 1 | AS151: 1 | AT151: TRUE | AV151: 212
A152: 120 | B152: =OFFSET(InputPriceData!B$15,CalculationsAndCharts!$A152+$A$11,0,1,1) -> 2014-10-27 | C152: =OFFSET(InputPriceData!G$15,CalculationsAndCharts!$A152+$A$11,IF($C$7,8,0),1,1) -> 1092600 | D152: =OFFSET(InputPriceData!C$15,CalculationsAndCharts!$A152+$A$11,IF($C$7,8,0),1,1) -> 132.22 | E152: =OFFSET(InputPriceData!D$15,CalculationsAndCharts!$A152+$A$11,IF($C$7,8,0),1,1) -> 132.83 | F152: =OFFSET(InputPriceData!E$15,CalculationsAndCharts!$A152+$A$11,IF($C$7,8,0),1,1) -> 131.57 | G152: =OFFSET(InputPriceData!F$15,CalculationsAndCharts!$A152+$A$11,IF($C$7,8,0),1,1) -> 131.86 | H152: 117.21205 | I152: 127.5544 | J152: 127.3775 | K152: 131.13 | L152: 128.445 | N152: 1092600 | O152: FALSE | P152: UP | Q152: FALSE | T152: FALSE | U152: FALSE | V152: FALSE | W152: FALSE | X152: FALSE | Y152: FALSE | AA152: FALSE | AC152: FALSE | AD152: FALSE | AE152: FALSE | AF152: FALSE | AG152: FALSE | AH152: FALSE | AJ152: 117.21205 | AK152: 127.5544 | AL152: 127.3775 | AM152: 131.13 | AN152: 128.445 | AP152: =OFFSET(InputIndexData!F$15,CalculationsAndCharts!$A152+$A$11,IF($C$7,8,0),1,1) -> 192.28 | AQ152: 192.4964 | AR152: 1 | AS152: 1 | AT152: TRUE | AV152: 212
A153: 121 | B153: =OFFSET(InputPriceData!B$15,CalculationsAndCharts!$A153+$A$11,0,1,1) -> 2014-10-24 | C153: =OFFSET(InputPriceData!G$15,CalculationsAndCharts!$A153+$A$11,IF($C$7,8,0),1,1) -> 610000 | D153: =OFFSET(InputPriceData!C$15,CalculationsAndCharts!$A153+$A$11,IF($C$7,8,0),1,1) -> 131.85 | E153: =OFFSET(InputPriceData!D$15,CalculationsAndCharts!$A153+$A$11,IF($C$7,8,0),1,1) -> 132.28 | F153: =OFFSET(InputPriceData!E$15,CalculationsAndCharts!$A153+$A$11,IF($C$7,8,0),1,1) -> 130.75 | G153: =OFFSET(InputPriceData!F$15,CalculationsAndCharts!$A153+$A$11,IF($C$7,8,0),1,1) -> 132.23 | H153: 117.03115 | I153: 127.3052 | J153: 127.336 | K153: 130.0275 | L153: 127.02875 | M153: 610000 | O153: FALSE | P153: UP | Q153: FALSE | T153: TRUE | U153: FALSE | V153: FALSE | W153: FALSE | X153: FALSE | Y153: FALSE | AA153: FALSE | AC153: FALSE | AD153: FALSE | AE153: FALSE | AF153: FALSE | AG153: FALSE | AH153: FALSE | AJ153: 117.03115 | AK153: 127.3052 | AL153: 127.336 | AM153: 130.0275 | AN153: 127.02875 | AP153: =OFFSET(InputIndexData!F$15,CalculationsAndCharts!$A153+$A$11,IF($C$7,8,0),1,1) -> 192.54 | AQ153: 192.4698 | AR153: 1 | AS153: 1 | AT153: TRUE | AV153: 212
A154: 122 | B154: =OFFSET(InputPriceData!B$15,CalculationsAndCharts!$A154+$A$11,0,1,1) -> 2014-10-23 | C154: =OFFSET(InputPriceData!G$15,CalculationsAndCharts!$A154+$A$11,IF($C$7,8,0),1,1) -> 727300 | D154: =OFFSET(InputPriceData!C$15,CalculationsAndCharts!$A154+$A$11,IF($C$7,8,0),1,1) -> 132.01 | E154: =OFFSET(InputPriceData!D$15,CalculationsAndCharts!$A154+$A$11,IF($C$7,8,0),1,1) -> 132.5 | F154: =OFFSET(InputPriceData!E$15,CalculationsAndCharts!$A154+$A$11,IF($C$7,8,0),1,1) -> 131.38 | G154: =OFFSET(InputPriceData!F$15,CalculationsAndCharts!$A154+$A$11,IF($C$7,8,0),1,1) -> 131.76 | H154: 116.8584 | I154: 127.0424 | J154: 127.2675 | K154: 129.02375 | L154: 125.87625 | N154: 727300 | O154: FALSE | P154: UP | Q154: FALSE | T154: TRUE | U154: FALSE | V154: FALSE | W154: FALSE | X154: FALSE | Y154: FALSE | AA154: FALSE | AC154: FALSE | AD154: FALSE | AE154: FALSE | AF154: FALSE | AG154: FALSE | AH154: FALSE | AJ154: 116.8584 | AK154: 127.0424 | AL154: 127.2675 | AM154: 129.02375 | AN154: 125.87625 | AP154: =OFFSET(InputIndexData!F$15,CalculationsAndCharts!$A154+$A$11,IF($C$7,8,0),1,1) -> 191.07 | AQ154: 192.4388 | AR154: 1 | AS154: 0.5 | AT154: TRUE | AV154: 212
A155: 123 | B155: =OFFSET(InputPriceData!B$15,CalculationsAndCharts!$A155+$A$11,0,1,1) -> 2014-10-22 | C155: =OFFSET(InputPriceData!G$15,CalculationsAndCharts!$A155+$A$11,IF($C$7,8,0),1,1) -> 1497800 | D155: =OFFSET(InputPriceData!C$15,CalculationsAndCharts!$A155+$A$11,IF($C$7,8,0),1,1) -> 132.87 | E155: =OFFSET(InputPriceData!D$15,CalculationsAndCharts!$A155+$A$11,IF($C$7,8,0),1,1) -> 132.9 | F155: =OFFSET(InputPriceData!E$15,CalculationsAndCharts!$A155+$A$11,IF($C$7,8,0),1,1) -> 130.24 | G155: =OFFSET(InputPriceData!F$15,CalculationsAndCharts!$A155+$A$11,IF($C$7,8,0),1,1) -> 130.61 | H155: 116.69005 | I155: 126.7764 | J155: 127.1865 | K155: 128.40625 | L155: 124.915 | N155: 1497800 | O155: FALSE | P155: UP | Q155: FALSE | T155: FALSE | U155: FALSE | V155: FALSE | W155: FALSE | X155: FALSE | Y155: FALSE | AA155: FALSE | AC155: FALSE | AD155: FALSE | AE155: FALSE | AF155: FALSE | AG155: FALSE | AH155: FALSE | AJ155: 116.69005 | AK155: 126.7764 | AL155: 127.1865 | AM155: 128.40625 | AN155: 124.915 | AP155: =OFFSET(InputIndexData!F$15,CalculationsAndCharts!$A155+$A$11,IF($C$7,8,0),1,1) -> 188.87 | AQ155: 192.4192 | AR155: 1 | AS155: 0 | AT155: FALSE | AW155: 212
A156: 124 | B156: =OFFSET(InputPriceData!B$15,CalculationsAndCharts!$A156+$A$11,0,1,1) -> 2014-10-21 | C156: =OFFSET(InputPriceData!G$15,CalculationsAndCharts!$A156+$A$11,IF($C$7,8,0),1,1) -> 924300 | D156: =OFFSET(InputPriceData!C$15,CalculationsAndCharts!$A156+$A$11,IF($C$7,8,0),1,1) -> 130.58 | E156: =OFFSET(InputPriceData!D$15,CalculationsAndCharts!$A156+$A$11,IF($C$7,8,0),1,1) -> 132.9 | F156: =OFFSET(InputPriceData!E$15,CalculationsAndCharts!$A156+$A$11,IF($C$7,8,0),1,1) -> 129.38 | G156: =OFFSET(InputPriceData!F$15,CalculationsAndCharts!$A156+$A$11,IF($C$7,8,0),1,1) -> 132.39 | H156: 116.5331 | I156: 126.497 | J156: 127.3725 | K156: 127.6725 | L156: 124.17875 | M156: 924300 | O156: FALSE | P156: UP | Q156: FALSE | T156: FALSE | U156: FALSE | V156: FALSE | W156: FALSE | X156: FALSE | Y156: FALSE | AA156: FALSE | AC156: FALSE | AD156: FALSE | AE156: FALSE | AF156: FALSE | AG156: FALSE | AH156: FALSE | AJ156: 116.5331 | AK156: 126.497 | AL156: 127.3725 | AM156: 127.6725 | AN156: 124.17875 | AP156: =OFFSET(InputIndexData!F$15,CalculationsAndCharts!$A156+$A$11,IF($C$7,8,0),1,1) -> 190.23 | AQ156: 192.4182 | AR156: 1 | AS156: -0.5 | AT156: FALSE | AW156: 212
A157: 125 | B157: =OFFSET(InputPriceData!B$15,CalculationsAndCharts!$A157+$A$11,0,1,1) -> 2014-10-20 | C157: =OFFSET(InputPriceData!G$15,CalculationsAndCharts!$A157+$A$11,IF($C$7,8,0),1,1) -> 868400 | D157: =OFFSET(InputPriceData!C$15,CalculationsAndCharts!$A157+$A$11,IF($C$7,8,0),1,1) -> 127.3 | E157: =OFFSET(InputPriceData!D$15,CalculationsAndCharts!$A157+$A$11,IF($C$7,8,0),1,1) -> 129.31 | F157: =OFFSET(InputPriceData!E$15,CalculationsAndCharts!$A157+$A$11,IF($C$7,8,0),1,1) -> 127.26 | G157: =OFFSET(InputPriceData!F$15,CalculationsAndCharts!$A157+$A$11,IF($C$7,8,0),1,1) -> 129.24 | H157: 116.3683 | I157: 126.1736 | J157: 127.313 | K157: 127.0125 | L157: 123.49125 | M157: 868400 | O157: FALSE | P157: UP | Q157: FALSE | T157: FALSE | U157: FALSE | V157: FALSE | W157: FALSE | X157: FALSE | Y157: FALSE | AA157: FALSE | AC157: FALSE | AD157: FALSE | AE157: FALSE | AF157: FALSE | AG157: FALSE | AH157: FALSE | AJ157: 116.3683 | AK157: 126.1736 | AL157: 127.313 | AM157: 127.0125 | AN157: 123.49125 | AP157: =OFFSET(InputIndexData!F$15,CalculationsAndCharts!$A157+$A$11,IF($C$7,8,0),1,1) -> 186.53 | AQ157: 192.3952 | AR157: -1 | AS157: -1 | AT157: FALSE | AW157: 212
A158: 126 | B158: =OFFSET(InputPriceData!B$15,CalculationsAndCharts!$A158+$A$11,0,1,1) -> 2014-10-17 | C158: =OFFSET(InputPriceData!G$15,CalculationsAndCharts!$A158+$A$11,IF($C$7,8,0),1,1) -> 1004500 | D158: =OFFSET(InputPriceData!C$15,CalculationsAndCharts!$A158+$A$11,IF($C$7,8,0),1,1) -> 125.95 | E158: =OFFSET(InputPriceData!D$15,CalculationsAndCharts!$A158+$A$11,IF($C$7,8,0),1,1) -> 127.69 | F158: =OFFSET(InputPriceData!E$15,CalculationsAndCharts!$A158+$A$11,IF($C$7,8,0),1,1) -> 124.83 | G158: =OFFSET(InputPriceData!F$15,CalculationsAndCharts!$A158+$A$11,IF($C$7,8,0),1,1) -> 127.39 | H158: 116.2242 | I158: 125.9304 | J158: 127.5315 | K158: 126.67625 | L158: 123.095 | M158: 1004500 | O158: TRUE | P158: UP | Q158: FALSE | R158: 127.39 | T158: FALSE | U158: FALSE | V158: FALSE | W158: FALSE | X158: FALSE | Y158: FALSE | AA158: FALSE | AC158: FALSE | AD158: FALSE | AE158: FALSE | AF158: FALSE | AG158: FALSE | AH158: FALSE | AJ158: 116.2242 | AK158: 125.9304 | AL158: 127.5315 | AM158: 126.67625 | AN158: 123.095 | AP158: =OFFSET(InputIndexData!F$15,CalculationsAndCharts!$A158+$A$11,IF($C$7,8,0),1,1) -> 184.74 | AQ158: 192.4352 | AR158: -1 | AS158: -1 | AT158: FALSE | AW158: 212
A159: 127 | B159: =OFFSET(InputPriceData!B$15,CalculationsAndCharts!$A159+$A$11,0,1,1) -> 2014-10-16 | C159: =OFFSET(InputPriceData!G$15,CalculationsAndCharts!$A159+$A$11,IF($C$7,8,0),1,1) -> 1668200 | D159: =OFFSET(InputPriceData!C$15,CalculationsAndCharts!$A159+$A$11,IF($C$7,8,0),1,1) -> 122.15 | E159: =OFFSET(InputPriceData!D$15,CalculationsAndCharts!$A159+$A$11,IF($C$7,8,0),1,1) -> 128.63 | F159: =OFFSET(InputPriceData!E$15,CalculationsAndCharts!$A159+$A$11,IF($C$7,8,0),1,1) -> 122.15 | G159: =OFFSET(InputPriceData!F$15,CalculationsAndCharts!$A159+$A$11,IF($C$7,8,0),1,1) -> 124.9 | H159: 116.09465 | I159: 125.6818 | J159: 127.849 | K159: 126.44375 | L159: 122.97375 | M159: 1668200 | O159: FALSE | P159: DOWN | Q159: FALSE | T159: FALSE | U159: FALSE | V159: FALSE | W159: FALSE | X159: FALSE | Y159: FALSE | AA159: FALSE | AC159: FALSE | AD159: FALSE | AE159: FALSE | AF159: FALSE | AG159: FALSE | AH159: FALSE | AJ159: 116.09465 | AK159: 125.6818 | AL159: 127.849 | AM159: 126.44375 | AN159: 122.97375 | AP159: =OFFSET(InputIndexData!F$15,CalculationsAndCharts!$A159+$A$11,IF($C$7,8,0),1,1) -> 182.58 | AQ159: 192.468 | AR159: -1 | AS159: -1 | AT159: FALSE | AW159: 212
A160: 128 | B160: =OFFSET(InputPriceData!B$15,CalculationsAndCharts!$A160+$A$11,0,1,1) -> 2014-10-15 | C160: =OFFSET(InputPriceData!G$15,CalculationsAndCharts!$A160+$A$11,IF($C$7,8,0),1,1) -> 1340100 | D160: =OFFSET(InputPriceData!C$15,CalculationsAndCharts!$A160+$A$11,IF($C$7,8,0),1,1) -> 121.94 | E160: =OFFSET(InputPriceData!D$15,CalculationsAndCharts!$A160+$A$11,IF($C$7,8,0),1,1) -> 124.01 | F160: =OFFSET(InputPriceData!E$15,CalculationsAndCharts!$A160+$A$11,IF($C$7,8,0),1,1) -> 120.24 | G160: =OFFSET(InputPriceData!F$15,CalculationsAndCharts!$A160+$A$11,IF($C$7,8,0),1,1) -> 123.35 | H160: 115.97945 | I160: 125.5644 | J160: 128.205 | K160: 126.56375 | L160: 123.38 | M160: 1340100 | O160: FALSE | P160: DOWN | Q160: FALSE | T160: FALSE | U160: FALSE | V160: FALSE | W160: FALSE | X160: FALSE | Y160: FALSE | AA160: FALSE | AC160: FALSE | AD160: FALSE | AE160: FALSE | AF160: FALSE | AG160: FALSE | AH160: FALSE | AJ160: 115.97945 | AK160: 125.5644 | AL160: 128.205 | AM160: 126.56375 | AN160: 123.38 | AP160: =OFFSET(InputIndexData!F$15,CalculationsAndCharts!$A160+$A$11,IF($C$7,8,0),1,1) -> 182.74 | AQ160: 192.5642 | AR160: -1 | AS160: -1 | AT160: FALSE | AW160: 212
A161: 129 | B161: =OFFSET(InputPriceData!B$15,CalculationsAndCharts!$A161+$A$11,0,1,1) -> 2014-10-14 | C161: =OFFSET(InputPriceData!G$15,CalculationsAndCharts!$A161+$A$11,IF($C$7,8,0),1,1) -> 1338200 | D161: =OFFSET(InputPriceData!C$15,CalculationsAndCharts!$A161+$A$11,IF($C$7,8,0),1,1) -> 124.25 | E161: =OFFSET(InputPriceData!D$15,CalculationsAndCharts!$A161+$A$11,IF($C$7,8,0),1,1) -> 124.25 | F161: =OFFSET(InputPriceData!E$15,CalculationsAndCharts!$A161+$A$11,IF($C$7,8,0),1,1) -> 121.53 | G161: =OFFSET(InputPriceData!F$15,CalculationsAndCharts!$A161+$A$11,IF($C$7,8,0),1,1) -> 123.38 | H161: =AVERAGE(OFFSET(G161,0,0,$A$17,1)) -> 115.86835 | I161: =AVERAGE(OFFSET(G161,0,0,$A$18,1)) -> 125.4668 | J161: =AVERAGE(OFFSET(G161,0,0,$A$19,1)) -> 128.606 | K161: =AVERAGE(OFFSET(E161,0,0,$A$20,1)) -> 127.1525 | L161: =AVERAGE(OFFSET(F161,0,0,$A$21,1)) -> 124.17875 | N161: 1338200 | O161: =AND(G162<=K162,G161>K161,OR(P162="DOWN",P162=0)) -> FALSE | P161: =IF(AND(OR(P162=0,P162="UP"),Q161),"DOWN",IF(AND(OR(P162=0,P162="DOWN"),O161),"UP",P162)) -> DOWN | Q161: =AND(G162>=L162,G161<L161,OR(P162=0,P162="UP")) -> FALSE | T161: FALSE | U161: =AND(T161,O161) -> FALSE | V161: =U162 -> FALSE | W161: =IF(V161,TRUE,IF(X162,FALSE,W162)) -> FALSE | X161: =AND(W161,Q161) -> FALSE | Y161: =X162 -> FALSE | Z161: =IF(AND(NOT(AA161),OR(W161,Y161)),$F$11,NA()) ->  | AA161: FALSE | AC161: FALSE | AD161: =AND(AC161,Q161) -> FALSE | AE161: =AD162 -> FALSE | AF161: FALSE | AG161: FALSE | AH161: =AG162 -> FALSE | AI161: =IF(AND(NOT(AA161),OR(AF161,AH161)),$F$11,NA()) ->  | AJ161: 115.86835 | AK161: 125.4668 | AL161: 128.606 | AM161: 127.1525 | AN161: 124.17875 | AP161: =OFFSET(InputIndexData!F$15,CalculationsAndCharts!$A161+$A$11,IF($C$7,8,0),1,1) -> 183.98 | AQ161: 192.656 | AR161: -1 | AS161: -1 | AT161: FALSE | AV161: =IF(AT161,$AR$26,NA()) ->  | AW161: =IF(AT161,NA(),$AR$26) -> 212
A162: 130 | B162: =OFFSET(InputPriceData!B$15,CalculationsAndCharts!$A162+$A$11,0,1,1) -> 2014-10-13 | C162: =OFFSET(InputPriceData!G$15,CalculationsAndCharts!$A162+$A$11,IF($C$7,8,0),1,1) -> 1135700 | D162: =OFFSET(InputPriceData!C$15,CalculationsAndCharts!$A162+$A$11,IF($C$7,8,0),1,1) -> 125.47 | E162: =OFFSET(InputPriceData!D$15,CalculationsAndCharts!$A162+$A$11,IF($C$7,8,0),1,1) -> 127.56 | F162: =OFFSET(InputPriceData!E$15,CalculationsAndCharts!$A162+$A$11,IF($C$7,8,0),1,1) -> 123.69 | G162: =OFFSET(InputPriceData!F$15,CalculationsAndCharts!$A162+$A$11,IF($C$7,8,0),1,1) -> 123.81 | H162: 115.7599 | I162: 125.3854 | J162: 128.998 | K162: 127.5425 | L162: 124.62125 | M162: =IF(D162<=G162,C162,NA()) ->  | N162: =IF(D162<=G162,NA(),C162) -> 1135700 | O162: FALSE | P162: DOWN | Q162: FALSE | T162: =AND(OR(NOT($R$11),AT162),OR(NOT($R$12),J162>=I162),OR(NOT($R$13),I162>=H162),OR(NOT($R$14),G162>=I162)) -> FALSE | U162: FALSE | V162: FALSE | W162: FALSE | X162: FALSE | Y162: FALSE | AA162: FALSE | AC162: =AND( OR(NOT($R$11),NOT(AT162)), OR(NOT($R$12),J162<=I162), OR(NOT($R$13),I162<=H162), OR(NOT($R$14),G162<=I162) ) -> FALSE | AD162: FALSE | AE162: FALSE | AF162: =IF(AE162,TRUE,IF(AG163,FALSE,AF163)) -> FALSE | AG162: =AND(AF162,O162) -> FALSE | AH162: FALSE | AJ162: =IF($R$3,H162,NA()) -> 115.7599 | AK162: =IF($R$4,I162,NA()) -> 125.3854 | AL162: =IF($R$5,J162,NA()) -> 128.998 | AM162: =IF($R$6,K162,NA()) -> 127.5425 | AN162: =IF($R$6,L162,NA()) -> 124.62125 | AP162: =OFFSET(InputIndexData!F$15,CalculationsAndCharts!$A162+$A$11,IF($C$7,8,0),1,1) -> 183.7 | AQ162: =AVERAGE(OFFSET(AP162,0,0,$D$17,1)) -> 192.7598 | AR162: =IF(AQ162-AQ163>=0,1,-1) -> -1 | AS162: =AVERAGE(OFFSET(AR162,0,0,$D$18,1)) -> -0.5 | AT162: =OR(AS162>0,AND(AS162=0,AS163>0)) -> FALSE | AW162: 212
A163: 131 | B163: =OFFSET(InputPriceData!B$15,CalculationsAndCharts!$A163+$A$11,0,1,1) -> 2014-10-10 | C163: =OFFSET(InputPriceData!G$15,CalculationsAndCharts!$A163+$A$11,IF($C$7,8,0),1,1) -> 1536200 | D163: =OFFSET(InputPriceData!C$15,CalculationsAndCharts!$A163+$A$11,IF($C$7,8,0),1,1) -> 124.55 | E163: =OFFSET(InputPriceData!D$15,CalculationsAndCharts!$A163+$A$11,IF($C$7,8,0),1,1) -> 127.03 | F163: =OFFSET(InputPriceData!E$15,CalculationsAndCharts!$A163+$A$11,IF($C$7,8,0),1,1) -> 124.35 | G163: =OFFSET(InputPriceData!F$15,CalculationsAndCharts!$A163+$A$11,IF($C$7,8,0),1,1) -> 125.56 | H163: 115.65035 | I163: 125.2646 | J163: 129.135 | K163: 127.815 | L163: 124.99125 | M163: 1536200 | O163: FALSE | P163: DOWN | Q163: FALSE | T163: FALSE | U163: FALSE | V163: FALSE | W163: FALSE | X163: FALSE | Y163: FALSE | AA163: FALSE | AC163: FALSE | AD163: FALSE | AE163: FALSE | AF163: FALSE | AG163: FALSE | AH163: FALSE | AJ163: 115.65035 | AK163: 125.2646 | AL163: 129.135 | AM163: 127.815 | AN163: 124.99125 | AP163: =OFFSET(InputIndexData!F$15,CalculationsAndCharts!$A163+$A$11,IF($C$7,8,0),1,1) -> 186.77 | AQ163: 192.842 | AR163: -1 | AS163: -0.5 | AT163: FALSE | AW163: 212
A164: 132 | B164: =OFFSET(InputPriceData!B$15,CalculationsAndCharts!$A164+$A$11,0,1,1) -> 2014-10-09 | C164: =OFFSET(InputPriceData!G$15,CalculationsAndCharts!$A164+$A$11,IF($C$7,8,0),1,1) -> 1024200 | D164: =OFFSET(InputPriceData!C$15,CalculationsAndCharts!$A164+$A$11,IF($C$7,8,0),1,1) -> 126.51 | E164: =OFFSET(InputPriceData!D$15,CalculationsAndCharts!$A164+$A$11,IF($C$7,8,0),1,1) -> 127.62 | F164: =OFFSET(InputPriceData!E$15,CalculationsAndCharts!$A164+$A$11,IF($C$7,8,0),1,1) -> 123.88 | G164: =OFFSET(InputPriceData!F$15,CalculationsAndCharts!$A164+$A$11,IF($C$7,8,0),1,1) -> 124.21 | H164: 115.5307 | I164: 125.086 | J164: 129.214 | K164: 128.35875 | L164: 125.62625 | N164: 1024200 | O164: FALSE | P164: DOWN | Q164: FALSE | T164: FALSE | U164: FALSE | V164: FALSE | W164: FALSE | X164: FALSE | Y164: FALSE | AA164: FALSE | AC164: FALSE | AD164: FALSE | AE164: FALSE | AF164: FALSE | AG164: FALSE | AH164: FALSE | AJ164: 115.5307 | AK164: 125.086 | AL164: 129.214 | AM164: 128.35875 | AN164: 125.62625 | AP164: =OFFSET(InputIndexData!F$15,CalculationsAndCharts!$A164+$A$11,IF($C$7,8,0),1,1) -> 188.92 | AQ164: 192.8744 | AR164: -1 | AS164: -0.5 | AT164: FALSE | AW164: 212
A165: 133 | B165: =OFFSET(InputPriceData!B$15,CalculationsAndCharts!$A165+$A$11,0,1,1) -> 2014-10-08 | C165: =OFFSET(InputPriceData!G$15,CalculationsAndCharts!$A165+$A$11,IF($C$7,8,0),1,1) -> 1123600 | D165: =OFFSET(InputPriceData!C$15,CalculationsAndCharts!$A165+$A$11,IF($C$7,8,0),1,1) -> 124.39 | E165: =OFFSET(InputPriceData!D$15,CalculationsAndCharts!$A165+$A$11,IF($C$7,8,0),1,1) -> 126.62 | F165: =OFFSET(InputPriceData!E$15,CalculationsAndCharts!$A165+$A$11,IF($C$7,8,0),1,1) -> 124.09 | G165: =OFFSET(InputPriceData!F$15,CalculationsAndCharts!$A165+$A$11,IF($C$7,8,0),1,1) -> 126.58 | H165: 115.41685 | I165: 124.9876 | J165: 129.417 | K165: 128.81625 | L165: 126.33625 | M165: 1123600 | O165: FALSE | P165: DOWN | Q165: FALSE | T165: FALSE | U165: FALSE | V165: FALSE | W165: FALSE | X165: FALSE | Y165: FALSE | AA165: FALSE | AC165: FALSE | AD165: FALSE | AE165: FALSE | AF165: FALSE | AG165: FALSE | AH165: FALSE | AJ165: 115.41685 | AK165: 124.9876 | AL165: 129.417 | AM165: 128.81625 | AN165: 126.33625 | AP165: =OFFSET(InputIndexData!F$15,CalculationsAndCharts!$A165+$A$11,IF($C$7,8,0),1,1) -> 192.75 | AQ165: 192.9396 | AR165: 1 | AS165: -0.5 | AT165: FALSE | AW165: 212
A166: 134 | B166: =OFFSET(InputPriceData!B$15,CalculationsAndCharts!$A166+$A$11,0,1,1) -> 2014-10-07 | C166: =OFFSET(InputPriceData!G$15,CalculationsAndCharts!$A166+$A$11,IF($C$7,8,0),1,1) -> 1351700 | D166: =OFFSET(InputPriceData!C$15,CalculationsAndCharts!$A166+$A$11,IF($C$7,8,0),1,1) -> 125.07 | E166: =OFFSET(InputPriceData!D$15,CalculationsAndCharts!$A166+$A$11,IF($C$7,8,0),1,1) -> 125.83 | F166: =OFFSET(InputPriceData!E$15,CalculationsAndCharts!$A166+$A$11,IF($C$7,8,0),1,1) -> 123.86 | G166: =OFFSET(InputPriceData!F$15,CalculationsAndCharts!$A166+$A$11,IF($C$7,8,0),1,1) -> 123.91 | H166: 115.28535 | I166: 124.9842 | J166: 129.48 | K166: 129.4025 | L166: 127.02375 | N166: 1351700 | O166: FALSE | P166: DOWN | Q166: FALSE | T166: FALSE | U166: FALSE | V166: FALSE | W166: FALSE | X166: FALSE | Y166: FALSE | AA166: FALSE | AC166: FALSE | AD166: FALSE | AE166: FALSE | AF166: FALSE | AG166: FALSE | AH166: FALSE | AJ166: 115.28535 | AK166: 124.9842 | AL166: 129.48 | AM166: 129.4025 | AN166: 127.02375 | AP166: =OFFSET(InputIndexData!F$15,CalculationsAndCharts!$A166+$A$11,IF($C$7,8,0),1,1) -> 189.43 | AQ166: 192.9276 | AR166: -1 | AS166: -1 | AT166: FALSE | AW166: 212
A167: 135 | B167: =OFFSET(InputPriceData!B$15,CalculationsAndCharts!$A167+$A$11,0,1,1) -> 2014-10-06 | C167: =OFFSET(InputPriceData!G$15,CalculationsAndCharts!$A167+$A$11,IF($C$7,8,0),1,1) -> 1171100 | D167: =OFFSET(InputPriceData!C$15,CalculationsAndCharts!$A167+$A$11,IF($C$7,8,0),1,1) -> 128.97 | E167: =OFFSET(InputPriceData!D$15,CalculationsAndCharts!$A167+$A$11,IF($C$7,8,0),1,1) -> 129.59 | F167: =OFFSET(InputPriceData!E$15,CalculationsAndCharts!$A167+$A$11,IF($C$7,8,0),1,1) -> 125.4 | G167: =OFFSET(InputPriceData!F$15,CalculationsAndCharts!$A167+$A$11,IF($C$7,8,0),1,1) -> 125.41 | H167: 115.1662 | I167: 125.1018 | J167: 129.7505 | K167: 130.34875 | L167: 127.775 | N167: 1171100 | O167: FALSE | P167: DOWN | Q167: FALSE | T167: FALSE | U167: FALSE | V167: FALSE | W167: FALSE | X167: FALSE | Y167: FALSE | AA167: FALSE | AC167: FALSE | AD167: FALSE | AE167: FALSE | AF167: FALSE | AG167: FALSE | AH167: FALSE | AJ167: 115.1662 | AK167: 125.1018 | AL167: 129.7505 | AM167: 130.34875 | AN167: 127.775 | AP167: =OFFSET(InputIndexData!F$15,CalculationsAndCharts!$A167+$A$11,IF($C$7,8,0),1,1) -> 192.4 | AQ167: 192.9986 | AR167: -1 | AS167: -1 | AT167: FALSE | AW167: 212
A168: 136 | B168: =OFFSET(InputPriceData!B$15,CalculationsAndCharts!$A168+$A$11,0,1,1) -> 2014-10-03 | C168: =OFFSET(InputPriceData!G$15,CalculationsAndCharts!$A168+$A$11,IF($C$7,8,0),1,1) -> 982600 | D168: =OFFSET(InputPriceData!C$15,CalculationsAndCharts!$A168+$A$11,IF($C$7,8,0),1,1) -> 127.25 | E168: =OFFSET(InputPriceData!D$15,CalculationsAndCharts!$A168+$A$11,IF($C$7,8,0),1,1) -> 128.72 | F168: =OFFSET(InputPriceData!E$15,CalculationsAndCharts!$A168+$A$11,IF($C$7,8,0),1,1) -> 126.63 | G168: =OFFSET(InputPriceData!F$15,CalculationsAndCharts!$A168+$A$11,IF($C$7,8,0),1,1) -> 128.07 | H168: 115.03485 | I168: 125.1422 | J168: 129.901 | K168: 130.9725 | L168: 128.4775 | M168: 982600 | O168: FALSE | P168: DOWN | Q168: FALSE | T168: FALSE | U168: FALSE | V168: FALSE | W168: FALSE | X168: FALSE | Y168: FALSE | AA168: FALSE | AB168: =IF(AA168,$F$11,NA()) ->  | AC168: FALSE | AD168: FALSE | AE168: FALSE | AF168: FALSE | AG168: FALSE | AH168: FALSE | AJ168: 115.03485 | AK168: 125.1422 | AL168: 129.901 | AM168: 130.9725 | AN168: 128.4775 | AP168: =OFFSET(InputIndexData!F$15,CalculationsAndCharts!$A168+$A$11,IF($C$7,8,0),1,1) -> 192.63 | AQ168: 193.0086 | AR168: -1 | AS168: -0.5 | AT168: FALSE | AW168: 212
A169: 137 | B169: =OFFSET(InputPriceData!B$15,CalculationsAndCharts!$A169+$A$11,0,1,1) -> 2014-10-02 | C169: =OFFSET(InputPriceData!G$15,CalculationsAndCharts!$A169+$A$11,IF($C$7,8,0),1,1) -> 1323300 | D169: =OFFSET(InputPriceData!C$15,CalculationsAndCharts!$A169+$A$11,IF($C$7,8,0),1,1) -> 126.26 | E169: =OFFSET(InputPriceData!D$15,CalculationsAndCharts!$A169+$A$11,IF($C$7,8,0),1,1) -> 127.37 | F169: =OFFSET(InputPriceData!E$15,CalculationsAndCharts!$A169+$A$11,IF($C$7,8,0),1,1) -> 125.07 | G169: =OFFSET(InputPriceData!F$15,CalculationsAndCharts!$A169+$A$11,IF($C$7,8,0),1,1) -> 126.31 | H169: 114.88205 | I169: 125.2156 | J169: 129.9015 | K169: 131.54625 | L169: 128.98875 | M169: 1323300 | O169: FALSE | P169: DOWN | Q169: FALSE | R169: =IF(O169,G169,NA()) ->  | S169: =IF(Q169,G169,NA()) ->  | T169: TRUE | U169: FALSE | V169: FALSE | W169: FALSE | X169: FALSE | Y169: FALSE | AA169: FALSE | AC169: FALSE | AD169: FALSE | AE169: FALSE | AF169: FALSE | AG169: FALSE | AH169: FALSE | AJ169: 114.88205 | AK169: 125.2156 | AL169: 129.9015 | AM169: 131.54625 | AN169: 128.98875 | AP169: =OFFSET(InputIndexData!F$15,CalculationsAndCharts!$A169+$A$11,IF($C$7,8,0),1,1) -> 190.53 | AQ169: 193.0322 | AR169: -1 | AS169: 0 | AT169: TRUE | AV169: 212
A170: 138 | B170: =OFFSET(InputPriceData!B$15,CalculationsAndCharts!$A170+$A$11,0,1,1) -> 2014-10-01 | C170: =OFFSET(InputPriceData!G$15,CalculationsAndCharts!$A170+$A$11,IF($C$7,8,0),1,1) -> 1312300 | D170: =OFFSET(InputPriceData!C$15,CalculationsAndCharts!$A170+$A$11,IF($C$7,8,0),1,1) -> 129.42 | E170: =OFFSET(InputPriceData!D$15,CalculationsAndCharts!$A170+$A$11,IF($C$7,8,0),1,1) -> 129.74 | F170: =OFFSET(InputPriceData!E$15,CalculationsAndCharts!$A170+$A$11,IF($C$7,8,0),1,1) -> 126.65 | G170: =OFFSET(InputPriceData!F$15,CalculationsAndCharts!$A170+$A$11,IF($C$7,8,0),1,1) -> 127.15 | H170: 114.74315 | I170: 125.3274 | J170: 129.875 | K170: 132.46 | L170: 129.9775 | N170: 1312300 | O170: FALSE | P170: DOWN | Q170: FALSE | T170: TRUE | U170: FALSE | V170: FALSE | W170: FALSE | X170: FALSE | Y170: FALSE | AA170: FALSE | AC170: FALSE | AD170: FALSE | AE170: FALSE | AF170: FALSE | AG170: FALSE | AH170: FALSE | AJ170: 114.74315 | AK170: 125.3274 | AL170: 129.875 | AM170: 132.46 | AN170: 129.9775 | AP170: =OFFSET(InputIndexData!F$15,CalculationsAndCharts!$A170+$A$11,IF($C$7,8,0),1,1) -> 190.5 | AQ170: 193.0976 | AR170: -1 | AS170: 0.5 | AT170: TRUE | AV170: 212
A171: 139 | B171: =OFFSET(InputPriceData!B$15,CalculationsAndCharts!$A171+$A$11,0,1,1) -> 2014-09-30 | C171: =OFFSET(InputPriceData!G$15,CalculationsAndCharts!$A171+$A$11,IF($C$7,8,0),1,1) -> 1069200 | D171: =OFFSET(InputPriceData!C$15,CalculationsAndCharts!$A171+$A$11,IF($C$7,8,0),1,1) -> 131.13 | E171: =OFFSET(InputPriceData!D$15,CalculationsAndCharts!$A171+$A$11,IF($C$7,8,0),1,1) -> 131.38 | F171: =OFFSET(InputPriceData!E$15,CalculationsAndCharts!$A171+$A$11,IF($C$7,8,0),1,1) -> 129.43 | G171: =OFFSET(InputPriceData!F$15,CalculationsAndCharts!$A171+$A$11,IF($C$7,8,0),1,1) -> 129.43 | H171: 114.59905 | I171: 125.4324 | J171: 129.8245 | K171: 132.98375 | L171: 130.65 | N171: 1069200 | O171: FALSE | P171: DOWN | Q171: FALSE | T171: TRUE | U171: FALSE | V171: FALSE | W171: FALSE | X171: FALSE | Y171: FALSE | AA171: FALSE | AC171: FALSE | AD171: FALSE | AE171: FALSE | AF171: FALSE | AG171: FALSE | AH171: FALSE | AJ171: 114.59905 | AK171: 125.4324 | AL171: 129.8245 | AM171: 132.98375 | AN171: 130.65 | AP171: =OFFSET(InputIndexData!F$15,CalculationsAndCharts!$A171+$A$11,IF($C$7,8,0),1,1) -> 193.12 | AQ171: 193.155 | AR171: 1 | AS171: 0.5 | AT171: TRUE | AV171: 212
A172: 140 | B172: =OFFSET(InputPriceData!B$15,CalculationsAndCharts!$A172+$A$11,0,1,1) -> 2014-09-29 | C172: =OFFSET(InputPriceData!G$15,CalculationsAndCharts!$A172+$A$11,IF($C$7,8,0),1,1) -> 700500 | D172: =OFFSET(InputPriceData!C$15,CalculationsAndCharts!$A172+$A$11,IF($C$7,8,0),1,1) -> 129.77 | E172: =OFFSET(InputPriceData!D$15,CalculationsAndCharts!$A172+$A$11,IF($C$7,8,0),1,1) -> 131.28 | F172: =OFFSET(InputPriceData!E$15,CalculationsAndCharts!$A172+$A$11,IF($C$7,8,0),1,1) -> 129.56 | G172: =OFFSET(InputPriceData!F$15,CalculationsAndCharts!$A172+$A$11,IF($C$7,8,0),1,1) -> 131.03 | H172: 114.4463 | I172: 125.481 | J172: 129.67 | K172: 133.165 | L172: 130.89875 | M172: 700500 | O172: FALSE | P172: DOWN | Q172: FALSE | T172: TRUE | U172: FALSE | V172: FALSE | W172: FALSE | X172: FALSE | Y172: FALSE | AA172: FALSE | AC172: FALSE | AD172: FALSE | AE172: FALSE | AF172: FALSE | AG172: FALSE | AH172: FALSE | AJ172: 114.4463 | AK172: 125.481 | AL172: 129.67 | AM172: 133.165 | AN172: 130.89875 | AP172: =OFFSET(InputIndexData!F$15,CalculationsAndCharts!$A172+$A$11,IF($C$7,8,0),1,1) -> 193.63 | AQ172: 193.1432 | AR172: 1 | AS172: 0.5 | AT172: TRUE | AV172: 212
